Workbook

Sheet ACCUEIL
E2: MODE D'EMPLOI
E5: BAD
E6: Les défis des CANUTS

Sheet CLASSEMENTELEVES
G1: 2
D2: DEFI | E2: ABSENT/BONUS | F2: TOTAL ABSENCES | G2: MATCHS JOUES | I2: VICTOIRES | K2: POINTS MARQUES | M2: POINTS ENCAISSES | O2: POINTS THEMES | Q2: CLASSEMENT GENERAL | S2: DEFIS | EE2: 20 | IU2: 40 | NK2: 20 | SA2: 40
A3: Colonne1 | C3: CLASSE | D3: CLASSEMENT1 | E3: A/B | F3: A | G3: Nombre de matchs joués | H3: CLASSEMENT2 | I3: Nombre de victoires | J3: CLASSEMENT3 | K3: Nombre de points marqués | L3: CLASSEMENT4 | M3: Nombre de points encaissés | N3: CLASSEMENT5 | O3: Nombre de points thèmes | P3: CLASSEMENT6 | Q3: MOYENNE CLASSEMENTS | R3: CLASSEMENT8 | S3: CLASSEMENT82 | T3: Colonne1 | U3: Elève | V3: POINTS | W3: PTS THEME | X3: PTS ENCAISSES | Y3: PTS ATP | Z3: classement | AA3: Elève | AB3: POINTS | AC3: PTS THEME | AD3: PTS ENCAISSES | AE3: PTS ATP | AF3: classement | AG3: Elève | AH3: POINTS | AI3: PTS THEME | AJ3: PTS ENCAISSES | AK3: PTS ATP | AL3: classement | AM3: Elève | AN3: POINTS | AO3: PTS THEME | AP3: PTS ENCAISSES | AQ3: PTS ATP | AR3: classement | AS3: Elève | AT3: POINTS | AU3: PTS THEME | AV3: PTS ENCAISSES | AW3: PTS ATP | AX3: classement | AY3: Elève | AZ3: POINTS | BA3: PTS THEME | BB3: PTS ENCAISSES | BC3: PTS ATP | BD3: classement | BE3: Elève | BF3: POINTS | BG3: PTS THEME | BH3: PTS ENCAISSES | BI3: PTS ATP | BJ3: classement | BK3: Elève | BL3: POINTS | BM3: PTS THEME | BN3: PTS ENCAISSES | BO3: PTS ATP | BP3: classement | BQ3: Elève | BR3: POINTS | BS3: PTS THEME | BT3: PTS ENCAISSES | BU3: PTS ATP | BV3: classement | BW3: Elève | BX3: POINTS | BY3: PTS THEME | BZ3: PTS ENCAISSES | CA3: PTS ATP | CB3: classement | CC3: Elève | CD3: POINTS | CE3: PTS THEME | CF3: PTS ENCAISSES | CG3: PTS ATP | CH3: classement | CI3: Elève | CJ3: POINTS | CK3: PTS THEME | CL3: PTS ENCAISSES | CM3: PTS ATP | CN3: classement | CO3: Elève | CP3: POINTS | CQ3: PTS THEME | CR3: PTS ENCAISSES | CS3: PTS ATP | CT3: classement | CU3: Elève | CV3: POINTS | CW3: PTS THEME | CX3: PTS ENCAISSES | CY3: PTS ATP | CZ3: classement | DA3: Elève | DB3: POINTS | DC3: PTS THEME | DD3: PTS ENCAISSES | DE3: PTS ATP | DF3: classement | DG3: Elève | DH3: POINTS | DI3: PTS THEME | DJ3: PTS ENCAISSES | DK3: PTS ATP | DL3: classement | DM3: Elève | DN3: POINTS | DO3: PTS THEME | DP3: PTS ENCAISSES | DQ3: PTS ATP | DR3: classement | DS3: Elève | DT3: POINTS | DU3: PTS THEME | DV3: PTS ENCAISSES | DW3: PTS ATP | DX3: classement | DY3: Elève | DZ3: POINTS | EA3: PTS THEME | EB3: PTS ENCAISSES | EC3: PTS ATP | ED3: classement | EE3: Elève | EF3: POINTS | EG3: PTS THEME | EH3: PTS ENCAISSES | EI3: PTS ATP | EJ3: classement | EK3: Elève | EL3: POINTS | EM3: PTS THEME | EN3: PTS ENCAISSES | EO3: PTS ATP | EP3: classement | EQ3: Elève | ER3: POINTS | ES3: PTS THEME | ET3: PTS ENCAISSES | EU3: PTS ATP | EV3: classement | EW3: Elève | EX3: POINTS | EY3: PTS THEME | EZ3: PTS ENCAISSES | FA3: PTS ATP | FB3: classement | FC3: Elève | FD3: POINTS | FE3: PTS THEME | FF3: PTS ENCAISSES | FG3: PTS ATP | FH3: classement | FI3: Elève | FJ3: POINTS | FK3: PTS THEME | FL3: PTS ENCAISSES | FM3: PTS ATP | FN3: classement | FO3: Elève | FP3: POINTS | FQ3: PTS THEME | FR3: PTS ENCAISSES | FS3: PTS ATP | FT3: classement | FU3: Elève | FV3: POINTS | FW3: PTS THEME | FX3: PTS ENCAISSES | FY3: PTS ATP | FZ3: classement | GA3: Elève | GB3: POINTS | GC3: PTS THEME | GD3: PTS ENCAISSES | GE3: PTS ATP | GF3: classement | GG3: Elève | GH3: POINTS | GI3: PTS THEME | GJ3: PTS ENCAISSES | GK3: PTS ATP | GL3: classement | GM3: Elève | GN3: POINTS | GO3: PTS THEME | GP3: PTS ENCAISSES | GQ3: PTS ATP | GR3: classement | GS3: Elève | GT3: POINTS | GU3: PTS THEME | GV3: PTS ENCAISSES | GW3: PTS ATP | GX3: classement | GY3: Elève | GZ3: POINTS | HA3: PTS THEME | HB3: PTS ENCAISSES | HC3: PTS ATP | HD3: classement | HE3: Elève | HF3: POINTS | HG3: PTS THEME | HH3: PTS ENCAISSES | HI3: PTS ATP | HJ3: classement | HK3: Elève | HL3: POINTS | HM3: PTS THEME | HN3: PTS ENCAISSES | HO3: PTS ATP | HP3: classement | HQ3: Elève | HR3: POINTS | HS3: PTS THEME | HT3: PTS ENCAISSES | HU3: PTS ATP | HV3: classement | HW3: Elève | HX3: POINTS | HY3: PTS THEME | HZ3: PTS ENCAISSES | IA3: PTS ATP | IB3: classement | IC3: Elève | ID3: POINTS | IE3: PTS THEME | IF3: PTS ENCAISSES | IG3: PTS ATP | IH3: classement | II3: Elève | IJ3: POINTS | IK3: PTS THEME | IL3: PTS ENCAISSES | IM3: PTS ATP | IN3: classement | IO3: Elève | IP3: POINTS | IQ3: PTS THEME | IR3: PTS ENCAISSES | IS3: PTS ATP | IT3: classement | IU3: Elève | IV3: POINTS | IW3: PTS THEME | IX3: PTS ENCAISSES | IY3: PTS ATP | IZ3: classement | JA3: Elève | JB3: POINTS | JC3: PTS THEME | JD3: PTS ENCAISSES | JE3: PTS ATP | JF3: classement | JG3: Elève | JH3: POINTS | JI3: PTS THEME | JJ3: PTS ENCAISSES | JK3: PTS ATP | JL3: classement | JM3: Elève | JN3: POINTS | JO3: PTS THEME | JP3: PTS ENCAISSES | JQ3: PTS ATP | JR3: classement | JS3: Elève | JT3: POINTS | JU3: PTS THEME | JV3: PTS ENCAISSES | JW3: PTS ATP | JX3: classement | JY3: Elève | JZ3: POINTS | KA3: PTS THEME | KB3: PTS ENCAISSES | KC3: PTS ATP | KD3: classement | KE3: Elève | KF3: POINTS | KG3: PTS THEME | KH3: PTS ENCAISSES | KI3: PTS ATP | KJ3: classement | KK3: Elève | KL3: POINTS | KM3: PTS THEME | KN3: PTS ENCAISSES | KO3: PTS ATP | KP3: classement | KQ3: Elève | KR3: POINTS | KS3: PTS THEME | KT3: PTS ENCAISSES | KU3: PTS ATP | KV3: classement | KW3: Elève | KX3: POINTS | KY3: PTS THEME | KZ3: PTS ENCAISSES | LA3: PTS ATP | LB3: classement | LC3: Elève | LD3: POINTS | LE3: PTS THEME | LF3: PTS ENCAISSES | LG3: PTS ATP | LH3: classement | LI3: Elève | LJ3: POINTS | LK3: PTS THEME | LL3: PTS ENCAISSES | LM3: PTS ATP | LN3: classement | LO3: Elève | LP3: POINTS | LQ3: PTS THEME | LR3: PTS ENCAISSES | LS3: PTS ATP | LT3: classement | LU3: Elève | LV3: POINTS | LW3: PTS THEME | LX3: PTS ENCAISSES | LY3: PTS ATP | LZ3: classement | MA3: Elève | MB3: POINTS | MC3: PTS THEME | MD3: PTS ENCAISSES | ME3: PTS ATP | MF3: classement | MG3: Elève | MH3: POINTS | MI3: PTS THEME | MJ3: PTS ENCAISSES | MK3: PTS ATP | ML3: classement | MM3: Elève | MN3: POINTS | MO3: PTS THEME | MP3: PTS ENCAISSES | MQ3: PTS ATP | MR3: classement | MS3: Elève | MT3: POINTS | MU3: PTS THEME | MV3: PTS ENCAISSES | MW3: PTS ATP | MX3: classement | MY3: Elève | MZ3: POINTS | NA3: PTS THEME | NB3: PTS ENCAISSES | NC3: PTS ATP | ND3: classement | NE3: Elève | NF3: POINTS | NG3: PTS THEME | NH3: PTS ENCAISSES | NI3: PTS ATP | NJ3: classement | NK3: Elève | NL3: POINTS | NM3: PTS THEME | NN3: PTS ENCAISSES | NO3: PTS ATP | NP3: classement | NQ3: Elève | NR3: POINTS | NS3: PTS THEME | NT3: PTS ENCAISSES | NU3: PTS ATP | NV3: classement | NW3: Elève | NX3: POINTS | NY3: PTS THEME | NZ3: PTS ENCAISSES | OA3: PTS ATP | OB3: classement | OC3: Elève | OD3: POINTS | OE3: PTS THEME | OF3: PTS ENCAISSES | OG3: PTS ATP | OH3: classement | OI3: Elève | OJ3: POINTS | OK3: PTS THEME | OL3: PTS ENCAISSES | OM3: PTS ATP | ON3: classement | OO3: Elève | OP3: POINTS | OQ3: PTS THEME | OR3: PTS ENCAISSES | OS3: PTS ATP | OT3: classement | OU3: Elève | OV3: POINTS | OW3: PTS THEME | OX3: PTS ENCAISSES | OY3: PTS ATP | OZ3: classement | PA3: Elève | PB3: POINTS | PC3: PTS THEME | PD3: PTS ENCAISSES | PE3: PTS ATP | PF3: classement | PG3: Elève | PH3: POINTS | PI3: PTS THEME | PJ3: PTS ENCAISSES | PK3: PTS ATP | PL3: classement | PM3: Elève | PN3: POINTS | PO3: PTS THEME | PP3: PTS ENCAISSES | PQ3: PTS ATP | PR3: classement | PS3: Elève | PT3: POINTS | PU3: PTS THEME | PV3: PTS ENCAISSES | PW3: PTS ATP | PX3: classement | PY3: Elève | PZ3: POINTS | QA3: PTS THEME | QB3: PTS ENCAISSES | QC3: PTS ATP | QD3: classement | QE3: Elève | QF3: POINTS | QG3: PTS THEME | QH3: PTS ENCAISSES | QI3: PTS ATP | QJ3: classement | QK3: Elève | QL3: POINTS | QM3: PTS THEME | QN3: PTS ENCAISSES | QO3: PTS ATP | QP3: classement | QQ3: Elève | QR3: POINTS | QS3: PTS THEME | QT3: PTS ENCAISSES | QU3: PTS ATP | QV3: classement | QW3: Elève | QX3: POINTS | QY3: PTS THEME | QZ3: PTS ENCAISSES | RA3: PTS ATP | RB3: classement | RC3: Elève | RD3: POINTS | RE3: PTS THEME | RF3: PTS ENCAISSES | RG3: PTS ATP | RH3: classement | RI3: Elève | RJ3: POINTS | RK3: PTS THEME | RL3: PTS ENCAISSES | RM3: PTS ATP | RN3: classement | RO3: Elève | RP3: POINTS | RQ3: PTS THEME | RR3: PTS ENCAISSES | RS3: PTS ATP | RT3: classement | RU3: Elève | RV3: POINTS | RW3: PTS THEME | RX3: PTS ENCAISSES | RY3: PTS ATP | RZ3: classement | SA3: Elève | SB3: POINTS | SC3: PTS THEME | SD3: PTS ENCAISSES | SE3: PTS ATP | SF3: classement
A4: 1 | C4: Abdelnour | D4: 1 | G4: =COUNTIF(MATCHSELEVES!$Z$14:$Z$600,C4)+COUNTIF(MATCHSELEVES!$Z$14:$Z$600,$C4&"p") -> 0 | H4: =RANK(G4,$G$4:$G$43) -> 1 | I4: =COUNTIF(MATCHSELEVES!$F$14:$H$249,C4) -> 0 | J4: =RANK(I4,$I$4:$I$43) -> 1 | K4: =V4+AB4+AH4+AN4+AT4+AZ4+BF4+BL4+BX4+CD4+CJ4+CP4+CV4+DB4+DH4+DN4+DT4+DZ4+EF4+EL4+ER4+EX4+FD4+FJ4+FP4+FV4+GB4+GH4+GN4+GT4+GZ4+HF4+HL4+HR4+HX4+ID4+IJ4+IV4+JB4+JH4+JN4+JT4+JZ4+KF4+KL4+KR4+KX4+LD4+LJ4+LP4+LV4+MB4+MH4+MN4+MT4+MZ4+NF4+NL4+NX4+OD4+OJ4+OP4+OV4+PB4+PH4+PN4+PT4+PZ4+QF4+QL4+QR4+RD4+QX4+RJ4+RP4+RV4+SB4+BR4+IP4+NR4 -> 0 | L4: =RANK(K4,$K$4:$K$43) -> 1 | M4: =IFERROR(M47/Tableau10[[#This Row],[Nombre de matchs joués]],0) -> 0 | N4: =IF(Tableau10[[#This Row],[Nombre de points encaissés]]=0,$C$45,SUMPRODUCT((M$4:M$43<M4)*(M$4:M$43<>0))+1) -> 40 | O4: =W4+AC4+AO4+AU4+BA4+BG4+BM4+BS4+BY4+CE4+CK4+CQ4+CW4+DC4+DI4+DO4+DU4+EA4+EM4+ES4+EY4+FE4+FK4+FQ4+FW4+GI4+GO4+GU4+HA4+HG4+HM4+HS4+HY4+IE4+IK4+IQ4+IW4+JC4+JI4+JO4+JU4+KA4+KG4+KM4+KS4+KY4+LE4+LK4+LQ4+LW4+MC4+MI4+MO4+MU4+NA4+NG4+NM4+NS4+NY4+OE4+OK4+OW4+PC4+OQ4+PO4+PI4+PU4+QA4+QG4+QM4+QS4+QY4+RK4+RQ4+RW4+SC4+AI4+EG4+GC4+RE4 -> 0 | P4: =RANK(O4,$O$4:$O$43) -> 1 | Q4: =(Tableau10[[#This Row],[CLASSEMENT1]]+Tableau10[[#This Row],[CLASSEMENT2]]+Tableau10[[#This Row],[CLASSEMENT3]]+Tableau10[[#This Row],[CLASSEMENT4]]+Tableau10[[#This Row],[CLASSEMENT5]]+Tableau10[[#This Row],[CLASSEMENT6]])/6 -> 7.5 | R4: =RANK(Tableau10[[#This Row],[MOYENNE CLASSEMENTS]],Tableau10[MOYENNE CLASSEMENTS],1) -> 1 | T4: =Tableau10[[#This Row],[CLASSEMENT1]] -> 1 | U4: =$C4&"_1" -> Abdelnour_1 | V4: =IFERROR(VLOOKUP(U4,MATCHSELEVES!$Y$14:$AE$600,3,FALSE),0) -> 0 | W4: =IFERROR(VLOOKUP(U4,MATCHSELEVES!$Y$14:$AE$600,4,FALSE),0) -> 0 | X4: =IFERROR(VLOOKUP(U4,MATCHSELEVES!$Y$14:$AE$600,5,FALSE),0) -> 0 | Y4: =IFERROR(VLOOKUP(U4,MATCHSELEVES!$Y$14:$AF$600,8,FALSE),0) -> 0 | Z4: =IFERROR(VLOOKUP(U4,MATCHSELEVES!$Y$14:$AG$600,9,FALSE),0) -> 0 | AA4: =$C4&"_2" -> Abdelnour_2 | AB4: =IFERROR(VLOOKUP(AA4,MATCHSELEVES!$Y$14:$AE$600,3,FALSE),0) -> 0 | AC4: =IFERROR(VLOOKUP(AA4,MATCHSELEVES!$Y$14:$AE$600,4,FALSE),0) -> 0 | AD4: =IFERROR(VLOOKUP(AA4,MATCHSELEVES!$Y$14:$AE$600,5,FALSE),0) -> 0 | AE4: =IFERROR(VLOOKUP(AA4,MATCHSELEVES!$Y$14:$AF$600,8,FALSE),0) -> 0 | AF4: =IFERROR(VLOOKUP(AA4,MATCHSELEVES!$Y$14:$AG$600,9,FALSE),0) -> 0 | AG4: =$C4&"_3" -> Abdelnour_3 | AH4: =IFERROR(VLOOKUP(AG4,MATCHSELEVES!$Y$14:$AE$600,3,FALSE),0) -> 0 | AI4: =IFERROR(VLOOKUP(AG4,MATCHSELEVES!$Y$14:$AE$600,4,FALSE),0) -> 0 | AJ4: =IFERROR(VLOOKUP(AG4,MATCHSELEVES!$Y$14:$AE$600,5,FALSE),0) -> 0 | AK4: =IFERROR(VLOOKUP(AG4,MATCHSELEVES!$Y$14:$AF$600,8,FALSE),0) -> 0 | AL4: =IFERROR(VLOOKUP(AG4,MATCHSELEVES!$Y$14:$AG$600,9,FALSE),0) -> 0 | AM4: =$C4&"_4" -> Abdelnour_4 | AN4: =IFERROR(VLOOKUP(AM4,MATCHSELEVES!$Y$14:$AE$600,3,FALSE),0) -> 0 | AO4: =IFERROR(VLOOKUP(AM4,MATCHSELEVES!$Y$14:$AE$600,4,FALSE),0) -> 0 | AP4: =IFERROR(VLOOKUP(AM4,MATCHSELEVES!$Y$14:$AE$600,5,FALSE),0) -> 0 | AQ4: =IFERROR(VLOOKUP(AM4,MATCHSELEVES!$Y$14:$AF$600,8,FALSE),0) -> 0 | AR4: =IFERROR(VLOOKUP(AM4,MATCHSELEVES!$Y$14:$AG$600,9,FALSE),0) -> 0 | AS4: =$C4&"_5" -> Abdelnour_5 | AT4: =IFERROR(VLOOKUP(AS4,MATCHSELEVES!$Y$14:$AE$600,3,FALSE),0) -> 0 | AU4: =IFERROR(VLOOKUP(AS4,MATCHSELEVES!$Y$14:$AE$600,4,FALSE),0) -> 0 | AV4: =IFERROR(VLOOKUP(AS4,MATCHSELEVES!$Y$14:$AE$600,5,FALSE),0) -> 0 | AW4: =IFERROR(VLOOKUP(AS4,MATCHSELEVES!$Y$14:$AF$600,8,FALSE),0) -> 0 | AX4: =IFERROR(VLOOKUP(AS4,MATCHSELEVES!$Y$14:$AG$600,9,FALSE),0) -> 0 | AY4: =$C4&"_6" -> Abdelnour_6 | AZ4: =IFERROR(VLOOKUP(AY4,MATCHSELEVES!$Y$14:$AE$600,3,FALSE),0) -> 0 | BA4: =IFERROR(VLOOKUP(AY4,MATCHSELEVES!$Y$14:$AE$600,4,FALSE),0) -> 0 | BB4: =IFERROR(VLOOKUP(AY4,MATCHSELEVES!$Y$14:$AE$600,5,FALSE),0) -> 0 | BC4: =IFERROR(VLOOKUP(AY4,MATCHSELEVES!$Y$14:$AF$600,8,FALSE),0) -> 0 | BD4: =IFERROR(VLOOKUP(AY4,MATCHSELEVES!$Y$14:$AG$600,9,FALSE),0) -> 0 | BE4: =$C4&"_7" -> Abdelnour_7 | BF4: =IFERROR(VLOOKUP(BE4,MATCHSELEVES!$Y$14:$AE$600,3,FALSE),0) -> 0 | BG4: =IFERROR(VLOOKUP(BE4,MATCHSELEVES!$Y$14:$AE$600,4,FALSE),0) -> 0 | BH4: =IFERROR(VLOOKUP(BE4,MATCHSELEVES!$Y$14:$AE$600,5,FALSE),0) -> 0 | BI4: =IFERROR(VLOOKUP(BE4,MATCHSELEVES!$Y$14:$AF$600,8,FALSE),0) -> 0 | BJ4: =IFERROR(VLOOKUP(BE4,MATCHSELEVES!$Y$14:$AG$600,9,FALSE),0) -> 0 | BK4: =$C4&"_8" -> Abdelnour_8 | BL4: =IFERROR(VLOOKUP(BK4,MATCHSELEVES!$Y$14:$AE$600,3,FALSE),0) -> 0 | BM4: =IFERROR(VLOOKUP(BK4,MATCHSELEVES!$Y$14:$AE$600,4,FALSE),0) -> 0 | BN4: =IFERROR(VLOOKUP(BK4,MATCHSELEVES!$Y$14:$AE$600,5,FALSE),0) -> 0 | BO4: =IFERROR(VLOOKUP(BK4,MATCHSELEVES!$Y$14:$AF$600,8,FALSE),0) -> 0 | BP4: =IFERROR(VLOOKUP(BK4,MATCHSELEVES!$Y$14:$AG$600,9,FALSE),0) -> 0 | BQ4: =$C4&"_9" -> Abdelnour_9 | BR4: =IFERROR(VLOOKUP(BQ4,MATCHSELEVES!$Y$14:$AE$600,3,FALSE),0) -> 0 | BS4: =IFERROR(VLOOKUP(BQ4,MATCHSELEVES!$Y$14:$AE$600,4,FALSE),0) -> 0 | BT4: =IFERROR(VLOOKUP(BQ4,MATCHSELEVES!$Y$14:$AE$600,5,FALSE),0) -> 0 | BU4: =IFERROR(VLOOKUP(BQ4,MATCHSELEVES!$Y$14:$AF$600,8,FALSE),0) -> 0 | BV4: =IFERROR(VLOOKUP(BQ4,MATCHSELEVES!$Y$14:$AG$600,9,FALSE),0) -> 0 | BW4: =$C4&"_10" -> Abdelnour_10 | BX4: =IFERROR(VLOOKUP(BW4,MATCHSELEVES!$Y$14:$AE$600,3,FALSE),0) -> 0 | BY4: =IFERROR(VLOOKUP(BW4,MATCHSELEVES!$Y$14:$AE$600,4,FALSE),0) -> 0 | BZ4: =IFERROR(VLOOKUP(BW4,MATCHSELEVES!$Y$14:$AE$600,5,FALSE),0) -> 0 | CA4: =IFERROR(VLOOKUP(BW4,MATCHSELEVES!$Y$14:$AF$600,8,FALSE),0) -> 0 | CB4: =IFERROR(VLOOKUP(BW4,MATCHSELEVES!$Y$14:$AG$600,9,FALSE),0) -> 0 | CC4: =$C4&"_11" -> Abdelnour_11 | CD4: =IFERROR(VLOOKUP(CC4,MATCHSELEVES!$Y$14:$AE$600,3,FALSE),0) -> 0 | CE4: =IFERROR(VLOOKUP(CC4,MATCHSELEVES!$Y$14:$AE$600,4,FALSE),0) -> 0 | CF4: =IFERROR(VLOOKUP(CC4,MATCHSELEVES!$Y$14:$AE$600,5,FALSE),0) -> 0 | CG4: =IFERROR(VLOOKUP(CC4,MATCHSELEVES!$Y$14:$AF$600,8,FALSE),0) -> 0 | CH4: =IFERROR(VLOOKUP(CC4,MATCHSELEVES!$Y$14:$AG$600,9,FALSE),0) -> 0 | CI4: =$C4&"_12" -> Abdelnour_12 | CJ4: =IFERROR(VLOOKUP(CI4,MATCHSELEVES!$Y$14:$AE$600,3,FALSE),0) -> 0 | CK4: =IFERROR(VLOOKUP(CI4,MATCHSELEVES!$Y$14:$AE$600,4,FALSE),0) -> 0 | CL4: =IFERROR(VLOOKUP(CI4,MATCHSELEVES!$Y$14:$AE$600,5,FALSE),0) -> 0 | CM4: =IFERROR(VLOOKUP(CI4,MATCHSELEVES!$Y$14:$AF$600,8,FALSE),0) -> 0 | CN4: =IFERROR(VLOOKUP(CI4,MATCHSELEVES!$Y$14:$AG$600,9,FALSE),0) -> 0 | CO4: =$C4&"_13" -> Abdelnour_13 | CP4: =IFERROR(VLOOKUP(CO4,MATCHSELEVES!$Y$14:$AE$600,3,FALSE),0) -> 0 | CQ4: =IFERROR(VLOOKUP(CO4,MATCHSELEVES!$Y$14:$AE$600,4,FALSE),0) -> 0 | CR4: =IFERROR(VLOOKUP(CO4,MATCHSELEVES!$Y$14:$AE$600,5,FALSE),0) -> 0 | CS4: =IFERROR(VLOOKUP(CO4,MATCHSELEVES!$Y$14:$AF$600,8,FALSE),0) -> 0 | CT4: =IFERROR(VLOOKUP(CO4,MATCHSELEVES!$Y$14:$AG$600,9,FALSE),0) -> 0 | CU4: =$C4&"_14" -> Abdelnour_14 | CV4: =IFERROR(VLOOKUP(CU4,MATCHSELEVES!$Y$14:$AE$600,3,FALSE),0) -> 0 | CW4: =IFERROR(VLOOKUP(CU4,MATCHSELEVES!$Y$14:$AE$600,4,FALSE),0) -> 0 | CX4: =IFERROR(VLOOKUP(CU4,MATCHSELEVES!$Y$14:$AE$600,5,FALSE),0) -> 0 | CY4: =IFERROR(VLOOKUP(CU4,MATCHSELEVES!$Y$14:$AF$600,8,FALSE),0) -> 0 | CZ4: =IFERROR(VLOOKUP(CU4,MATCHSELEVES!$Y$14:$AG$600,9,FALSE),0) -> 0 | DA4: =$C4&"_15" -> Abdelnour_15 | DB4: =IFERROR(VLOOKUP(DA4,MATCHSELEVES!$Y$14:$AE$600,3,FALSE),0) -> 0 | DC4: =IFERROR(VLOOKUP(DA4,MATCHSELEVES!$Y$14:$AE$600,4,FALSE),0) -> 0 | DD4: =IFERROR(VLOOKUP(DA4,MATCHSELEVES!$Y$14:$AE$600,5,FALSE),0) -> 0 | DE4: =IFERROR(VLOOKUP(DA4,MATCHSELEVES!$Y$14:$AF$600,8,FALSE),0) -> 0 | DF4: =IFERROR(VLOOKUP(DA4,MATCHSELEVES!$Y$14:$AG$600,9,FALSE),0) -> 0 | DG4: =$C4&"_16" -> Abdelnour_16 | DH4: =IFERROR(VLOOKUP(DG4,MATCHSELEVES!$Y$14:$AE$600,3,FALSE),0) -> 0 | DI4: =IFERROR(VLOOKUP(DG4,MATCHSELEVES!$Y$14:$AE$600,4,FALSE),0) -> 0 | DJ4: =IFERROR(VLOOKUP(DG4,MATCHSELEVES!$Y$14:$AE$600,5,FALSE),0) -> 0 | DK4: =IFERROR(VLOOKUP(DG4,MATCHSELEVES!$Y$14:$AF$600,8,FALSE),0) -> 0 | DL4: =IFERROR(VLOOKUP(DG4,MATCHSELEVES!$Y$14:$AG$600,9,FALSE),0) -> 0 | DM4: =$C4&"_17" -> Abdelnour_17 | DN4: =IFERROR(VLOOKUP(DM4,MATCHSELEVES!$Y$14:$AE$600,3,FALSE),0) -> 0 | DO4: =IFERROR(VLOOKUP(DM4,MATCHSELEVES!$Y$14:$AE$600,4,FALSE),0) -> 0 | DP4: =IFERROR(VLOOKUP(DM4,MATCHSELEVES!$Y$14:$AE$600,5,FALSE),0) -> 0 | DQ4: =IFERROR(VLOOKUP(DM4,MATCHSELEVES!$Y$14:$AF$600,8,FALSE),0) -> 0 | DR4: =IFERROR(VLOOKUP(DM4,MATCHSELEVES!$Y$14:$AG$600,9,FALSE),0) -> 0 | DS4: =$C4&"_18" -> Abdelnour_18 | DT4: =IFERROR(VLOOKUP(DS4,MATCHSELEVES!$Y$14:$AE$600,3,FALSE),0) -> 0 | DU4: =IFERROR(VLOOKUP(DS4,MATCHSELEVES!$Y$14:$AE$600,4,FALSE),0) -> 0 | DV4: =IFERROR(VLOOKUP(DS4,MATCHSELEVES!$Y$14:$AE$600,5,FALSE),0) -> 0 | DW4: =IFERROR(VLOOKUP(DS4,MATCHSELEVES!$Y$14:$AF$600,8,FALSE),0) -> 0 | DX4: =IFERROR(VLOOKUP(DS4,MATCHSELEVES!$Y$14:$AG$600,9,FALSE),0) -> 0 | DY4: =$C4&"_19" -> Abdelnour_19 | DZ4: =IFERROR(VLOOKUP(DY4,MATCHSELEVES!$Y$14:$AE$600,3,FALSE),0) -> 0 | EA4: =IFERROR(VLOOKUP(DY4,MATCHSELEVES!$Y$14:$AE$600,4,FALSE),0) -> 0 | EB4: =IFERROR(VLOOKUP(DY4,MATCHSELEVES!$Y$14:$AE$600,5,FALSE),0) -> 0 | EC4: =IFERROR(VLOOKUP(DY4,MATCHSELEVES!$Y$14:$AF$600,8,FALSE),0) -> 0 | ED4: =IFERROR(VLOOKUP(DY4,MATCHSELEVES!$Y$14:$AG$600,9,FALSE),0) -> 0 | EE4: =$C4&"_20" -> Abdelnour_20 | EF4: =IFERROR(VLOOKUP(EE4,MATCHSELEVES!$Y$14:$AE$600,3,FALSE),0) -> 0 | EG4: =IFERROR(VLOOKUP(EE4,MATCHSELEVES!$Y$14:$AE$600,4,FALSE),0) -> 0 | EH4: =IFERROR(VLOOKUP(EE4,MATCHSELEVES!$Y$14:$AE$600,5,FALSE),0) -> 0 | EI4: =IFERROR(VLOOKUP(EE4,MATCHSELEVES!$Y$14:$AF$600,8,FALSE),0) -> 0 | EJ4: =IFERROR(VLOOKUP(EE4,MATCHSELEVES!$Y$14:$AG$600,9,FALSE),0) -> 0 | EK4: =$C4&"_21" -> Abdelnour_21 | EL4: =IFERROR(VLOOKUP(EK4,MATCHSELEVES!$Y$14:$AE$600,3,FALSE),0) -> 0 | EM4: =IFERROR(VLOOKUP(EK4,MATCHSELEVES!$Y$14:$AE$600,4,FALSE),0) -> 0 | EN4: =IFERROR(VLOOKUP(EK4,MATCHSELEVES!$Y$14:$AE$600,5,FALSE),0) -> 0 | EO4: =IFERROR(VLOOKUP(EK4,MATCHSELEVES!$Y$14:$AF$600,8,FALSE),0) -> 0 | EP4: =IFERROR(VLOOKUP(EK4,MATCHSELEVES!$Y$14:$AG$600,9,FALSE),0) -> 0 | EQ4: =$C4&"_22" -> Abdelnour_22 | ER4: =IFERROR(VLOOKUP(EQ4,MATCHSELEVES!$Y$14:$AE$600,3,FALSE),0) -> 0 | ES4: =IFERROR(VLOOKUP(EQ4,MATCHSELEVES!$Y$14:$AE$600,4,FALSE),0) -> 0 | ET4: =IFERROR(VLOOKUP(EQ4,MATCHSELEVES!$Y$14:$AE$600,5,FALSE),0) -> 0 | EU4: =IFERROR(VLOOKUP(EQ4,MATCHSELEVES!$Y$14:$AF$600,8,FALSE),0) -> 0 | EV4: =IFERROR(VLOOKUP(EQ4,MATCHSELEVES!$Y$14:$AG$600,9,FALSE),0) -> 0 | EW4: =$C4&"_23" -> Abdelnour_23 | EX4: =IFERROR(VLOOKUP(EW4,MATCHSELEVES!$Y$14:$AE$600,3,FALSE),0) -> 0 | EY4: =IFERROR(VLOOKUP(EW4,MATCHSELEVES!$Y$14:$AE$600,4,FALSE),0) -> 0 | EZ4: =IFERROR(VLOOKUP(EW4,MATCHSELEVES!$Y$14:$AE$600,5,FALSE),0) -> 0 | FA4: =IFERROR(VLOOKUP(EW4,MATCHSELEVES!$Y$14:$AF$600,8,FALSE),0) -> 0 | FB4: =IFERROR(VLOOKUP(EW4,MATCHSELEVES!$Y$14:$AG$600,9,FALSE),0) -> 0 | FC4: =$C4&"_24" -> Abdelnour_24 | FD4: =IFERROR(VLOOKUP(FC4,MATCHSELEVES!$Y$14:$AE$600,3,FALSE),0) -> 0 | FE4: =IFERROR(VLOOKUP(FC4,MATCHSELEVES!$Y$14:$AE$600,4,FALSE),0) -> 0 | FF4: =IFERROR(VLOOKUP(FC4,MATCHSELEVES!$Y$14:$AE$600,5,FALSE),0) -> 0 | FG4: =IFERROR(VLOOKUP(FC4,MATCHSELEVES!$Y$14:$AF$600,8,FALSE),0) -> 0 | FH4: =IFERROR(VLOOKUP(FC4,MATCHSELEVES!$Y$14:$AG$600,9,FALSE),0) -> 0 | FI4: =$C4&"_25" -> Abdelnour_25 | FJ4: =IFERROR(VLOOKUP(FI4,MATCHSELEVES!$Y$14:$AE$600,3,FALSE),0) -> 0 | FK4: =IFERROR(VLOOKUP(FI4,MATCHSELEVES!$Y$14:$AE$600,4,FALSE),0) -> 0 | FL4: =IFERROR(VLOOKUP(FI4,MATCHSELEVES!$Y$14:$AE$600,5,FALSE),0) -> 0 | FM4: =IFERROR(VLOOKUP(FI4,MATCHSELEVES!$Y$14:$AF$600,8,FALSE),0) -> 0 | FN4: =IFERROR(VLOOKUP(FI4,MATCHSELEVES!$Y$14:$AG$600,9,FALSE),0) -> 0 | FO4: =$C4&"_26" -> Abdelnour_26 | FP4: =IFERROR(VLOOKUP(FO4,MATCHSELEVES!$Y$14:$AE$600,3,FALSE),0) -> 0 | FQ4: =IFERROR(VLOOKUP(FO4,MATCHSELEVES!$Y$14:$AE$600,4,FALSE),0) -> 0 | FR4: =IFERROR(VLOOKUP(FO4,MATCHSELEVES!$Y$14:$AE$600,5,FALSE),0) -> 0 | FS4: =IFERROR(VLOOKUP(FO4,MATCHSELEVES!$Y$14:$AF$600,8,FALSE),0) -> 0 | FT4: =IFERROR(VLOOKUP(FO4,MATCHSELEVES!$Y$14:$AG$600,9,FALSE),0) -> 0 | FU4: =$C4&"_27" -> Abdelnour_27 | FV4: =IFERROR(VLOOKUP(FU4,MATCHSELEVES!$Y$14:$AE$600,3,FALSE),0) -> 0 | FW4: =IFERROR(VLOOKUP(FU4,MATCHSELEVES!$Y$14:$AE$600,4,FALSE),0) -> 0 | FX4: =IFERROR(VLOOKUP(FU4,MATCHSELEVES!$Y$14:$AE$600,5,FALSE),0) -> 0 | FY4: =IFERROR(VLOOKUP(FU4,MATCHSELEVES!$Y$14:$AF$600,8,FALSE),0) -> 0 | FZ4: =IFERROR(VLOOKUP(FU4,MATCHSELEVES!$Y$14:$AG$600,9,FALSE),0) -> 0 | GA4: =$C4&"_28" -> Abdelnour_28 | GB4: =IFERROR(VLOOKUP(GA4,MATCHSELEVES!$Y$14:$AE$600,3,FALSE),0) -> 0 | GC4: =IFERROR(VLOOKUP(GA4,MATCHSELEVES!$Y$14:$AE$600,4,FALSE),0) -> 0 | GD4: =IFERROR(VLOOKUP(GA4,MATCHSELEVES!$Y$14:$AE$600,5,FALSE),0) -> 0 | GE4: =IFERROR(VLOOKUP(GA4,MATCHSELEVES!$Y$14:$AF$600,8,FALSE),0) -> 0 | GF4: =IFERROR(VLOOKUP(GA4,MATCHSELEVES!$Y$14:$AG$600,9,FALSE),0) -> 0 | GG4: =$C4&"_29" -> Abdelnour_29 | GH4: =IFERROR(VLOOKUP(GG4,MATCHSELEVES!$Y$14:$AE$600,3,FALSE),0) -> 0 | GI4: =IFERROR(VLOOKUP(GG4,MATCHSELEVES!$Y$14:$AE$600,4,FALSE),0) -> 0 | GJ4: =IFERROR(VLOOKUP(GG4,MATCHSELEVES!$Y$14:$AE$600,5,FALSE),0) -> 0 | GK4: =IFERROR(VLOOKUP(GG4,MATCHSELEVES!$Y$14:$AF$600,8,FALSE),0) -> 0 | GL4: =IFERROR(VLOOKUP(GG4,MATCHSELEVES!$Y$14:$AG$600,9,FALSE),0) -> 0 | GM4: =$C4&"_30" -> Abdelnour_30 | GN4: =IFERROR(VLOOKUP(GM4,MATCHSELEVES!$Y$14:$AE$600,3,FALSE),0) -> 0 | GO4: =IFERROR(VLOOKUP(GM4,MATCHSELEVES!$Y$14:$AE$600,4,FALSE),0) -> 0 | GP4: =IFERROR(VLOOKUP(GM4,MATCHSELEVES!$Y$14:$AE$600,5,FALSE),0) -> 0 | GQ4: =IFERROR(VLOOKUP(GM4,MATCHSELEVES!$Y$14:$AF$600,8,FALSE),0) -> 0 | GR4: =IFERROR(VLOOKUP(GM4,MATCHSELEVES!$Y$14:$AG$600,9,FALSE),0) -> 0 | GS4: =$C4&"_31" -> Abdelnour_31 | GT4: =IFERROR(VLOOKUP(GS4,MATCHSELEVES!$Y$14:$AE$600,3,FALSE),0) -> 0 | GU4: =IFERROR(VLOOKUP(GS4,MATCHSELEVES!$Y$14:$AE$600,4,FALSE),0) -> 0 | GV4: =IFERROR(VLOOKUP(GS4,MATCHSELEVES!$Y$14:$AE$600,5,FALSE),0) -> 0 | GW4: =IFERROR(VLOOKUP(GS4,MATCHSELEVES!$Y$14:$AF$600,8,FALSE),0) -> 0 | GX4: =IFERROR(VLOOKUP(GS4,MATCHSELEVES!$Y$14:$AG$600,9,FALSE),0) -> 0 | GY4: =$C4&"_32" -> Abdelnour_32 | GZ4: =IFERROR(VLOOKUP(GY4,MATCHSELEVES!$Y$14:$AE$600,3,FALSE),0) -> 0 | HA4: =IFERROR(VLOOKUP(GY4,MATCHSELEVES!$Y$14:$AE$600,4,FALSE),0) -> 0 | HB4: =IFERROR(VLOOKUP(GY4,MATCHSELEVES!$Y$14:$AE$600,5,FALSE),0) -> 0 | HC4: =IFERROR(VLOOKUP(GY4,MATCHSELEVES!$Y$14:$AF$600,8,FALSE),0) -> 0 | HD4: =IFERROR(VLOOKUP(GY4,MATCHSELEVES!$Y$14:$AG$600,9,FALSE),0) -> 0 | HE4: =$C4&"_33" -> Abdelnour_33 | HF4: =IFERROR(VLOOKUP(HE4,MATCHSELEVES!$Y$14:$AE$600,3,FALSE),0) -> 0 | HG4: =IFERROR(VLOOKUP(HE4,MATCHSELEVES!$Y$14:$AE$600,4,FALSE),0) -> 0 | HH4: =IFERROR(VLOOKUP(HE4,MATCHSELEVES!$Y$14:$AE$600,5,FALSE),0) -> 0 | HI4: =IFERROR(VLOOKUP(HE4,MATCHSELEVES!$Y$14:$AF$600,8,FALSE),0) -> 0 | HJ4: =IFERROR(VLOOKUP(HE4,MATCHSELEVES!$Y$14:$AG$600,9,FALSE),0) -> 0 | HK4: =$C4&"_34" -> Abdelnour_34 | HL4: =IFERROR(VLOOKUP(HK4,MATCHSELEVES!$Y$14:$AE$600,3,FALSE),0) -> 0 | HM4: =IFERROR(VLOOKUP(HK4,MATCHSELEVES!$Y$14:$AE$600,4,FALSE),0) -> 0 | HN4: =IFERROR(VLOOKUP(HK4,MATCHSELEVES!$Y$14:$AE$600,5,FALSE),0) -> 0 | HO4: =IFERROR(VLOOKUP(HK4,MATCHSELEVES!$Y$14:$AF$600,8,FALSE),0) -> 0 | HP4: =IFERROR(VLOOKUP(HK4,MATCHSELEVES!$Y$14:$AG$600,9,FALSE),0) -> 0 | HQ4: =$C4&"_35" -> Abdelnour_35 | HR4: =IFERROR(VLOOKUP(HQ4,MATCHSELEVES!$Y$14:$AE$600,3,FALSE),0) -> 0 | HS4: =IFERROR(VLOOKUP(HQ4,MATCHSELEVES!$Y$14:$AE$600,4,FALSE),0) -> 0 | HT4: =IFERROR(VLOOKUP(HQ4,MATCHSELEVES!$Y$14:$AE$600,5,FALSE),0) -> 0 | HU4: =IFERROR(VLOOKUP(HQ4,MATCHSELEVES!$Y$14:$AF$600,8,FALSE),0) -> 0 | HV4: =IFERROR(VLOOKUP(HQ4,MATCHSELEVES!$Y$14:$AG$600,9,FALSE),0) -> 0 | HW4: =$C4&"_36" -> Abdelnour_36 | HX4: =IFERROR(VLOOKUP(HW4,MATCHSELEVES!$Y$14:$AE$600,3,FALSE),0) -> 0 | HY4: =IFERROR(VLOOKUP(HW4,MATCHSELEVES!$Y$14:$AE$600,4,FALSE),0) -> 0 | HZ4: =IFERROR(VLOOKUP(HW4,MATCHSELEVES!$Y$14:$AE$600,5,FALSE),0) -> 0 | IA4: =IFERROR(VLOOKUP(HW4,MATCHSELEVES!$Y$14:$AF$600,8,FALSE),0) -> 0 | IB4: =IFERROR(VLOOKUP(HW4,MATCHSELEVES!$Y$14:$AG$600,9,FALSE),0) -> 0 | IC4: =$C4&"_37" -> Abdelnour_37 | ID4: =IFERROR(VLOOKUP(IC4,MATCHSELEVES!$Y$14:$AE$600,3,FALSE),0) -> 0 | IE4: =IFERROR(VLOOKUP(IC4,MATCHSELEVES!$Y$14:$AE$600,4,FALSE),0) -> 0 | IF4: =IFERROR(VLOOKUP(IC4,MATCHSELEVES!$Y$14:$AE$600,5,FALSE),0) -> 0 | IG4: =IFERROR(VLOOKUP(IC4,MATCHSELEVES!$Y$14:$AF$600,8,FALSE),0) -> 0 | IH4: =IFERROR(VLOOKUP(IC4,MATCHSELEVES!$Y$14:$AG$600,9,FALSE),0) -> 0 | II4: =$C4&"_38" -> Abdelnour_38 | IJ4: =IFERROR(VLOOKUP(II4,MATCHSELEVES!$Y$14:$AE$600,3,FALSE),0) -> 0 | IK4: =IFERROR(VLOOKUP(II4,MATCHSELEVES!$Y$14:$AE$600,4,FALSE),0) -> 0 | IL4: =IFERROR(VLOOKUP(II4,MATCHSELEVES!$Y$14:$AE$600,5,FALSE),0) -> 0 | IM4: =IFERROR(VLOOKUP(II4,MATCHSELEVES!$Y$14:$AF$600,8,FALSE),0) -> 0 | IN4: =IFERROR(VLOOKUP(II4,MATCHSELEVES!$Y$14:$AG$600,9,FALSE),0) -> 0 | IO4: =$C4&"_39" -> Abdelnour_39 | IP4: =IFERROR(VLOOKUP(IO4,MATCHSELEVES!$Y$14:$AE$600,3,FALSE),0) -> 0 | IQ4: =IFERROR(VLOOKUP(IO4,MATCHSELEVES!$Y$14:$AE$600,4,FALSE),0) -> 0 | IR4: =IFERROR(VLOOKUP(IO4,MATCHSELEVES!$Y$14:$AE$600,5,FALSE),0) -> 0 | IS4: =IFERROR(VLOOKUP(IO4,MATCHSELEVES!$Y$14:$AF$600,8,FALSE),0) -> 0 | IT4: =IFERROR(VLOOKUP(IO4,MATCHSELEVES!$Y$14:$AG$600,9,FALSE),0) -> 0 | IU4: =$C4&"_40" -> Abdelnour_40 | IV4: =IFERROR(VLOOKUP(IU4,MATCHSELEVES!$Y$14:$AE$600,3,FALSE),0) -> 0 | IW4: =IFERROR(VLOOKUP(IU4,MATCHSELEVES!$Y$14:$AE$600,4,FALSE),0) -> 0 | IX4: =IFERROR(VLOOKUP(IU4,MATCHSELEVES!$Y$14:$AE$600,5,FALSE),0) -> 0 | IY4: =IFERROR(VLOOKUP(IU4,MATCHSELEVES!$Y$14:$AF$600,8,FALSE),0) -> 0 | IZ4: =IFERROR(VLOOKUP(IU4,MATCHSELEVES!$Y$14:$AG$600,9,FALSE),0) -> 0 | JA4: =$C4&"p_1" -> Abdelnourp_1 | JB4: =IFERROR(VLOOKUP(JA4,MATCHSELEVES!$Y$14:$AE$600,3,FALSE),0) -> 0 | JC4: =IFERROR(VLOOKUP(JA4,MATCHSELEVES!$Y$14:$AE$600,4,FALSE),0) -> 0 | JD4: =IFERROR(VLOOKUP(JA4,MATCHSELEVES!$Y$14:$AE$600,5,FALSE),0) -> 0 | JE4: =IFERROR(VLOOKUP(JA4,MATCHSELEVES!$Y$14:$AF$600,8,FALSE),0) -> 0 | JF4: =IFERROR(VLOOKUP(JA4,MATCHSELEVES!$Y$14:$AG$600,9,FALSE),0) -> 0 | JG4: =$C4&"p_2" -> Abdelnourp_2 | JH4: =IFERROR(VLOOKUP(JG4,MATCHSELEVES!$Y$14:$AE$600,3,FALSE),0) -> 0 | JI4: =IFERROR(VLOOKUP(JG4,MATCHSELEVES!$Y$14:$AE$600,4,FALSE),0) -> 0 | JJ4: =IFERROR(VLOOKUP(JG4,MATCHSELEVES!$Y$14:$AE$600,5,FALSE),0) -> 0 | JK4: =IFERROR(VLOOKUP(JG4,MATCHSELEVES!$Y$14:$AF$600,8,FALSE),0) -> 0 | JL4: =IFERROR(VLOOKUP(JG4,MATCHSELEVES!$Y$14:$AG$600,9,FALSE),0) -> 0 | JM4: =$C4&"p_3" -> Abdelnourp_3 | JN4: =IFERROR(VLOOKUP(JM4,MATCHSELEVES!$Y$14:$AE$600,3,FALSE),0) -> 0 | JO4: =IFERROR(VLOOKUP(JM4,MATCHSELEVES!$Y$14:$AE$600,4,FALSE),0) -> 0 | JP4: =IFERROR(VLOOKUP(JM4,MATCHSELEVES!$Y$14:$AE$600,5,FALSE),0) -> 0 | JQ4: =IFERROR(VLOOKUP(JM4,MATCHSELEVES!$Y$14:$AF$600,8,FALSE),0) -> 0 | JR4: =IFERROR(VLOOKUP(JM4,MATCHSELEVES!$Y$14:$AG$600,9,FALSE),0) -> 0 | JS4: =$C4&"p_4" -> Abdelnourp_4 | JT4: =IFERROR(VLOOKUP(JS4,MATCHSELEVES!$Y$14:$AE$600,3,FALSE),0) -> 0 | JU4: =IFERROR(VLOOKUP(JS4,MATCHSELEVES!$Y$14:$AE$600,4,FALSE),0) -> 0 | JV4: =IFERROR(VLOOKUP(JS4,MATCHSELEVES!$Y$14:$AE$600,5,FALSE),0) -> 0 | JW4: =IFERROR(VLOOKUP(JS4,MATCHSELEVES!$Y$14:$AF$600,8,FALSE),0) -> 0 | JX4: =IFERROR(VLOOKUP(JS4,MATCHSELEVES!$Y$14:$AG$600,9,FALSE),0) -> 0 | JY4: =$C4&"p_5" -> Abdelnourp_5 | JZ4: =IFERROR(VLOOKUP(JY4,MATCHSELEVES!$Y$14:$AE$600,3,FALSE),0) -> 0 | KA4: =IFERROR(VLOOKUP(JY4,MATCHSELEVES!$Y$14:$AE$600,4,FALSE),0) -> 0 | KB4: =IFERROR(VLOOKUP(JY4,MATCHSELEVES!$Y$14:$AE$600,5,FALSE),0) -> 0 | KC4: =IFERROR(VLOOKUP(JY4,MATCHSELEVES!$Y$14:$AF$600,8,FALSE),0) -> 0 | KD4: =IFERROR(VLOOKUP(JY4,MATCHSELEVES!$Y$14:$AG$600,9,FALSE),0) -> 0 | KE4: =$C4&"p_6" -> Abdelnourp_6 | KF4: =IFERROR(VLOOKUP(KE4,MATCHSELEVES!$Y$14:$AE$600,3,FALSE),0) -> 0 | KG4: =IFERROR(VLOOKUP(KE4,MATCHSELEVES!$Y$14:$AE$600,4,FALSE),0) -> 0 | KH4: =IFERROR(VLOOKUP(KE4,MATCHSELEVES!$Y$14:$AE$600,5,FALSE),0) -> 0 | KI4: =IFERROR(VLOOKUP(KE4,MATCHSELEVES!$Y$14:$AF$600,8,FALSE),0) -> 0 | KJ4: =IFERROR(VLOOKUP(KE4,MATCHSELEVES!$Y$14:$AG$600,9,FALSE),0) -> 0 | KK4: =$C4&"p_7" -> Abdelnourp_7 | KL4: =IFERROR(VLOOKUP(KK4,MATCHSELEVES!$Y$14:$AE$600,3,FALSE),0) -> 0 | KM4: =IFERROR(VLOOKUP(KK4,MATCHSELEVES!$Y$14:$AE$600,4,FALSE),0) -> 0 | KN4: =IFERROR(VLOOKUP(KK4,MATCHSELEVES!$Y$14:$AE$600,5,FALSE),0) -> 0 | KO4: =IFERROR(VLOOKUP(KK4,MATCHSELEVES!$Y$14:$AF$600,8,FALSE),0) -> 0 | KP4: =IFERROR(VLOOKUP(KK4,MATCHSELEVES!$Y$14:$AG$600,9,FALSE),0) -> 0 | KQ4: =$C4&"p_8" -> Abdelnourp_8 | KR4: =IFERROR(VLOOKUP(KQ4,MATCHSELEVES!$Y$14:$AE$600,3,FALSE),0) -> 0 | KS4: =IFERROR(VLOOKUP(KQ4,MATCHSELEVES!$Y$14:$AE$600,4,FALSE),0) -> 0 | KT4: =IFERROR(VLOOKUP(KQ4,MATCHSELEVES!$Y$14:$AE$600,5,FALSE),0) -> 0 | KU4: =IFERROR(VLOOKUP(KQ4,MATCHSELEVES!$Y$14:$AF$600,8,FALSE),0) -> 0 | KV4: =IFERROR(VLOOKUP(KQ4,MATCHSELEVES!$Y$14:$AG$600,9,FALSE),0) -> 0 | KW4: =$C4&"p_9" -> Abdelnourp_9 | KX4: =IFERROR(VLOOKUP(KW4,MATCHSELEVES!$Y$14:$AE$600,3,FALSE),0) -> 0 | KY4: =IFERROR(VLOOKUP(KW4,MATCHSELEVES!$Y$14:$AE$600,4,FALSE),0) -> 0 | KZ4: =IFERROR(VLOOKUP(KW4,MATCHSELEVES!$Y$14:$AE$600,5,FALSE),0) -> 0 | LA4: =IFERROR(VLOOKUP(KW4,MATCHSELEVES!$Y$14:$AF$600,8,FALSE),0) -> 0 | LB4: =IFERROR(VLOOKUP(KW4,MATCHSELEVES!$Y$14:$AG$600,9,FALSE),0) -> 0 | LC4: =$C4&"p_10" -> Abdelnourp_10 | LD4: =IFERROR(VLOOKUP(LC4,MATCHSELEVES!$Y$14:$AE$600,3,FALSE),0) -> 0 | LE4: =IFERROR(VLOOKUP(LC4,MATCHSELEVES!$Y$14:$AE$600,4,FALSE),0) -> 0 | LF4: =IFERROR(VLOOKUP(LC4,MATCHSELEVES!$Y$14:$AE$600,5,FALSE),0) -> 0 | LG4: =IFERROR(VLOOKUP(LC4,MATCHSELEVES!$Y$14:$AF$600,8,FALSE),0) -> 0 | LH4: =IFERROR(VLOOKUP(LC4,MATCHSELEVES!$Y$14:$AG$600,9,FALSE),0) -> 0 | LI4: =$C4&"p_11" -> Abdelnourp_11 | LJ4: =IFERROR(VLOOKUP(LI4,MATCHSELEVES!$Y$14:$AE$600,3,FALSE),0) -> 0 | LK4: =IFERROR(VLOOKUP(LI4,MATCHSELEVES!$Y$14:$AE$600,4,FALSE),0) -> 0 | LL4: =IFERROR(VLOOKUP(LI4,MATCHSELEVES!$Y$14:$AE$600,5,FALSE),0) -> 0 | LM4: =IFERROR(VLOOKUP(LI4,MATCHSELEVES!$Y$14:$AF$600,8,FALSE),0) -> 0 | LN4: =IFERROR(VLOOKUP(LI4,MATCHSELEVES!$Y$14:$AG$600,9,FALSE),0) -> 0 | LO4: =$C4&"p_12" -> Abdelnourp_12 | LP4: =IFERROR(VLOOKUP(LO4,MATCHSELEVES!$Y$14:$AE$600,3,FALSE),0) -> 0 | LQ4: =IFERROR(VLOOKUP(LO4,MATCHSELEVES!$Y$14:$AE$600,4,FALSE),0) -> 0 | LR4: =IFERROR(VLOOKUP(LO4,MATCHSELEVES!$Y$14:$AE$600,5,FALSE),0) -> 0 | LS4: =IFERROR(VLOOKUP(LO4,MATCHSELEVES!$Y$14:$AF$600,8,FALSE),0) -> 0 | LT4: =IFERROR(VLOOKUP(LO4,MATCHSELEVES!$Y$14:$AG$600,9,FALSE),0) -> 0 | LU4: =$C4&"p_13" -> Abdelnourp_13 | LV4: =IFERROR(VLOOKUP(LU4,MATCHSELEVES!$Y$14:$AE$600,3,FALSE),0) -> 0 | LW4: =IFERROR(VLOOKUP(LU4,MATCHSELEVES!$Y$14:$AE$600,4,FALSE),0) -> 0 | LX4: =IFERROR(VLOOKUP(LU4,MATCHSELEVES!$Y$14:$AE$600,5,FALSE),0) -> 0 | LY4: =IFERROR(VLOOKUP(LU4,MATCHSELEVES!$Y$14:$AF$600,8,FALSE),0) -> 0 | LZ4: =IFERROR(VLOOKUP(LU4,MATCHSELEVES!$Y$14:$AG$600,9,FALSE),0) -> 0 | MA4: =$C4&"p_14" -> Abdelnourp_14 | MB4: =IFERROR(VLOOKUP(MA4,MATCHSELEVES!$Y$14:$AE$600,3,FALSE),0) -> 0 | MC4: =IFERROR(VLOOKUP(MA4,MATCHSELEVES!$Y$14:$AE$600,4,FALSE),0) -> 0 | MD4: =IFERROR(VLOOKUP(MA4,MATCHSELEVES!$Y$14:$AE$600,5,FALSE),0) -> 0 | ME4: =IFERROR(VLOOKUP(MA4,MATCHSELEVES!$Y$14:$AF$600,8,FALSE),0) -> 0 | MF4: =IFERROR(VLOOKUP(MA4,MATCHSELEVES!$Y$14:$AG$600,9,FALSE),0) -> 0 | MG4: =$C4&"p_15" -> Abdelnourp_15 | MH4: =IFERROR(VLOOKUP(MG4,MATCHSELEVES!$Y$14:$AE$600,3,FALSE),0) -> 0 | MI4: =IFERROR(VLOOKUP(MG4,MATCHSELEVES!$Y$14:$AE$600,4,FALSE),0) -> 0 | MJ4: =IFERROR(VLOOKUP(MG4,MATCHSELEVES!$Y$14:$AE$600,5,FALSE),0) -> 0 | MK4: =IFERROR(VLOOKUP(MG4,MATCHSELEVES!$Y$14:$AF$600,8,FALSE),0) -> 0 | ML4: =IFERROR(VLOOKUP(MG4,MATCHSELEVES!$Y$14:$AG$600,9,FALSE),0) -> 0 | MM4: =$C4&"p_16" -> Abdelnourp_16 | MN4: =IFERROR(VLOOKUP(MM4,MATCHSELEVES!$Y$14:$AE$600,3,FALSE),0) -> 0 | MO4: =IFERROR(VLOOKUP(MM4,MATCHSELEVES!$Y$14:$AE$600,4,FALSE),0) -> 0 | MP4: =IFERROR(VLOOKUP(MM4,MATCHSELEVES!$Y$14:$AE$600,5,FALSE),0) -> 0 | MQ4: =IFERROR(VLOOKUP(MM4,MATCHSELEVES!$Y$14:$AF$600,8,FALSE),0) -> 0 | MR4: =IFERROR(VLOOKUP(MM4,MATCHSELEVES!$Y$14:$AG$600,9,FALSE),0) -> 0 | MS4: =$C4&"p_17" -> Abdelnourp_17 | MT4: =IFERROR(VLOOKUP(MS4,MATCHSELEVES!$Y$14:$AE$600,3,FALSE),0) -> 0 | MU4: =IFERROR(VLOOKUP(MS4,MATCHSELEVES!$Y$14:$AE$600,4,FALSE),0) -> 0 | MV4: =IFERROR(VLOOKUP(MS4,MATCHSELEVES!$Y$14:$AE$600,5,FALSE),0) -> 0 | MW4: =IFERROR(VLOOKUP(MS4,MATCHSELEVES!$Y$14:$AF$600,8,FALSE),0) -> 0 | MX4: =IFERROR(VLOOKUP(MS4,MATCHSELEVES!$Y$14:$AG$600,9,FALSE),0) -> 0 | MY4: =$C4&"p_18" -> Abdelnourp_18 | MZ4: =IFERROR(VLOOKUP(MY4,MATCHSELEVES!$Y$14:$AE$600,3,FALSE),0) -> 0 | NA4: =IFERROR(VLOOKUP(MY4,MATCHSELEVES!$Y$14:$AE$600,4,FALSE),0) -> 0 | NB4: =IFERROR(VLOOKUP(MY4,MATCHSELEVES!$Y$14:$AE$600,5,FALSE),0) -> 0 | NC4: =IFERROR(VLOOKUP(MY4,MATCHSELEVES!$Y$14:$AF$600,8,FALSE),0) -> 0 | ND4: =IFERROR(VLOOKUP(MY4,MATCHSELEVES!$Y$14:$AG$600,9,FALSE),0) -> 0 | NE4: =$C4&"p_19" -> Abdelnourp_19 | NF4: =IFERROR(VLOOKUP(NE4,MATCHSELEVES!$Y$14:$AE$600,3,FALSE),0) -> 0 | NG4: =IFERROR(VLOOKUP(NE4,MATCHSELEVES!$Y$14:$AE$600,4,FALSE),0) -> 0 | NH4: =IFERROR(VLOOKUP(NE4,MATCHSELEVES!$Y$14:$AE$600,5,FALSE),0) -> 0 | NI4: =IFERROR(VLOOKUP(NE4,MATCHSELEVES!$Y$14:$AF$600,8,FALSE),0) -> 0 | NJ4: =IFERROR(VLOOKUP(NE4,MATCHSELEVES!$Y$14:$AG$600,9,FALSE),0) -> 0 | NK4: =$C4&"p_20" -> Abdelnourp_20 | NL4: =IFERROR(VLOOKUP(NK4,MATCHSELEVES!$Y$14:$AE$600,3,FALSE),0) -> 0 | NM4: =IFERROR(VLOOKUP(NK4,MATCHSELEVES!$Y$14:$AE$600,4,FALSE),0) -> 0 | NN4: =IFERROR(VLOOKUP(NK4,MATCHSELEVES!$Y$14:$AE$600,5,FALSE),0) -> 0 | NO4: =IFERROR(VLOOKUP(NK4,MATCHSELEVES!$Y$14:$AF$600,8,FALSE),0) -> 0 | NP4: =IFERROR(VLOOKUP(NK4,MATCHSELEVES!$Y$14:$AG$600,9,FALSE),0) -> 0 | NQ4: =$C4&"p_21" -> Abdelnourp_21 | NR4: =IFERROR(VLOOKUP(NQ4,MATCHSELEVES!$Y$14:$AE$600,3,FALSE),0) -> 0 | NS4: =IFERROR(VLOOKUP(NQ4,MATCHSELEVES!$Y$14:$AE$600,4,FALSE),0) -> 0 | NT4: =IFERROR(VLOOKUP(NQ4,MATCHSELEVES!$Y$14:$AE$600,5,FALSE),0) -> 0 | NU4: =IFERROR(VLOOKUP(NQ4,MATCHSELEVES!$Y$14:$AF$600,8,FALSE),0) -> 0 | NV4: =IFERROR(VLOOKUP(NQ4,MATCHSELEVES!$Y$14:$AG$600,9,FALSE),0) -> 0 | NW4: =$C4&"p_22" -> Abdelnourp_22 | NX4: =IFERROR(VLOOKUP(NW4,MATCHSELEVES!$Y$14:$AE$600,3,FALSE),0) -> 0 | NY4: =IFERROR(VLOOKUP(NW4,MATCHSELEVES!$Y$14:$AE$600,4,FALSE),0) -> 0 | NZ4: =IFERROR(VLOOKUP(NW4,MATCHSELEVES!$Y$14:$AE$600,5,FALSE),0) -> 0 | OA4: =IFERROR(VLOOKUP(NW4,MATCHSELEVES!$Y$14:$AF$600,8,FALSE),0) -> 0 | OB4: =IFERROR(VLOOKUP(NW4,MATCHSELEVES!$Y$14:$AG$600,9,FALSE),0) -> 0 | OC4: =$C4&"p_23" -> Abdelnourp_23 | OD4: =IFERROR(VLOOKUP(OC4,MATCHSELEVES!$Y$14:$AE$600,3,FALSE),0) -> 0 | OE4: =IFERROR(VLOOKUP(OC4,MATCHSELEVES!$Y$14:$AE$600,4,FALSE),0) -> 0 | OF4: =IFERROR(VLOOKUP(OC4,MATCHSELEVES!$Y$14:$AE$600,5,FALSE),0) -> 0 | OG4: =IFERROR(VLOOKUP(OC4,MATCHSELEVES!$Y$14:$AF$600,8,FALSE),0) -> 0 | OH4: =IFERROR(VLOOKUP(OC4,MATCHSELEVES!$Y$14:$AG$600,9,FALSE),0) -> 0 | OI4: =$C4&"p_24" -> Abdelnourp_24 | OJ4: =IFERROR(VLOOKUP(OI4,MATCHSELEVES!$Y$14:$AE$600,3,FALSE),0) -> 0 | OK4: =IFERROR(VLOOKUP(OI4,MATCHSELEVES!$Y$14:$AE$600,4,FALSE),0) -> 0 | OL4: =IFERROR(VLOOKUP(OI4,MATCHSELEVES!$Y$14:$AE$600,5,FALSE),0) -> 0 | OM4: =IFERROR(VLOOKUP(OI4,MATCHSELEVES!$Y$14:$AF$600,8,FALSE),0) -> 0 | ON4: =IFERROR(VLOOKUP(OI4,MATCHSELEVES!$Y$14:$AG$600,9,FALSE),0) -> 0 | OO4: =$C4&"p_25" -> Abdelnourp_25 | OP4: =IFERROR(VLOOKUP(OO4,MATCHSELEVES!$Y$14:$AE$600,3,FALSE),0) -> 0 | OQ4: =IFERROR(VLOOKUP(OO4,MATCHSELEVES!$Y$14:$AE$600,4,FALSE),0) -> 0 | OR4: =IFERROR(VLOOKUP(OO4,MATCHSELEVES!$Y$14:$AE$600,5,FALSE),0) -> 0 | OS4: =IFERROR(VLOOKUP(OO4,MATCHSELEVES!$Y$14:$AF$600,8,FALSE),0) -> 0 | OT4: =IFERROR(VLOOKUP(OO4,MATCHSELEVES!$Y$14:$AG$600,9,FALSE),0) -> 0 | OU4: =$C4&"p_26" -> Abdelnourp_26 | OV4: =IFERROR(VLOOKUP(OU4,MATCHSELEVES!$Y$14:$AE$600,3,FALSE),0) -> 0 | OW4: =IFERROR(VLOOKUP(OU4,MATCHSELEVES!$Y$14:$AE$600,4,FALSE),0) -> 0 | OX4: =IFERROR(VLOOKUP(OU4,MATCHSELEVES!$Y$14:$AE$600,5,FALSE),0) -> 0 | OY4: =IFERROR(VLOOKUP(OU4,MATCHSELEVES!$Y$14:$AF$600,8,FALSE),0) -> 0 | OZ4: =IFERROR(VLOOKUP(OU4,MATCHSELEVES!$Y$14:$AG$600,9,FALSE),0) -> 0 | PA4: =$C4&"p_27" -> Abdelnourp_27 | PB4: =IFERROR(VLOOKUP(PA4,MATCHSELEVES!$Y$14:$AE$600,3,FALSE),0) -> 0 | PC4: =IFERROR(VLOOKUP(PA4,MATCHSELEVES!$Y$14:$AE$600,4,FALSE),0) -> 0 | PD4: =IFERROR(VLOOKUP(PA4,MATCHSELEVES!$Y$14:$AE$600,5,FALSE),0) -> 0 | PE4: =IFERROR(VLOOKUP(PA4,MATCHSELEVES!$Y$14:$AF$600,8,FALSE),0) -> 0 | PF4: =IFERROR(VLOOKUP(PA4,MATCHSELEVES!$Y$14:$AG$600,9,FALSE),0) -> 0 | PG4: =$C4&"p_28" -> Abdelnourp_28 | PH4: =IFERROR(VLOOKUP(PG4,MATCHSELEVES!$Y$14:$AE$600,3,FALSE),0) -> 0 | PI4: =IFERROR(VLOOKUP(PG4,MATCHSELEVES!$Y$14:$AE$600,4,FALSE),0) -> 0 | PJ4: =IFERROR(VLOOKUP(PG4,MATCHSELEVES!$Y$14:$AE$600,5,FALSE),0) -> 0 | PK4: =IFERROR(VLOOKUP(PG4,MATCHSELEVES!$Y$14:$AF$600,8,FALSE),0) -> 0 | PL4: =IFERROR(VLOOKUP(PG4,MATCHSELEVES!$Y$14:$AG$600,9,FALSE),0) -> 0 | PM4: =$C4&"p_29" -> Abdelnourp_29 | PN4: =IFERROR(VLOOKUP(PM4,MATCHSELEVES!$Y$14:$AE$600,3,FALSE),0) -> 0 | PO4: =IFERROR(VLOOKUP(PM4,MATCHSELEVES!$Y$14:$AE$600,4,FALSE),0) -> 0 | PP4: =IFERROR(VLOOKUP(PM4,MATCHSELEVES!$Y$14:$AE$600,5,FALSE),0) -> 0 | PQ4: =IFERROR(VLOOKUP(PM4,MATCHSELEVES!$Y$14:$AF$600,8,FALSE),0) -> 0 | PR4: =IFERROR(VLOOKUP(PM4,MATCHSELEVES!$Y$14:$AG$600,9,FALSE),0) -> 0 | PS4: =$C4&"p_30" -> Abdelnourp_30 | PT4: =IFERROR(VLOOKUP(PS4,MATCHSELEVES!$Y$14:$AE$600,3,FALSE),0) -> 0 | PU4: =IFERROR(VLOOKUP(PS4,MATCHSELEVES!$Y$14:$AE$600,4,FALSE),0) -> 0 | PV4: =IFERROR(VLOOKUP(PS4,MATCHSELEVES!$Y$14:$AE$600,5,FALSE),0) -> 0 | PW4: =IFERROR(VLOOKUP(PS4,MATCHSELEVES!$Y$14:$AF$600,8,FALSE),0) -> 0 | PX4: =IFERROR(VLOOKUP(PS4,MATCHSELEVES!$Y$14:$AG$600,9,FALSE),0) -> 0 | PY4: =$C4&"p_31" -> Abdelnourp_31 | PZ4: =IFERROR(VLOOKUP(PY4,MATCHSELEVES!$Y$14:$AE$600,3,FALSE),0) -> 0 | QA4: =IFERROR(VLOOKUP(PY4,MATCHSELEVES!$Y$14:$AE$600,4,FALSE),0) -> 0 | QB4: =IFERROR(VLOOKUP(PY4,MATCHSELEVES!$Y$14:$AE$600,5,FALSE),0) -> 0 | QC4: =IFERROR(VLOOKUP(PY4,MATCHSELEVES!$Y$14:$AF$600,8,FALSE),0) -> 0 | QD4: =IFERROR(VLOOKUP(PY4,MATCHSELEVES!$Y$14:$AG$600,9,FALSE),0) -> 0 | QE4: =$C4&"p_32" -> Abdelnourp_32 | QF4: =IFERROR(VLOOKUP(QE4,MATCHSELEVES!$Y$14:$AE$600,3,FALSE),0) -> 0 | QG4: =IFERROR(VLOOKUP(QE4,MATCHSELEVES!$Y$14:$AE$600,4,FALSE),0) -> 0 | QH4: =IFERROR(VLOOKUP(QE4,MATCHSELEVES!$Y$14:$AE$600,5,FALSE),0) -> 0 | QI4: =IFERROR(VLOOKUP(QE4,MATCHSELEVES!$Y$14:$AF$600,8,FALSE),0) -> 0 | QJ4: =IFERROR(VLOOKUP(QE4,MATCHSELEVES!$Y$14:$AG$600,9,FALSE),0) -> 0 | QK4: =$C4&"p_33" -> Abdelnourp_33 | QL4: =IFERROR(VLOOKUP(QK4,MATCHSELEVES!$Y$14:$AE$600,3,FALSE),0) -> 0 | QM4: =IFERROR(VLOOKUP(QK4,MATCHSELEVES!$Y$14:$AE$600,4,FALSE),0) -> 0 | QN4: =IFERROR(VLOOKUP(QK4,MATCHSELEVES!$Y$14:$AE$600,5,FALSE),0) -> 0 | QO4: =IFERROR(VLOOKUP(QK4,MATCHSELEVES!$Y$14:$AF$600,8,FALSE),0) -> 0 | QP4: =IFERROR(VLOOKUP(QK4,MATCHSELEVES!$Y$14:$AG$600,9,FALSE),0) -> 0 | QQ4: =$C4&"p_34" -> Abdelnourp_34 | QR4: =IFERROR(VLOOKUP(QQ4,MATCHSELEVES!$Y$14:$AE$600,3,FALSE),0) -> 0 | QS4: =IFERROR(VLOOKUP(QQ4,MATCHSELEVES!$Y$14:$AE$600,4,FALSE),0) -> 0 | QT4: =IFERROR(VLOOKUP(QQ4,MATCHSELEVES!$Y$14:$AE$600,5,FALSE),0) -> 0 | QU4: =IFERROR(VLOOKUP(QQ4,MATCHSELEVES!$Y$14:$AF$600,8,FALSE),0) -> 0 | QV4: =IFERROR(VLOOKUP(QQ4,MATCHSELEVES!$Y$14:$AG$600,9,FALSE),0) -> 0 | QW4: =$C4&"p_35" -> Abdelnourp_35 | QX4: =IFERROR(VLOOKUP(QW4,MATCHSELEVES!$Y$14:$AE$600,3,FALSE),0) -> 0 | QY4: =IFERROR(VLOOKUP(QW4,MATCHSELEVES!$Y$14:$AE$600,4,FALSE),0) -> 0 | QZ4: =IFERROR(VLOOKUP(QW4,MATCHSELEVES!$Y$14:$AE$600,5,FALSE),0) -> 0 | RA4: =IFERROR(VLOOKUP(QW4,MATCHSELEVES!$Y$14:$AF$600,8,FALSE),0) -> 0 | RB4: =IFERROR(VLOOKUP(QW4,MATCHSELEVES!$Y$14:$AG$600,9,FALSE),0) -> 0 | RC4: =$C4&"p_36" -> Abdelnourp_36 | RD4: =IFERROR(VLOOKUP(RC4,MATCHSELEVES!$Y$14:$AE$600,3,FALSE),0) -> 0 | RE4: =IFERROR(VLOOKUP(RC4,MATCHSELEVES!$Y$14:$AE$600,4,FALSE),0) -> 0 | RF4: =IFERROR(VLOOKUP(RC4,MATCHSELEVES!$Y$14:$AE$600,5,FALSE),0) -> 0 | RG4: =IFERROR(VLOOKUP(RC4,MATCHSELEVES!$Y$14:$AF$600,8,FALSE),0) -> 0 | RH4: =IFERROR(VLOOKUP(RC4,MATCHSELEVES!$Y$14:$AG$600,9,FALSE),0) -> 0 | RI4: =$C4&"p_37" -> Abdelnourp_37 | RJ4: =IFERROR(VLOOKUP(RI4,MATCHSELEVES!$Y$14:$AE$600,3,FALSE),0) -> 0 | RK4: =IFERROR(VLOOKUP(RI4,MATCHSELEVES!$Y$14:$AE$600,4,FALSE),0) -> 0 | RL4: =IFERROR(VLOOKUP(RI4,MATCHSELEVES!$Y$14:$AE$600,5,FALSE),0) -> 0 | RM4: =IFERROR(VLOOKUP(RI4,MATCHSELEVES!$Y$14:$AF$600,8,FALSE),0) -> 0 | RN4: =IFERROR(VLOOKUP(RI4,MATCHSELEVES!$Y$14:$AG$600,9,FALSE),0) -> 0 | RO4: =$C4&"p_38" -> Abdelnourp_38 | RP4: =IFERROR(VLOOKUP(RO4,MATCHSELEVES!$Y$14:$AE$600,3,FALSE),0) -> 0 | RQ4: =IFERROR(VLOOKUP(RO4,MATCHSELEVES!$Y$14:$AE$600,4,FALSE),0) -> 0 | RR4: =IFERROR(VLOOKUP(RO4,MATCHSELEVES!$Y$14:$AE$600,5,FALSE),0) -> 0 | RS4: =IFERROR(VLOOKUP(RO4,MATCHSELEVES!$Y$14:$AF$600,8,FALSE),0) -> 0 | RT4: =IFERROR(VLOOKUP(RO4,MATCHSELEVES!$Y$14:$AG$600,9,FALSE),0) -> 0 | RU4: =$C4&"p_39" -> Abdelnourp_39 | RV4: =IFERROR(VLOOKUP(RU4,MATCHSELEVES!$Y$14:$AE$600,3,FALSE),0) -> 0 | RW4: =IFERROR(VLOOKUP(RU4,MATCHSELEVES!$Y$14:$AE$600,4,FALSE),0) -> 0 | RX4: =IFERROR(VLOOKUP(RU4,MATCHSELEVES!$Y$14:$AE$600,5,FALSE),0) -> 0 | RY4: =IFERROR(VLOOKUP(RU4,MATCHSELEVES!$Y$14:$AF$600,8,FALSE),0) -> 0 | RZ4: =IFERROR(VLOOKUP(RU4,MATCHSELEVES!$Y$14:$AG$600,9,FALSE),0) -> 0 | SA4: =$C4&"p_40" -> Abdelnourp_40 | SB4: =IFERROR(VLOOKUP(SA4,MATCHSELEVES!$Y$14:$AE$600,3,FALSE),0) -> 0 | SC4: =IFERROR(VLOOKUP(SA4,MATCHSELEVES!$Y$14:$AE$600,4,FALSE),0) -> 0 | SD4: =IFERROR(VLOOKUP(SA4,MATCHSELEVES!$Y$14:$AE$600,5,FALSE),0) -> 0 | SE4: =IFERROR(VLOOKUP(SA4,MATCHSELEVES!$Y$14:$AF$600,8,FALSE),0) -> 0 | SF4: =IFERROR(VLOOKUP(SA4,MATCHSELEVES!$Y$14:$AG$600,9,FALSE),0) -> 0
A5: 2 | C5: Açelya | D5: 2 | G5: =COUNTIF(MATCHSELEVES!$Z$14:$Z$600,C5)+COUNTIF(MATCHSELEVES!$Z$14:$Z$600,$C5&"p") -> 0 | H5: =RANK(G5,$G$4:$G$43) -> 1 | I5: =COUNTIF(MATCHSELEVES!$F$14:$H$249,C5) -> 0 | J5: =RANK(I5,$I$4:$I$43) -> 1 | K5: 0 | L5: =RANK(K5,$K$4:$K$43) -> 1 | M5: =IFERROR(M48/Tableau10[[#This Row],[Nombre de matchs joués]],0) -> 0 | N5: =IF(Tableau10[[#This Row],[Nombre de points encaissés]]=0,$C$45,SUMPRODUCT((M$4:M$43<M5)*(M$4:M$43<>0))+1) -> 40 | O5: 0 | P5: =RANK(O5,$O$4:$O$43) -> 1 | Q5: =(Tableau10[[#This Row],[CLASSEMENT1]]+Tableau10[[#This Row],[CLASSEMENT2]]+Tableau10[[#This Row],[CLASSEMENT3]]+Tableau10[[#This Row],[CLASSEMENT4]]+Tableau10[[#This Row],[CLASSEMENT5]]+Tableau10[[#This Row],[CLASSEMENT6]])/6 -> 7.666666667 | R5: =RANK(Tableau10[[#This Row],[MOYENNE CLASSEMENTS]],Tableau10[MOYENNE CLASSEMENTS],1) -> 2 | T5: =Tableau10[[#This Row],[CLASSEMENT1]] -> 2 | U5: =$C5&"_1" -> Açelya_1 | V5: =IFERROR(VLOOKUP(U5,MATCHSELEVES!$Y$14:$AE$600,3,FALSE),0) -> 0 | W5: =IFERROR(VLOOKUP(U5,MATCHSELEVES!$Y$14:$AE$600,4,FALSE),0) -> 0 | X5: =IFERROR(VLOOKUP(U5,MATCHSELEVES!$Y$14:$AE$600,5,FALSE),0) -> 0 | Y5: =IFERROR(VLOOKUP(U5,MATCHSELEVES!$Y$14:$AF$600,8,FALSE),0) -> 0 | Z5: =IFERROR(VLOOKUP(U5,MATCHSELEVES!$Y$14:$AG$600,9,FALSE),0) -> 0 | AA5: Açelya_2 | AB5: =IFERROR(VLOOKUP(AA5,MATCHSELEVES!$Y$14:$AE$600,3,FALSE),0) -> 0 | AC5: =IFERROR(VLOOKUP(AA5,MATCHSELEVES!$Y$14:$AE$600,4,FALSE),0) -> 0 | AD5: =IFERROR(VLOOKUP(AA5,MATCHSELEVES!$Y$14:$AE$600,5,FALSE),0) -> 0 | AE5: =IFERROR(VLOOKUP(AA5,MATCHSELEVES!$Y$14:$AF$600,8,FALSE),0) -> 0 | AF5: =IFERROR(VLOOKUP(AA5,MATCHSELEVES!$Y$14:$AG$600,9,FALSE),0) -> 0 | AG5: Açelya_3 | AH5: =IFERROR(VLOOKUP(AG5,MATCHSELEVES!$Y$14:$AE$600,3,FALSE),0) -> 0 | AI5: =IFERROR(VLOOKUP(AG5,MATCHSELEVES!$Y$14:$AE$600,4,FALSE),0) -> 0 | AJ5: =IFERROR(VLOOKUP(AG5,MATCHSELEVES!$Y$14:$AE$600,5,FALSE),0) -> 0 | AK5: =IFERROR(VLOOKUP(AG5,MATCHSELEVES!$Y$14:$AF$600,8,FALSE),0) -> 0 | AL5: =IFERROR(VLOOKUP(AG5,MATCHSELEVES!$Y$14:$AG$600,9,FALSE),0) -> 0 | AM5: Açelya_4 | AN5: =IFERROR(VLOOKUP(AM5,MATCHSELEVES!$Y$14:$AE$600,3,FALSE),0) -> 0 | AO5: =IFERROR(VLOOKUP(AM5,MATCHSELEVES!$Y$14:$AE$600,4,FALSE),0) -> 0 | AP5: =IFERROR(VLOOKUP(AM5,MATCHSELEVES!$Y$14:$AE$600,5,FALSE),0) -> 0 | AQ5: =IFERROR(VLOOKUP(AM5,MATCHSELEVES!$Y$14:$AF$600,8,FALSE),0) -> 0 | AR5: =IFERROR(VLOOKUP(AM5,MATCHSELEVES!$Y$14:$AG$600,9,FALSE),0) -> 0 | AS5: Açelya_5 | AT5: =IFERROR(VLOOKUP(AS5,MATCHSELEVES!$Y$14:$AE$600,3,FALSE),0) -> 0 | AU5: =IFERROR(VLOOKUP(AS5,MATCHSELEVES!$Y$14:$AE$600,4,FALSE),0) -> 0 | AV5: =IFERROR(VLOOKUP(AS5,MATCHSELEVES!$Y$14:$AE$600,5,FALSE),0) -> 0 | AW5: =IFERROR(VLOOKUP(AS5,MATCHSELEVES!$Y$14:$AF$600,8,FALSE),0) -> 0 | AX5: =IFERROR(VLOOKUP(AS5,MATCHSELEVES!$Y$14:$AG$600,9,FALSE),0) -> 0 | AY5: Açelya_6 | AZ5: =IFERROR(VLOOKUP(AY5,MATCHSELEVES!$Y$14:$AE$600,3,FALSE),0) -> 0 | BA5: =IFERROR(VLOOKUP(AY5,MATCHSELEVES!$Y$14:$AE$600,4,FALSE),0) -> 0 | BB5: =IFERROR(VLOOKUP(AY5,MATCHSELEVES!$Y$14:$AE$600,5,FALSE),0) -> 0 | BC5: =IFERROR(VLOOKUP(AY5,MATCHSELEVES!$Y$14:$AF$600,8,FALSE),0) -> 0 | BD5: =IFERROR(VLOOKUP(AY5,MATCHSELEVES!$Y$14:$AG$600,9,FALSE),0) -> 0 | BE5: Açelya_7 | BF5: =IFERROR(VLOOKUP(BE5,MATCHSELEVES!$Y$14:$AE$600,3,FALSE),0) -> 0 | BG5: =IFERROR(VLOOKUP(BE5,MATCHSELEVES!$Y$14:$AE$600,4,FALSE),0) -> 0 | BH5: =IFERROR(VLOOKUP(BE5,MATCHSELEVES!$Y$14:$AE$600,5,FALSE),0) -> 0 | BI5: =IFERROR(VLOOKUP(BE5,MATCHSELEVES!$Y$14:$AF$600,8,FALSE),0) -> 0 | BJ5: =IFERROR(VLOOKUP(BE5,MATCHSELEVES!$Y$14:$AG$600,9,FALSE),0) -> 0 | BK5: Açelya_8 | BL5: =IFERROR(VLOOKUP(BK5,MATCHSELEVES!$Y$14:$AE$600,3,FALSE),0) -> 0 | BM5: =IFERROR(VLOOKUP(BK5,MATCHSELEVES!$Y$14:$AE$600,4,FALSE),0) -> 0 | BN5: =IFERROR(VLOOKUP(BK5,MATCHSELEVES!$Y$14:$AE$600,5,FALSE),0) -> 0 | BO5: =IFERROR(VLOOKUP(BK5,MATCHSELEVES!$Y$14:$AF$600,8,FALSE),0) -> 0 | BP5: =IFERROR(VLOOKUP(BK5,MATCHSELEVES!$Y$14:$AG$600,9,FALSE),0) -> 0 | BQ5: Açelya_9 | BR5: =IFERROR(VLOOKUP(BQ5,MATCHSELEVES!$Y$14:$AE$600,3,FALSE),0) -> 0 | BS5: =IFERROR(VLOOKUP(BQ5,MATCHSELEVES!$Y$14:$AE$600,4,FALSE),0) -> 0 | BT5: =IFERROR(VLOOKUP(BQ5,MATCHSELEVES!$Y$14:$AE$600,5,FALSE),0) -> 0 | BU5: =IFERROR(VLOOKUP(BQ5,MATCHSELEVES!$Y$14:$AF$600,8,FALSE),0) -> 0 | BV5: =IFERROR(VLOOKUP(BQ5,MATCHSELEVES!$Y$14:$AG$600,9,FALSE),0) -> 0 | BW5: Açelya_10 | BX5: =IFERROR(VLOOKUP(BW5,MATCHSELEVES!$Y$14:$AE$600,3,FALSE),0) -> 0 | BY5: =IFERROR(VLOOKUP(BW5,MATCHSELEVES!$Y$14:$AE$600,4,FALSE),0) -> 0 | BZ5: =IFERROR(VLOOKUP(BW5,MATCHSELEVES!$Y$14:$AE$600,5,FALSE),0) -> 0 | CA5: =IFERROR(VLOOKUP(BW5,MATCHSELEVES!$Y$14:$AF$600,8,FALSE),0) -> 0 | CB5: =IFERROR(VLOOKUP(BW5,MATCHSELEVES!$Y$14:$AG$600,9,FALSE),0) -> 0 | CC5: Açelya_11 | CD5: =IFERROR(VLOOKUP(CC5,MATCHSELEVES!$Y$14:$AE$600,3,FALSE),0) -> 0 | CE5: =IFERROR(VLOOKUP(CC5,MATCHSELEVES!$Y$14:$AE$600,4,FALSE),0) -> 0 | CF5: =IFERROR(VLOOKUP(CC5,MATCHSELEVES!$Y$14:$AE$600,5,FALSE),0) -> 0 | CG5: =IFERROR(VLOOKUP(CC5,MATCHSELEVES!$Y$14:$AF$600,8,FALSE),0) -> 0 | CH5: =IFERROR(VLOOKUP(CC5,MATCHSELEVES!$Y$14:$AG$600,9,FALSE),0) -> 0 | CI5: Açelya_12 | CJ5: =IFERROR(VLOOKUP(CI5,MATCHSELEVES!$Y$14:$AE$600,3,FALSE),0) -> 0 | CK5: =IFERROR(VLOOKUP(CI5,MATCHSELEVES!$Y$14:$AE$600,4,FALSE),0) -> 0 | CL5: =IFERROR(VLOOKUP(CI5,MATCHSELEVES!$Y$14:$AE$600,5,FALSE),0) -> 0 | CM5: =IFERROR(VLOOKUP(CI5,MATCHSELEVES!$Y$14:$AF$600,8,FALSE),0) -> 0 | CN5: =IFERROR(VLOOKUP(CI5,MATCHSELEVES!$Y$14:$AG$600,9,FALSE),0) -> 0 | CO5: Açelya_13 | CP5: =IFERROR(VLOOKUP(CO5,MATCHSELEVES!$Y$14:$AE$600,3,FALSE),0) -> 0 | CQ5: =IFERROR(VLOOKUP(CO5,MATCHSELEVES!$Y$14:$AE$600,4,FALSE),0) -> 0 | CR5: =IFERROR(VLOOKUP(CO5,MATCHSELEVES!$Y$14:$AE$600,5,FALSE),0) -> 0 | CS5: =IFERROR(VLOOKUP(CO5,MATCHSELEVES!$Y$14:$AF$600,8,FALSE),0) -> 0 | CT5: =IFERROR(VLOOKUP(CO5,MATCHSELEVES!$Y$14:$AG$600,9,FALSE),0) -> 0 | CU5: Açelya_14 | CV5: =IFERROR(VLOOKUP(CU5,MATCHSELEVES!$Y$14:$AE$600,3,FALSE),0) -> 0 | CW5: =IFERROR(VLOOKUP(CU5,MATCHSELEVES!$Y$14:$AE$600,4,FALSE),0) -> 0 | CX5: =IFERROR(VLOOKUP(CU5,MATCHSELEVES!$Y$14:$AE$600,5,FALSE),0) -> 0 | CY5: =IFERROR(VLOOKUP(CU5,MATCHSELEVES!$Y$14:$AF$600,8,FALSE),0) -> 0 | CZ5: =IFERROR(VLOOKUP(CU5,MATCHSELEVES!$Y$14:$AG$600,9,FALSE),0) -> 0 | DA5: Açelya_15 | DB5: =IFERROR(VLOOKUP(DA5,MATCHSELEVES!$Y$14:$AE$600,3,FALSE),0) -> 0 | DC5: =IFERROR(VLOOKUP(DA5,MATCHSELEVES!$Y$14:$AE$600,4,FALSE),0) -> 0 | DD5: =IFERROR(VLOOKUP(DA5,MATCHSELEVES!$Y$14:$AE$600,5,FALSE),0) -> 0 | DE5: =IFERROR(VLOOKUP(DA5,MATCHSELEVES!$Y$14:$AF$600,8,FALSE),0) -> 0 | DF5: =IFERROR(VLOOKUP(DA5,MATCHSELEVES!$Y$14:$AG$600,9,FALSE),0) -> 0 | DG5: Açelya_16 | DH5: =IFERROR(VLOOKUP(DG5,MATCHSELEVES!$Y$14:$AE$600,3,FALSE),0) -> 0 | DI5: =IFERROR(VLOOKUP(DG5,MATCHSELEVES!$Y$14:$AE$600,4,FALSE),0) -> 0 | DJ5: =IFERROR(VLOOKUP(DG5,MATCHSELEVES!$Y$14:$AE$600,5,FALSE),0) -> 0 | DK5: =IFERROR(VLOOKUP(DG5,MATCHSELEVES!$Y$14:$AF$600,8,FALSE),0) -> 0 | DL5: =IFERROR(VLOOKUP(DG5,MATCHSELEVES!$Y$14:$AG$600,9,FALSE),0) -> 0 | DM5: Açelya_17 | DN5: =IFERROR(VLOOKUP(DM5,MATCHSELEVES!$Y$14:$AE$600,3,FALSE),0) -> 0 | DO5: =IFERROR(VLOOKUP(DM5,MATCHSELEVES!$Y$14:$AE$600,4,FALSE),0) -> 0 | DP5: =IFERROR(VLOOKUP(DM5,MATCHSELEVES!$Y$14:$AE$600,5,FALSE),0) -> 0 | DQ5: =IFERROR(VLOOKUP(DM5,MATCHSELEVES!$Y$14:$AF$600,8,FALSE),0) -> 0 | DR5: =IFERROR(VLOOKUP(DM5,MATCHSELEVES!$Y$14:$AG$600,9,FALSE),0) -> 0 | DS5: Açelya_18 | DT5: =IFERROR(VLOOKUP(DS5,MATCHSELEVES!$Y$14:$AE$600,3,FALSE),0) -> 0 | DU5: =IFERROR(VLOOKUP(DS5,MATCHSELEVES!$Y$14:$AE$600,4,FALSE),0) -> 0 | DV5: =IFERROR(VLOOKUP(DS5,MATCHSELEVES!$Y$14:$AE$600,5,FALSE),0) -> 0 | DW5: =IFERROR(VLOOKUP(DS5,MATCHSELEVES!$Y$14:$AF$600,8,FALSE),0) -> 0 | DX5: =IFERROR(VLOOKUP(DS5,MATCHSELEVES!$Y$14:$AG$600,9,FALSE),0) -> 0 | DY5: Açelya_19 | DZ5: =IFERROR(VLOOKUP(DY5,MATCHSELEVES!$Y$14:$AE$600,3,FALSE),0) -> 0 | EA5: =IFERROR(VLOOKUP(DY5,MATCHSELEVES!$Y$14:$AE$600,4,FALSE),0) -> 0 | EB5: =IFERROR(VLOOKUP(DY5,MATCHSELEVES!$Y$14:$AE$600,5,FALSE),0) -> 0 | EC5: =IFERROR(VLOOKUP(DY5,MATCHSELEVES!$Y$14:$AF$600,8,FALSE),0) -> 0 | ED5: =IFERROR(VLOOKUP(DY5,MATCHSELEVES!$Y$14:$AG$600,9,FALSE),0) -> 0 | EE5: Açelya_20 | EF5: =IFERROR(VLOOKUP(EE5,MATCHSELEVES!$Y$14:$AE$600,3,FALSE),0) -> 0 | EG5: =IFERROR(VLOOKUP(EE5,MATCHSELEVES!$Y$14:$AE$600,4,FALSE),0) -> 0 | EH5: =IFERROR(VLOOKUP(EE5,MATCHSELEVES!$Y$14:$AE$600,5,FALSE),0) -> 0 | EI5: =IFERROR(VLOOKUP(EE5,MATCHSELEVES!$Y$14:$AF$600,8,FALSE),0) -> 0 | EJ5: =IFERROR(VLOOKUP(EE5,MATCHSELEVES!$Y$14:$AG$600,9,FALSE),0) -> 0 | EK5: Açelya_21 | EL5: =IFERROR(VLOOKUP(EK5,MATCHSELEVES!$Y$14:$AE$600,3,FALSE),0) -> 0 | EM5: =IFERROR(VLOOKUP(EK5,MATCHSELEVES!$Y$14:$AE$600,4,FALSE),0) -> 0 | EN5: =IFERROR(VLOOKUP(EK5,MATCHSELEVES!$Y$14:$AE$600,5,FALSE),0) -> 0 | EO5: =IFERROR(VLOOKUP(EK5,MATCHSELEVES!$Y$14:$AF$600,8,FALSE),0) -> 0 | EP5: =IFERROR(VLOOKUP(EK5,MATCHSELEVES!$Y$14:$AG$600,9,FALSE),0) -> 0 | EQ5: Açelya_22 | ER5: =IFERROR(VLOOKUP(EQ5,MATCHSELEVES!$Y$14:$AE$600,3,FALSE),0) -> 0 | ES5: =IFERROR(VLOOKUP(EQ5,MATCHSELEVES!$Y$14:$AE$600,4,FALSE),0) -> 0 | ET5: =IFERROR(VLOOKUP(EQ5,MATCHSELEVES!$Y$14:$AE$600,5,FALSE),0) -> 0 | EU5: =IFERROR(VLOOKUP(EQ5,MATCHSELEVES!$Y$14:$AF$600,8,FALSE),0) -> 0 | EV5: =IFERROR(VLOOKUP(EQ5,MATCHSELEVES!$Y$14:$AG$600,9,FALSE),0) -> 0 | EW5: Açelya_23 | EX5: =IFERROR(VLOOKUP(EW5,MATCHSELEVES!$Y$14:$AE$600,3,FALSE),0) -> 0 | EY5: =IFERROR(VLOOKUP(EW5,MATCHSELEVES!$Y$14:$AE$600,4,FALSE),0) -> 0 | EZ5: =IFERROR(VLOOKUP(EW5,MATCHSELEVES!$Y$14:$AE$600,5,FALSE),0) -> 0 | FA5: =IFERROR(VLOOKUP(EW5,MATCHSELEVES!$Y$14:$AF$600,8,FALSE),0) -> 0 | FB5: =IFERROR(VLOOKUP(EW5,MATCHSELEVES!$Y$14:$AG$600,9,FALSE),0) -> 0 | FC5: Açelya_24 | FD5: =IFERROR(VLOOKUP(FC5,MATCHSELEVES!$Y$14:$AE$600,3,FALSE),0) -> 0 | FE5: =IFERROR(VLOOKUP(FC5,MATCHSELEVES!$Y$14:$AE$600,4,FALSE),0) -> 0 | FF5: =IFERROR(VLOOKUP(FC5,MATCHSELEVES!$Y$14:$AE$600,5,FALSE),0) -> 0 | FG5: =IFERROR(VLOOKUP(FC5,MATCHSELEVES!$Y$14:$AF$600,8,FALSE),0) -> 0 | FH5: =IFERROR(VLOOKUP(FC5,MATCHSELEVES!$Y$14:$AG$600,9,FALSE),0) -> 0 | FI5: Açelya_25 | FJ5: =IFERROR(VLOOKUP(FI5,MATCHSELEVES!$Y$14:$AE$600,3,FALSE),0) -> 0 | FK5: =IFERROR(VLOOKUP(FI5,MATCHSELEVES!$Y$14:$AE$600,4,FALSE),0) -> 0 | FL5: =IFERROR(VLOOKUP(FI5,MATCHSELEVES!$Y$14:$AE$600,5,FALSE),0) -> 0 | FM5: =IFERROR(VLOOKUP(FI5,MATCHSELEVES!$Y$14:$AF$600,8,FALSE),0) -> 0 | FN5: =IFERROR(VLOOKUP(FI5,MATCHSELEVES!$Y$14:$AG$600,9,FALSE),0) -> 0 | FO5: Açelya_26 | FP5: =IFERROR(VLOOKUP(FO5,MATCHSELEVES!$Y$14:$AE$600,3,FALSE),0) -> 0 | FQ5: =IFERROR(VLOOKUP(FO5,MATCHSELEVES!$Y$14:$AE$600,4,FALSE),0) -> 0 | FR5: =IFERROR(VLOOKUP(FO5,MATCHSELEVES!$Y$14:$AE$600,5,FALSE),0) -> 0 | FS5: =IFERROR(VLOOKUP(FO5,MATCHSELEVES!$Y$14:$AF$600,8,FALSE),0) -> 0 | FT5: =IFERROR(VLOOKUP(FO5,MATCHSELEVES!$Y$14:$AG$600,9,FALSE),0) -> 0 | FU5: Açelya_27 | FV5: =IFERROR(VLOOKUP(FU5,MATCHSELEVES!$Y$14:$AE$600,3,FALSE),0) -> 0 | FW5: =IFERROR(VLOOKUP(FU5,MATCHSELEVES!$Y$14:$AE$600,4,FALSE),0) -> 0 | FX5: =IFERROR(VLOOKUP(FU5,MATCHSELEVES!$Y$14:$AE$600,5,FALSE),0) -> 0 | FY5: =IFERROR(VLOOKUP(FU5,MATCHSELEVES!$Y$14:$AF$600,8,FALSE),0) -> 0 | FZ5: =IFERROR(VLOOKUP(FU5,MATCHSELEVES!$Y$14:$AG$600,9,FALSE),0) -> 0 | GA5: Açelya_28 | GB5: =IFERROR(VLOOKUP(GA5,MATCHSELEVES!$Y$14:$AE$600,3,FALSE),0) -> 0 | GC5: =IFERROR(VLOOKUP(GA5,MATCHSELEVES!$Y$14:$AE$600,4,FALSE),0) -> 0 | GD5: =IFERROR(VLOOKUP(GA5,MATCHSELEVES!$Y$14:$AE$600,5,FALSE),0) -> 0 | GE5: =IFERROR(VLOOKUP(GA5,MATCHSELEVES!$Y$14:$AF$600,8,FALSE),0) -> 0 | GF5: =IFERROR(VLOOKUP(GA5,MATCHSELEVES!$Y$14:$AG$600,9,FALSE),0) -> 0 | GG5: Açelya_29 | GH5: =IFERROR(VLOOKUP(GG5,MATCHSELEVES!$Y$14:$AE$600,3,FALSE),0) -> 0 | GI5: =IFERROR(VLOOKUP(GG5,MATCHSELEVES!$Y$14:$AE$600,4,FALSE),0) -> 0 | GJ5: =IFERROR(VLOOKUP(GG5,MATCHSELEVES!$Y$14:$AE$600,5,FALSE),0) -> 0 | GK5: =IFERROR(VLOOKUP(GG5,MATCHSELEVES!$Y$14:$AF$600,8,FALSE),0) -> 0 | GL5: =IFERROR(VLOOKUP(GG5,MATCHSELEVES!$Y$14:$AG$600,9,FALSE),0) -> 0 | GM5: Açelya_30 | GN5: =IFERROR(VLOOKUP(GM5,MATCHSELEVES!$Y$14:$AE$600,3,FALSE),0) -> 0 | GO5: =IFERROR(VLOOKUP(GM5,MATCHSELEVES!$Y$14:$AE$600,4,FALSE),0) -> 0 | GP5: =IFERROR(VLOOKUP(GM5,MATCHSELEVES!$Y$14:$AE$600,5,FALSE),0) -> 0 | GQ5: =IFERROR(VLOOKUP(GM5,MATCHSELEVES!$Y$14:$AF$600,8,FALSE),0) -> 0 | GR5: =IFERROR(VLOOKUP(GM5,MATCHSELEVES!$Y$14:$AG$600,9,FALSE),0) -> 0 | GS5: Açelya_31 | GT5: =IFERROR(VLOOKUP(GS5,MATCHSELEVES!$Y$14:$AE$600,3,FALSE),0) -> 0 | GU5: =IFERROR(VLOOKUP(GS5,MATCHSELEVES!$Y$14:$AE$600,4,FALSE),0) -> 0 | GV5: =IFERROR(VLOOKUP(GS5,MATCHSELEVES!$Y$14:$AE$600,5,FALSE),0) -> 0 | GW5: =IFERROR(VLOOKUP(GS5,MATCHSELEVES!$Y$14:$AF$600,8,FALSE),0) -> 0 | GX5: =IFERROR(VLOOKUP(GS5,MATCHSELEVES!$Y$14:$AG$600,9,FALSE),0) -> 0 | GY5: Açelya_32 | GZ5: =IFERROR(VLOOKUP(GY5,MATCHSELEVES!$Y$14:$AE$600,3,FALSE),0) -> 0 | HA5: =IFERROR(VLOOKUP(GY5,MATCHSELEVES!$Y$14:$AE$600,4,FALSE),0) -> 0 | HB5: =IFERROR(VLOOKUP(GY5,MATCHSELEVES!$Y$14:$AE$600,5,FALSE),0) -> 0 | HC5: =IFERROR(VLOOKUP(GY5,MATCHSELEVES!$Y$14:$AF$600,8,FALSE),0) -> 0 | HD5: =IFERROR(VLOOKUP(GY5,MATCHSELEVES!$Y$14:$AG$600,9,FALSE),0) -> 0 | HE5: Açelya_33 | HF5: =IFERROR(VLOOKUP(HE5,MATCHSELEVES!$Y$14:$AE$600,3,FALSE),0) -> 0 | HG5: =IFERROR(VLOOKUP(HE5,MATCHSELEVES!$Y$14:$AE$600,4,FALSE),0) -> 0 | HH5: =IFERROR(VLOOKUP(HE5,MATCHSELEVES!$Y$14:$AE$600,5,FALSE),0) -> 0 | HI5: =IFERROR(VLOOKUP(HE5,MATCHSELEVES!$Y$14:$AF$600,8,FALSE),0) -> 0 | HJ5: =IFERROR(VLOOKUP(HE5,MATCHSELEVES!$Y$14:$AG$600,9,FALSE),0) -> 0 | HK5: Açelya_34 | HL5: =IFERROR(VLOOKUP(HK5,MATCHSELEVES!$Y$14:$AE$600,3,FALSE),0) -> 0 | HM5: =IFERROR(VLOOKUP(HK5,MATCHSELEVES!$Y$14:$AE$600,4,FALSE),0) -> 0 | HN5: =IFERROR(VLOOKUP(HK5,MATCHSELEVES!$Y$14:$AE$600,5,FALSE),0) -> 0 | HO5: =IFERROR(VLOOKUP(HK5,MATCHSELEVES!$Y$14:$AF$600,8,FALSE),0) -> 0 | HP5: =IFERROR(VLOOKUP(HK5,MATCHSELEVES!$Y$14:$AG$600,9,FALSE),0) -> 0 | HQ5: Açelya_35 | HR5: =IFERROR(VLOOKUP(HQ5,MATCHSELEVES!$Y$14:$AE$600,3,FALSE),0) -> 0 | HS5: =IFERROR(VLOOKUP(HQ5,MATCHSELEVES!$Y$14:$AE$600,4,FALSE),0) -> 0 | HT5: =IFERROR(VLOOKUP(HQ5,MATCHSELEVES!$Y$14:$AE$600,5,FALSE),0) -> 0 | HU5: =IFERROR(VLOOKUP(HQ5,MATCHSELEVES!$Y$14:$AF$600,8,FALSE),0) -> 0 | HV5: =IFERROR(VLOOKUP(HQ5,MATCHSELEVES!$Y$14:$AG$600,9,FALSE),0) -> 0 | HW5: Açelya_36 | HX5: =IFERROR(VLOOKUP(HW5,MATCHSELEVES!$Y$14:$AE$600,3,FALSE),0) -> 0 | HY5: =IFERROR(VLOOKUP(HW5,MATCHSELEVES!$Y$14:$AE$600,4,FALSE),0) -> 0 | HZ5: =IFERROR(VLOOKUP(HW5,MATCHSELEVES!$Y$14:$AE$600,5,FALSE),0) -> 0 | IA5: =IFERROR(VLOOKUP(HW5,MATCHSELEVES!$Y$14:$AF$600,8,FALSE),0) -> 0 | IB5: =IFERROR(VLOOKUP(HW5,MATCHSELEVES!$Y$14:$AG$600,9,FALSE),0) -> 0 | IC5: Açelya_37 | ID5: =IFERROR(VLOOKUP(IC5,MATCHSELEVES!$Y$14:$AE$600,3,FALSE),0) -> 0 | IE5: =IFERROR(VLOOKUP(IC5,MATCHSELEVES!$Y$14:$AE$600,4,FALSE),0) -> 0 | IF5: =IFERROR(VLOOKUP(IC5,MATCHSELEVES!$Y$14:$AE$600,5,FALSE),0) -> 0 | IG5: =IFERROR(VLOOKUP(IC5,MATCHSELEVES!$Y$14:$AF$600,8,FALSE),0) -> 0 | IH5: =IFERROR(VLOOKUP(IC5,MATCHSELEVES!$Y$14:$AG$600,9,FALSE),0) -> 0 | II5: Açelya_38 | IJ5: =IFERROR(VLOOKUP(II5,MATCHSELEVES!$Y$14:$AE$600,3,FALSE),0) -> 0 | IK5: =IFERROR(VLOOKUP(II5,MATCHSELEVES!$Y$14:$AE$600,4,FALSE),0) -> 0 | IL5: =IFERROR(VLOOKUP(II5,MATCHSELEVES!$Y$14:$AE$600,5,FALSE),0) -> 0 | IM5: =IFERROR(VLOOKUP(II5,MATCHSELEVES!$Y$14:$AF$600,8,FALSE),0) -> 0 | IN5: =IFERROR(VLOOKUP(II5,MATCHSELEVES!$Y$14:$AG$600,9,FALSE),0) -> 0 | IO5: Açelya_39 | IP5: =IFERROR(VLOOKUP(IO5,MATCHSELEVES!$Y$14:$AE$600,3,FALSE),0) -> 0 | IQ5: =IFERROR(VLOOKUP(IO5,MATCHSELEVES!$Y$14:$AE$600,4,FALSE),0) -> 0 | IR5: =IFERROR(VLOOKUP(IO5,MATCHSELEVES!$Y$14:$AE$600,5,FALSE),0) -> 0 | IS5: =IFERROR(VLOOKUP(IO5,MATCHSELEVES!$Y$14:$AF$600,8,FALSE),0) -> 0 | IT5: =IFERROR(VLOOKUP(IO5,MATCHSELEVES!$Y$14:$AG$600,9,FALSE),0) -> 0 | IU5: Açelya_40 | IV5: =IFERROR(VLOOKUP(IU5,MATCHSELEVES!$Y$14:$AE$600,3,FALSE),0) -> 0 | IW5: =IFERROR(VLOOKUP(IU5,MATCHSELEVES!$Y$14:$AE$600,4,FALSE),0) -> 0 | IX5: =IFERROR(VLOOKUP(IU5,MATCHSELEVES!$Y$14:$AE$600,5,FALSE),0) -> 0 | IY5: =IFERROR(VLOOKUP(IU5,MATCHSELEVES!$Y$14:$AF$600,8,FALSE),0) -> 0 | IZ5: =IFERROR(VLOOKUP(IU5,MATCHSELEVES!$Y$14:$AG$600,9,FALSE),0) -> 0 | JA5: =$C5&"p_1" -> Açelyap_1 | JB5: =IFERROR(VLOOKUP(JA5,MATCHSELEVES!$Y$14:$AE$600,3,FALSE),0) -> 0 | JC5: =IFERROR(VLOOKUP(JA5,MATCHSELEVES!$Y$14:$AE$600,4,FALSE),0) -> 0 | JD5: =IFERROR(VLOOKUP(JA5,MATCHSELEVES!$Y$14:$AE$600,5,FALSE),0) -> 0 | JE5: =IFERROR(VLOOKUP(JA5,MATCHSELEVES!$Y$14:$AF$600,8,FALSE),0) -> 0 | JF5: =IFERROR(VLOOKUP(JA5,MATCHSELEVES!$Y$14:$AG$600,9,FALSE),0) -> 0 | JG5: =$C5&"p_2" -> Açelyap_2 | JH5: =IFERROR(VLOOKUP(JG5,MATCHSELEVES!$Y$14:$AE$600,3,FALSE),0) -> 0 | JI5: =IFERROR(VLOOKUP(JG5,MATCHSELEVES!$Y$14:$AE$600,4,FALSE),0) -> 0 | JJ5: =IFERROR(VLOOKUP(JG5,MATCHSELEVES!$Y$14:$AE$600,5,FALSE),0) -> 0 | JK5: =IFERROR(VLOOKUP(JG5,MATCHSELEVES!$Y$14:$AF$600,8,FALSE),0) -> 0 | JL5: =IFERROR(VLOOKUP(JG5,MATCHSELEVES!$Y$14:$AG$600,9,FALSE),0) -> 0 | JM5: =$C5&"p_3" -> Açelyap_3 | JN5: =IFERROR(VLOOKUP(JM5,MATCHSELEVES!$Y$14:$AE$600,3,FALSE),0) -> 0 | JO5: =IFERROR(VLOOKUP(JM5,MATCHSELEVES!$Y$14:$AE$600,4,FALSE),0) -> 0 | JP5: =IFERROR(VLOOKUP(JM5,MATCHSELEVES!$Y$14:$AE$600,5,FALSE),0) -> 0 | JQ5: =IFERROR(VLOOKUP(JM5,MATCHSELEVES!$Y$14:$AF$600,8,FALSE),0) -> 0 | JR5: =IFERROR(VLOOKUP(JM5,MATCHSELEVES!$Y$14:$AG$600,9,FALSE),0) -> 0 | JS5: =$C5&"p_4" -> Açelyap_4 | JT5: =IFERROR(VLOOKUP(JS5,MATCHSELEVES!$Y$14:$AE$600,3,FALSE),0) -> 0 | JU5: =IFERROR(VLOOKUP(JS5,MATCHSELEVES!$Y$14:$AE$600,4,FALSE),0) -> 0 | JV5: =IFERROR(VLOOKUP(JS5,MATCHSELEVES!$Y$14:$AE$600,5,FALSE),0) -> 0 | JW5: =IFERROR(VLOOKUP(JS5,MATCHSELEVES!$Y$14:$AF$600,8,FALSE),0) -> 0 | JX5: =IFERROR(VLOOKUP(JS5,MATCHSELEVES!$Y$14:$AG$600,9,FALSE),0) -> 0 | JY5: =$C5&"p_5" -> Açelyap_5 | JZ5: =IFERROR(VLOOKUP(JY5,MATCHSELEVES!$Y$14:$AE$600,3,FALSE),0) -> 0 | KA5: =IFERROR(VLOOKUP(JY5,MATCHSELEVES!$Y$14:$AE$600,4,FALSE),0) -> 0 | KB5: =IFERROR(VLOOKUP(JY5,MATCHSELEVES!$Y$14:$AE$600,5,FALSE),0) -> 0 | KC5: =IFERROR(VLOOKUP(JY5,MATCHSELEVES!$Y$14:$AF$600,8,FALSE),0) -> 0 | KD5: =IFERROR(VLOOKUP(JY5,MATCHSELEVES!$Y$14:$AG$600,9,FALSE),0) -> 0 | KE5: =$C5&"p_6" -> Açelyap_6 | KF5: =IFERROR(VLOOKUP(KE5,MATCHSELEVES!$Y$14:$AE$600,3,FALSE),0) -> 0 | KG5: =IFERROR(VLOOKUP(KE5,MATCHSELEVES!$Y$14:$AE$600,4,FALSE),0) -> 0 | KH5: =IFERROR(VLOOKUP(KE5,MATCHSELEVES!$Y$14:$AE$600,5,FALSE),0) -> 0 | KI5: =IFERROR(VLOOKUP(KE5,MATCHSELEVES!$Y$14:$AF$600,8,FALSE),0) -> 0 | KJ5: =IFERROR(VLOOKUP(KE5,MATCHSELEVES!$Y$14:$AG$600,9,FALSE),0) -> 0 | KK5: =$C5&"p_7" -> Açelyap_7 | KL5: =IFERROR(VLOOKUP(KK5,MATCHSELEVES!$Y$14:$AE$600,3,FALSE),0) -> 0 | KM5: =IFERROR(VLOOKUP(KK5,MATCHSELEVES!$Y$14:$AE$600,4,FALSE),0) -> 0 | KN5: =IFERROR(VLOOKUP(KK5,MATCHSELEVES!$Y$14:$AE$600,5,FALSE),0) -> 0 | KO5: =IFERROR(VLOOKUP(KK5,MATCHSELEVES!$Y$14:$AF$600,8,FALSE),0) -> 0 | KP5: =IFERROR(VLOOKUP(KK5,MATCHSELEVES!$Y$14:$AG$600,9,FALSE),0) -> 0 | KQ5: =$C5&"p_8" -> Açelyap_8 | KR5: =IFERROR(VLOOKUP(KQ5,MATCHSELEVES!$Y$14:$AE$600,3,FALSE),0) -> 0 | KS5: =IFERROR(VLOOKUP(KQ5,MATCHSELEVES!$Y$14:$AE$600,4,FALSE),0) -> 0 | KT5: =IFERROR(VLOOKUP(KQ5,MATCHSELEVES!$Y$14:$AE$600,5,FALSE),0) -> 0 | KU5: =IFERROR(VLOOKUP(KQ5,MATCHSELEVES!$Y$14:$AF$600,8,FALSE),0) -> 0 | KV5: =IFERROR(VLOOKUP(KQ5,MATCHSELEVES!$Y$14:$AG$600,9,FALSE),0) -> 0 | KW5: =$C5&"p_9" -> Açelyap_9 | KX5: =IFERROR(VLOOKUP(KW5,MATCHSELEVES!$Y$14:$AE$600,3,FALSE),0) -> 0 | KY5: =IFERROR(VLOOKUP(KW5,MATCHSELEVES!$Y$14:$AE$600,4,FALSE),0) -> 0 | KZ5: =IFERROR(VLOOKUP(KW5,MATCHSELEVES!$Y$14:$AE$600,5,FALSE),0) -> 0 | LA5: =IFERROR(VLOOKUP(KW5,MATCHSELEVES!$Y$14:$AF$600,8,FALSE),0) -> 0 | LB5: =IFERROR(VLOOKUP(KW5,MATCHSELEVES!$Y$14:$AG$600,9,FALSE),0) -> 0 | LC5: =$C5&"p_10" -> Açelyap_10 | LD5: =IFERROR(VLOOKUP(LC5,MATCHSELEVES!$Y$14:$AE$600,3,FALSE),0) -> 0 | LE5: =IFERROR(VLOOKUP(LC5,MATCHSELEVES!$Y$14:$AE$600,4,FALSE),0) -> 0 | LF5: =IFERROR(VLOOKUP(LC5,MATCHSELEVES!$Y$14:$AE$600,5,FALSE),0) -> 0 | LG5: =IFERROR(VLOOKUP(LC5,MATCHSELEVES!$Y$14:$AF$600,8,FALSE),0) -> 0 | LH5: =IFERROR(VLOOKUP(LC5,MATCHSELEVES!$Y$14:$AG$600,9,FALSE),0) -> 0 | LI5: =$C5&"p_11" -> Açelyap_11 | LJ5: =IFERROR(VLOOKUP(LI5,MATCHSELEVES!$Y$14:$AE$600,3,FALSE),0) -> 0 | LK5: =IFERROR(VLOOKUP(LI5,MATCHSELEVES!$Y$14:$AE$600,4,FALSE),0) -> 0 | LL5: =IFERROR(VLOOKUP(LI5,MATCHSELEVES!$Y$14:$AE$600,5,FALSE),0) -> 0 | LM5: =IFERROR(VLOOKUP(LI5,MATCHSELEVES!$Y$14:$AF$600,8,FALSE),0) -> 0 | LN5: =IFERROR(VLOOKUP(LI5,MATCHSELEVES!$Y$14:$AG$600,9,FALSE),0) -> 0 | LO5: =$C5&"p_12" -> Açelyap_12 | LP5: =IFERROR(VLOOKUP(LO5,MATCHSELEVES!$Y$14:$AE$600,3,FALSE),0) -> 0 | LQ5: =IFERROR(VLOOKUP(LO5,MATCHSELEVES!$Y$14:$AE$600,4,FALSE),0) -> 0 | LR5: =IFERROR(VLOOKUP(LO5,MATCHSELEVES!$Y$14:$AE$600,5,FALSE),0) -> 0 | LS5: =IFERROR(VLOOKUP(LO5,MATCHSELEVES!$Y$14:$AF$600,8,FALSE),0) -> 0 | LT5: =IFERROR(VLOOKUP(LO5,MATCHSELEVES!$Y$14:$AG$600,9,FALSE),0) -> 0 | LU5: =$C5&"p_13" -> Açelyap_13 | LV5: =IFERROR(VLOOKUP(LU5,MATCHSELEVES!$Y$14:$AE$600,3,FALSE),0) -> 0 | LW5: =IFERROR(VLOOKUP(LU5,MATCHSELEVES!$Y$14:$AE$600,4,FALSE),0) -> 0 | LX5: =IFERROR(VLOOKUP(LU5,MATCHSELEVES!$Y$14:$AE$600,5,FALSE),0) -> 0 | LY5: =IFERROR(VLOOKUP(LU5,MATCHSELEVES!$Y$14:$AF$600,8,FALSE),0) -> 0 | LZ5: =IFERROR(VLOOKUP(LU5,MATCHSELEVES!$Y$14:$AG$600,9,FALSE),0) -> 0 | MA5: =$C5&"p_14" -> Açelyap_14 | MB5: =IFERROR(VLOOKUP(MA5,MATCHSELEVES!$Y$14:$AE$600,3,FALSE),0) -> 0 | MC5: =IFERROR(VLOOKUP(MA5,MATCHSELEVES!$Y$14:$AE$600,4,FALSE),0) -> 0 | MD5: =IFERROR(VLOOKUP(MA5,MATCHSELEVES!$Y$14:$AE$600,5,FALSE),0) -> 0 | ME5: =IFERROR(VLOOKUP(MA5,MATCHSELEVES!$Y$14:$AF$600,8,FALSE),0) -> 0 | MF5: =IFERROR(VLOOKUP(MA5,MATCHSELEVES!$Y$14:$AG$600,9,FALSE),0) -> 0 | MG5: =$C5&"p_15" -> Açelyap_15 | MH5: =IFERROR(VLOOKUP(MG5,MATCHSELEVES!$Y$14:$AE$600,3,FALSE),0) -> 0 | MI5: =IFERROR(VLOOKUP(MG5,MATCHSELEVES!$Y$14:$AE$600,4,FALSE),0) -> 0 | MJ5: =IFERROR(VLOOKUP(MG5,MATCHSELEVES!$Y$14:$AE$600,5,FALSE),0) -> 0 | MK5: =IFERROR(VLOOKUP(MG5,MATCHSELEVES!$Y$14:$AF$600,8,FALSE),0) -> 0 | ML5: =IFERROR(VLOOKUP(MG5,MATCHSELEVES!$Y$14:$AG$600,9,FALSE),0) -> 0 | MM5: =$C5&"p_16" -> Açelyap_16 | MN5: =IFERROR(VLOOKUP(MM5,MATCHSELEVES!$Y$14:$AE$600,3,FALSE),0) -> 0 | MO5: =IFERROR(VLOOKUP(MM5,MATCHSELEVES!$Y$14:$AE$600,4,FALSE),0) -> 0 | MP5: =IFERROR(VLOOKUP(MM5,MATCHSELEVES!$Y$14:$AE$600,5,FALSE),0) -> 0 | MQ5: =IFERROR(VLOOKUP(MM5,MATCHSELEVES!$Y$14:$AF$600,8,FALSE),0) -> 0 | MR5: =IFERROR(VLOOKUP(MM5,MATCHSELEVES!$Y$14:$AG$600,9,FALSE),0) -> 0 | MS5: =$C5&"p_17" -> Açelyap_17 | MT5: =IFERROR(VLOOKUP(MS5,MATCHSELEVES!$Y$14:$AE$600,3,FALSE),0) -> 0 | MU5: =IFERROR(VLOOKUP(MS5,MATCHSELEVES!$Y$14:$AE$600,4,FALSE),0) -> 0 | MV5: =IFERROR(VLOOKUP(MS5,MATCHSELEVES!$Y$14:$AE$600,5,FALSE),0) -> 0 | MW5: =IFERROR(VLOOKUP(MS5,MATCHSELEVES!$Y$14:$AF$600,8,FALSE),0) -> 0 | MX5: =IFERROR(VLOOKUP(MS5,MATCHSELEVES!$Y$14:$AG$600,9,FALSE),0) -> 0 | MY5: =$C5&"p_18" -> Açelyap_18 | MZ5: =IFERROR(VLOOKUP(MY5,MATCHSELEVES!$Y$14:$AE$600,3,FALSE),0) -> 0 | NA5: =IFERROR(VLOOKUP(MY5,MATCHSELEVES!$Y$14:$AE$600,4,FALSE),0) -> 0 | NB5: =IFERROR(VLOOKUP(MY5,MATCHSELEVES!$Y$14:$AE$600,5,FALSE),0) -> 0 | NC5: =IFERROR(VLOOKUP(MY5,MATCHSELEVES!$Y$14:$AF$600,8,FALSE),0) -> 0 | ND5: =IFERROR(VLOOKUP(MY5,MATCHSELEVES!$Y$14:$AG$600,9,FALSE),0) -> 0 | NE5: =$C5&"p_19" -> Açelyap_19 | NF5: =IFERROR(VLOOKUP(NE5,MATCHSELEVES!$Y$14:$AE$600,3,FALSE),0) -> 0 | NG5: =IFERROR(VLOOKUP(NE5,MATCHSELEVES!$Y$14:$AE$600,4,FALSE),0) -> 0 | NH5: =IFERROR(VLOOKUP(NE5,MATCHSELEVES!$Y$14:$AE$600,5,FALSE),0) -> 0 | NI5: =IFERROR(VLOOKUP(NE5,MATCHSELEVES!$Y$14:$AF$600,8,FALSE),0) -> 0 | NJ5: =IFERROR(VLOOKUP(NE5,MATCHSELEVES!$Y$14:$AG$600,9,FALSE),0) -> 0 | NK5: =$C5&"p_20" -> Açelyap_20 | NL5: =IFERROR(VLOOKUP(NK5,MATCHSELEVES!$Y$14:$AE$600,3,FALSE),0) -> 0 | NM5: =IFERROR(VLOOKUP(NK5,MATCHSELEVES!$Y$14:$AE$600,4,FALSE),0) -> 0 | NN5: =IFERROR(VLOOKUP(NK5,MATCHSELEVES!$Y$14:$AE$600,5,FALSE),0) -> 0 | NO5: =IFERROR(VLOOKUP(NK5,MATCHSELEVES!$Y$14:$AF$600,8,FALSE),0) -> 0 | NP5: =IFERROR(VLOOKUP(NK5,MATCHSELEVES!$Y$14:$AG$600,9,FALSE),0) -> 0 | NQ5: =$C5&"p_21" -> Açelyap_21 | NR5: =IFERROR(VLOOKUP(NQ5,MATCHSELEVES!$Y$14:$AE$600,3,FALSE),0) -> 0 | NS5: =IFERROR(VLOOKUP(NQ5,MATCHSELEVES!$Y$14:$AE$600,4,FALSE),0) -> 0 | NT5: =IFERROR(VLOOKUP(NQ5,MATCHSELEVES!$Y$14:$AE$600,5,FALSE),0) -> 0 | NU5: =IFERROR(VLOOKUP(NQ5,MATCHSELEVES!$Y$14:$AF$600,8,FALSE),0) -> 0 | NV5: =IFERROR(VLOOKUP(NQ5,MATCHSELEVES!$Y$14:$AG$600,9,FALSE),0) -> 0 | NW5: =$C5&"p_22" -> Açelyap_22 | NX5: =IFERROR(VLOOKUP(NW5,MATCHSELEVES!$Y$14:$AE$600,3,FALSE),0) -> 0 | NY5: =IFERROR(VLOOKUP(NW5,MATCHSELEVES!$Y$14:$AE$600,4,FALSE),0) -> 0 | NZ5: =IFERROR(VLOOKUP(NW5,MATCHSELEVES!$Y$14:$AE$600,5,FALSE),0) -> 0 | OA5: =IFERROR(VLOOKUP(NW5,MATCHSELEVES!$Y$14:$AF$600,8,FALSE),0) -> 0 | OB5: =IFERROR(VLOOKUP(NW5,MATCHSELEVES!$Y$14:$AG$600,9,FALSE),0) -> 0 | OC5: =$C5&"p_23" -> Açelyap_23 | OD5: =IFERROR(VLOOKUP(OC5,MATCHSELEVES!$Y$14:$AE$600,3,FALSE),0) -> 0 | OE5: =IFERROR(VLOOKUP(OC5,MATCHSELEVES!$Y$14:$AE$600,4,FALSE),0) -> 0 | OF5: =IFERROR(VLOOKUP(OC5,MATCHSELEVES!$Y$14:$AE$600,5,FALSE),0) -> 0 | OG5: =IFERROR(VLOOKUP(OC5,MATCHSELEVES!$Y$14:$AF$600,8,FALSE),0) -> 0 | OH5: =IFERROR(VLOOKUP(OC5,MATCHSELEVES!$Y$14:$AG$600,9,FALSE),0) -> 0 | OI5: =$C5&"p_24" -> Açelyap_24 | OJ5: =IFERROR(VLOOKUP(OI5,MATCHSELEVES!$Y$14:$AE$600,3,FALSE),0) -> 0 | OK5: =IFERROR(VLOOKUP(OI5,MATCHSELEVES!$Y$14:$AE$600,4,FALSE),0) -> 0 | OL5: =IFERROR(VLOOKUP(OI5,MATCHSELEVES!$Y$14:$AE$600,5,FALSE),0) -> 0 | OM5: =IFERROR(VLOOKUP(OI5,MATCHSELEVES!$Y$14:$AF$600,8,FALSE),0) -> 0 | ON5: =IFERROR(VLOOKUP(OI5,MATCHSELEVES!$Y$14:$AG$600,9,FALSE),0) -> 0 | OO5: =$C5&"p_25" -> Açelyap_25 | OP5: =IFERROR(VLOOKUP(OO5,MATCHSELEVES!$Y$14:$AE$600,3,FALSE),0) -> 0 | OQ5: =IFERROR(VLOOKUP(OO5,MATCHSELEVES!$Y$14:$AE$600,4,FALSE),0) -> 0 | OR5: =IFERROR(VLOOKUP(OO5,MATCHSELEVES!$Y$14:$AE$600,5,FALSE),0) -> 0 | OS5: =IFERROR(VLOOKUP(OO5,MATCHSELEVES!$Y$14:$AF$600,8,FALSE),0) -> 0 | OT5: =IFERROR(VLOOKUP(OO5,MATCHSELEVES!$Y$14:$AG$600,9,FALSE),0) -> 0 | OU5: =$C5&"p_26" -> Açelyap_26 | OV5: =IFERROR(VLOOKUP(OU5,MATCHSELEVES!$Y$14:$AE$600,3,FALSE),0) -> 0 | OW5: =IFERROR(VLOOKUP(OU5,MATCHSELEVES!$Y$14:$AE$600,4,FALSE),0) -> 0 | OX5: =IFERROR(VLOOKUP(OU5,MATCHSELEVES!$Y$14:$AE$600,5,FALSE),0) -> 0 | OY5: =IFERROR(VLOOKUP(OU5,MATCHSELEVES!$Y$14:$AF$600,8,FALSE),0) -> 0 | OZ5: =IFERROR(VLOOKUP(OU5,MATCHSELEVES!$Y$14:$AG$600,9,FALSE),0) -> 0 | PA5: =$C5&"p_27" -> Açelyap_27 | PB5: =IFERROR(VLOOKUP(PA5,MATCHSELEVES!$Y$14:$AE$600,3,FALSE),0) -> 0 | PC5: =IFERROR(VLOOKUP(PA5,MATCHSELEVES!$Y$14:$AE$600,4,FALSE),0) -> 0 | PD5: =IFERROR(VLOOKUP(PA5,MATCHSELEVES!$Y$14:$AE$600,5,FALSE),0) -> 0 | PE5: =IFERROR(VLOOKUP(PA5,MATCHSELEVES!$Y$14:$AF$600,8,FALSE),0) -> 0 | PF5: =IFERROR(VLOOKUP(PA5,MATCHSELEVES!$Y$14:$AG$600,9,FALSE),0) -> 0 | PG5: =$C5&"p_28" -> Açelyap_28 | PH5: =IFERROR(VLOOKUP(PG5,MATCHSELEVES!$Y$14:$AE$600,3,FALSE),0) -> 0 | PI5: =IFERROR(VLOOKUP(PG5,MATCHSELEVES!$Y$14:$AE$600,4,FALSE),0) -> 0 | PJ5: =IFERROR(VLOOKUP(PG5,MATCHSELEVES!$Y$14:$AE$600,5,FALSE),0) -> 0 | PK5: =IFERROR(VLOOKUP(PG5,MATCHSELEVES!$Y$14:$AF$600,8,FALSE),0) -> 0 | PL5: =IFERROR(VLOOKUP(PG5,MATCHSELEVES!$Y$14:$AG$600,9,FALSE),0) -> 0 | PM5: =$C5&"p_29" -> Açelyap_29 | PN5: =IFERROR(VLOOKUP(PM5,MATCHSELEVES!$Y$14:$AE$600,3,FALSE),0) -> 0 | PO5: =IFERROR(VLOOKUP(PM5,MATCHSELEVES!$Y$14:$AE$600,4,FALSE),0) -> 0 | PP5: =IFERROR(VLOOKUP(PM5,MATCHSELEVES!$Y$14:$AE$600,5,FALSE),0) -> 0 | PQ5: =IFERROR(VLOOKUP(PM5,MATCHSELEVES!$Y$14:$AF$600,8,FALSE),0) -> 0 | PR5: =IFERROR(VLOOKUP(PM5,MATCHSELEVES!$Y$14:$AG$600,9,FALSE),0) -> 0 | PS5: =$C5&"p_30" -> Açelyap_30 | PT5: =IFERROR(VLOOKUP(PS5,MATCHSELEVES!$Y$14:$AE$600,3,FALSE),0) -> 0 | PU5: =IFERROR(VLOOKUP(PS5,MATCHSELEVES!$Y$14:$AE$600,4,FALSE),0) -> 0 | PV5: =IFERROR(VLOOKUP(PS5,MATCHSELEVES!$Y$14:$AE$600,5,FALSE),0) -> 0 | PW5: =IFERROR(VLOOKUP(PS5,MATCHSELEVES!$Y$14:$AF$600,8,FALSE),0) -> 0 | PX5: =IFERROR(VLOOKUP(PS5,MATCHSELEVES!$Y$14:$AG$600,9,FALSE),0) -> 0 | PY5: =$C5&"p_31" -> Açelyap_31 | PZ5: =IFERROR(VLOOKUP(PY5,MATCHSELEVES!$Y$14:$AE$600,3,FALSE),0) -> 0 | QA5: =IFERROR(VLOOKUP(PY5,MATCHSELEVES!$Y$14:$AE$600,4,FALSE),0) -> 0 | QB5: =IFERROR(VLOOKUP(PY5,MATCHSELEVES!$Y$14:$AE$600,5,FALSE),0) -> 0 | QC5: =IFERROR(VLOOKUP(PY5,MATCHSELEVES!$Y$14:$AF$600,8,FALSE),0) -> 0 | QD5: =IFERROR(VLOOKUP(PY5,MATCHSELEVES!$Y$14:$AG$600,9,FALSE),0) -> 0 | QE5: =$C5&"p_32" -> Açelyap_32 | QF5: =IFERROR(VLOOKUP(QE5,MATCHSELEVES!$Y$14:$AE$600,3,FALSE),0) -> 0 | QG5: =IFERROR(VLOOKUP(QE5,MATCHSELEVES!$Y$14:$AE$600,4,FALSE),0) -> 0 | QH5: =IFERROR(VLOOKUP(QE5,MATCHSELEVES!$Y$14:$AE$600,5,FALSE),0) -> 0 | QI5: =IFERROR(VLOOKUP(QE5,MATCHSELEVES!$Y$14:$AF$600,8,FALSE),0) -> 0 | QJ5: =IFERROR(VLOOKUP(QE5,MATCHSELEVES!$Y$14:$AG$600,9,FALSE),0) -> 0 | QK5: =$C5&"p_33" -> Açelyap_33 | QL5: =IFERROR(VLOOKUP(QK5,MATCHSELEVES!$Y$14:$AE$600,3,FALSE),0) -> 0 | QM5: =IFERROR(VLOOKUP(QK5,MATCHSELEVES!$Y$14:$AE$600,4,FALSE),0) -> 0 | QN5: =IFERROR(VLOOKUP(QK5,MATCHSELEVES!$Y$14:$AE$600,5,FALSE),0) -> 0 | QO5: =IFERROR(VLOOKUP(QK5,MATCHSELEVES!$Y$14:$AF$600,8,FALSE),0) -> 0 | QP5: =IFERROR(VLOOKUP(QK5,MATCHSELEVES!$Y$14:$AG$600,9,FALSE),0) -> 0 | QQ5: =$C5&"p_34" -> Açelyap_34 | QR5: =IFERROR(VLOOKUP(QQ5,MATCHSELEVES!$Y$14:$AE$600,3,FALSE),0) -> 0 | QS5: =IFERROR(VLOOKUP(QQ5,MATCHSELEVES!$Y$14:$AE$600,4,FALSE),0) -> 0 | QT5: =IFERROR(VLOOKUP(QQ5,MATCHSELEVES!$Y$14:$AE$600,5,FALSE),0) -> 0 | QU5: =IFERROR(VLOOKUP(QQ5,MATCHSELEVES!$Y$14:$AF$600,8,FALSE),0) -> 0 | QV5: =IFERROR(VLOOKUP(QQ5,MATCHSELEVES!$Y$14:$AG$600,9,FALSE),0) -> 0 | QW5: =$C5&"p_35" -> Açelyap_35 | QX5: =IFERROR(VLOOKUP(QW5,MATCHSELEVES!$Y$14:$AE$600,3,FALSE),0) -> 0 | QY5: =IFERROR(VLOOKUP(QW5,MATCHSELEVES!$Y$14:$AE$600,4,FALSE),0) -> 0 | QZ5: =IFERROR(VLOOKUP(QW5,MATCHSELEVES!$Y$14:$AE$600,5,FALSE),0) -> 0 | RA5: =IFERROR(VLOOKUP(QW5,MATCHSELEVES!$Y$14:$AF$600,8,FALSE),0) -> 0 | RB5: =IFERROR(VLOOKUP(QW5,MATCHSELEVES!$Y$14:$AG$600,9,FALSE),0) -> 0 | RC5: =$C5&"p_36" -> Açelyap_36 | RD5: =IFERROR(VLOOKUP(RC5,MATCHSELEVES!$Y$14:$AE$600,3,FALSE),0) -> 0 | RE5: =IFERROR(VLOOKUP(RC5,MATCHSELEVES!$Y$14:$AE$600,4,FALSE),0) -> 0 | RF5: =IFERROR(VLOOKUP(RC5,MATCHSELEVES!$Y$14:$AE$600,5,FALSE),0) -> 0 | RG5: =IFERROR(VLOOKUP(RC5,MATCHSELEVES!$Y$14:$AF$600,8,FALSE),0) -> 0 | RH5: =IFERROR(VLOOKUP(RC5,MATCHSELEVES!$Y$14:$AG$600,9,FALSE),0) -> 0 | RI5: =$C5&"p_37" -> Açelyap_37 | RJ5: =IFERROR(VLOOKUP(RI5,MATCHSELEVES!$Y$14:$AE$600,3,FALSE),0) -> 0 | RK5: =IFERROR(VLOOKUP(RI5,MATCHSELEVES!$Y$14:$AE$600,4,FALSE),0) -> 0 | RL5: =IFERROR(VLOOKUP(RI5,MATCHSELEVES!$Y$14:$AE$600,5,FALSE),0) -> 0 | RM5: =IFERROR(VLOOKUP(RI5,MATCHSELEVES!$Y$14:$AF$600,8,FALSE),0) -> 0 | RN5: =IFERROR(VLOOKUP(RI5,MATCHSELEVES!$Y$14:$AG$600,9,FALSE),0) -> 0 | RO5: =$C5&"p_38" -> Açelyap_38 | RP5: =IFERROR(VLOOKUP(RO5,MATCHSELEVES!$Y$14:$AE$600,3,FALSE),0) -> 0 | RQ5: =IFERROR(VLOOKUP(RO5,MATCHSELEVES!$Y$14:$AE$600,4,FALSE),0) -> 0 | RR5: =IFERROR(VLOOKUP(RO5,MATCHSELEVES!$Y$14:$AE$600,5,FALSE),0) -> 0 | RS5: =IFERROR(VLOOKUP(RO5,MATCHSELEVES!$Y$14:$AF$600,8,FALSE),0) -> 0 | RT5: =IFERROR(VLOOKUP(RO5,MATCHSELEVES!$Y$14:$AG$600,9,FALSE),0) -> 0 | RU5: =$C5&"p_39" -> Açelyap_39 | RV5: =IFERROR(VLOOKUP(RU5,MATCHSELEVES!$Y$14:$AE$600,3,FALSE),0) -> 0 | RW5: =IFERROR(VLOOKUP(RU5,MATCHSELEVES!$Y$14:$AE$600,4,FALSE),0) -> 0 | RX5: =IFERROR(VLOOKUP(RU5,MATCHSELEVES!$Y$14:$AE$600,5,FALSE),0) -> 0 | RY5: =IFERROR(VLOOKUP(RU5,MATCHSELEVES!$Y$14:$AF$600,8,FALSE),0) -> 0 | RZ5: =IFERROR(VLOOKUP(RU5,MATCHSELEVES!$Y$14:$AG$600,9,FALSE),0) -> 0 | SA5: =$C5&"p_40" -> Açelyap_40 | SB5: =IFERROR(VLOOKUP(SA5,MATCHSELEVES!$Y$14:$AE$600,3,FALSE),0) -> 0 | SC5: =IFERROR(VLOOKUP(SA5,MATCHSELEVES!$Y$14:$AE$600,4,FALSE),0) -> 0 | SD5: =IFERROR(VLOOKUP(SA5,MATCHSELEVES!$Y$14:$AE$600,5,FALSE),0) -> 0 | SE5: =IFERROR(VLOOKUP(SA5,MATCHSELEVES!$Y$14:$AF$600,8,FALSE),0) -> 0 | SF5: =IFERROR(VLOOKUP(SA5,MATCHSELEVES!$Y$14:$AG$600,9,FALSE),0) -> 0
A6: 3 | C6: Adgy | D6: 3 | G6: =COUNTIF(MATCHSELEVES!$Z$14:$Z$600,C6)+COUNTIF(MATCHSELEVES!$Z$14:$Z$600,$C6&"p") -> 0 | H6: 1 | I6: =COUNTIF(MATCHSELEVES!$F$14:$H$249,C6) -> 0 | J6: 1 | K6: 0 | L6: 1 | M6: =IFERROR(M49/Tableau10[[#This Row],[Nombre de matchs joués]],0) -> 0 | N6: =IF(Tableau10[[#This Row],[Nombre de points encaissés]]=0,$C$45,SUMPRODUCT((M$4:M$43<M6)*(M$4:M$43<>0))+1) -> 40 | O6: 0 | P6: 1 | Q6: =(Tableau10[[#This Row],[CLASSEMENT1]]+Tableau10[[#This Row],[CLASSEMENT2]]+Tableau10[[#This Row],[CLASSEMENT3]]+Tableau10[[#This Row],[CLASSEMENT4]]+Tableau10[[#This Row],[CLASSEMENT5]]+Tableau10[[#This Row],[CLASSEMENT6]])/6 -> 7.833333333 | R6: =RANK(Tableau10[[#This Row],[MOYENNE CLASSEMENTS]],Tableau10[MOYENNE CLASSEMENTS],1) -> 3 | T6: =Tableau10[[#This Row],[CLASSEMENT1]] -> 3 | U6: Adgy_1 | V6: =IFERROR(VLOOKUP(U6,MATCHSELEVES!$Y$14:$AE$600,3,FALSE),0) -> 0 | W6: =IFERROR(VLOOKUP(U6,MATCHSELEVES!$Y$14:$AE$600,4,FALSE),0) -> 0 | X6: =IFERROR(VLOOKUP(U6,MATCHSELEVES!$Y$14:$AE$600,5,FALSE),0) -> 0 | Y6: =IFERROR(VLOOKUP(U6,MATCHSELEVES!$Y$14:$AF$600,8,FALSE),0) -> 0 | Z6: =IFERROR(VLOOKUP(U6,MATCHSELEVES!$Y$14:$AG$600,9,FALSE),0) -> 0 | AA6: Adgy_2 | AB6: =IFERROR(VLOOKUP(AA6,MATCHSELEVES!$Y$14:$AE$600,3,FALSE),0) -> 0 | AC6: =IFERROR(VLOOKUP(AA6,MATCHSELEVES!$Y$14:$AE$600,4,FALSE),0) -> 0 | AD6: =IFERROR(VLOOKUP(AA6,MATCHSELEVES!$Y$14:$AE$600,5,FALSE),0) -> 0 | AE6: =IFERROR(VLOOKUP(AA6,MATCHSELEVES!$Y$14:$AF$600,8,FALSE),0) -> 0 | AF6: =IFERROR(VLOOKUP(AA6,MATCHSELEVES!$Y$14:$AG$600,9,FALSE),0) -> 0 | AG6: Adgy_3 | AH6: =IFERROR(VLOOKUP(AG6,MATCHSELEVES!$Y$14:$AE$600,3,FALSE),0) -> 0 | AI6: =IFERROR(VLOOKUP(AG6,MATCHSELEVES!$Y$14:$AE$600,4,FALSE),0) -> 0 | AJ6: =IFERROR(VLOOKUP(AG6,MATCHSELEVES!$Y$14:$AE$600,5,FALSE),0) -> 0 | AK6: =IFERROR(VLOOKUP(AG6,MATCHSELEVES!$Y$14:$AF$600,8,FALSE),0) -> 0 | AL6: =IFERROR(VLOOKUP(AG6,MATCHSELEVES!$Y$14:$AG$600,9,FALSE),0) -> 0 | AM6: Adgy_4 | AN6: =IFERROR(VLOOKUP(AM6,MATCHSELEVES!$Y$14:$AE$600,3,FALSE),0) -> 0 | AO6: =IFERROR(VLOOKUP(AM6,MATCHSELEVES!$Y$14:$AE$600,4,FALSE),0) -> 0 | AP6: =IFERROR(VLOOKUP(AM6,MATCHSELEVES!$Y$14:$AE$600,5,FALSE),0) -> 0 | AQ6: =IFERROR(VLOOKUP(AM6,MATCHSELEVES!$Y$14:$AF$600,8,FALSE),0) -> 0 | AR6: =IFERROR(VLOOKUP(AM6,MATCHSELEVES!$Y$14:$AG$600,9,FALSE),0) -> 0 | AS6: Adgy_5 | AT6: =IFERROR(VLOOKUP(AS6,MATCHSELEVES!$Y$14:$AE$600,3,FALSE),0) -> 0 | AU6: =IFERROR(VLOOKUP(AS6,MATCHSELEVES!$Y$14:$AE$600,4,FALSE),0) -> 0 | AV6: =IFERROR(VLOOKUP(AS6,MATCHSELEVES!$Y$14:$AE$600,5,FALSE),0) -> 0 | AW6: =IFERROR(VLOOKUP(AS6,MATCHSELEVES!$Y$14:$AF$600,8,FALSE),0) -> 0 | AX6: =IFERROR(VLOOKUP(AS6,MATCHSELEVES!$Y$14:$AG$600,9,FALSE),0) -> 0 | AY6: Adgy_6 | AZ6: =IFERROR(VLOOKUP(AY6,MATCHSELEVES!$Y$14:$AE$600,3,FALSE),0) -> 0 | BA6: =IFERROR(VLOOKUP(AY6,MATCHSELEVES!$Y$14:$AE$600,4,FALSE),0) -> 0 | BB6: =IFERROR(VLOOKUP(AY6,MATCHSELEVES!$Y$14:$AE$600,5,FALSE),0) -> 0 | BC6: =IFERROR(VLOOKUP(AY6,MATCHSELEVES!$Y$14:$AF$600,8,FALSE),0) -> 0 | BD6: =IFERROR(VLOOKUP(AY6,MATCHSELEVES!$Y$14:$AG$600,9,FALSE),0) -> 0 | BE6: Adgy_7 | BF6: =IFERROR(VLOOKUP(BE6,MATCHSELEVES!$Y$14:$AE$600,3,FALSE),0) -> 0 | BG6: =IFERROR(VLOOKUP(BE6,MATCHSELEVES!$Y$14:$AE$600,4,FALSE),0) -> 0 | BH6: =IFERROR(VLOOKUP(BE6,MATCHSELEVES!$Y$14:$AE$600,5,FALSE),0) -> 0 | BI6: =IFERROR(VLOOKUP(BE6,MATCHSELEVES!$Y$14:$AF$600,8,FALSE),0) -> 0 | BJ6: =IFERROR(VLOOKUP(BE6,MATCHSELEVES!$Y$14:$AG$600,9,FALSE),0) -> 0 | BK6: Adgy_8 | BL6: =IFERROR(VLOOKUP(BK6,MATCHSELEVES!$Y$14:$AE$600,3,FALSE),0) -> 0 | BM6: =IFERROR(VLOOKUP(BK6,MATCHSELEVES!$Y$14:$AE$600,4,FALSE),0) -> 0 | BN6: =IFERROR(VLOOKUP(BK6,MATCHSELEVES!$Y$14:$AE$600,5,FALSE),0) -> 0 | BO6: =IFERROR(VLOOKUP(BK6,MATCHSELEVES!$Y$14:$AF$600,8,FALSE),0) -> 0 | BP6: =IFERROR(VLOOKUP(BK6,MATCHSELEVES!$Y$14:$AG$600,9,FALSE),0) -> 0 | BQ6: Adgy_9 | BR6: =IFERROR(VLOOKUP(BQ6,MATCHSELEVES!$Y$14:$AE$600,3,FALSE),0) -> 0 | BS6: =IFERROR(VLOOKUP(BQ6,MATCHSELEVES!$Y$14:$AE$600,4,FALSE),0) -> 0 | BT6: =IFERROR(VLOOKUP(BQ6,MATCHSELEVES!$Y$14:$AE$600,5,FALSE),0) -> 0 | BU6: =IFERROR(VLOOKUP(BQ6,MATCHSELEVES!$Y$14:$AF$600,8,FALSE),0) -> 0 | BV6: =IFERROR(VLOOKUP(BQ6,MATCHSELEVES!$Y$14:$AG$600,9,FALSE),0) -> 0 | BW6: Adgy_10 | BX6: =IFERROR(VLOOKUP(BW6,MATCHSELEVES!$Y$14:$AE$600,3,FALSE),0) -> 0 | BY6: =IFERROR(VLOOKUP(BW6,MATCHSELEVES!$Y$14:$AE$600,4,FALSE),0) -> 0 | BZ6: =IFERROR(VLOOKUP(BW6,MATCHSELEVES!$Y$14:$AE$600,5,FALSE),0) -> 0 | CA6: =IFERROR(VLOOKUP(BW6,MATCHSELEVES!$Y$14:$AF$600,8,FALSE),0) -> 0 | CB6: =IFERROR(VLOOKUP(BW6,MATCHSELEVES!$Y$14:$AG$600,9,FALSE),0) -> 0 | CC6: Adgy_11 | CD6: =IFERROR(VLOOKUP(CC6,MATCHSELEVES!$Y$14:$AE$600,3,FALSE),0) -> 0 | CE6: =IFERROR(VLOOKUP(CC6,MATCHSELEVES!$Y$14:$AE$600,4,FALSE),0) -> 0 | CF6: =IFERROR(VLOOKUP(CC6,MATCHSELEVES!$Y$14:$AE$600,5,FALSE),0) -> 0 | CG6: =IFERROR(VLOOKUP(CC6,MATCHSELEVES!$Y$14:$AF$600,8,FALSE),0) -> 0 | CH6: =IFERROR(VLOOKUP(CC6,MATCHSELEVES!$Y$14:$AG$600,9,FALSE),0) -> 0 | CI6: Adgy_12 | CJ6: =IFERROR(VLOOKUP(CI6,MATCHSELEVES!$Y$14:$AE$600,3,FALSE),0) -> 0 | CK6: =IFERROR(VLOOKUP(CI6,MATCHSELEVES!$Y$14:$AE$600,4,FALSE),0) -> 0 | CL6: =IFERROR(VLOOKUP(CI6,MATCHSELEVES!$Y$14:$AE$600,5,FALSE),0) -> 0 | CM6: =IFERROR(VLOOKUP(CI6,MATCHSELEVES!$Y$14:$AF$600,8,FALSE),0) -> 0 | CN6: =IFERROR(VLOOKUP(CI6,MATCHSELEVES!$Y$14:$AG$600,9,FALSE),0) -> 0 | CO6: Adgy_13 | CP6: =IFERROR(VLOOKUP(CO6,MATCHSELEVES!$Y$14:$AE$600,3,FALSE),0) -> 0 | CQ6: =IFERROR(VLOOKUP(CO6,MATCHSELEVES!$Y$14:$AE$600,4,FALSE),0) -> 0 | CR6: =IFERROR(VLOOKUP(CO6,MATCHSELEVES!$Y$14:$AE$600,5,FALSE),0) -> 0 | CS6: =IFERROR(VLOOKUP(CO6,MATCHSELEVES!$Y$14:$AF$600,8,FALSE),0) -> 0 | CT6: =IFERROR(VLOOKUP(CO6,MATCHSELEVES!$Y$14:$AG$600,9,FALSE),0) -> 0 | CU6: Adgy_14 | CV6: =IFERROR(VLOOKUP(CU6,MATCHSELEVES!$Y$14:$AE$600,3,FALSE),0) -> 0 | CW6: =IFERROR(VLOOKUP(CU6,MATCHSELEVES!$Y$14:$AE$600,4,FALSE),0) -> 0 | CX6: =IFERROR(VLOOKUP(CU6,MATCHSELEVES!$Y$14:$AE$600,5,FALSE),0) -> 0 | CY6: =IFERROR(VLOOKUP(CU6,MATCHSELEVES!$Y$14:$AF$600,8,FALSE),0) -> 0 | CZ6: =IFERROR(VLOOKUP(CU6,MATCHSELEVES!$Y$14:$AG$600,9,FALSE),0) -> 0 | DA6: Adgy_15 | DB6: =IFERROR(VLOOKUP(DA6,MATCHSELEVES!$Y$14:$AE$600,3,FALSE),0) -> 0 | DC6: =IFERROR(VLOOKUP(DA6,MATCHSELEVES!$Y$14:$AE$600,4,FALSE),0) -> 0 | DD6: =IFERROR(VLOOKUP(DA6,MATCHSELEVES!$Y$14:$AE$600,5,FALSE),0) -> 0 | DE6: =IFERROR(VLOOKUP(DA6,MATCHSELEVES!$Y$14:$AF$600,8,FALSE),0) -> 0 | DF6: =IFERROR(VLOOKUP(DA6,MATCHSELEVES!$Y$14:$AG$600,9,FALSE),0) -> 0 | DG6: Adgy_16 | DH6: =IFERROR(VLOOKUP(DG6,MATCHSELEVES!$Y$14:$AE$600,3,FALSE),0) -> 0 | DI6: =IFERROR(VLOOKUP(DG6,MATCHSELEVES!$Y$14:$AE$600,4,FALSE),0) -> 0 | DJ6: =IFERROR(VLOOKUP(DG6,MATCHSELEVES!$Y$14:$AE$600,5,FALSE),0) -> 0 | DK6: =IFERROR(VLOOKUP(DG6,MATCHSELEVES!$Y$14:$AF$600,8,FALSE),0) -> 0 | DL6: =IFERROR(VLOOKUP(DG6,MATCHSELEVES!$Y$14:$AG$600,9,FALSE),0) -> 0 | DM6: Adgy_17 | DN6: =IFERROR(VLOOKUP(DM6,MATCHSELEVES!$Y$14:$AE$600,3,FALSE),0) -> 0 | DO6: =IFERROR(VLOOKUP(DM6,MATCHSELEVES!$Y$14:$AE$600,4,FALSE),0) -> 0 | DP6: =IFERROR(VLOOKUP(DM6,MATCHSELEVES!$Y$14:$AE$600,5,FALSE),0) -> 0 | DQ6: =IFERROR(VLOOKUP(DM6,MATCHSELEVES!$Y$14:$AF$600,8,FALSE),0) -> 0 | DR6: =IFERROR(VLOOKUP(DM6,MATCHSELEVES!$Y$14:$AG$600,9,FALSE),0) -> 0 | DS6: Adgy_18 | DT6: =IFERROR(VLOOKUP(DS6,MATCHSELEVES!$Y$14:$AE$600,3,FALSE),0) -> 0 | DU6: =IFERROR(VLOOKUP(DS6,MATCHSELEVES!$Y$14:$AE$600,4,FALSE),0) -> 0 | DV6: =IFERROR(VLOOKUP(DS6,MATCHSELEVES!$Y$14:$AE$600,5,FALSE),0) -> 0 | DW6: =IFERROR(VLOOKUP(DS6,MATCHSELEVES!$Y$14:$AF$600,8,FALSE),0) -> 0 | DX6: =IFERROR(VLOOKUP(DS6,MATCHSELEVES!$Y$14:$AG$600,9,FALSE),0) -> 0 | DY6: Adgy_19 | DZ6: =IFERROR(VLOOKUP(DY6,MATCHSELEVES!$Y$14:$AE$600,3,FALSE),0) -> 0 | EA6: =IFERROR(VLOOKUP(DY6,MATCHSELEVES!$Y$14:$AE$600,4,FALSE),0) -> 0 | EB6: =IFERROR(VLOOKUP(DY6,MATCHSELEVES!$Y$14:$AE$600,5,FALSE),0) -> 0 | EC6: =IFERROR(VLOOKUP(DY6,MATCHSELEVES!$Y$14:$AF$600,8,FALSE),0) -> 0 | ED6: =IFERROR(VLOOKUP(DY6,MATCHSELEVES!$Y$14:$AG$600,9,FALSE),0) -> 0 | EE6: Adgy_20 | EF6: =IFERROR(VLOOKUP(EE6,MATCHSELEVES!$Y$14:$AE$600,3,FALSE),0) -> 0 | EG6: =IFERROR(VLOOKUP(EE6,MATCHSELEVES!$Y$14:$AE$600,4,FALSE),0) -> 0 | EH6: =IFERROR(VLOOKUP(EE6,MATCHSELEVES!$Y$14:$AE$600,5,FALSE),0) -> 0 | EI6: =IFERROR(VLOOKUP(EE6,MATCHSELEVES!$Y$14:$AF$600,8,FALSE),0) -> 0 | EJ6: =IFERROR(VLOOKUP(EE6,MATCHSELEVES!$Y$14:$AG$600,9,FALSE),0) -> 0 | EK6: Adgy_21 | EL6: =IFERROR(VLOOKUP(EK6,MATCHSELEVES!$Y$14:$AE$600,3,FALSE),0) -> 0 | EM6: =IFERROR(VLOOKUP(EK6,MATCHSELEVES!$Y$14:$AE$600,4,FALSE),0) -> 0 | EN6: =IFERROR(VLOOKUP(EK6,MATCHSELEVES!$Y$14:$AE$600,5,FALSE),0) -> 0 | EO6: =IFERROR(VLOOKUP(EK6,MATCHSELEVES!$Y$14:$AF$600,8,FALSE),0) -> 0 | EP6: =IFERROR(VLOOKUP(EK6,MATCHSELEVES!$Y$14:$AG$600,9,FALSE),0) -> 0 | EQ6: Adgy_22 | ER6: =IFERROR(VLOOKUP(EQ6,MATCHSELEVES!$Y$14:$AE$600,3,FALSE),0) -> 0 | ES6: =IFERROR(VLOOKUP(EQ6,MATCHSELEVES!$Y$14:$AE$600,4,FALSE),0) -> 0 | ET6: =IFERROR(VLOOKUP(EQ6,MATCHSELEVES!$Y$14:$AE$600,5,FALSE),0) -> 0 | EU6: =IFERROR(VLOOKUP(EQ6,MATCHSELEVES!$Y$14:$AF$600,8,FALSE),0) -> 0 | EV6: =IFERROR(VLOOKUP(EQ6,MATCHSELEVES!$Y$14:$AG$600,9,FALSE),0) -> 0 | EW6: Adgy_23 | EX6: =IFERROR(VLOOKUP(EW6,MATCHSELEVES!$Y$14:$AE$600,3,FALSE),0) -> 0 | EY6: =IFERROR(VLOOKUP(EW6,MATCHSELEVES!$Y$14:$AE$600,4,FALSE),0) -> 0 | EZ6: =IFERROR(VLOOKUP(EW6,MATCHSELEVES!$Y$14:$AE$600,5,FALSE),0) -> 0 | FA6: =IFERROR(VLOOKUP(EW6,MATCHSELEVES!$Y$14:$AF$600,8,FALSE),0) -> 0 | FB6: =IFERROR(VLOOKUP(EW6,MATCHSELEVES!$Y$14:$AG$600,9,FALSE),0) -> 0 | FC6: Adgy_24 | FD6: =IFERROR(VLOOKUP(FC6,MATCHSELEVES!$Y$14:$AE$600,3,FALSE),0) -> 0 | FE6: =IFERROR(VLOOKUP(FC6,MATCHSELEVES!$Y$14:$AE$600,4,FALSE),0) -> 0 | FF6: =IFERROR(VLOOKUP(FC6,MATCHSELEVES!$Y$14:$AE$600,5,FALSE),0) -> 0 | FG6: =IFERROR(VLOOKUP(FC6,MATCHSELEVES!$Y$14:$AF$600,8,FALSE),0) -> 0 | FH6: =IFERROR(VLOOKUP(FC6,MATCHSELEVES!$Y$14:$AG$600,9,FALSE),0) -> 0 | FI6: Adgy_25 | FJ6: =IFERROR(VLOOKUP(FI6,MATCHSELEVES!$Y$14:$AE$600,3,FALSE),0) -> 0 | FK6: =IFERROR(VLOOKUP(FI6,MATCHSELEVES!$Y$14:$AE$600,4,FALSE),0) -> 0 | FL6: =IFERROR(VLOOKUP(FI6,MATCHSELEVES!$Y$14:$AE$600,5,FALSE),0) -> 0 | FM6: =IFERROR(VLOOKUP(FI6,MATCHSELEVES!$Y$14:$AF$600,8,FALSE),0) -> 0 | FN6: =IFERROR(VLOOKUP(FI6,MATCHSELEVES!$Y$14:$AG$600,9,FALSE),0) -> 0 | FO6: Adgy_26 | FP6: =IFERROR(VLOOKUP(FO6,MATCHSELEVES!$Y$14:$AE$600,3,FALSE),0) -> 0 | FQ6: =IFERROR(VLOOKUP(FO6,MATCHSELEVES!$Y$14:$AE$600,4,FALSE),0) -> 0 | FR6: =IFERROR(VLOOKUP(FO6,MATCHSELEVES!$Y$14:$AE$600,5,FALSE),0) -> 0 | FS6: =IFERROR(VLOOKUP(FO6,MATCHSELEVES!$Y$14:$AF$600,8,FALSE),0) -> 0 | FT6: =IFERROR(VLOOKUP(FO6,MATCHSELEVES!$Y$14:$AG$600,9,FALSE),0) -> 0 | FU6: Adgy_27 | FV6: =IFERROR(VLOOKUP(FU6,MATCHSELEVES!$Y$14:$AE$600,3,FALSE),0) -> 0 | FW6: =IFERROR(VLOOKUP(FU6,MATCHSELEVES!$Y$14:$AE$600,4,FALSE),0) -> 0 | FX6: =IFERROR(VLOOKUP(FU6,MATCHSELEVES!$Y$14:$AE$600,5,FALSE),0) -> 0 | FY6: =IFERROR(VLOOKUP(FU6,MATCHSELEVES!$Y$14:$AF$600,8,FALSE),0) -> 0 | FZ6: =IFERROR(VLOOKUP(FU6,MATCHSELEVES!$Y$14:$AG$600,9,FALSE),0) -> 0 | GA6: Adgy_28 | GB6: =IFERROR(VLOOKUP(GA6,MATCHSELEVES!$Y$14:$AE$600,3,FALSE),0) -> 0 | GC6: =IFERROR(VLOOKUP(GA6,MATCHSELEVES!$Y$14:$AE$600,4,FALSE),0) -> 0 | GD6: =IFERROR(VLOOKUP(GA6,MATCHSELEVES!$Y$14:$AE$600,5,FALSE),0) -> 0 | GE6: =IFERROR(VLOOKUP(GA6,MATCHSELEVES!$Y$14:$AF$600,8,FALSE),0) -> 0 | GF6: =IFERROR(VLOOKUP(GA6,MATCHSELEVES!$Y$14:$AG$600,9,FALSE),0) -> 0 | GG6: Adgy_29 | GH6: =IFERROR(VLOOKUP(GG6,MATCHSELEVES!$Y$14:$AE$600,3,FALSE),0) -> 0 | GI6: =IFERROR(VLOOKUP(GG6,MATCHSELEVES!$Y$14:$AE$600,4,FALSE),0) -> 0 | GJ6: =IFERROR(VLOOKUP(GG6,MATCHSELEVES!$Y$14:$AE$600,5,FALSE),0) -> 0 | GK6: =IFERROR(VLOOKUP(GG6,MATCHSELEVES!$Y$14:$AF$600,8,FALSE),0) -> 0 | GL6: =IFERROR(VLOOKUP(GG6,MATCHSELEVES!$Y$14:$AG$600,9,FALSE),0) -> 0 | GM6: Adgy_30 | GN6: =IFERROR(VLOOKUP(GM6,MATCHSELEVES!$Y$14:$AE$600,3,FALSE),0) -> 0 | GO6: =IFERROR(VLOOKUP(GM6,MATCHSELEVES!$Y$14:$AE$600,4,FALSE),0) -> 0 | GP6: =IFERROR(VLOOKUP(GM6,MATCHSELEVES!$Y$14:$AE$600,5,FALSE),0) -> 0 | GQ6: =IFERROR(VLOOKUP(GM6,MATCHSELEVES!$Y$14:$AF$600,8,FALSE),0) -> 0 | GR6: =IFERROR(VLOOKUP(GM6,MATCHSELEVES!$Y$14:$AG$600,9,FALSE),0) -> 0 | GS6: Adgy_31 | GT6: =IFERROR(VLOOKUP(GS6,MATCHSELEVES!$Y$14:$AE$600,3,FALSE),0) -> 0 | GU6: =IFERROR(VLOOKUP(GS6,MATCHSELEVES!$Y$14:$AE$600,4,FALSE),0) -> 0 | GV6: =IFERROR(VLOOKUP(GS6,MATCHSELEVES!$Y$14:$AE$600,5,FALSE),0) -> 0 | GW6: =IFERROR(VLOOKUP(GS6,MATCHSELEVES!$Y$14:$AF$600,8,FALSE),0) -> 0 | GX6: =IFERROR(VLOOKUP(GS6,MATCHSELEVES!$Y$14:$AG$600,9,FALSE),0) -> 0 | GY6: Adgy_32 | GZ6: =IFERROR(VLOOKUP(GY6,MATCHSELEVES!$Y$14:$AE$600,3,FALSE),0) -> 0 | HA6: =IFERROR(VLOOKUP(GY6,MATCHSELEVES!$Y$14:$AE$600,4,FALSE),0) -> 0 | HB6: =IFERROR(VLOOKUP(GY6,MATCHSELEVES!$Y$14:$AE$600,5,FALSE),0) -> 0 | HC6: =IFERROR(VLOOKUP(GY6,MATCHSELEVES!$Y$14:$AF$600,8,FALSE),0) -> 0 | HD6: =IFERROR(VLOOKUP(GY6,MATCHSELEVES!$Y$14:$AG$600,9,FALSE),0) -> 0 | HE6: Adgy_33 | HF6: =IFERROR(VLOOKUP(HE6,MATCHSELEVES!$Y$14:$AE$600,3,FALSE),0) -> 0 | HG6: =IFERROR(VLOOKUP(HE6,MATCHSELEVES!$Y$14:$AE$600,4,FALSE),0) -> 0 | HH6: =IFERROR(VLOOKUP(HE6,MATCHSELEVES!$Y$14:$AE$600,5,FALSE),0) -> 0 | HI6: =IFERROR(VLOOKUP(HE6,MATCHSELEVES!$Y$14:$AF$600,8,FALSE),0) -> 0 | HJ6: =IFERROR(VLOOKUP(HE6,MATCHSELEVES!$Y$14:$AG$600,9,FALSE),0) -> 0 | HK6: Adgy_34 | HL6: =IFERROR(VLOOKUP(HK6,MATCHSELEVES!$Y$14:$AE$600,3,FALSE),0) -> 0 | HM6: =IFERROR(VLOOKUP(HK6,MATCHSELEVES!$Y$14:$AE$600,4,FALSE),0) -> 0 | HN6: =IFERROR(VLOOKUP(HK6,MATCHSELEVES!$Y$14:$AE$600,5,FALSE),0) -> 0 | HO6: =IFERROR(VLOOKUP(HK6,MATCHSELEVES!$Y$14:$AF$600,8,FALSE),0) -> 0 | HP6: =IFERROR(VLOOKUP(HK6,MATCHSELEVES!$Y$14:$AG$600,9,FALSE),0) -> 0 | HQ6: Adgy_35 | HR6: =IFERROR(VLOOKUP(HQ6,MATCHSELEVES!$Y$14:$AE$600,3,FALSE),0) -> 0 | HS6: =IFERROR(VLOOKUP(HQ6,MATCHSELEVES!$Y$14:$AE$600,4,FALSE),0) -> 0 | HT6: =IFERROR(VLOOKUP(HQ6,MATCHSELEVES!$Y$14:$AE$600,5,FALSE),0) -> 0 | HU6: =IFERROR(VLOOKUP(HQ6,MATCHSELEVES!$Y$14:$AF$600,8,FALSE),0) -> 0 | HV6: =IFERROR(VLOOKUP(HQ6,MATCHSELEVES!$Y$14:$AG$600,9,FALSE),0) -> 0 | HW6: Adgy_36 | HX6: =IFERROR(VLOOKUP(HW6,MATCHSELEVES!$Y$14:$AE$600,3,FALSE),0) -> 0 | HY6: =IFERROR(VLOOKUP(HW6,MATCHSELEVES!$Y$14:$AE$600,4,FALSE),0) -> 0 | HZ6: =IFERROR(VLOOKUP(HW6,MATCHSELEVES!$Y$14:$AE$600,5,FALSE),0) -> 0 | IA6: =IFERROR(VLOOKUP(HW6,MATCHSELEVES!$Y$14:$AF$600,8,FALSE),0) -> 0 | IB6: =IFERROR(VLOOKUP(HW6,MATCHSELEVES!$Y$14:$AG$600,9,FALSE),0) -> 0 | IC6: Adgy_37 | ID6: =IFERROR(VLOOKUP(IC6,MATCHSELEVES!$Y$14:$AE$600,3,FALSE),0) -> 0 | IE6: =IFERROR(VLOOKUP(IC6,MATCHSELEVES!$Y$14:$AE$600,4,FALSE),0) -> 0 | IF6: =IFERROR(VLOOKUP(IC6,MATCHSELEVES!$Y$14:$AE$600,5,FALSE),0) -> 0 | IG6: =IFERROR(VLOOKUP(IC6,MATCHSELEVES!$Y$14:$AF$600,8,FALSE),0) -> 0 | IH6: =IFERROR(VLOOKUP(IC6,MATCHSELEVES!$Y$14:$AG$600,9,FALSE),0) -> 0 | II6: Adgy_38 | IJ6: =IFERROR(VLOOKUP(II6,MATCHSELEVES!$Y$14:$AE$600,3,FALSE),0) -> 0 | IK6: =IFERROR(VLOOKUP(II6,MATCHSELEVES!$Y$14:$AE$600,4,FALSE),0) -> 0 | IL6: =IFERROR(VLOOKUP(II6,MATCHSELEVES!$Y$14:$AE$600,5,FALSE),0) -> 0 | IM6: =IFERROR(VLOOKUP(II6,MATCHSELEVES!$Y$14:$AF$600,8,FALSE),0) -> 0 | IN6: =IFERROR(VLOOKUP(II6,MATCHSELEVES!$Y$14:$AG$600,9,FALSE),0) -> 0 | IO6: Adgy_39 | IP6: =IFERROR(VLOOKUP(IO6,MATCHSELEVES!$Y$14:$AE$600,3,FALSE),0) -> 0 | IQ6: =IFERROR(VLOOKUP(IO6,MATCHSELEVES!$Y$14:$AE$600,4,FALSE),0) -> 0 | IR6: =IFERROR(VLOOKUP(IO6,MATCHSELEVES!$Y$14:$AE$600,5,FALSE),0) -> 0 | IS6: =IFERROR(VLOOKUP(IO6,MATCHSELEVES!$Y$14:$AF$600,8,FALSE),0) -> 0 | IT6: =IFERROR(VLOOKUP(IO6,MATCHSELEVES!$Y$14:$AG$600,9,FALSE),0) -> 0 | IU6: Adgy_40 | IV6: =IFERROR(VLOOKUP(IU6,MATCHSELEVES!$Y$14:$AE$600,3,FALSE),0) -> 0 | IW6: =IFERROR(VLOOKUP(IU6,MATCHSELEVES!$Y$14:$AE$600,4,FALSE),0) -> 0 | IX6: =IFERROR(VLOOKUP(IU6,MATCHSELEVES!$Y$14:$AE$600,5,FALSE),0) -> 0 | IY6: =IFERROR(VLOOKUP(IU6,MATCHSELEVES!$Y$14:$AF$600,8,FALSE),0) -> 0 | IZ6: =IFERROR(VLOOKUP(IU6,MATCHSELEVES!$Y$14:$AG$600,9,FALSE),0) -> 0 | JA6: Adgyp_1 | JB6: =IFERROR(VLOOKUP(JA6,MATCHSELEVES!$Y$14:$AE$600,3,FALSE),0) -> 0 | JC6: =IFERROR(VLOOKUP(JA6,MATCHSELEVES!$Y$14:$AE$600,4,FALSE),0) -> 0 | JD6: =IFERROR(VLOOKUP(JA6,MATCHSELEVES!$Y$14:$AE$600,5,FALSE),0) -> 0 | JE6: =IFERROR(VLOOKUP(JA6,MATCHSELEVES!$Y$14:$AF$600,8,FALSE),0) -> 0 | JF6: =IFERROR(VLOOKUP(JA6,MATCHSELEVES!$Y$14:$AG$600,9,FALSE),0) -> 0 | JG6: Adgyp_2 | JH6: =IFERROR(VLOOKUP(JG6,MATCHSELEVES!$Y$14:$AE$600,3,FALSE),0) -> 0 | JI6: =IFERROR(VLOOKUP(JG6,MATCHSELEVES!$Y$14:$AE$600,4,FALSE),0) -> 0 | JJ6: =IFERROR(VLOOKUP(JG6,MATCHSELEVES!$Y$14:$AE$600,5,FALSE),0) -> 0 | JK6: =IFERROR(VLOOKUP(JG6,MATCHSELEVES!$Y$14:$AF$600,8,FALSE),0) -> 0 | JL6: =IFERROR(VLOOKUP(JG6,MATCHSELEVES!$Y$14:$AG$600,9,FALSE),0) -> 0 | JM6: Adgyp_3 | JN6: =IFERROR(VLOOKUP(JM6,MATCHSELEVES!$Y$14:$AE$600,3,FALSE),0) -> 0 | JO6: =IFERROR(VLOOKUP(JM6,MATCHSELEVES!$Y$14:$AE$600,4,FALSE),0) -> 0 | JP6: =IFERROR(VLOOKUP(JM6,MATCHSELEVES!$Y$14:$AE$600,5,FALSE),0) -> 0 | JQ6: =IFERROR(VLOOKUP(JM6,MATCHSELEVES!$Y$14:$AF$600,8,FALSE),0) -> 0 | JR6: =IFERROR(VLOOKUP(JM6,MATCHSELEVES!$Y$14:$AG$600,9,FALSE),0) -> 0 | JS6: Adgyp_4 | JT6: =IFERROR(VLOOKUP(JS6,MATCHSELEVES!$Y$14:$AE$600,3,FALSE),0) -> 0 | JU6: =IFERROR(VLOOKUP(JS6,MATCHSELEVES!$Y$14:$AE$600,4,FALSE),0) -> 0 | JV6: =IFERROR(VLOOKUP(JS6,MATCHSELEVES!$Y$14:$AE$600,5,FALSE),0) -> 0 | JW6: =IFERROR(VLOOKUP(JS6,MATCHSELEVES!$Y$14:$AF$600,8,FALSE),0) -> 0 | JX6: =IFERROR(VLOOKUP(JS6,MATCHSELEVES!$Y$14:$AG$600,9,FALSE),0) -> 0 | JY6: Adgyp_5 | JZ6: =IFERROR(VLOOKUP(JY6,MATCHSELEVES!$Y$14:$AE$600,3,FALSE),0) -> 0 | KA6: =IFERROR(VLOOKUP(JY6,MATCHSELEVES!$Y$14:$AE$600,4,FALSE),0) -> 0 | KB6: =IFERROR(VLOOKUP(JY6,MATCHSELEVES!$Y$14:$AE$600,5,FALSE),0) -> 0 | KC6: =IFERROR(VLOOKUP(JY6,MATCHSELEVES!$Y$14:$AF$600,8,FALSE),0) -> 0 | KD6: =IFERROR(VLOOKUP(JY6,MATCHSELEVES!$Y$14:$AG$600,9,FALSE),0) -> 0 | KE6: Adgyp_6 | KF6: =IFERROR(VLOOKUP(KE6,MATCHSELEVES!$Y$14:$AE$600,3,FALSE),0) -> 0 | KG6: =IFERROR(VLOOKUP(KE6,MATCHSELEVES!$Y$14:$AE$600,4,FALSE),0) -> 0 | KH6: =IFERROR(VLOOKUP(KE6,MATCHSELEVES!$Y$14:$AE$600,5,FALSE),0) -> 0 | KI6: =IFERROR(VLOOKUP(KE6,MATCHSELEVES!$Y$14:$AF$600,8,FALSE),0) -> 0 | KJ6: =IFERROR(VLOOKUP(KE6,MATCHSELEVES!$Y$14:$AG$600,9,FALSE),0) -> 0 | KK6: Adgyp_7 | KL6: =IFERROR(VLOOKUP(KK6,MATCHSELEVES!$Y$14:$AE$600,3,FALSE),0) -> 0 | KM6: =IFERROR(VLOOKUP(KK6,MATCHSELEVES!$Y$14:$AE$600,4,FALSE),0) -> 0 | KN6: =IFERROR(VLOOKUP(KK6,MATCHSELEVES!$Y$14:$AE$600,5,FALSE),0) -> 0 | KO6: =IFERROR(VLOOKUP(KK6,MATCHSELEVES!$Y$14:$AF$600,8,FALSE),0) -> 0 | KP6: =IFERROR(VLOOKUP(KK6,MATCHSELEVES!$Y$14:$AG$600,9,FALSE),0) -> 0 | KQ6: Adgyp_8 | KR6: =IFERROR(VLOOKUP(KQ6,MATCHSELEVES!$Y$14:$AE$600,3,FALSE),0) -> 0 | KS6: =IFERROR(VLOOKUP(KQ6,MATCHSELEVES!$Y$14:$AE$600,4,FALSE),0) -> 0 | KT6: =IFERROR(VLOOKUP(KQ6,MATCHSELEVES!$Y$14:$AE$600,5,FALSE),0) -> 0 | KU6: =IFERROR(VLOOKUP(KQ6,MATCHSELEVES!$Y$14:$AF$600,8,FALSE),0) -> 0 | KV6: =IFERROR(VLOOKUP(KQ6,MATCHSELEVES!$Y$14:$AG$600,9,FALSE),0) -> 0 | KW6: Adgyp_9 | KX6: =IFERROR(VLOOKUP(KW6,MATCHSELEVES!$Y$14:$AE$600,3,FALSE),0) -> 0 | KY6: =IFERROR(VLOOKUP(KW6,MATCHSELEVES!$Y$14:$AE$600,4,FALSE),0) -> 0 | KZ6: =IFERROR(VLOOKUP(KW6,MATCHSELEVES!$Y$14:$AE$600,5,FALSE),0) -> 0 | LA6: =IFERROR(VLOOKUP(KW6,MATCHSELEVES!$Y$14:$AF$600,8,FALSE),0) -> 0 | LB6: =IFERROR(VLOOKUP(KW6,MATCHSELEVES!$Y$14:$AG$600,9,FALSE),0) -> 0 | LC6: Adgyp_10 | LD6: =IFERROR(VLOOKUP(LC6,MATCHSELEVES!$Y$14:$AE$600,3,FALSE),0) -> 0 | LE6: =IFERROR(VLOOKUP(LC6,MATCHSELEVES!$Y$14:$AE$600,4,FALSE),0) -> 0 | LF6: =IFERROR(VLOOKUP(LC6,MATCHSELEVES!$Y$14:$AE$600,5,FALSE),0) -> 0 | LG6: =IFERROR(VLOOKUP(LC6,MATCHSELEVES!$Y$14:$AF$600,8,FALSE),0) -> 0 | LH6: =IFERROR(VLOOKUP(LC6,MATCHSELEVES!$Y$14:$AG$600,9,FALSE),0) -> 0 | LI6: Adgyp_11 | LJ6: =IFERROR(VLOOKUP(LI6,MATCHSELEVES!$Y$14:$AE$600,3,FALSE),0) -> 0 | LK6: =IFERROR(VLOOKUP(LI6,MATCHSELEVES!$Y$14:$AE$600,4,FALSE),0) -> 0 | LL6: =IFERROR(VLOOKUP(LI6,MATCHSELEVES!$Y$14:$AE$600,5,FALSE),0) -> 0 | LM6: =IFERROR(VLOOKUP(LI6,MATCHSELEVES!$Y$14:$AF$600,8,FALSE),0) -> 0 | LN6: =IFERROR(VLOOKUP(LI6,MATCHSELEVES!$Y$14:$AG$600,9,FALSE),0) -> 0 | LO6: Adgyp_12 | LP6: =IFERROR(VLOOKUP(LO6,MATCHSELEVES!$Y$14:$AE$600,3,FALSE),0) -> 0 | LQ6: =IFERROR(VLOOKUP(LO6,MATCHSELEVES!$Y$14:$AE$600,4,FALSE),0) -> 0 | LR6: =IFERROR(VLOOKUP(LO6,MATCHSELEVES!$Y$14:$AE$600,5,FALSE),0) -> 0 | LS6: =IFERROR(VLOOKUP(LO6,MATCHSELEVES!$Y$14:$AF$600,8,FALSE),0) -> 0 | LT6: =IFERROR(VLOOKUP(LO6,MATCHSELEVES!$Y$14:$AG$600,9,FALSE),0) -> 0 | LU6: Adgyp_13 | LV6: =IFERROR(VLOOKUP(LU6,MATCHSELEVES!$Y$14:$AE$600,3,FALSE),0) -> 0 | LW6: =IFERROR(VLOOKUP(LU6,MATCHSELEVES!$Y$14:$AE$600,4,FALSE),0) -> 0 | LX6: =IFERROR(VLOOKUP(LU6,MATCHSELEVES!$Y$14:$AE$600,5,FALSE),0) -> 0 | LY6: =IFERROR(VLOOKUP(LU6,MATCHSELEVES!$Y$14:$AF$600,8,FALSE),0) -> 0 | LZ6: =IFERROR(VLOOKUP(LU6,MATCHSELEVES!$Y$14:$AG$600,9,FALSE),0) -> 0 | MA6: Adgyp_14 | MB6: =IFERROR(VLOOKUP(MA6,MATCHSELEVES!$Y$14:$AE$600,3,FALSE),0) -> 0 | MC6: =IFERROR(VLOOKUP(MA6,MATCHSELEVES!$Y$14:$AE$600,4,FALSE),0) -> 0 | MD6: =IFERROR(VLOOKUP(MA6,MATCHSELEVES!$Y$14:$AE$600,5,FALSE),0) -> 0 | ME6: =IFERROR(VLOOKUP(MA6,MATCHSELEVES!$Y$14:$AF$600,8,FALSE),0) -> 0 | MF6: =IFERROR(VLOOKUP(MA6,MATCHSELEVES!$Y$14:$AG$600,9,FALSE),0) -> 0 | MG6: Adgyp_15 | MH6: =IFERROR(VLOOKUP(MG6,MATCHSELEVES!$Y$14:$AE$600,3,FALSE),0) -> 0 | MI6: =IFERROR(VLOOKUP(MG6,MATCHSELEVES!$Y$14:$AE$600,4,FALSE),0) -> 0 | MJ6: =IFERROR(VLOOKUP(MG6,MATCHSELEVES!$Y$14:$AE$600,5,FALSE),0) -> 0 | MK6: =IFERROR(VLOOKUP(MG6,MATCHSELEVES!$Y$14:$AF$600,8,FALSE),0) -> 0 | ML6: =IFERROR(VLOOKUP(MG6,MATCHSELEVES!$Y$14:$AG$600,9,FALSE),0) -> 0 | MM6: Adgyp_16 | MN6: =IFERROR(VLOOKUP(MM6,MATCHSELEVES!$Y$14:$AE$600,3,FALSE),0) -> 0 | MO6: =IFERROR(VLOOKUP(MM6,MATCHSELEVES!$Y$14:$AE$600,4,FALSE),0) -> 0 | MP6: =IFERROR(VLOOKUP(MM6,MATCHSELEVES!$Y$14:$AE$600,5,FALSE),0) -> 0 | MQ6: =IFERROR(VLOOKUP(MM6,MATCHSELEVES!$Y$14:$AF$600,8,FALSE),0) -> 0 | MR6: =IFERROR(VLOOKUP(MM6,MATCHSELEVES!$Y$14:$AG$600,9,FALSE),0) -> 0 | MS6: Adgyp_17 | MT6: =IFERROR(VLOOKUP(MS6,MATCHSELEVES!$Y$14:$AE$600,3,FALSE),0) -> 0 | MU6: =IFERROR(VLOOKUP(MS6,MATCHSELEVES!$Y$14:$AE$600,4,FALSE),0) -> 0 | MV6: =IFERROR(VLOOKUP(MS6,MATCHSELEVES!$Y$14:$AE$600,5,FALSE),0) -> 0 | MW6: =IFERROR(VLOOKUP(MS6,MATCHSELEVES!$Y$14:$AF$600,8,FALSE),0) -> 0 | MX6: =IFERROR(VLOOKUP(MS6,MATCHSELEVES!$Y$14:$AG$600,9,FALSE),0) -> 0 | MY6: Adgyp_18 | MZ6: =IFERROR(VLOOKUP(MY6,MATCHSELEVES!$Y$14:$AE$600,3,FALSE),0) -> 0 | NA6: =IFERROR(VLOOKUP(MY6,MATCHSELEVES!$Y$14:$AE$600,4,FALSE),0) -> 0 | NB6: =IFERROR(VLOOKUP(MY6,MATCHSELEVES!$Y$14:$AE$600,5,FALSE),0) -> 0 | NC6: =IFERROR(VLOOKUP(MY6,MATCHSELEVES!$Y$14:$AF$600,8,FALSE),0) -> 0 | ND6: =IFERROR(VLOOKUP(MY6,MATCHSELEVES!$Y$14:$AG$600,9,FALSE),0) -> 0 | NE6: Adgyp_19 | NF6: =IFERROR(VLOOKUP(NE6,MATCHSELEVES!$Y$14:$AE$600,3,FALSE),0) -> 0 | NG6: =IFERROR(VLOOKUP(NE6,MATCHSELEVES!$Y$14:$AE$600,4,FALSE),0) -> 0 | NH6: =IFERROR(VLOOKUP(NE6,MATCHSELEVES!$Y$14:$AE$600,5,FALSE),0) -> 0 | NI6: =IFERROR(VLOOKUP(NE6,MATCHSELEVES!$Y$14:$AF$600,8,FALSE),0) -> 0 | NJ6: =IFERROR(VLOOKUP(NE6,MATCHSELEVES!$Y$14:$AG$600,9,FALSE),0) -> 0 | NK6: Adgyp_20 | NL6: =IFERROR(VLOOKUP(NK6,MATCHSELEVES!$Y$14:$AE$600,3,FALSE),0) -> 0 | NM6: =IFERROR(VLOOKUP(NK6,MATCHSELEVES!$Y$14:$AE$600,4,FALSE),0) -> 0 | NN6: =IFERROR(VLOOKUP(NK6,MATCHSELEVES!$Y$14:$AE$600,5,FALSE),0) -> 0 | NO6: =IFERROR(VLOOKUP(NK6,MATCHSELEVES!$Y$14:$AF$600,8,FALSE),0) -> 0 | NP6: =IFERROR(VLOOKUP(NK6,MATCHSELEVES!$Y$14:$AG$600,9,FALSE),0) -> 0 | NQ6: Adgyp_21 | NR6: =IFERROR(VLOOKUP(NQ6,MATCHSELEVES!$Y$14:$AE$600,3,FALSE),0) -> 0 | NS6: =IFERROR(VLOOKUP(NQ6,MATCHSELEVES!$Y$14:$AE$600,4,FALSE),0) -> 0 | NT6: =IFERROR(VLOOKUP(NQ6,MATCHSELEVES!$Y$14:$AE$600,5,FALSE),0) -> 0 | NU6: =IFERROR(VLOOKUP(NQ6,MATCHSELEVES!$Y$14:$AF$600,8,FALSE),0) -> 0 | NV6: =IFERROR(VLOOKUP(NQ6,MATCHSELEVES!$Y$14:$AG$600,9,FALSE),0) -> 0 | NW6: Adgyp_22 | NX6: =IFERROR(VLOOKUP(NW6,MATCHSELEVES!$Y$14:$AE$600,3,FALSE),0) -> 0 | NY6: =IFERROR(VLOOKUP(NW6,MATCHSELEVES!$Y$14:$AE$600,4,FALSE),0) -> 0 | NZ6: =IFERROR(VLOOKUP(NW6,MATCHSELEVES!$Y$14:$AE$600,5,FALSE),0) -> 0 | OA6: =IFERROR(VLOOKUP(NW6,MATCHSELEVES!$Y$14:$AF$600,8,FALSE),0) -> 0 | OB6: =IFERROR(VLOOKUP(NW6,MATCHSELEVES!$Y$14:$AG$600,9,FALSE),0) -> 0 | OC6: Adgyp_23 | OD6: =IFERROR(VLOOKUP(OC6,MATCHSELEVES!$Y$14:$AE$600,3,FALSE),0) -> 0 | OE6: =IFERROR(VLOOKUP(OC6,MATCHSELEVES!$Y$14:$AE$600,4,FALSE),0) -> 0 | OF6: =IFERROR(VLOOKUP(OC6,MATCHSELEVES!$Y$14:$AE$600,5,FALSE),0) -> 0 | OG6: =IFERROR(VLOOKUP(OC6,MATCHSELEVES!$Y$14:$AF$600,8,FALSE),0) -> 0 | OH6: =IFERROR(VLOOKUP(OC6,MATCHSELEVES!$Y$14:$AG$600,9,FALSE),0) -> 0 | OI6: Adgyp_24 | OJ6: =IFERROR(VLOOKUP(OI6,MATCHSELEVES!$Y$14:$AE$600,3,FALSE),0) -> 0 | OK6: =IFERROR(VLOOKUP(OI6,MATCHSELEVES!$Y$14:$AE$600,4,FALSE),0) -> 0 | OL6: =IFERROR(VLOOKUP(OI6,MATCHSELEVES!$Y$14:$AE$600,5,FALSE),0) -> 0 | OM6: =IFERROR(VLOOKUP(OI6,MATCHSELEVES!$Y$14:$AF$600,8,FALSE),0) -> 0 | ON6: =IFERROR(VLOOKUP(OI6,MATCHSELEVES!$Y$14:$AG$600,9,FALSE),0) -> 0 | OO6: Adgyp_25 | OP6: =IFERROR(VLOOKUP(OO6,MATCHSELEVES!$Y$14:$AE$600,3,FALSE),0) -> 0 | OQ6: =IFERROR(VLOOKUP(OO6,MATCHSELEVES!$Y$14:$AE$600,4,FALSE),0) -> 0 | OR6: =IFERROR(VLOOKUP(OO6,MATCHSELEVES!$Y$14:$AE$600,5,FALSE),0) -> 0 | OS6: =IFERROR(VLOOKUP(OO6,MATCHSELEVES!$Y$14:$AF$600,8,FALSE),0) -> 0 | OT6: =IFERROR(VLOOKUP(OO6,MATCHSELEVES!$Y$14:$AG$600,9,FALSE),0) -> 0 | OU6: Adgyp_26 | OV6: =IFERROR(VLOOKUP(OU6,MATCHSELEVES!$Y$14:$AE$600,3,FALSE),0) -> 0 | OW6: =IFERROR(VLOOKUP(OU6,MATCHSELEVES!$Y$14:$AE$600,4,FALSE),0) -> 0 | OX6: =IFERROR(VLOOKUP(OU6,MATCHSELEVES!$Y$14:$AE$600,5,FALSE),0) -> 0 | OY6: =IFERROR(VLOOKUP(OU6,MATCHSELEVES!$Y$14:$AF$600,8,FALSE),0) -> 0 | OZ6: =IFERROR(VLOOKUP(OU6,MATCHSELEVES!$Y$14:$AG$600,9,FALSE),0) -> 0 | PA6: Adgyp_27 | PB6: =IFERROR(VLOOKUP(PA6,MATCHSELEVES!$Y$14:$AE$600,3,FALSE),0) -> 0 | PC6: =IFERROR(VLOOKUP(PA6,MATCHSELEVES!$Y$14:$AE$600,4,FALSE),0) -> 0 | PD6: =IFERROR(VLOOKUP(PA6,MATCHSELEVES!$Y$14:$AE$600,5,FALSE),0) -> 0 | PE6: =IFERROR(VLOOKUP(PA6,MATCHSELEVES!$Y$14:$AF$600,8,FALSE),0) -> 0 | PF6: =IFERROR(VLOOKUP(PA6,MATCHSELEVES!$Y$14:$AG$600,9,FALSE),0) -> 0 | PG6: Adgyp_28 | PH6: =IFERROR(VLOOKUP(PG6,MATCHSELEVES!$Y$14:$AE$600,3,FALSE),0) -> 0 | PI6: =IFERROR(VLOOKUP(PG6,MATCHSELEVES!$Y$14:$AE$600,4,FALSE),0) -> 0 | PJ6: =IFERROR(VLOOKUP(PG6,MATCHSELEVES!$Y$14:$AE$600,5,FALSE),0) -> 0 | PK6: =IFERROR(VLOOKUP(PG6,MATCHSELEVES!$Y$14:$AF$600,8,FALSE),0) -> 0 | PL6: =IFERROR(VLOOKUP(PG6,MATCHSELEVES!$Y$14:$AG$600,9,FALSE),0) -> 0 | PM6: Adgyp_29 | PN6: =IFERROR(VLOOKUP(PM6,MATCHSELEVES!$Y$14:$AE$600,3,FALSE),0) -> 0 | PO6: =IFERROR(VLOOKUP(PM6,MATCHSELEVES!$Y$14:$AE$600,4,FALSE),0) -> 0 | PP6: =IFERROR(VLOOKUP(PM6,MATCHSELEVES!$Y$14:$AE$600,5,FALSE),0) -> 0 | PQ6: =IFERROR(VLOOKUP(PM6,MATCHSELEVES!$Y$14:$AF$600,8,FALSE),0) -> 0 | PR6: =IFERROR(VLOOKUP(PM6,MATCHSELEVES!$Y$14:$AG$600,9,FALSE),0) -> 0 | PS6: Adgyp_30 | PT6: =IFERROR(VLOOKUP(PS6,MATCHSELEVES!$Y$14:$AE$600,3,FALSE),0) -> 0 | PU6: =IFERROR(VLOOKUP(PS6,MATCHSELEVES!$Y$14:$AE$600,4,FALSE),0) -> 0 | PV6: =IFERROR(VLOOKUP(PS6,MATCHSELEVES!$Y$14:$AE$600,5,FALSE),0) -> 0 | PW6: =IFERROR(VLOOKUP(PS6,MATCHSELEVES!$Y$14:$AF$600,8,FALSE),0) -> 0 | PX6: =IFERROR(VLOOKUP(PS6,MATCHSELEVES!$Y$14:$AG$600,9,FALSE),0) -> 0 | PY6: Adgyp_31 | PZ6: =IFERROR(VLOOKUP(PY6,MATCHSELEVES!$Y$14:$AE$600,3,FALSE),0) -> 0 | QA6: =IFERROR(VLOOKUP(PY6,MATCHSELEVES!$Y$14:$AE$600,4,FALSE),0) -> 0 | QB6: =IFERROR(VLOOKUP(PY6,MATCHSELEVES!$Y$14:$AE$600,5,FALSE),0) -> 0 | QC6: =IFERROR(VLOOKUP(PY6,MATCHSELEVES!$Y$14:$AF$600,8,FALSE),0) -> 0 | QD6: =IFERROR(VLOOKUP(PY6,MATCHSELEVES!$Y$14:$AG$600,9,FALSE),0) -> 0 | QE6: Adgyp_32 | QF6: =IFERROR(VLOOKUP(QE6,MATCHSELEVES!$Y$14:$AE$600,3,FALSE),0) -> 0 | QG6: =IFERROR(VLOOKUP(QE6,MATCHSELEVES!$Y$14:$AE$600,4,FALSE),0) -> 0 | QH6: =IFERROR(VLOOKUP(QE6,MATCHSELEVES!$Y$14:$AE$600,5,FALSE),0) -> 0 | QI6: =IFERROR(VLOOKUP(QE6,MATCHSELEVES!$Y$14:$AF$600,8,FALSE),0) -> 0 | QJ6: =IFERROR(VLOOKUP(QE6,MATCHSELEVES!$Y$14:$AG$600,9,FALSE),0) -> 0 | QK6: Adgyp_33 | QL6: =IFERROR(VLOOKUP(QK6,MATCHSELEVES!$Y$14:$AE$600,3,FALSE),0) -> 0 | QM6: =IFERROR(VLOOKUP(QK6,MATCHSELEVES!$Y$14:$AE$600,4,FALSE),0) -> 0 | QN6: =IFERROR(VLOOKUP(QK6,MATCHSELEVES!$Y$14:$AE$600,5,FALSE),0) -> 0 | QO6: =IFERROR(VLOOKUP(QK6,MATCHSELEVES!$Y$14:$AF$600,8,FALSE),0) -> 0 | QP6: =IFERROR(VLOOKUP(QK6,MATCHSELEVES!$Y$14:$AG$600,9,FALSE),0) -> 0 | QQ6: Adgyp_34 | QR6: =IFERROR(VLOOKUP(QQ6,MATCHSELEVES!$Y$14:$AE$600,3,FALSE),0) -> 0 | QS6: =IFERROR(VLOOKUP(QQ6,MATCHSELEVES!$Y$14:$AE$600,4,FALSE),0) -> 0 | QT6: =IFERROR(VLOOKUP(QQ6,MATCHSELEVES!$Y$14:$AE$600,5,FALSE),0) -> 0 | QU6: =IFERROR(VLOOKUP(QQ6,MATCHSELEVES!$Y$14:$AF$600,8,FALSE),0) -> 0 | QV6: =IFERROR(VLOOKUP(QQ6,MATCHSELEVES!$Y$14:$AG$600,9,FALSE),0) -> 0 | QW6: Adgyp_35 | QX6: =IFERROR(VLOOKUP(QW6,MATCHSELEVES!$Y$14:$AE$600,3,FALSE),0) -> 0 | QY6: =IFERROR(VLOOKUP(QW6,MATCHSELEVES!$Y$14:$AE$600,4,FALSE),0) -> 0 | QZ6: =IFERROR(VLOOKUP(QW6,MATCHSELEVES!$Y$14:$AE$600,5,FALSE),0) -> 0 | RA6: =IFERROR(VLOOKUP(QW6,MATCHSELEVES!$Y$14:$AF$600,8,FALSE),0) -> 0 | RB6: =IFERROR(VLOOKUP(QW6,MATCHSELEVES!$Y$14:$AG$600,9,FALSE),0) -> 0 | RC6: Adgyp_36 | RD6: =IFERROR(VLOOKUP(RC6,MATCHSELEVES!$Y$14:$AE$600,3,FALSE),0) -> 0 | RE6: =IFERROR(VLOOKUP(RC6,MATCHSELEVES!$Y$14:$AE$600,4,FALSE),0) -> 0 | RF6: =IFERROR(VLOOKUP(RC6,MATCHSELEVES!$Y$14:$AE$600,5,FALSE),0) -> 0 | RG6: =IFERROR(VLOOKUP(RC6,MATCHSELEVES!$Y$14:$AF$600,8,FALSE),0) -> 0 | RH6: =IFERROR(VLOOKUP(RC6,MATCHSELEVES!$Y$14:$AG$600,9,FALSE),0) -> 0 | RI6: Adgyp_37 | RJ6: =IFERROR(VLOOKUP(RI6,MATCHSELEVES!$Y$14:$AE$600,3,FALSE),0) -> 0 | RK6: =IFERROR(VLOOKUP(RI6,MATCHSELEVES!$Y$14:$AE$600,4,FALSE),0) -> 0 | RL6: =IFERROR(VLOOKUP(RI6,MATCHSELEVES!$Y$14:$AE$600,5,FALSE),0) -> 0 | RM6: =IFERROR(VLOOKUP(RI6,MATCHSELEVES!$Y$14:$AF$600,8,FALSE),0) -> 0 | RN6: =IFERROR(VLOOKUP(RI6,MATCHSELEVES!$Y$14:$AG$600,9,FALSE),0) -> 0 | RO6: Adgyp_38 | RP6: =IFERROR(VLOOKUP(RO6,MATCHSELEVES!$Y$14:$AE$600,3,FALSE),0) -> 0 | RQ6: =IFERROR(VLOOKUP(RO6,MATCHSELEVES!$Y$14:$AE$600,4,FALSE),0) -> 0 | RR6: =IFERROR(VLOOKUP(RO6,MATCHSELEVES!$Y$14:$AE$600,5,FALSE),0) -> 0 | RS6: =IFERROR(VLOOKUP(RO6,MATCHSELEVES!$Y$14:$AF$600,8,FALSE),0) -> 0 | RT6: =IFERROR(VLOOKUP(RO6,MATCHSELEVES!$Y$14:$AG$600,9,FALSE),0) -> 0 | RU6: Adgyp_39 | RV6: =IFERROR(VLOOKUP(RU6,MATCHSELEVES!$Y$14:$AE$600,3,FALSE),0) -> 0 | RW6: =IFERROR(VLOOKUP(RU6,MATCHSELEVES!$Y$14:$AE$600,4,FALSE),0) -> 0 | RX6: =IFERROR(VLOOKUP(RU6,MATCHSELEVES!$Y$14:$AE$600,5,FALSE),0) -> 0 | RY6: =IFERROR(VLOOKUP(RU6,MATCHSELEVES!$Y$14:$AF$600,8,FALSE),0) -> 0 | RZ6: =IFERROR(VLOOKUP(RU6,MATCHSELEVES!$Y$14:$AG$600,9,FALSE),0) -> 0 | SA6: Adgyp_40 | SB6: =IFERROR(VLOOKUP(SA6,MATCHSELEVES!$Y$14:$AE$600,3,FALSE),0) -> 0 | SC6: =IFERROR(VLOOKUP(SA6,MATCHSELEVES!$Y$14:$AE$600,4,FALSE),0) -> 0 | SD6: =IFERROR(VLOOKUP(SA6,MATCHSELEVES!$Y$14:$AE$600,5,FALSE),0) -> 0 | SE6: =IFERROR(VLOOKUP(SA6,MATCHSELEVES!$Y$14:$AF$600,8,FALSE),0) -> 0 | SF6: =IFERROR(VLOOKUP(SA6,MATCHSELEVES!$Y$14:$AG$600,9,FALSE),0) -> 0
A7: 4 | C7: Ayoub | D7: 4 | G7: =COUNTIF(MATCHSELEVES!$Z$14:$Z$600,C7)+COUNTIF(MATCHSELEVES!$Z$14:$Z$600,$C7&"p") -> 0 | H7: 1 | I7: =COUNTIF(MATCHSELEVES!$F$14:$H$249,C7) -> 0 | J7: 1 | K7: 0 | L7: 1 | M7: =IFERROR(M50/Tableau10[[#This Row],[Nombre de matchs joués]],0) -> 0 | N7: =IF(Tableau10[[#This Row],[Nombre de points encaissés]]=0,$C$45,SUMPRODUCT((M$4:M$43<M7)*(M$4:M$43<>0))+1) -> 40 | O7: 0 | P7: 1 | Q7: =(Tableau10[[#This Row],[CLASSEMENT1]]+Tableau10[[#This Row],[CLASSEMENT2]]+Tableau10[[#This Row],[CLASSEMENT3]]+Tableau10[[#This Row],[CLASSEMENT4]]+Tableau10[[#This Row],[CLASSEMENT5]]+Tableau10[[#This Row],[CLASSEMENT6]])/6 -> 8 | R7: =RANK(Tableau10[[#This Row],[MOYENNE CLASSEMENTS]],Tableau10[MOYENNE CLASSEMENTS],1) -> 4 | T7: =Tableau10[[#This Row],[CLASSEMENT1]] -> 4 | U7: Ayoub_1 | V7: =IFERROR(VLOOKUP(U7,MATCHSELEVES!$Y$14:$AE$600,3,FALSE),0) -> 0 | W7: =IFERROR(VLOOKUP(U7,MATCHSELEVES!$Y$14:$AE$600,4,FALSE),0) -> 0 | X7: =IFERROR(VLOOKUP(U7,MATCHSELEVES!$Y$14:$AE$600,5,FALSE),0) -> 0 | Y7: =IFERROR(VLOOKUP(U7,MATCHSELEVES!$Y$14:$AF$600,8,FALSE),0) -> 0 | Z7: =IFERROR(VLOOKUP(U7,MATCHSELEVES!$Y$14:$AG$600,9,FALSE),0) -> 0 | AA7: Ayoub_2 | AB7: =IFERROR(VLOOKUP(AA7,MATCHSELEVES!$Y$14:$AE$600,3,FALSE),0) -> 0 | AC7: =IFERROR(VLOOKUP(AA7,MATCHSELEVES!$Y$14:$AE$600,4,FALSE),0) -> 0 | AD7: =IFERROR(VLOOKUP(AA7,MATCHSELEVES!$Y$14:$AE$600,5,FALSE),0) -> 0 | AE7: =IFERROR(VLOOKUP(AA7,MATCHSELEVES!$Y$14:$AF$600,8,FALSE),0) -> 0 | AF7: =IFERROR(VLOOKUP(AA7,MATCHSELEVES!$Y$14:$AG$600,9,FALSE),0) -> 0 | AG7: Ayoub_3 | AH7: =IFERROR(VLOOKUP(AG7,MATCHSELEVES!$Y$14:$AE$600,3,FALSE),0) -> 0 | AI7: =IFERROR(VLOOKUP(AG7,MATCHSELEVES!$Y$14:$AE$600,4,FALSE),0) -> 0 | AJ7: =IFERROR(VLOOKUP(AG7,MATCHSELEVES!$Y$14:$AE$600,5,FALSE),0) -> 0 | AK7: =IFERROR(VLOOKUP(AG7,MATCHSELEVES!$Y$14:$AF$600,8,FALSE),0) -> 0 | AL7: =IFERROR(VLOOKUP(AG7,MATCHSELEVES!$Y$14:$AG$600,9,FALSE),0) -> 0 | AM7: Ayoub_4 | AN7: =IFERROR(VLOOKUP(AM7,MATCHSELEVES!$Y$14:$AE$600,3,FALSE),0) -> 0 | AO7: =IFERROR(VLOOKUP(AM7,MATCHSELEVES!$Y$14:$AE$600,4,FALSE),0) -> 0 | AP7: =IFERROR(VLOOKUP(AM7,MATCHSELEVES!$Y$14:$AE$600,5,FALSE),0) -> 0 | AQ7: =IFERROR(VLOOKUP(AM7,MATCHSELEVES!$Y$14:$AF$600,8,FALSE),0) -> 0 | AR7: =IFERROR(VLOOKUP(AM7,MATCHSELEVES!$Y$14:$AG$600,9,FALSE),0) -> 0 | AS7: Ayoub_5 | AT7: =IFERROR(VLOOKUP(AS7,MATCHSELEVES!$Y$14:$AE$600,3,FALSE),0) -> 0 | AU7: =IFERROR(VLOOKUP(AS7,MATCHSELEVES!$Y$14:$AE$600,4,FALSE),0) -> 0 | AV7: =IFERROR(VLOOKUP(AS7,MATCHSELEVES!$Y$14:$AE$600,5,FALSE),0) -> 0 | AW7: =IFERROR(VLOOKUP(AS7,MATCHSELEVES!$Y$14:$AF$600,8,FALSE),0) -> 0 | AX7: =IFERROR(VLOOKUP(AS7,MATCHSELEVES!$Y$14:$AG$600,9,FALSE),0) -> 0 | AY7: Ayoub_6 | AZ7: =IFERROR(VLOOKUP(AY7,MATCHSELEVES!$Y$14:$AE$600,3,FALSE),0) -> 0 | BA7: =IFERROR(VLOOKUP(AY7,MATCHSELEVES!$Y$14:$AE$600,4,FALSE),0) -> 0 | BB7: =IFERROR(VLOOKUP(AY7,MATCHSELEVES!$Y$14:$AE$600,5,FALSE),0) -> 0 | BC7: =IFERROR(VLOOKUP(AY7,MATCHSELEVES!$Y$14:$AF$600,8,FALSE),0) -> 0 | BD7: =IFERROR(VLOOKUP(AY7,MATCHSELEVES!$Y$14:$AG$600,9,FALSE),0) -> 0 | BE7: Ayoub_7 | BF7: =IFERROR(VLOOKUP(BE7,MATCHSELEVES!$Y$14:$AE$600,3,FALSE),0) -> 0 | BG7: =IFERROR(VLOOKUP(BE7,MATCHSELEVES!$Y$14:$AE$600,4,FALSE),0) -> 0 | BH7: =IFERROR(VLOOKUP(BE7,MATCHSELEVES!$Y$14:$AE$600,5,FALSE),0) -> 0 | BI7: =IFERROR(VLOOKUP(BE7,MATCHSELEVES!$Y$14:$AF$600,8,FALSE),0) -> 0 | BJ7: =IFERROR(VLOOKUP(BE7,MATCHSELEVES!$Y$14:$AG$600,9,FALSE),0) -> 0 | BK7: Ayoub_8 | BL7: =IFERROR(VLOOKUP(BK7,MATCHSELEVES!$Y$14:$AE$600,3,FALSE),0) -> 0 | BM7: =IFERROR(VLOOKUP(BK7,MATCHSELEVES!$Y$14:$AE$600,4,FALSE),0) -> 0 | BN7: =IFERROR(VLOOKUP(BK7,MATCHSELEVES!$Y$14:$AE$600,5,FALSE),0) -> 0 | BO7: =IFERROR(VLOOKUP(BK7,MATCHSELEVES!$Y$14:$AF$600,8,FALSE),0) -> 0 | BP7: =IFERROR(VLOOKUP(BK7,MATCHSELEVES!$Y$14:$AG$600,9,FALSE),0) -> 0 | BQ7: Ayoub_9 | BR7: =IFERROR(VLOOKUP(BQ7,MATCHSELEVES!$Y$14:$AE$600,3,FALSE),0) -> 0 | BS7: =IFERROR(VLOOKUP(BQ7,MATCHSELEVES!$Y$14:$AE$600,4,FALSE),0) -> 0 | BT7: =IFERROR(VLOOKUP(BQ7,MATCHSELEVES!$Y$14:$AE$600,5,FALSE),0) -> 0 | BU7: =IFERROR(VLOOKUP(BQ7,MATCHSELEVES!$Y$14:$AF$600,8,FALSE),0) -> 0 | BV7: =IFERROR(VLOOKUP(BQ7,MATCHSELEVES!$Y$14:$AG$600,9,FALSE),0) -> 0 | BW7: Ayoub_10 | BX7: =IFERROR(VLOOKUP(BW7,MATCHSELEVES!$Y$14:$AE$600,3,FALSE),0) -> 0 | BY7: =IFERROR(VLOOKUP(BW7,MATCHSELEVES!$Y$14:$AE$600,4,FALSE),0) -> 0 | BZ7: =IFERROR(VLOOKUP(BW7,MATCHSELEVES!$Y$14:$AE$600,5,FALSE),0) -> 0 | CA7: =IFERROR(VLOOKUP(BW7,MATCHSELEVES!$Y$14:$AF$600,8,FALSE),0) -> 0 | CB7: =IFERROR(VLOOKUP(BW7,MATCHSELEVES!$Y$14:$AG$600,9,FALSE),0) -> 0 | CC7: Ayoub_11 | CD7: =IFERROR(VLOOKUP(CC7,MATCHSELEVES!$Y$14:$AE$600,3,FALSE),0) -> 0 | CE7: =IFERROR(VLOOKUP(CC7,MATCHSELEVES!$Y$14:$AE$600,4,FALSE),0) -> 0 | CF7: =IFERROR(VLOOKUP(CC7,MATCHSELEVES!$Y$14:$AE$600,5,FALSE),0) -> 0 | CG7: =IFERROR(VLOOKUP(CC7,MATCHSELEVES!$Y$14:$AF$600,8,FALSE),0) -> 0 | CH7: =IFERROR(VLOOKUP(CC7,MATCHSELEVES!$Y$14:$AG$600,9,FALSE),0) -> 0 | CI7: Ayoub_12 | CJ7: =IFERROR(VLOOKUP(CI7,MATCHSELEVES!$Y$14:$AE$600,3,FALSE),0) -> 0 | CK7: =IFERROR(VLOOKUP(CI7,MATCHSELEVES!$Y$14:$AE$600,4,FALSE),0) -> 0 | CL7: =IFERROR(VLOOKUP(CI7,MATCHSELEVES!$Y$14:$AE$600,5,FALSE),0) -> 0 | CM7: =IFERROR(VLOOKUP(CI7,MATCHSELEVES!$Y$14:$AF$600,8,FALSE),0) -> 0 | CN7: =IFERROR(VLOOKUP(CI7,MATCHSELEVES!$Y$14:$AG$600,9,FALSE),0) -> 0 | CO7: Ayoub_13 | CP7: =IFERROR(VLOOKUP(CO7,MATCHSELEVES!$Y$14:$AE$600,3,FALSE),0) -> 0 | CQ7: =IFERROR(VLOOKUP(CO7,MATCHSELEVES!$Y$14:$AE$600,4,FALSE),0) -> 0 | CR7: =IFERROR(VLOOKUP(CO7,MATCHSELEVES!$Y$14:$AE$600,5,FALSE),0) -> 0 | CS7: =IFERROR(VLOOKUP(CO7,MATCHSELEVES!$Y$14:$AF$600,8,FALSE),0) -> 0 | CT7: =IFERROR(VLOOKUP(CO7,MATCHSELEVES!$Y$14:$AG$600,9,FALSE),0) -> 0 | CU7: Ayoub_14 | CV7: =IFERROR(VLOOKUP(CU7,MATCHSELEVES!$Y$14:$AE$600,3,FALSE),0) -> 0 | CW7: =IFERROR(VLOOKUP(CU7,MATCHSELEVES!$Y$14:$AE$600,4,FALSE),0) -> 0 | CX7: =IFERROR(VLOOKUP(CU7,MATCHSELEVES!$Y$14:$AE$600,5,FALSE),0) -> 0 | CY7: =IFERROR(VLOOKUP(CU7,MATCHSELEVES!$Y$14:$AF$600,8,FALSE),0) -> 0 | CZ7: =IFERROR(VLOOKUP(CU7,MATCHSELEVES!$Y$14:$AG$600,9,FALSE),0) -> 0 | DA7: Ayoub_15 | DB7: =IFERROR(VLOOKUP(DA7,MATCHSELEVES!$Y$14:$AE$600,3,FALSE),0) -> 0 | DC7: =IFERROR(VLOOKUP(DA7,MATCHSELEVES!$Y$14:$AE$600,4,FALSE),0) -> 0 | DD7: =IFERROR(VLOOKUP(DA7,MATCHSELEVES!$Y$14:$AE$600,5,FALSE),0) -> 0 | DE7: =IFERROR(VLOOKUP(DA7,MATCHSELEVES!$Y$14:$AF$600,8,FALSE),0) -> 0 | DF7: =IFERROR(VLOOKUP(DA7,MATCHSELEVES!$Y$14:$AG$600,9,FALSE),0) -> 0 | DG7: Ayoub_16 | DH7: =IFERROR(VLOOKUP(DG7,MATCHSELEVES!$Y$14:$AE$600,3,FALSE),0) -> 0 | DI7: =IFERROR(VLOOKUP(DG7,MATCHSELEVES!$Y$14:$AE$600,4,FALSE),0) -> 0 | DJ7: =IFERROR(VLOOKUP(DG7,MATCHSELEVES!$Y$14:$AE$600,5,FALSE),0) -> 0 | DK7: =IFERROR(VLOOKUP(DG7,MATCHSELEVES!$Y$14:$AF$600,8,FALSE),0) -> 0 | DL7: =IFERROR(VLOOKUP(DG7,MATCHSELEVES!$Y$14:$AG$600,9,FALSE),0) -> 0 | DM7: Ayoub_17 | DN7: =IFERROR(VLOOKUP(DM7,MATCHSELEVES!$Y$14:$AE$600,3,FALSE),0) -> 0 | DO7: =IFERROR(VLOOKUP(DM7,MATCHSELEVES!$Y$14:$AE$600,4,FALSE),0) -> 0 | DP7: =IFERROR(VLOOKUP(DM7,MATCHSELEVES!$Y$14:$AE$600,5,FALSE),0) -> 0 | DQ7: =IFERROR(VLOOKUP(DM7,MATCHSELEVES!$Y$14:$AF$600,8,FALSE),0) -> 0 | DR7: =IFERROR(VLOOKUP(DM7,MATCHSELEVES!$Y$14:$AG$600,9,FALSE),0) -> 0 | DS7: Ayoub_18 | DT7: =IFERROR(VLOOKUP(DS7,MATCHSELEVES!$Y$14:$AE$600,3,FALSE),0) -> 0 | DU7: =IFERROR(VLOOKUP(DS7,MATCHSELEVES!$Y$14:$AE$600,4,FALSE),0) -> 0 | DV7: =IFERROR(VLOOKUP(DS7,MATCHSELEVES!$Y$14:$AE$600,5,FALSE),0) -> 0 | DW7: =IFERROR(VLOOKUP(DS7,MATCHSELEVES!$Y$14:$AF$600,8,FALSE),0) -> 0 | DX7: =IFERROR(VLOOKUP(DS7,MATCHSELEVES!$Y$14:$AG$600,9,FALSE),0) -> 0 | DY7: Ayoub_19 | DZ7: =IFERROR(VLOOKUP(DY7,MATCHSELEVES!$Y$14:$AE$600,3,FALSE),0) -> 0 | EA7: =IFERROR(VLOOKUP(DY7,MATCHSELEVES!$Y$14:$AE$600,4,FALSE),0) -> 0 | EB7: =IFERROR(VLOOKUP(DY7,MATCHSELEVES!$Y$14:$AE$600,5,FALSE),0) -> 0 | EC7: =IFERROR(VLOOKUP(DY7,MATCHSELEVES!$Y$14:$AF$600,8,FALSE),0) -> 0 | ED7: =IFERROR(VLOOKUP(DY7,MATCHSELEVES!$Y$14:$AG$600,9,FALSE),0) -> 0 | EE7: Ayoub_20 | EF7: =IFERROR(VLOOKUP(EE7,MATCHSELEVES!$Y$14:$AE$600,3,FALSE),0) -> 0 | EG7: =IFERROR(VLOOKUP(EE7,MATCHSELEVES!$Y$14:$AE$600,4,FALSE),0) -> 0 | EH7: =IFERROR(VLOOKUP(EE7,MATCHSELEVES!$Y$14:$AE$600,5,FALSE),0) -> 0 | EI7: =IFERROR(VLOOKUP(EE7,MATCHSELEVES!$Y$14:$AF$600,8,FALSE),0) -> 0 | EJ7: =IFERROR(VLOOKUP(EE7,MATCHSELEVES!$Y$14:$AG$600,9,FALSE),0) -> 0 | EK7: Ayoub_21 | EL7: =IFERROR(VLOOKUP(EK7,MATCHSELEVES!$Y$14:$AE$600,3,FALSE),0) -> 0 | EM7: =IFERROR(VLOOKUP(EK7,MATCHSELEVES!$Y$14:$AE$600,4,FALSE),0) -> 0 | EN7: =IFERROR(VLOOKUP(EK7,MATCHSELEVES!$Y$14:$AE$600,5,FALSE),0) -> 0 | EO7: =IFERROR(VLOOKUP(EK7,MATCHSELEVES!$Y$14:$AF$600,8,FALSE),0) -> 0 | EP7: =IFERROR(VLOOKUP(EK7,MATCHSELEVES!$Y$14:$AG$600,9,FALSE),0) -> 0 | EQ7: Ayoub_22 | ER7: =IFERROR(VLOOKUP(EQ7,MATCHSELEVES!$Y$14:$AE$600,3,FALSE),0) -> 0 | ES7: =IFERROR(VLOOKUP(EQ7,MATCHSELEVES!$Y$14:$AE$600,4,FALSE),0) -> 0 | ET7: =IFERROR(VLOOKUP(EQ7,MATCHSELEVES!$Y$14:$AE$600,5,FALSE),0) -> 0 | EU7: =IFERROR(VLOOKUP(EQ7,MATCHSELEVES!$Y$14:$AF$600,8,FALSE),0) -> 0 | EV7: =IFERROR(VLOOKUP(EQ7,MATCHSELEVES!$Y$14:$AG$600,9,FALSE),0) -> 0 | EW7: Ayoub_23 | EX7: =IFERROR(VLOOKUP(EW7,MATCHSELEVES!$Y$14:$AE$600,3,FALSE),0) -> 0 | EY7: =IFERROR(VLOOKUP(EW7,MATCHSELEVES!$Y$14:$AE$600,4,FALSE),0) -> 0 | EZ7: =IFERROR(VLOOKUP(EW7,MATCHSELEVES!$Y$14:$AE$600,5,FALSE),0) -> 0 | FA7: =IFERROR(VLOOKUP(EW7,MATCHSELEVES!$Y$14:$AF$600,8,FALSE),0) -> 0 | FB7: =IFERROR(VLOOKUP(EW7,MATCHSELEVES!$Y$14:$AG$600,9,FALSE),0) -> 0 | FC7: Ayoub_24 | FD7: =IFERROR(VLOOKUP(FC7,MATCHSELEVES!$Y$14:$AE$600,3,FALSE),0) -> 0 | FE7: =IFERROR(VLOOKUP(FC7,MATCHSELEVES!$Y$14:$AE$600,4,FALSE),0) -> 0 | FF7: =IFERROR(VLOOKUP(FC7,MATCHSELEVES!$Y$14:$AE$600,5,FALSE),0) -> 0 | FG7: =IFERROR(VLOOKUP(FC7,MATCHSELEVES!$Y$14:$AF$600,8,FALSE),0) -> 0 | FH7: =IFERROR(VLOOKUP(FC7,MATCHSELEVES!$Y$14:$AG$600,9,FALSE),0) -> 0 | FI7: Ayoub_25 | FJ7: =IFERROR(VLOOKUP(FI7,MATCHSELEVES!$Y$14:$AE$600,3,FALSE),0) -> 0 | FK7: =IFERROR(VLOOKUP(FI7,MATCHSELEVES!$Y$14:$AE$600,4,FALSE),0) -> 0 | FL7: =IFERROR(VLOOKUP(FI7,MATCHSELEVES!$Y$14:$AE$600,5,FALSE),0) -> 0 | FM7: =IFERROR(VLOOKUP(FI7,MATCHSELEVES!$Y$14:$AF$600,8,FALSE),0) -> 0 | FN7: =IFERROR(VLOOKUP(FI7,MATCHSELEVES!$Y$14:$AG$600,9,FALSE),0) -> 0 | FO7: Ayoub_26 | FP7: =IFERROR(VLOOKUP(FO7,MATCHSELEVES!$Y$14:$AE$600,3,FALSE),0) -> 0 | FQ7: =IFERROR(VLOOKUP(FO7,MATCHSELEVES!$Y$14:$AE$600,4,FALSE),0) -> 0 | FR7: =IFERROR(VLOOKUP(FO7,MATCHSELEVES!$Y$14:$AE$600,5,FALSE),0) -> 0 | FS7: =IFERROR(VLOOKUP(FO7,MATCHSELEVES!$Y$14:$AF$600,8,FALSE),0) -> 0 | FT7: =IFERROR(VLOOKUP(FO7,MATCHSELEVES!$Y$14:$AG$600,9,FALSE),0) -> 0 | FU7: Ayoub_27 | FV7: =IFERROR(VLOOKUP(FU7,MATCHSELEVES!$Y$14:$AE$600,3,FALSE),0) -> 0 | FW7: =IFERROR(VLOOKUP(FU7,MATCHSELEVES!$Y$14:$AE$600,4,FALSE),0) -> 0 | FX7: =IFERROR(VLOOKUP(FU7,MATCHSELEVES!$Y$14:$AE$600,5,FALSE),0) -> 0 | FY7: =IFERROR(VLOOKUP(FU7,MATCHSELEVES!$Y$14:$AF$600,8,FALSE),0) -> 0 | FZ7: =IFERROR(VLOOKUP(FU7,MATCHSELEVES!$Y$14:$AG$600,9,FALSE),0) -> 0 | GA7: Ayoub_28 | GB7: =IFERROR(VLOOKUP(GA7,MATCHSELEVES!$Y$14:$AE$600,3,FALSE),0) -> 0 | GC7: =IFERROR(VLOOKUP(GA7,MATCHSELEVES!$Y$14:$AE$600,4,FALSE),0) -> 0 | GD7: =IFERROR(VLOOKUP(GA7,MATCHSELEVES!$Y$14:$AE$600,5,FALSE),0) -> 0 | GE7: =IFERROR(VLOOKUP(GA7,MATCHSELEVES!$Y$14:$AF$600,8,FALSE),0) -> 0 | GF7: =IFERROR(VLOOKUP(GA7,MATCHSELEVES!$Y$14:$AG$600,9,FALSE),0) -> 0 | GG7: Ayoub_29 | GH7: =IFERROR(VLOOKUP(GG7,MATCHSELEVES!$Y$14:$AE$600,3,FALSE),0) -> 0 | GI7: =IFERROR(VLOOKUP(GG7,MATCHSELEVES!$Y$14:$AE$600,4,FALSE),0) -> 0 | GJ7: =IFERROR(VLOOKUP(GG7,MATCHSELEVES!$Y$14:$AE$600,5,FALSE),0) -> 0 | GK7: =IFERROR(VLOOKUP(GG7,MATCHSELEVES!$Y$14:$AF$600,8,FALSE),0) -> 0 | GL7: =IFERROR(VLOOKUP(GG7,MATCHSELEVES!$Y$14:$AG$600,9,FALSE),0) -> 0 | GM7: Ayoub_30 | GN7: =IFERROR(VLOOKUP(GM7,MATCHSELEVES!$Y$14:$AE$600,3,FALSE),0) -> 0 | GO7: =IFERROR(VLOOKUP(GM7,MATCHSELEVES!$Y$14:$AE$600,4,FALSE),0) -> 0 | GP7: =IFERROR(VLOOKUP(GM7,MATCHSELEVES!$Y$14:$AE$600,5,FALSE),0) -> 0 | GQ7: =IFERROR(VLOOKUP(GM7,MATCHSELEVES!$Y$14:$AF$600,8,FALSE),0) -> 0 | GR7: =IFERROR(VLOOKUP(GM7,MATCHSELEVES!$Y$14:$AG$600,9,FALSE),0) -> 0 | GS7: Ayoub_31 | GT7: =IFERROR(VLOOKUP(GS7,MATCHSELEVES!$Y$14:$AE$600,3,FALSE),0) -> 0 | GU7: =IFERROR(VLOOKUP(GS7,MATCHSELEVES!$Y$14:$AE$600,4,FALSE),0) -> 0 | GV7: =IFERROR(VLOOKUP(GS7,MATCHSELEVES!$Y$14:$AE$600,5,FALSE),0) -> 0 | GW7: =IFERROR(VLOOKUP(GS7,MATCHSELEVES!$Y$14:$AF$600,8,FALSE),0) -> 0 | GX7: =IFERROR(VLOOKUP(GS7,MATCHSELEVES!$Y$14:$AG$600,9,FALSE),0) -> 0 | GY7: Ayoub_32 | GZ7: =IFERROR(VLOOKUP(GY7,MATCHSELEVES!$Y$14:$AE$600,3,FALSE),0) -> 0 | HA7: =IFERROR(VLOOKUP(GY7,MATCHSELEVES!$Y$14:$AE$600,4,FALSE),0) -> 0 | HB7: =IFERROR(VLOOKUP(GY7,MATCHSELEVES!$Y$14:$AE$600,5,FALSE),0) -> 0 | HC7: =IFERROR(VLOOKUP(GY7,MATCHSELEVES!$Y$14:$AF$600,8,FALSE),0) -> 0 | HD7: =IFERROR(VLOOKUP(GY7,MATCHSELEVES!$Y$14:$AG$600,9,FALSE),0) -> 0 | HE7: Ayoub_33 | HF7: =IFERROR(VLOOKUP(HE7,MATCHSELEVES!$Y$14:$AE$600,3,FALSE),0) -> 0 | HG7: =IFERROR(VLOOKUP(HE7,MATCHSELEVES!$Y$14:$AE$600,4,FALSE),0) -> 0 | HH7: =IFERROR(VLOOKUP(HE7,MATCHSELEVES!$Y$14:$AE$600,5,FALSE),0) -> 0 | HI7: =IFERROR(VLOOKUP(HE7,MATCHSELEVES!$Y$14:$AF$600,8,FALSE),0) -> 0 | HJ7: =IFERROR(VLOOKUP(HE7,MATCHSELEVES!$Y$14:$AG$600,9,FALSE),0) -> 0 | HK7: Ayoub_34 | HL7: =IFERROR(VLOOKUP(HK7,MATCHSELEVES!$Y$14:$AE$600,3,FALSE),0) -> 0 | HM7: =IFERROR(VLOOKUP(HK7,MATCHSELEVES!$Y$14:$AE$600,4,FALSE),0) -> 0 | HN7: =IFERROR(VLOOKUP(HK7,MATCHSELEVES!$Y$14:$AE$600,5,FALSE),0) -> 0 | HO7: =IFERROR(VLOOKUP(HK7,MATCHSELEVES!$Y$14:$AF$600,8,FALSE),0) -> 0 | HP7: =IFERROR(VLOOKUP(HK7,MATCHSELEVES!$Y$14:$AG$600,9,FALSE),0) -> 0 | HQ7: Ayoub_35 | HR7: =IFERROR(VLOOKUP(HQ7,MATCHSELEVES!$Y$14:$AE$600,3,FALSE),0) -> 0 | HS7: =IFERROR(VLOOKUP(HQ7,MATCHSELEVES!$Y$14:$AE$600,4,FALSE),0) -> 0 | HT7: =IFERROR(VLOOKUP(HQ7,MATCHSELEVES!$Y$14:$AE$600,5,FALSE),0) -> 0 | HU7: =IFERROR(VLOOKUP(HQ7,MATCHSELEVES!$Y$14:$AF$600,8,FALSE),0) -> 0 | HV7: =IFERROR(VLOOKUP(HQ7,MATCHSELEVES!$Y$14:$AG$600,9,FALSE),0) -> 0 | HW7: Ayoub_36 | HX7: =IFERROR(VLOOKUP(HW7,MATCHSELEVES!$Y$14:$AE$600,3,FALSE),0) -> 0 | HY7: =IFERROR(VLOOKUP(HW7,MATCHSELEVES!$Y$14:$AE$600,4,FALSE),0) -> 0 | HZ7: =IFERROR(VLOOKUP(HW7,MATCHSELEVES!$Y$14:$AE$600,5,FALSE),0) -> 0 | IA7: =IFERROR(VLOOKUP(HW7,MATCHSELEVES!$Y$14:$AF$600,8,FALSE),0) -> 0 | IB7: =IFERROR(VLOOKUP(HW7,MATCHSELEVES!$Y$14:$AG$600,9,FALSE),0) -> 0 | IC7: Ayoub_37 | ID7: =IFERROR(VLOOKUP(IC7,MATCHSELEVES!$Y$14:$AE$600,3,FALSE),0) -> 0 | IE7: =IFERROR(VLOOKUP(IC7,MATCHSELEVES!$Y$14:$AE$600,4,FALSE),0) -> 0 | IF7: =IFERROR(VLOOKUP(IC7,MATCHSELEVES!$Y$14:$AE$600,5,FALSE),0) -> 0 | IG7: =IFERROR(VLOOKUP(IC7,MATCHSELEVES!$Y$14:$AF$600,8,FALSE),0) -> 0 | IH7: =IFERROR(VLOOKUP(IC7,MATCHSELEVES!$Y$14:$AG$600,9,FALSE),0) -> 0 | II7: Ayoub_38 | IJ7: =IFERROR(VLOOKUP(II7,MATCHSELEVES!$Y$14:$AE$600,3,FALSE),0) -> 0 | IK7: =IFERROR(VLOOKUP(II7,MATCHSELEVES!$Y$14:$AE$600,4,FALSE),0) -> 0 | IL7: =IFERROR(VLOOKUP(II7,MATCHSELEVES!$Y$14:$AE$600,5,FALSE),0) -> 0 | IM7: =IFERROR(VLOOKUP(II7,MATCHSELEVES!$Y$14:$AF$600,8,FALSE),0) -> 0 | IN7: =IFERROR(VLOOKUP(II7,MATCHSELEVES!$Y$14:$AG$600,9,FALSE),0) -> 0 | IO7: Ayoub_39 | IP7: =IFERROR(VLOOKUP(IO7,MATCHSELEVES!$Y$14:$AE$600,3,FALSE),0) -> 0 | IQ7: =IFERROR(VLOOKUP(IO7,MATCHSELEVES!$Y$14:$AE$600,4,FALSE),0) -> 0 | IR7: =IFERROR(VLOOKUP(IO7,MATCHSELEVES!$Y$14:$AE$600,5,FALSE),0) -> 0 | IS7: =IFERROR(VLOOKUP(IO7,MATCHSELEVES!$Y$14:$AF$600,8,FALSE),0) -> 0 | IT7: =IFERROR(VLOOKUP(IO7,MATCHSELEVES!$Y$14:$AG$600,9,FALSE),0) -> 0 | IU7: Ayoub_40 | IV7: =IFERROR(VLOOKUP(IU7,MATCHSELEVES!$Y$14:$AE$600,3,FALSE),0) -> 0 | IW7: =IFERROR(VLOOKUP(IU7,MATCHSELEVES!$Y$14:$AE$600,4,FALSE),0) -> 0 | IX7: =IFERROR(VLOOKUP(IU7,MATCHSELEVES!$Y$14:$AE$600,5,FALSE),0) -> 0 | IY7: =IFERROR(VLOOKUP(IU7,MATCHSELEVES!$Y$14:$AF$600,8,FALSE),0) -> 0 | IZ7: =IFERROR(VLOOKUP(IU7,MATCHSELEVES!$Y$14:$AG$600,9,FALSE),0) -> 0 | JA7: Ayoubp_1 | JB7: =IFERROR(VLOOKUP(JA7,MATCHSELEVES!$Y$14:$AE$600,3,FALSE),0) -> 0 | JC7: =IFERROR(VLOOKUP(JA7,MATCHSELEVES!$Y$14:$AE$600,4,FALSE),0) -> 0 | JD7: =IFERROR(VLOOKUP(JA7,MATCHSELEVES!$Y$14:$AE$600,5,FALSE),0) -> 0 | JE7: =IFERROR(VLOOKUP(JA7,MATCHSELEVES!$Y$14:$AF$600,8,FALSE),0) -> 0 | JF7: =IFERROR(VLOOKUP(JA7,MATCHSELEVES!$Y$14:$AG$600,9,FALSE),0) -> 0 | JG7: Ayoubp_2 | JH7: =IFERROR(VLOOKUP(JG7,MATCHSELEVES!$Y$14:$AE$600,3,FALSE),0) -> 0 | JI7: =IFERROR(VLOOKUP(JG7,MATCHSELEVES!$Y$14:$AE$600,4,FALSE),0) -> 0 | JJ7: =IFERROR(VLOOKUP(JG7,MATCHSELEVES!$Y$14:$AE$600,5,FALSE),0) -> 0 | JK7: =IFERROR(VLOOKUP(JG7,MATCHSELEVES!$Y$14:$AF$600,8,FALSE),0) -> 0 | JL7: =IFERROR(VLOOKUP(JG7,MATCHSELEVES!$Y$14:$AG$600,9,FALSE),0) -> 0 | JM7: Ayoubp_3 | JN7: =IFERROR(VLOOKUP(JM7,MATCHSELEVES!$Y$14:$AE$600,3,FALSE),0) -> 0 | JO7: =IFERROR(VLOOKUP(JM7,MATCHSELEVES!$Y$14:$AE$600,4,FALSE),0) -> 0 | JP7: =IFERROR(VLOOKUP(JM7,MATCHSELEVES!$Y$14:$AE$600,5,FALSE),0) -> 0 | JQ7: =IFERROR(VLOOKUP(JM7,MATCHSELEVES!$Y$14:$AF$600,8,FALSE),0) -> 0 | JR7: =IFERROR(VLOOKUP(JM7,MATCHSELEVES!$Y$14:$AG$600,9,FALSE),0) -> 0 | JS7: Ayoubp_4 | JT7: =IFERROR(VLOOKUP(JS7,MATCHSELEVES!$Y$14:$AE$600,3,FALSE),0) -> 0 | JU7: =IFERROR(VLOOKUP(JS7,MATCHSELEVES!$Y$14:$AE$600,4,FALSE),0) -> 0 | JV7: =IFERROR(VLOOKUP(JS7,MATCHSELEVES!$Y$14:$AE$600,5,FALSE),0) -> 0 | JW7: =IFERROR(VLOOKUP(JS7,MATCHSELEVES!$Y$14:$AF$600,8,FALSE),0) -> 0 | JX7: =IFERROR(VLOOKUP(JS7,MATCHSELEVES!$Y$14:$AG$600,9,FALSE),0) -> 0 | JY7: Ayoubp_5 | JZ7: =IFERROR(VLOOKUP(JY7,MATCHSELEVES!$Y$14:$AE$600,3,FALSE),0) -> 0 | KA7: =IFERROR(VLOOKUP(JY7,MATCHSELEVES!$Y$14:$AE$600,4,FALSE),0) -> 0 | KB7: =IFERROR(VLOOKUP(JY7,MATCHSELEVES!$Y$14:$AE$600,5,FALSE),0) -> 0 | KC7: =IFERROR(VLOOKUP(JY7,MATCHSELEVES!$Y$14:$AF$600,8,FALSE),0) -> 0 | KD7: =IFERROR(VLOOKUP(JY7,MATCHSELEVES!$Y$14:$AG$600,9,FALSE),0) -> 0 | KE7: Ayoubp_6 | KF7: =IFERROR(VLOOKUP(KE7,MATCHSELEVES!$Y$14:$AE$600,3,FALSE),0) -> 0 | KG7: =IFERROR(VLOOKUP(KE7,MATCHSELEVES!$Y$14:$AE$600,4,FALSE),0) -> 0 | KH7: =IFERROR(VLOOKUP(KE7,MATCHSELEVES!$Y$14:$AE$600,5,FALSE),0) -> 0 | KI7: =IFERROR(VLOOKUP(KE7,MATCHSELEVES!$Y$14:$AF$600,8,FALSE),0) -> 0 | KJ7: =IFERROR(VLOOKUP(KE7,MATCHSELEVES!$Y$14:$AG$600,9,FALSE),0) -> 0 | KK7: Ayoubp_7 | KL7: =IFERROR(VLOOKUP(KK7,MATCHSELEVES!$Y$14:$AE$600,3,FALSE),0) -> 0 | KM7: =IFERROR(VLOOKUP(KK7,MATCHSELEVES!$Y$14:$AE$600,4,FALSE),0) -> 0 | KN7: =IFERROR(VLOOKUP(KK7,MATCHSELEVES!$Y$14:$AE$600,5,FALSE),0) -> 0 | KO7: =IFERROR(VLOOKUP(KK7,MATCHSELEVES!$Y$14:$AF$600,8,FALSE),0) -> 0 | KP7: =IFERROR(VLOOKUP(KK7,MATCHSELEVES!$Y$14:$AG$600,9,FALSE),0) -> 0 | KQ7: Ayoubp_8 | KR7: =IFERROR(VLOOKUP(KQ7,MATCHSELEVES!$Y$14:$AE$600,3,FALSE),0) -> 0 | KS7: =IFERROR(VLOOKUP(KQ7,MATCHSELEVES!$Y$14:$AE$600,4,FALSE),0) -> 0 | KT7: =IFERROR(VLOOKUP(KQ7,MATCHSELEVES!$Y$14:$AE$600,5,FALSE),0) -> 0 | KU7: =IFERROR(VLOOKUP(KQ7,MATCHSELEVES!$Y$14:$AF$600,8,FALSE),0) -> 0 | KV7: =IFERROR(VLOOKUP(KQ7,MATCHSELEVES!$Y$14:$AG$600,9,FALSE),0) -> 0 | KW7: Ayoubp_9 | KX7: =IFERROR(VLOOKUP(KW7,MATCHSELEVES!$Y$14:$AE$600,3,FALSE),0) -> 0 | KY7: =IFERROR(VLOOKUP(KW7,MATCHSELEVES!$Y$14:$AE$600,4,FALSE),0) -> 0 | KZ7: =IFERROR(VLOOKUP(KW7,MATCHSELEVES!$Y$14:$AE$600,5,FALSE),0) -> 0 | LA7: =IFERROR(VLOOKUP(KW7,MATCHSELEVES!$Y$14:$AF$600,8,FALSE),0) -> 0 | LB7: =IFERROR(VLOOKUP(KW7,MATCHSELEVES!$Y$14:$AG$600,9,FALSE),0) -> 0 | LC7: Ayoubp_10 | LD7: =IFERROR(VLOOKUP(LC7,MATCHSELEVES!$Y$14:$AE$600,3,FALSE),0) -> 0 | LE7: =IFERROR(VLOOKUP(LC7,MATCHSELEVES!$Y$14:$AE$600,4,FALSE),0) -> 0 | LF7: =IFERROR(VLOOKUP(LC7,MATCHSELEVES!$Y$14:$AE$600,5,FALSE),0) -> 0 | LG7: =IFERROR(VLOOKUP(LC7,MATCHSELEVES!$Y$14:$AF$600,8,FALSE),0) -> 0 | LH7: =IFERROR(VLOOKUP(LC7,MATCHSELEVES!$Y$14:$AG$600,9,FALSE),0) -> 0 | LI7: Ayoubp_11 | LJ7: =IFERROR(VLOOKUP(LI7,MATCHSELEVES!$Y$14:$AE$600,3,FALSE),0) -> 0 | LK7: =IFERROR(VLOOKUP(LI7,MATCHSELEVES!$Y$14:$AE$600,4,FALSE),0) -> 0 | LL7: =IFERROR(VLOOKUP(LI7,MATCHSELEVES!$Y$14:$AE$600,5,FALSE),0) -> 0 | LM7: =IFERROR(VLOOKUP(LI7,MATCHSELEVES!$Y$14:$AF$600,8,FALSE),0) -> 0 | LN7: =IFERROR(VLOOKUP(LI7,MATCHSELEVES!$Y$14:$AG$600,9,FALSE),0) -> 0 | LO7: Ayoubp_12 | LP7: =IFERROR(VLOOKUP(LO7,MATCHSELEVES!$Y$14:$AE$600,3,FALSE),0) -> 0 | LQ7: =IFERROR(VLOOKUP(LO7,MATCHSELEVES!$Y$14:$AE$600,4,FALSE),0) -> 0 | LR7: =IFERROR(VLOOKUP(LO7,MATCHSELEVES!$Y$14:$AE$600,5,FALSE),0) -> 0 | LS7: =IFERROR(VLOOKUP(LO7,MATCHSELEVES!$Y$14:$AF$600,8,FALSE),0) -> 0 | LT7: =IFERROR(VLOOKUP(LO7,MATCHSELEVES!$Y$14:$AG$600,9,FALSE),0) -> 0 | LU7: Ayoubp_13 | LV7: =IFERROR(VLOOKUP(LU7,MATCHSELEVES!$Y$14:$AE$600,3,FALSE),0) -> 0 | LW7: =IFERROR(VLOOKUP(LU7,MATCHSELEVES!$Y$14:$AE$600,4,FALSE),0) -> 0 | LX7: =IFERROR(VLOOKUP(LU7,MATCHSELEVES!$Y$14:$AE$600,5,FALSE),0) -> 0 | LY7: =IFERROR(VLOOKUP(LU7,MATCHSELEVES!$Y$14:$AF$600,8,FALSE),0) -> 0 | LZ7: =IFERROR(VLOOKUP(LU7,MATCHSELEVES!$Y$14:$AG$600,9,FALSE),0) -> 0 | MA7: Ayoubp_14 | MB7: =IFERROR(VLOOKUP(MA7,MATCHSELEVES!$Y$14:$AE$600,3,FALSE),0) -> 0 | MC7: =IFERROR(VLOOKUP(MA7,MATCHSELEVES!$Y$14:$AE$600,4,FALSE),0) -> 0 | MD7: =IFERROR(VLOOKUP(MA7,MATCHSELEVES!$Y$14:$AE$600,5,FALSE),0) -> 0 | ME7: =IFERROR(VLOOKUP(MA7,MATCHSELEVES!$Y$14:$AF$600,8,FALSE),0) -> 0 | MF7: =IFERROR(VLOOKUP(MA7,MATCHSELEVES!$Y$14:$AG$600,9,FALSE),0) -> 0 | MG7: Ayoubp_15 | MH7: =IFERROR(VLOOKUP(MG7,MATCHSELEVES!$Y$14:$AE$600,3,FALSE),0) -> 0 | MI7: =IFERROR(VLOOKUP(MG7,MATCHSELEVES!$Y$14:$AE$600,4,FALSE),0) -> 0 | MJ7: =IFERROR(VLOOKUP(MG7,MATCHSELEVES!$Y$14:$AE$600,5,FALSE),0) -> 0 | MK7: =IFERROR(VLOOKUP(MG7,MATCHSELEVES!$Y$14:$AF$600,8,FALSE),0) -> 0 | ML7: =IFERROR(VLOOKUP(MG7,MATCHSELEVES!$Y$14:$AG$600,9,FALSE),0) -> 0 | MM7: Ayoubp_16 | MN7: =IFERROR(VLOOKUP(MM7,MATCHSELEVES!$Y$14:$AE$600,3,FALSE),0) -> 0 | MO7: =IFERROR(VLOOKUP(MM7,MATCHSELEVES!$Y$14:$AE$600,4,FALSE),0) -> 0 | MP7: =IFERROR(VLOOKUP(MM7,MATCHSELEVES!$Y$14:$AE$600,5,FALSE),0) -> 0 | MQ7: =IFERROR(VLOOKUP(MM7,MATCHSELEVES!$Y$14:$AF$600,8,FALSE),0) -> 0 | MR7: =IFERROR(VLOOKUP(MM7,MATCHSELEVES!$Y$14:$AG$600,9,FALSE),0) -> 0 | MS7: Ayoubp_17 | MT7: =IFERROR(VLOOKUP(MS7,MATCHSELEVES!$Y$14:$AE$600,3,FALSE),0) -> 0 | MU7: =IFERROR(VLOOKUP(MS7,MATCHSELEVES!$Y$14:$AE$600,4,FALSE),0) -> 0 | MV7: =IFERROR(VLOOKUP(MS7,MATCHSELEVES!$Y$14:$AE$600,5,FALSE),0) -> 0 | MW7: =IFERROR(VLOOKUP(MS7,MATCHSELEVES!$Y$14:$AF$600,8,FALSE),0) -> 0 | MX7: =IFERROR(VLOOKUP(MS7,MATCHSELEVES!$Y$14:$AG$600,9,FALSE),0) -> 0 | MY7: Ayoubp_18 | MZ7: =IFERROR(VLOOKUP(MY7,MATCHSELEVES!$Y$14:$AE$600,3,FALSE),0) -> 0 | NA7: =IFERROR(VLOOKUP(MY7,MATCHSELEVES!$Y$14:$AE$600,4,FALSE),0) -> 0 | NB7: =IFERROR(VLOOKUP(MY7,MATCHSELEVES!$Y$14:$AE$600,5,FALSE),0) -> 0 | NC7: =IFERROR(VLOOKUP(MY7,MATCHSELEVES!$Y$14:$AF$600,8,FALSE),0) -> 0 | ND7: =IFERROR(VLOOKUP(MY7,MATCHSELEVES!$Y$14:$AG$600,9,FALSE),0) -> 0 | NE7: Ayoubp_19 | NF7: =IFERROR(VLOOKUP(NE7,MATCHSELEVES!$Y$14:$AE$600,3,FALSE),0) -> 0 | NG7: =IFERROR(VLOOKUP(NE7,MATCHSELEVES!$Y$14:$AE$600,4,FALSE),0) -> 0 | NH7: =IFERROR(VLOOKUP(NE7,MATCHSELEVES!$Y$14:$AE$600,5,FALSE),0) -> 0 | NI7: =IFERROR(VLOOKUP(NE7,MATCHSELEVES!$Y$14:$AF$600,8,FALSE),0) -> 0 | NJ7: =IFERROR(VLOOKUP(NE7,MATCHSELEVES!$Y$14:$AG$600,9,FALSE),0) -> 0 | NK7: Ayoubp_20 | NL7: =IFERROR(VLOOKUP(NK7,MATCHSELEVES!$Y$14:$AE$600,3,FALSE),0) -> 0 | NM7: =IFERROR(VLOOKUP(NK7,MATCHSELEVES!$Y$14:$AE$600,4,FALSE),0) -> 0 | NN7: =IFERROR(VLOOKUP(NK7,MATCHSELEVES!$Y$14:$AE$600,5,FALSE),0) -> 0 | NO7: =IFERROR(VLOOKUP(NK7,MATCHSELEVES!$Y$14:$AF$600,8,FALSE),0) -> 0 | NP7: =IFERROR(VLOOKUP(NK7,MATCHSELEVES!$Y$14:$AG$600,9,FALSE),0) -> 0 | NQ7: Ayoubp_21 | NR7: =IFERROR(VLOOKUP(NQ7,MATCHSELEVES!$Y$14:$AE$600,3,FALSE),0) -> 0 | NS7: =IFERROR(VLOOKUP(NQ7,MATCHSELEVES!$Y$14:$AE$600,4,FALSE),0) -> 0 | NT7: =IFERROR(VLOOKUP(NQ7,MATCHSELEVES!$Y$14:$AE$600,5,FALSE),0) -> 0 | NU7: =IFERROR(VLOOKUP(NQ7,MATCHSELEVES!$Y$14:$AF$600,8,FALSE),0) -> 0 | NV7: =IFERROR(VLOOKUP(NQ7,MATCHSELEVES!$Y$14:$AG$600,9,FALSE),0) -> 0 | NW7: Ayoubp_22 | NX7: =IFERROR(VLOOKUP(NW7,MATCHSELEVES!$Y$14:$AE$600,3,FALSE),0) -> 0 | NY7: =IFERROR(VLOOKUP(NW7,MATCHSELEVES!$Y$14:$AE$600,4,FALSE),0) -> 0 | NZ7: =IFERROR(VLOOKUP(NW7,MATCHSELEVES!$Y$14:$AE$600,5,FALSE),0) -> 0 | OA7: =IFERROR(VLOOKUP(NW7,MATCHSELEVES!$Y$14:$AF$600,8,FALSE),0) -> 0 | OB7: =IFERROR(VLOOKUP(NW7,MATCHSELEVES!$Y$14:$AG$600,9,FALSE),0) -> 0 | OC7: Ayoubp_23 | OD7: =IFERROR(VLOOKUP(OC7,MATCHSELEVES!$Y$14:$AE$600,3,FALSE),0) -> 0 | OE7: =IFERROR(VLOOKUP(OC7,MATCHSELEVES!$Y$14:$AE$600,4,FALSE),0) -> 0 | OF7: =IFERROR(VLOOKUP(OC7,MATCHSELEVES!$Y$14:$AE$600,5,FALSE),0) -> 0 | OG7: =IFERROR(VLOOKUP(OC7,MATCHSELEVES!$Y$14:$AF$600,8,FALSE),0) -> 0 | OH7: =IFERROR(VLOOKUP(OC7,MATCHSELEVES!$Y$14:$AG$600,9,FALSE),0) -> 0 | OI7: Ayoubp_24 | OJ7: =IFERROR(VLOOKUP(OI7,MATCHSELEVES!$Y$14:$AE$600,3,FALSE),0) -> 0 | OK7: =IFERROR(VLOOKUP(OI7,MATCHSELEVES!$Y$14:$AE$600,4,FALSE),0) -> 0 | OL7: =IFERROR(VLOOKUP(OI7,MATCHSELEVES!$Y$14:$AE$600,5,FALSE),0) -> 0 | OM7: =IFERROR(VLOOKUP(OI7,MATCHSELEVES!$Y$14:$AF$600,8,FALSE),0) -> 0 | ON7: =IFERROR(VLOOKUP(OI7,MATCHSELEVES!$Y$14:$AG$600,9,FALSE),0) -> 0 | OO7: Ayoubp_25 | OP7: =IFERROR(VLOOKUP(OO7,MATCHSELEVES!$Y$14:$AE$600,3,FALSE),0) -> 0 | OQ7: =IFERROR(VLOOKUP(OO7,MATCHSELEVES!$Y$14:$AE$600,4,FALSE),0) -> 0 | OR7: =IFERROR(VLOOKUP(OO7,MATCHSELEVES!$Y$14:$AE$600,5,FALSE),0) -> 0 | OS7: =IFERROR(VLOOKUP(OO7,MATCHSELEVES!$Y$14:$AF$600,8,FALSE),0) -> 0 | OT7: =IFERROR(VLOOKUP(OO7,MATCHSELEVES!$Y$14:$AG$600,9,FALSE),0) -> 0 | OU7: Ayoubp_26 | OV7: =IFERROR(VLOOKUP(OU7,MATCHSELEVES!$Y$14:$AE$600,3,FALSE),0) -> 0 | OW7: =IFERROR(VLOOKUP(OU7,MATCHSELEVES!$Y$14:$AE$600,4,FALSE),0) -> 0 | OX7: =IFERROR(VLOOKUP(OU7,MATCHSELEVES!$Y$14:$AE$600,5,FALSE),0) -> 0 | OY7: =IFERROR(VLOOKUP(OU7,MATCHSELEVES!$Y$14:$AF$600,8,FALSE),0) -> 0 | OZ7: =IFERROR(VLOOKUP(OU7,MATCHSELEVES!$Y$14:$AG$600,9,FALSE),0) -> 0 | PA7: Ayoubp_27 | PB7: =IFERROR(VLOOKUP(PA7,MATCHSELEVES!$Y$14:$AE$600,3,FALSE),0) -> 0 | PC7: =IFERROR(VLOOKUP(PA7,MATCHSELEVES!$Y$14:$AE$600,4,FALSE),0) -> 0 | PD7: =IFERROR(VLOOKUP(PA7,MATCHSELEVES!$Y$14:$AE$600,5,FALSE),0) -> 0 | PE7: =IFERROR(VLOOKUP(PA7,MATCHSELEVES!$Y$14:$AF$600,8,FALSE),0) -> 0 | PF7: =IFERROR(VLOOKUP(PA7,MATCHSELEVES!$Y$14:$AG$600,9,FALSE),0) -> 0 | PG7: Ayoubp_28 | PH7: =IFERROR(VLOOKUP(PG7,MATCHSELEVES!$Y$14:$AE$600,3,FALSE),0) -> 0 | PI7: =IFERROR(VLOOKUP(PG7,MATCHSELEVES!$Y$14:$AE$600,4,FALSE),0) -> 0 | PJ7: =IFERROR(VLOOKUP(PG7,MATCHSELEVES!$Y$14:$AE$600,5,FALSE),0) -> 0 | PK7: =IFERROR(VLOOKUP(PG7,MATCHSELEVES!$Y$14:$AF$600,8,FALSE),0) -> 0 | PL7: =IFERROR(VLOOKUP(PG7,MATCHSELEVES!$Y$14:$AG$600,9,FALSE),0) -> 0 | PM7: Ayoubp_29 | PN7: =IFERROR(VLOOKUP(PM7,MATCHSELEVES!$Y$14:$AE$600,3,FALSE),0) -> 0 | PO7: =IFERROR(VLOOKUP(PM7,MATCHSELEVES!$Y$14:$AE$600,4,FALSE),0) -> 0 | PP7: =IFERROR(VLOOKUP(PM7,MATCHSELEVES!$Y$14:$AE$600,5,FALSE),0) -> 0 | PQ7: =IFERROR(VLOOKUP(PM7,MATCHSELEVES!$Y$14:$AF$600,8,FALSE),0) -> 0 | PR7: =IFERROR(VLOOKUP(PM7,MATCHSELEVES!$Y$14:$AG$600,9,FALSE),0) -> 0 | PS7: Ayoubp_30 | PT7: =IFERROR(VLOOKUP(PS7,MATCHSELEVES!$Y$14:$AE$600,3,FALSE),0) -> 0 | PU7: =IFERROR(VLOOKUP(PS7,MATCHSELEVES!$Y$14:$AE$600,4,FALSE),0) -> 0 | PV7: =IFERROR(VLOOKUP(PS7,MATCHSELEVES!$Y$14:$AE$600,5,FALSE),0) -> 0 | PW7: =IFERROR(VLOOKUP(PS7,MATCHSELEVES!$Y$14:$AF$600,8,FALSE),0) -> 0 | PX7: =IFERROR(VLOOKUP(PS7,MATCHSELEVES!$Y$14:$AG$600,9,FALSE),0) -> 0 | PY7: Ayoubp_31 | PZ7: =IFERROR(VLOOKUP(PY7,MATCHSELEVES!$Y$14:$AE$600,3,FALSE),0) -> 0 | QA7: =IFERROR(VLOOKUP(PY7,MATCHSELEVES!$Y$14:$AE$600,4,FALSE),0) -> 0 | QB7: =IFERROR(VLOOKUP(PY7,MATCHSELEVES!$Y$14:$AE$600,5,FALSE),0) -> 0 | QC7: =IFERROR(VLOOKUP(PY7,MATCHSELEVES!$Y$14:$AF$600,8,FALSE),0) -> 0 | QD7: =IFERROR(VLOOKUP(PY7,MATCHSELEVES!$Y$14:$AG$600,9,FALSE),0) -> 0 | QE7: Ayoubp_32 | QF7: =IFERROR(VLOOKUP(QE7,MATCHSELEVES!$Y$14:$AE$600,3,FALSE),0) -> 0 | QG7: =IFERROR(VLOOKUP(QE7,MATCHSELEVES!$Y$14:$AE$600,4,FALSE),0) -> 0 | QH7: =IFERROR(VLOOKUP(QE7,MATCHSELEVES!$Y$14:$AE$600,5,FALSE),0) -> 0 | QI7: =IFERROR(VLOOKUP(QE7,MATCHSELEVES!$Y$14:$AF$600,8,FALSE),0) -> 0 | QJ7: =IFERROR(VLOOKUP(QE7,MATCHSELEVES!$Y$14:$AG$600,9,FALSE),0) -> 0 | QK7: Ayoubp_33 | QL7: =IFERROR(VLOOKUP(QK7,MATCHSELEVES!$Y$14:$AE$600,3,FALSE),0) -> 0 | QM7: =IFERROR(VLOOKUP(QK7,MATCHSELEVES!$Y$14:$AE$600,4,FALSE),0) -> 0 | QN7: =IFERROR(VLOOKUP(QK7,MATCHSELEVES!$Y$14:$AE$600,5,FALSE),0) -> 0 | QO7: =IFERROR(VLOOKUP(QK7,MATCHSELEVES!$Y$14:$AF$600,8,FALSE),0) -> 0 | QP7: =IFERROR(VLOOKUP(QK7,MATCHSELEVES!$Y$14:$AG$600,9,FALSE),0) -> 0 | QQ7: Ayoubp_34 | QR7: =IFERROR(VLOOKUP(QQ7,MATCHSELEVES!$Y$14:$AE$600,3,FALSE),0) -> 0 | QS7: =IFERROR(VLOOKUP(QQ7,MATCHSELEVES!$Y$14:$AE$600,4,FALSE),0) -> 0 | QT7: =IFERROR(VLOOKUP(QQ7,MATCHSELEVES!$Y$14:$AE$600,5,FALSE),0) -> 0 | QU7: =IFERROR(VLOOKUP(QQ7,MATCHSELEVES!$Y$14:$AF$600,8,FALSE),0) -> 0 | QV7: =IFERROR(VLOOKUP(QQ7,MATCHSELEVES!$Y$14:$AG$600,9,FALSE),0) -> 0 | QW7: Ayoubp_35 | QX7: =IFERROR(VLOOKUP(QW7,MATCHSELEVES!$Y$14:$AE$600,3,FALSE),0) -> 0 | QY7: =IFERROR(VLOOKUP(QW7,MATCHSELEVES!$Y$14:$AE$600,4,FALSE),0) -> 0 | QZ7: =IFERROR(VLOOKUP(QW7,MATCHSELEVES!$Y$14:$AE$600,5,FALSE),0) -> 0 | RA7: =IFERROR(VLOOKUP(QW7,MATCHSELEVES!$Y$14:$AF$600,8,FALSE),0) -> 0 | RB7: =IFERROR(VLOOKUP(QW7,MATCHSELEVES!$Y$14:$AG$600,9,FALSE),0) -> 0 | RC7: Ayoubp_36 | RD7: =IFERROR(VLOOKUP(RC7,MATCHSELEVES!$Y$14:$AE$600,3,FALSE),0) -> 0 | RE7: =IFERROR(VLOOKUP(RC7,MATCHSELEVES!$Y$14:$AE$600,4,FALSE),0) -> 0 | RF7: =IFERROR(VLOOKUP(RC7,MATCHSELEVES!$Y$14:$AE$600,5,FALSE),0) -> 0 | RG7: =IFERROR(VLOOKUP(RC7,MATCHSELEVES!$Y$14:$AF$600,8,FALSE),0) -> 0 | RH7: =IFERROR(VLOOKUP(RC7,MATCHSELEVES!$Y$14:$AG$600,9,FALSE),0) -> 0 | RI7: Ayoubp_37 | RJ7: =IFERROR(VLOOKUP(RI7,MATCHSELEVES!$Y$14:$AE$600,3,FALSE),0) -> 0 | RK7: =IFERROR(VLOOKUP(RI7,MATCHSELEVES!$Y$14:$AE$600,4,FALSE),0) -> 0 | RL7: =IFERROR(VLOOKUP(RI7,MATCHSELEVES!$Y$14:$AE$600,5,FALSE),0) -> 0 | RM7: =IFERROR(VLOOKUP(RI7,MATCHSELEVES!$Y$14:$AF$600,8,FALSE),0) -> 0 | RN7: =IFERROR(VLOOKUP(RI7,MATCHSELEVES!$Y$14:$AG$600,9,FALSE),0) -> 0 | RO7: Ayoubp_38 | RP7: =IFERROR(VLOOKUP(RO7,MATCHSELEVES!$Y$14:$AE$600,3,FALSE),0) -> 0 | RQ7: =IFERROR(VLOOKUP(RO7,MATCHSELEVES!$Y$14:$AE$600,4,FALSE),0) -> 0 | RR7: =IFERROR(VLOOKUP(RO7,MATCHSELEVES!$Y$14:$AE$600,5,FALSE),0) -> 0 | RS7: =IFERROR(VLOOKUP(RO7,MATCHSELEVES!$Y$14:$AF$600,8,FALSE),0) -> 0 | RT7: =IFERROR(VLOOKUP(RO7,MATCHSELEVES!$Y$14:$AG$600,9,FALSE),0) -> 0 | RU7: Ayoubp_39 | RV7: =IFERROR(VLOOKUP(RU7,MATCHSELEVES!$Y$14:$AE$600,3,FALSE),0) -> 0 | RW7: =IFERROR(VLOOKUP(RU7,MATCHSELEVES!$Y$14:$AE$600,4,FALSE),0) -> 0 | RX7: =IFERROR(VLOOKUP(RU7,MATCHSELEVES!$Y$14:$AE$600,5,FALSE),0) -> 0 | RY7: =IFERROR(VLOOKUP(RU7,MATCHSELEVES!$Y$14:$AF$600,8,FALSE),0) -> 0 | RZ7: =IFERROR(VLOOKUP(RU7,MATCHSELEVES!$Y$14:$AG$600,9,FALSE),0) -> 0 | SA7: Ayoubp_40 | SB7: =IFERROR(VLOOKUP(SA7,MATCHSELEVES!$Y$14:$AE$600,3,FALSE),0) -> 0 | SC7: =IFERROR(VLOOKUP(SA7,MATCHSELEVES!$Y$14:$AE$600,4,FALSE),0) -> 0 | SD7: =IFERROR(VLOOKUP(SA7,MATCHSELEVES!$Y$14:$AE$600,5,FALSE),0) -> 0 | SE7: =IFERROR(VLOOKUP(SA7,MATCHSELEVES!$Y$14:$AF$600,8,FALSE),0) -> 0 | SF7: =IFERROR(VLOOKUP(SA7,MATCHSELEVES!$Y$14:$AG$600,9,FALSE),0) -> 0
A8: 5 | C8: balise | D8: 5 | G8: =COUNTIF(MATCHSELEVES!$Z$14:$Z$600,C8)+COUNTIF(MATCHSELEVES!$Z$14:$Z$600,$C8&"p") -> 0 | H8: 1 | I8: =COUNTIF(MATCHSELEVES!$F$14:$H$249,C8) -> 0 | J8: 1 | K8: 0 | L8: 1 | M8: =IFERROR(M51/Tableau10[[#This Row],[Nombre de matchs joués]],0) -> 0 | N8: =IF(Tableau10[[#This Row],[Nombre de points encaissés]]=0,$C$45,SUMPRODUCT((M$4:M$43<M8)*(M$4:M$43<>0))+1) -> 40 | O8: 0 | P8: 1 | Q8: =(Tableau10[[#This Row],[CLASSEMENT1]]+Tableau10[[#This Row],[CLASSEMENT2]]+Tableau10[[#This Row],[CLASSEMENT3]]+Tableau10[[#This Row],[CLASSEMENT4]]+Tableau10[[#This Row],[CLASSEMENT5]]+Tableau10[[#This Row],[CLASSEMENT6]])/6 -> 8.166666667 | R8: =RANK(Tableau10[[#This Row],[MOYENNE CLASSEMENTS]],Tableau10[MOYENNE CLASSEMENTS],1) -> 5 | T8: =Tableau10[[#This Row],[CLASSEMENT1]] -> 5 | U8: balise_1 | V8: =IFERROR(VLOOKUP(U8,MATCHSELEVES!$Y$14:$AE$600,3,FALSE),0) -> 0 | W8: =IFERROR(VLOOKUP(U8,MATCHSELEVES!$Y$14:$AE$600,4,FALSE),0) -> 0 | X8: =IFERROR(VLOOKUP(U8,MATCHSELEVES!$Y$14:$AE$600,5,FALSE),0) -> 0 | Y8: =IFERROR(VLOOKUP(U8,MATCHSELEVES!$Y$14:$AF$600,8,FALSE),0) -> 0 | Z8: =IFERROR(VLOOKUP(U8,MATCHSELEVES!$Y$14:$AG$600,9,FALSE),0) -> 0 | AA8: balise_2 | AB8: =IFERROR(VLOOKUP(AA8,MATCHSELEVES!$Y$14:$AE$600,3,FALSE),0) -> 0 | AC8: =IFERROR(VLOOKUP(AA8,MATCHSELEVES!$Y$14:$AE$600,4,FALSE),0) -> 0 | AD8: =IFERROR(VLOOKUP(AA8,MATCHSELEVES!$Y$14:$AE$600,5,FALSE),0) -> 0 | AE8: =IFERROR(VLOOKUP(AA8,MATCHSELEVES!$Y$14:$AF$600,8,FALSE),0) -> 0 | AF8: =IFERROR(VLOOKUP(AA8,MATCHSELEVES!$Y$14:$AG$600,9,FALSE),0) -> 0 | AG8: balise_3 | AH8: =IFERROR(VLOOKUP(AG8,MATCHSELEVES!$Y$14:$AE$600,3,FALSE),0) -> 0 | AI8: =IFERROR(VLOOKUP(AG8,MATCHSELEVES!$Y$14:$AE$600,4,FALSE),0) -> 0 | AJ8: =IFERROR(VLOOKUP(AG8,MATCHSELEVES!$Y$14:$AE$600,5,FALSE),0) -> 0 | AK8: =IFERROR(VLOOKUP(AG8,MATCHSELEVES!$Y$14:$AF$600,8,FALSE),0) -> 0 | AL8: =IFERROR(VLOOKUP(AG8,MATCHSELEVES!$Y$14:$AG$600,9,FALSE),0) -> 0 | AM8: balise_4 | AN8: =IFERROR(VLOOKUP(AM8,MATCHSELEVES!$Y$14:$AE$600,3,FALSE),0) -> 0 | AO8: =IFERROR(VLOOKUP(AM8,MATCHSELEVES!$Y$14:$AE$600,4,FALSE),0) -> 0 | AP8: =IFERROR(VLOOKUP(AM8,MATCHSELEVES!$Y$14:$AE$600,5,FALSE),0) -> 0 | AQ8: =IFERROR(VLOOKUP(AM8,MATCHSELEVES!$Y$14:$AF$600,8,FALSE),0) -> 0 | AR8: =IFERROR(VLOOKUP(AM8,MATCHSELEVES!$Y$14:$AG$600,9,FALSE),0) -> 0 | AS8: balise_5 | AT8: =IFERROR(VLOOKUP(AS8,MATCHSELEVES!$Y$14:$AE$600,3,FALSE),0) -> 0 | AU8: =IFERROR(VLOOKUP(AS8,MATCHSELEVES!$Y$14:$AE$600,4,FALSE),0) -> 0 | AV8: =IFERROR(VLOOKUP(AS8,MATCHSELEVES!$Y$14:$AE$600,5,FALSE),0) -> 0 | AW8: =IFERROR(VLOOKUP(AS8,MATCHSELEVES!$Y$14:$AF$600,8,FALSE),0) -> 0 | AX8: =IFERROR(VLOOKUP(AS8,MATCHSELEVES!$Y$14:$AG$600,9,FALSE),0) -> 0 | AY8: balise_6 | AZ8: =IFERROR(VLOOKUP(AY8,MATCHSELEVES!$Y$14:$AE$600,3,FALSE),0) -> 0 | BA8: =IFERROR(VLOOKUP(AY8,MATCHSELEVES!$Y$14:$AE$600,4,FALSE),0) -> 0 | BB8: =IFERROR(VLOOKUP(AY8,MATCHSELEVES!$Y$14:$AE$600,5,FALSE),0) -> 0 | BC8: =IFERROR(VLOOKUP(AY8,MATCHSELEVES!$Y$14:$AF$600,8,FALSE),0) -> 0 | BD8: =IFERROR(VLOOKUP(AY8,MATCHSELEVES!$Y$14:$AG$600,9,FALSE),0) -> 0 | BE8: balise_7 | BF8: =IFERROR(VLOOKUP(BE8,MATCHSELEVES!$Y$14:$AE$600,3,FALSE),0) -> 0 | BG8: =IFERROR(VLOOKUP(BE8,MATCHSELEVES!$Y$14:$AE$600,4,FALSE),0) -> 0 | BH8: =IFERROR(VLOOKUP(BE8,MATCHSELEVES!$Y$14:$AE$600,5,FALSE),0) -> 0 | BI8: =IFERROR(VLOOKUP(BE8,MATCHSELEVES!$Y$14:$AF$600,8,FALSE),0) -> 0 | BJ8: =IFERROR(VLOOKUP(BE8,MATCHSELEVES!$Y$14:$AG$600,9,FALSE),0) -> 0 | BK8: balise_8 | BL8: =IFERROR(VLOOKUP(BK8,MATCHSELEVES!$Y$14:$AE$600,3,FALSE),0) -> 0 | BM8: =IFERROR(VLOOKUP(BK8,MATCHSELEVES!$Y$14:$AE$600,4,FALSE),0) -> 0 | BN8: =IFERROR(VLOOKUP(BK8,MATCHSELEVES!$Y$14:$AE$600,5,FALSE),0) -> 0 | BO8: =IFERROR(VLOOKUP(BK8,MATCHSELEVES!$Y$14:$AF$600,8,FALSE),0) -> 0 | BP8: =IFERROR(VLOOKUP(BK8,MATCHSELEVES!$Y$14:$AG$600,9,FALSE),0) -> 0 | BQ8: balise_9 | BR8: =IFERROR(VLOOKUP(BQ8,MATCHSELEVES!$Y$14:$AE$600,3,FALSE),0) -> 0 | BS8: =IFERROR(VLOOKUP(BQ8,MATCHSELEVES!$Y$14:$AE$600,4,FALSE),0) -> 0 | BT8: =IFERROR(VLOOKUP(BQ8,MATCHSELEVES!$Y$14:$AE$600,5,FALSE),0) -> 0 | BU8: =IFERROR(VLOOKUP(BQ8,MATCHSELEVES!$Y$14:$AF$600,8,FALSE),0) -> 0 | BV8: =IFERROR(VLOOKUP(BQ8,MATCHSELEVES!$Y$14:$AG$600,9,FALSE),0) -> 0 | BW8: balise_10 | BX8: =IFERROR(VLOOKUP(BW8,MATCHSELEVES!$Y$14:$AE$600,3,FALSE),0) -> 0 | BY8: =IFERROR(VLOOKUP(BW8,MATCHSELEVES!$Y$14:$AE$600,4,FALSE),0) -> 0 | BZ8: =IFERROR(VLOOKUP(BW8,MATCHSELEVES!$Y$14:$AE$600,5,FALSE),0) -> 0 | CA8: =IFERROR(VLOOKUP(BW8,MATCHSELEVES!$Y$14:$AF$600,8,FALSE),0) -> 0 | CB8: =IFERROR(VLOOKUP(BW8,MATCHSELEVES!$Y$14:$AG$600,9,FALSE),0) -> 0 | CC8: balise_11 | CD8: =IFERROR(VLOOKUP(CC8,MATCHSELEVES!$Y$14:$AE$600,3,FALSE),0) -> 0 | CE8: =IFERROR(VLOOKUP(CC8,MATCHSELEVES!$Y$14:$AE$600,4,FALSE),0) -> 0 | CF8: =IFERROR(VLOOKUP(CC8,MATCHSELEVES!$Y$14:$AE$600,5,FALSE),0) -> 0 | CG8: =IFERROR(VLOOKUP(CC8,MATCHSELEVES!$Y$14:$AF$600,8,FALSE),0) -> 0 | CH8: =IFERROR(VLOOKUP(CC8,MATCHSELEVES!$Y$14:$AG$600,9,FALSE),0) -> 0 | CI8: balise_12 | CJ8: =IFERROR(VLOOKUP(CI8,MATCHSELEVES!$Y$14:$AE$600,3,FALSE),0) -> 0 | CK8: =IFERROR(VLOOKUP(CI8,MATCHSELEVES!$Y$14:$AE$600,4,FALSE),0) -> 0 | CL8: =IFERROR(VLOOKUP(CI8,MATCHSELEVES!$Y$14:$AE$600,5,FALSE),0) -> 0 | CM8: =IFERROR(VLOOKUP(CI8,MATCHSELEVES!$Y$14:$AF$600,8,FALSE),0) -> 0 | CN8: =IFERROR(VLOOKUP(CI8,MATCHSELEVES!$Y$14:$AG$600,9,FALSE),0) -> 0 | CO8: balise_13 | CP8: =IFERROR(VLOOKUP(CO8,MATCHSELEVES!$Y$14:$AE$600,3,FALSE),0) -> 0 | CQ8: =IFERROR(VLOOKUP(CO8,MATCHSELEVES!$Y$14:$AE$600,4,FALSE),0) -> 0 | CR8: =IFERROR(VLOOKUP(CO8,MATCHSELEVES!$Y$14:$AE$600,5,FALSE),0) -> 0 | CS8: =IFERROR(VLOOKUP(CO8,MATCHSELEVES!$Y$14:$AF$600,8,FALSE),0) -> 0 | CT8: =IFERROR(VLOOKUP(CO8,MATCHSELEVES!$Y$14:$AG$600,9,FALSE),0) -> 0 | CU8: balise_14 | CV8: =IFERROR(VLOOKUP(CU8,MATCHSELEVES!$Y$14:$AE$600,3,FALSE),0) -> 0 | CW8: =IFERROR(VLOOKUP(CU8,MATCHSELEVES!$Y$14:$AE$600,4,FALSE),0) -> 0 | CX8: =IFERROR(VLOOKUP(CU8,MATCHSELEVES!$Y$14:$AE$600,5,FALSE),0) -> 0 | CY8: =IFERROR(VLOOKUP(CU8,MATCHSELEVES!$Y$14:$AF$600,8,FALSE),0) -> 0 | CZ8: =IFERROR(VLOOKUP(CU8,MATCHSELEVES!$Y$14:$AG$600,9,FALSE),0) -> 0 | DA8: balise_15 | DB8: =IFERROR(VLOOKUP(DA8,MATCHSELEVES!$Y$14:$AE$600,3,FALSE),0) -> 0 | DC8: =IFERROR(VLOOKUP(DA8,MATCHSELEVES!$Y$14:$AE$600,4,FALSE),0) -> 0 | DD8: =IFERROR(VLOOKUP(DA8,MATCHSELEVES!$Y$14:$AE$600,5,FALSE),0) -> 0 | DE8: =IFERROR(VLOOKUP(DA8,MATCHSELEVES!$Y$14:$AF$600,8,FALSE),0) -> 0 | DF8: =IFERROR(VLOOKUP(DA8,MATCHSELEVES!$Y$14:$AG$600,9,FALSE),0) -> 0 | DG8: balise_16 | DH8: =IFERROR(VLOOKUP(DG8,MATCHSELEVES!$Y$14:$AE$600,3,FALSE),0) -> 0 | DI8: =IFERROR(VLOOKUP(DG8,MATCHSELEVES!$Y$14:$AE$600,4,FALSE),0) -> 0 | DJ8: =IFERROR(VLOOKUP(DG8,MATCHSELEVES!$Y$14:$AE$600,5,FALSE),0) -> 0 | DK8: =IFERROR(VLOOKUP(DG8,MATCHSELEVES!$Y$14:$AF$600,8,FALSE),0) -> 0 | DL8: =IFERROR(VLOOKUP(DG8,MATCHSELEVES!$Y$14:$AG$600,9,FALSE),0) -> 0 | DM8: balise_17 | DN8: =IFERROR(VLOOKUP(DM8,MATCHSELEVES!$Y$14:$AE$600,3,FALSE),0) -> 0 | DO8: =IFERROR(VLOOKUP(DM8,MATCHSELEVES!$Y$14:$AE$600,4,FALSE),0) -> 0 | DP8: =IFERROR(VLOOKUP(DM8,MATCHSELEVES!$Y$14:$AE$600,5,FALSE),0) -> 0 | DQ8: =IFERROR(VLOOKUP(DM8,MATCHSELEVES!$Y$14:$AF$600,8,FALSE),0) -> 0 | DR8: =IFERROR(VLOOKUP(DM8,MATCHSELEVES!$Y$14:$AG$600,9,FALSE),0) -> 0 | DS8: balise_18 | DT8: =IFERROR(VLOOKUP(DS8,MATCHSELEVES!$Y$14:$AE$600,3,FALSE),0) -> 0 | DU8: =IFERROR(VLOOKUP(DS8,MATCHSELEVES!$Y$14:$AE$600,4,FALSE),0) -> 0 | DV8: =IFERROR(VLOOKUP(DS8,MATCHSELEVES!$Y$14:$AE$600,5,FALSE),0) -> 0 | DW8: =IFERROR(VLOOKUP(DS8,MATCHSELEVES!$Y$14:$AF$600,8,FALSE),0) -> 0 | DX8: =IFERROR(VLOOKUP(DS8,MATCHSELEVES!$Y$14:$AG$600,9,FALSE),0) -> 0 | DY8: balise_19 | DZ8: =IFERROR(VLOOKUP(DY8,MATCHSELEVES!$Y$14:$AE$600,3,FALSE),0) -> 0 | EA8: =IFERROR(VLOOKUP(DY8,MATCHSELEVES!$Y$14:$AE$600,4,FALSE),0) -> 0 | EB8: =IFERROR(VLOOKUP(DY8,MATCHSELEVES!$Y$14:$AE$600,5,FALSE),0) -> 0 | EC8: =IFERROR(VLOOKUP(DY8,MATCHSELEVES!$Y$14:$AF$600,8,FALSE),0) -> 0 | ED8: =IFERROR(VLOOKUP(DY8,MATCHSELEVES!$Y$14:$AG$600,9,FALSE),0) -> 0 | EE8: balise_20 | EF8: =IFERROR(VLOOKUP(EE8,MATCHSELEVES!$Y$14:$AE$600,3,FALSE),0) -> 0 | EG8: =IFERROR(VLOOKUP(EE8,MATCHSELEVES!$Y$14:$AE$600,4,FALSE),0) -> 0 | EH8: =IFERROR(VLOOKUP(EE8,MATCHSELEVES!$Y$14:$AE$600,5,FALSE),0) -> 0 | EI8: =IFERROR(VLOOKUP(EE8,MATCHSELEVES!$Y$14:$AF$600,8,FALSE),0) -> 0 | EJ8: =IFERROR(VLOOKUP(EE8,MATCHSELEVES!$Y$14:$AG$600,9,FALSE),0) -> 0 | EK8: balise_21 | EL8: =IFERROR(VLOOKUP(EK8,MATCHSELEVES!$Y$14:$AE$600,3,FALSE),0) -> 0 | EM8: =IFERROR(VLOOKUP(EK8,MATCHSELEVES!$Y$14:$AE$600,4,FALSE),0) -> 0 | EN8: =IFERROR(VLOOKUP(EK8,MATCHSELEVES!$Y$14:$AE$600,5,FALSE),0) -> 0 | EO8: =IFERROR(VLOOKUP(EK8,MATCHSELEVES!$Y$14:$AF$600,8,FALSE),0) -> 0 | EP8: =IFERROR(VLOOKUP(EK8,MATCHSELEVES!$Y$14:$AG$600,9,FALSE),0) -> 0 | EQ8: balise_22 | ER8: =IFERROR(VLOOKUP(EQ8,MATCHSELEVES!$Y$14:$AE$600,3,FALSE),0) -> 0 | ES8: =IFERROR(VLOOKUP(EQ8,MATCHSELEVES!$Y$14:$AE$600,4,FALSE),0) -> 0 | ET8: =IFERROR(VLOOKUP(EQ8,MATCHSELEVES!$Y$14:$AE$600,5,FALSE),0) -> 0 | EU8: =IFERROR(VLOOKUP(EQ8,MATCHSELEVES!$Y$14:$AF$600,8,FALSE),0) -> 0 | EV8: =IFERROR(VLOOKUP(EQ8,MATCHSELEVES!$Y$14:$AG$600,9,FALSE),0) -> 0 | EW8: balise_23 | EX8: =IFERROR(VLOOKUP(EW8,MATCHSELEVES!$Y$14:$AE$600,3,FALSE),0) -> 0 | EY8: =IFERROR(VLOOKUP(EW8,MATCHSELEVES!$Y$14:$AE$600,4,FALSE),0) -> 0 | EZ8: =IFERROR(VLOOKUP(EW8,MATCHSELEVES!$Y$14:$AE$600,5,FALSE),0) -> 0 | FA8: =IFERROR(VLOOKUP(EW8,MATCHSELEVES!$Y$14:$AF$600,8,FALSE),0) -> 0 | FB8: =IFERROR(VLOOKUP(EW8,MATCHSELEVES!$Y$14:$AG$600,9,FALSE),0) -> 0 | FC8: balise_24 | FD8: =IFERROR(VLOOKUP(FC8,MATCHSELEVES!$Y$14:$AE$600,3,FALSE),0) -> 0 | FE8: =IFERROR(VLOOKUP(FC8,MATCHSELEVES!$Y$14:$AE$600,4,FALSE),0) -> 0 | FF8: =IFERROR(VLOOKUP(FC8,MATCHSELEVES!$Y$14:$AE$600,5,FALSE),0) -> 0 | FG8: =IFERROR(VLOOKUP(FC8,MATCHSELEVES!$Y$14:$AF$600,8,FALSE),0) -> 0 | FH8: =IFERROR(VLOOKUP(FC8,MATCHSELEVES!$Y$14:$AG$600,9,FALSE),0) -> 0 | FI8: balise_25 | FJ8: =IFERROR(VLOOKUP(FI8,MATCHSELEVES!$Y$14:$AE$600,3,FALSE),0) -> 0 | FK8: =IFERROR(VLOOKUP(FI8,MATCHSELEVES!$Y$14:$AE$600,4,FALSE),0) -> 0 | FL8: =IFERROR(VLOOKUP(FI8,MATCHSELEVES!$Y$14:$AE$600,5,FALSE),0) -> 0 | FM8: =IFERROR(VLOOKUP(FI8,MATCHSELEVES!$Y$14:$AF$600,8,FALSE),0) -> 0 | FN8: =IFERROR(VLOOKUP(FI8,MATCHSELEVES!$Y$14:$AG$600,9,FALSE),0) -> 0 | FO8: balise_26 | FP8: =IFERROR(VLOOKUP(FO8,MATCHSELEVES!$Y$14:$AE$600,3,FALSE),0) -> 0 | FQ8: =IFERROR(VLOOKUP(FO8,MATCHSELEVES!$Y$14:$AE$600,4,FALSE),0) -> 0 | FR8: =IFERROR(VLOOKUP(FO8,MATCHSELEVES!$Y$14:$AE$600,5,FALSE),0) -> 0 | FS8: =IFERROR(VLOOKUP(FO8,MATCHSELEVES!$Y$14:$AF$600,8,FALSE),0) -> 0 | FT8: =IFERROR(VLOOKUP(FO8,MATCHSELEVES!$Y$14:$AG$600,9,FALSE),0) -> 0 | FU8: balise_27 | FV8: =IFERROR(VLOOKUP(FU8,MATCHSELEVES!$Y$14:$AE$600,3,FALSE),0) -> 0 | FW8: =IFERROR(VLOOKUP(FU8,MATCHSELEVES!$Y$14:$AE$600,4,FALSE),0) -> 0 | FX8: =IFERROR(VLOOKUP(FU8,MATCHSELEVES!$Y$14:$AE$600,5,FALSE),0) -> 0 | FY8: =IFERROR(VLOOKUP(FU8,MATCHSELEVES!$Y$14:$AF$600,8,FALSE),0) -> 0 | FZ8: =IFERROR(VLOOKUP(FU8,MATCHSELEVES!$Y$14:$AG$600,9,FALSE),0) -> 0 | GA8: balise_28 | GB8: =IFERROR(VLOOKUP(GA8,MATCHSELEVES!$Y$14:$AE$600,3,FALSE),0) -> 0 | GC8: =IFERROR(VLOOKUP(GA8,MATCHSELEVES!$Y$14:$AE$600,4,FALSE),0) -> 0 | GD8: =IFERROR(VLOOKUP(GA8,MATCHSELEVES!$Y$14:$AE$600,5,FALSE),0) -> 0 | GE8: =IFERROR(VLOOKUP(GA8,MATCHSELEVES!$Y$14:$AF$600,8,FALSE),0) -> 0 | GF8: =IFERROR(VLOOKUP(GA8,MATCHSELEVES!$Y$14:$AG$600,9,FALSE),0) -> 0 | GG8: balise_29 | GH8: =IFERROR(VLOOKUP(GG8,MATCHSELEVES!$Y$14:$AE$600,3,FALSE),0) -> 0 | GI8: =IFERROR(VLOOKUP(GG8,MATCHSELEVES!$Y$14:$AE$600,4,FALSE),0) -> 0 | GJ8: =IFERROR(VLOOKUP(GG8,MATCHSELEVES!$Y$14:$AE$600,5,FALSE),0) -> 0 | GK8: =IFERROR(VLOOKUP(GG8,MATCHSELEVES!$Y$14:$AF$600,8,FALSE),0) -> 0 | GL8: =IFERROR(VLOOKUP(GG8,MATCHSELEVES!$Y$14:$AG$600,9,FALSE),0) -> 0 | GM8: balise_30 | GN8: =IFERROR(VLOOKUP(GM8,MATCHSELEVES!$Y$14:$AE$600,3,FALSE),0) -> 0 | GO8: =IFERROR(VLOOKUP(GM8,MATCHSELEVES!$Y$14:$AE$600,4,FALSE),0) -> 0 | GP8: =IFERROR(VLOOKUP(GM8,MATCHSELEVES!$Y$14:$AE$600,5,FALSE),0) -> 0 | GQ8: =IFERROR(VLOOKUP(GM8,MATCHSELEVES!$Y$14:$AF$600,8,FALSE),0) -> 0 | GR8: =IFERROR(VLOOKUP(GM8,MATCHSELEVES!$Y$14:$AG$600,9,FALSE),0) -> 0 | GS8: balise_31 | GT8: =IFERROR(VLOOKUP(GS8,MATCHSELEVES!$Y$14:$AE$600,3,FALSE),0) -> 0 | GU8: =IFERROR(VLOOKUP(GS8,MATCHSELEVES!$Y$14:$AE$600,4,FALSE),0) -> 0 | GV8: =IFERROR(VLOOKUP(GS8,MATCHSELEVES!$Y$14:$AE$600,5,FALSE),0) -> 0 | GW8: =IFERROR(VLOOKUP(GS8,MATCHSELEVES!$Y$14:$AF$600,8,FALSE),0) -> 0 | GX8: =IFERROR(VLOOKUP(GS8,MATCHSELEVES!$Y$14:$AG$600,9,FALSE),0) -> 0 | GY8: balise_32 | GZ8: =IFERROR(VLOOKUP(GY8,MATCHSELEVES!$Y$14:$AE$600,3,FALSE),0) -> 0 | HA8: =IFERROR(VLOOKUP(GY8,MATCHSELEVES!$Y$14:$AE$600,4,FALSE),0) -> 0 | HB8: =IFERROR(VLOOKUP(GY8,MATCHSELEVES!$Y$14:$AE$600,5,FALSE),0) -> 0 | HC8: =IFERROR(VLOOKUP(GY8,MATCHSELEVES!$Y$14:$AF$600,8,FALSE),0) -> 0 | HD8: =IFERROR(VLOOKUP(GY8,MATCHSELEVES!$Y$14:$AG$600,9,FALSE),0) -> 0 | HE8: balise_33 | HF8: =IFERROR(VLOOKUP(HE8,MATCHSELEVES!$Y$14:$AE$600,3,FALSE),0) -> 0 | HG8: =IFERROR(VLOOKUP(HE8,MATCHSELEVES!$Y$14:$AE$600,4,FALSE),0) -> 0 | HH8: =IFERROR(VLOOKUP(HE8,MATCHSELEVES!$Y$14:$AE$600,5,FALSE),0) -> 0 | HI8: =IFERROR(VLOOKUP(HE8,MATCHSELEVES!$Y$14:$AF$600,8,FALSE),0) -> 0 | HJ8: =IFERROR(VLOOKUP(HE8,MATCHSELEVES!$Y$14:$AG$600,9,FALSE),0) -> 0 | HK8: balise_34 | HL8: =IFERROR(VLOOKUP(HK8,MATCHSELEVES!$Y$14:$AE$600,3,FALSE),0) -> 0 | HM8: =IFERROR(VLOOKUP(HK8,MATCHSELEVES!$Y$14:$AE$600,4,FALSE),0) -> 0 | HN8: =IFERROR(VLOOKUP(HK8,MATCHSELEVES!$Y$14:$AE$600,5,FALSE),0) -> 0 | HO8: =IFERROR(VLOOKUP(HK8,MATCHSELEVES!$Y$14:$AF$600,8,FALSE),0) -> 0 | HP8: =IFERROR(VLOOKUP(HK8,MATCHSELEVES!$Y$14:$AG$600,9,FALSE),0) -> 0 | HQ8: balise_35 | HR8: =IFERROR(VLOOKUP(HQ8,MATCHSELEVES!$Y$14:$AE$600,3,FALSE),0) -> 0 | HS8: =IFERROR(VLOOKUP(HQ8,MATCHSELEVES!$Y$14:$AE$600,4,FALSE),0) -> 0 | HT8: =IFERROR(VLOOKUP(HQ8,MATCHSELEVES!$Y$14:$AE$600,5,FALSE),0) -> 0 | HU8: =IFERROR(VLOOKUP(HQ8,MATCHSELEVES!$Y$14:$AF$600,8,FALSE),0) -> 0 | HV8: =IFERROR(VLOOKUP(HQ8,MATCHSELEVES!$Y$14:$AG$600,9,FALSE),0) -> 0 | HW8: balise_36 | HX8: =IFERROR(VLOOKUP(HW8,MATCHSELEVES!$Y$14:$AE$600,3,FALSE),0) -> 0 | HY8: =IFERROR(VLOOKUP(HW8,MATCHSELEVES!$Y$14:$AE$600,4,FALSE),0) -> 0 | HZ8: =IFERROR(VLOOKUP(HW8,MATCHSELEVES!$Y$14:$AE$600,5,FALSE),0) -> 0 | IA8: =IFERROR(VLOOKUP(HW8,MATCHSELEVES!$Y$14:$AF$600,8,FALSE),0) -> 0 | IB8: =IFERROR(VLOOKUP(HW8,MATCHSELEVES!$Y$14:$AG$600,9,FALSE),0) -> 0 | IC8: balise_37 | ID8: =IFERROR(VLOOKUP(IC8,MATCHSELEVES!$Y$14:$AE$600,3,FALSE),0) -> 0 | IE8: =IFERROR(VLOOKUP(IC8,MATCHSELEVES!$Y$14:$AE$600,4,FALSE),0) -> 0 | IF8: =IFERROR(VLOOKUP(IC8,MATCHSELEVES!$Y$14:$AE$600,5,FALSE),0) -> 0 | IG8: =IFERROR(VLOOKUP(IC8,MATCHSELEVES!$Y$14:$AF$600,8,FALSE),0) -> 0 | IH8: =IFERROR(VLOOKUP(IC8,MATCHSELEVES!$Y$14:$AG$600,9,FALSE),0) -> 0 | II8: balise_38 | IJ8: =IFERROR(VLOOKUP(II8,MATCHSELEVES!$Y$14:$AE$600,3,FALSE),0) -> 0 | IK8: =IFERROR(VLOOKUP(II8,MATCHSELEVES!$Y$14:$AE$600,4,FALSE),0) -> 0 | IL8: =IFERROR(VLOOKUP(II8,MATCHSELEVES!$Y$14:$AE$600,5,FALSE),0) -> 0 | IM8: =IFERROR(VLOOKUP(II8,MATCHSELEVES!$Y$14:$AF$600,8,FALSE),0) -> 0 | IN8: =IFERROR(VLOOKUP(II8,MATCHSELEVES!$Y$14:$AG$600,9,FALSE),0) -> 0 | IO8: balise_39 | IP8: =IFERROR(VLOOKUP(IO8,MATCHSELEVES!$Y$14:$AE$600,3,FALSE),0) -> 0 | IQ8: =IFERROR(VLOOKUP(IO8,MATCHSELEVES!$Y$14:$AE$600,4,FALSE),0) -> 0 | IR8: =IFERROR(VLOOKUP(IO8,MATCHSELEVES!$Y$14:$AE$600,5,FALSE),0) -> 0 | IS8: =IFERROR(VLOOKUP(IO8,MATCHSELEVES!$Y$14:$AF$600,8,FALSE),0) -> 0 | IT8: =IFERROR(VLOOKUP(IO8,MATCHSELEVES!$Y$14:$AG$600,9,FALSE),0) -> 0 | IU8: balise_40 | IV8: =IFERROR(VLOOKUP(IU8,MATCHSELEVES!$Y$14:$AE$600,3,FALSE),0) -> 0 | IW8: =IFERROR(VLOOKUP(IU8,MATCHSELEVES!$Y$14:$AE$600,4,FALSE),0) -> 0 | IX8: =IFERROR(VLOOKUP(IU8,MATCHSELEVES!$Y$14:$AE$600,5,FALSE),0) -> 0 | IY8: =IFERROR(VLOOKUP(IU8,MATCHSELEVES!$Y$14:$AF$600,8,FALSE),0) -> 0 | IZ8: =IFERROR(VLOOKUP(IU8,MATCHSELEVES!$Y$14:$AG$600,9,FALSE),0) -> 0 | JA8: balisep_1 | JB8: =IFERROR(VLOOKUP(JA8,MATCHSELEVES!$Y$14:$AE$600,3,FALSE),0) -> 0 | JC8: =IFERROR(VLOOKUP(JA8,MATCHSELEVES!$Y$14:$AE$600,4,FALSE),0) -> 0 | JD8: =IFERROR(VLOOKUP(JA8,MATCHSELEVES!$Y$14:$AE$600,5,FALSE),0) -> 0 | JE8: =IFERROR(VLOOKUP(JA8,MATCHSELEVES!$Y$14:$AF$600,8,FALSE),0) -> 0 | JF8: =IFERROR(VLOOKUP(JA8,MATCHSELEVES!$Y$14:$AG$600,9,FALSE),0) -> 0 | JG8: balisep_2 | JH8: =IFERROR(VLOOKUP(JG8,MATCHSELEVES!$Y$14:$AE$600,3,FALSE),0) -> 0 | JI8: =IFERROR(VLOOKUP(JG8,MATCHSELEVES!$Y$14:$AE$600,4,FALSE),0) -> 0 | JJ8: =IFERROR(VLOOKUP(JG8,MATCHSELEVES!$Y$14:$AE$600,5,FALSE),0) -> 0 | JK8: =IFERROR(VLOOKUP(JG8,MATCHSELEVES!$Y$14:$AF$600,8,FALSE),0) -> 0 | JL8: =IFERROR(VLOOKUP(JG8,MATCHSELEVES!$Y$14:$AG$600,9,FALSE),0) -> 0 | JM8: balisep_3 | JN8: =IFERROR(VLOOKUP(JM8,MATCHSELEVES!$Y$14:$AE$600,3,FALSE),0) -> 0 | JO8: =IFERROR(VLOOKUP(JM8,MATCHSELEVES!$Y$14:$AE$600,4,FALSE),0) -> 0 | JP8: =IFERROR(VLOOKUP(JM8,MATCHSELEVES!$Y$14:$AE$600,5,FALSE),0) -> 0 | JQ8: =IFERROR(VLOOKUP(JM8,MATCHSELEVES!$Y$14:$AF$600,8,FALSE),0) -> 0 | JR8: =IFERROR(VLOOKUP(JM8,MATCHSELEVES!$Y$14:$AG$600,9,FALSE),0) -> 0 | JS8: balisep_4 | JT8: =IFERROR(VLOOKUP(JS8,MATCHSELEVES!$Y$14:$AE$600,3,FALSE),0) -> 0 | JU8: =IFERROR(VLOOKUP(JS8,MATCHSELEVES!$Y$14:$AE$600,4,FALSE),0) -> 0 | JV8: =IFERROR(VLOOKUP(JS8,MATCHSELEVES!$Y$14:$AE$600,5,FALSE),0) -> 0 | JW8: =IFERROR(VLOOKUP(JS8,MATCHSELEVES!$Y$14:$AF$600,8,FALSE),0) -> 0 | JX8: =IFERROR(VLOOKUP(JS8,MATCHSELEVES!$Y$14:$AG$600,9,FALSE),0) -> 0 | JY8: balisep_5 | JZ8: =IFERROR(VLOOKUP(JY8,MATCHSELEVES!$Y$14:$AE$600,3,FALSE),0) -> 0 | KA8: =IFERROR(VLOOKUP(JY8,MATCHSELEVES!$Y$14:$AE$600,4,FALSE),0) -> 0 | KB8: =IFERROR(VLOOKUP(JY8,MATCHSELEVES!$Y$14:$AE$600,5,FALSE),0) -> 0 | KC8: =IFERROR(VLOOKUP(JY8,MATCHSELEVES!$Y$14:$AF$600,8,FALSE),0) -> 0 | KD8: =IFERROR(VLOOKUP(JY8,MATCHSELEVES!$Y$14:$AG$600,9,FALSE),0) -> 0 | KE8: balisep_6 | KF8: =IFERROR(VLOOKUP(KE8,MATCHSELEVES!$Y$14:$AE$600,3,FALSE),0) -> 0 | KG8: =IFERROR(VLOOKUP(KE8,MATCHSELEVES!$Y$14:$AE$600,4,FALSE),0) -> 0 | KH8: =IFERROR(VLOOKUP(KE8,MATCHSELEVES!$Y$14:$AE$600,5,FALSE),0) -> 0 | KI8: =IFERROR(VLOOKUP(KE8,MATCHSELEVES!$Y$14:$AF$600,8,FALSE),0) -> 0 | KJ8: =IFERROR(VLOOKUP(KE8,MATCHSELEVES!$Y$14:$AG$600,9,FALSE),0) -> 0 | KK8: balisep_7 | KL8: =IFERROR(VLOOKUP(KK8,MATCHSELEVES!$Y$14:$AE$600,3,FALSE),0) -> 0 | KM8: =IFERROR(VLOOKUP(KK8,MATCHSELEVES!$Y$14:$AE$600,4,FALSE),0) -> 0 | KN8: =IFERROR(VLOOKUP(KK8,MATCHSELEVES!$Y$14:$AE$600,5,FALSE),0) -> 0 | KO8: =IFERROR(VLOOKUP(KK8,MATCHSELEVES!$Y$14:$AF$600,8,FALSE),0) -> 0 | KP8: =IFERROR(VLOOKUP(KK8,MATCHSELEVES!$Y$14:$AG$600,9,FALSE),0) -> 0 | KQ8: balisep_8 | KR8: =IFERROR(VLOOKUP(KQ8,MATCHSELEVES!$Y$14:$AE$600,3,FALSE),0) -> 0 | KS8: =IFERROR(VLOOKUP(KQ8,MATCHSELEVES!$Y$14:$AE$600,4,FALSE),0) -> 0 | KT8: =IFERROR(VLOOKUP(KQ8,MATCHSELEVES!$Y$14:$AE$600,5,FALSE),0) -> 0 | KU8: =IFERROR(VLOOKUP(KQ8,MATCHSELEVES!$Y$14:$AF$600,8,FALSE),0) -> 0 | KV8: =IFERROR(VLOOKUP(KQ8,MATCHSELEVES!$Y$14:$AG$600,9,FALSE),0) -> 0 | KW8: balisep_9 | KX8: =IFERROR(VLOOKUP(KW8,MATCHSELEVES!$Y$14:$AE$600,3,FALSE),0) -> 0 | KY8: =IFERROR(VLOOKUP(KW8,MATCHSELEVES!$Y$14:$AE$600,4,FALSE),0) -> 0 | KZ8: =IFERROR(VLOOKUP(KW8,MATCHSELEVES!$Y$14:$AE$600,5,FALSE),0) -> 0 | LA8: =IFERROR(VLOOKUP(KW8,MATCHSELEVES!$Y$14:$AF$600,8,FALSE),0) -> 0 | LB8: =IFERROR(VLOOKUP(KW8,MATCHSELEVES!$Y$14:$AG$600,9,FALSE),0) -> 0 | LC8: balisep_10 | LD8: =IFERROR(VLOOKUP(LC8,MATCHSELEVES!$Y$14:$AE$600,3,FALSE),0) -> 0 | LE8: =IFERROR(VLOOKUP(LC8,MATCHSELEVES!$Y$14:$AE$600,4,FALSE),0) -> 0 | LF8: =IFERROR(VLOOKUP(LC8,MATCHSELEVES!$Y$14:$AE$600,5,FALSE),0) -> 0 | LG8: =IFERROR(VLOOKUP(LC8,MATCHSELEVES!$Y$14:$AF$600,8,FALSE),0) -> 0 | LH8: =IFERROR(VLOOKUP(LC8,MATCHSELEVES!$Y$14:$AG$600,9,FALSE),0) -> 0 | LI8: balisep_11 | LJ8: =IFERROR(VLOOKUP(LI8,MATCHSELEVES!$Y$14:$AE$600,3,FALSE),0) -> 0 | LK8: =IFERROR(VLOOKUP(LI8,MATCHSELEVES!$Y$14:$AE$600,4,FALSE),0) -> 0 | LL8: =IFERROR(VLOOKUP(LI8,MATCHSELEVES!$Y$14:$AE$600,5,FALSE),0) -> 0 | LM8: =IFERROR(VLOOKUP(LI8,MATCHSELEVES!$Y$14:$AF$600,8,FALSE),0) -> 0 | LN8: =IFERROR(VLOOKUP(LI8,MATCHSELEVES!$Y$14:$AG$600,9,FALSE),0) -> 0 | LO8: balisep_12 | LP8: =IFERROR(VLOOKUP(LO8,MATCHSELEVES!$Y$14:$AE$600,3,FALSE),0) -> 0 | LQ8: =IFERROR(VLOOKUP(LO8,MATCHSELEVES!$Y$14:$AE$600,4,FALSE),0) -> 0 | LR8: =IFERROR(VLOOKUP(LO8,MATCHSELEVES!$Y$14:$AE$600,5,FALSE),0) -> 0 | LS8: =IFERROR(VLOOKUP(LO8,MATCHSELEVES!$Y$14:$AF$600,8,FALSE),0) -> 0 | LT8: =IFERROR(VLOOKUP(LO8,MATCHSELEVES!$Y$14:$AG$600,9,FALSE),0) -> 0 | LU8: balisep_13 | LV8: =IFERROR(VLOOKUP(LU8,MATCHSELEVES!$Y$14:$AE$600,3,FALSE),0) -> 0 | LW8: =IFERROR(VLOOKUP(LU8,MATCHSELEVES!$Y$14:$AE$600,4,FALSE),0) -> 0 | LX8: =IFERROR(VLOOKUP(LU8,MATCHSELEVES!$Y$14:$AE$600,5,FALSE),0) -> 0 | LY8: =IFERROR(VLOOKUP(LU8,MATCHSELEVES!$Y$14:$AF$600,8,FALSE),0) -> 0 | LZ8: =IFERROR(VLOOKUP(LU8,MATCHSELEVES!$Y$14:$AG$600,9,FALSE),0) -> 0 | MA8: balisep_14 | MB8: =IFERROR(VLOOKUP(MA8,MATCHSELEVES!$Y$14:$AE$600,3,FALSE),0) -> 0 | MC8: =IFERROR(VLOOKUP(MA8,MATCHSELEVES!$Y$14:$AE$600,4,FALSE),0) -> 0 | MD8: =IFERROR(VLOOKUP(MA8,MATCHSELEVES!$Y$14:$AE$600,5,FALSE),0) -> 0 | ME8: =IFERROR(VLOOKUP(MA8,MATCHSELEVES!$Y$14:$AF$600,8,FALSE),0) -> 0 | MF8: =IFERROR(VLOOKUP(MA8,MATCHSELEVES!$Y$14:$AG$600,9,FALSE),0) -> 0 | MG8: balisep_15 | MH8: =IFERROR(VLOOKUP(MG8,MATCHSELEVES!$Y$14:$AE$600,3,FALSE),0) -> 0 | MI8: =IFERROR(VLOOKUP(MG8,MATCHSELEVES!$Y$14:$AE$600,4,FALSE),0) -> 0 | MJ8: =IFERROR(VLOOKUP(MG8,MATCHSELEVES!$Y$14:$AE$600,5,FALSE),0) -> 0 | MK8: =IFERROR(VLOOKUP(MG8,MATCHSELEVES!$Y$14:$AF$600,8,FALSE),0) -> 0 | ML8: =IFERROR(VLOOKUP(MG8,MATCHSELEVES!$Y$14:$AG$600,9,FALSE),0) -> 0 | MM8: balisep_16 | MN8: =IFERROR(VLOOKUP(MM8,MATCHSELEVES!$Y$14:$AE$600,3,FALSE),0) -> 0 | MO8: =IFERROR(VLOOKUP(MM8,MATCHSELEVES!$Y$14:$AE$600,4,FALSE),0) -> 0 | MP8: =IFERROR(VLOOKUP(MM8,MATCHSELEVES!$Y$14:$AE$600,5,FALSE),0) -> 0 | MQ8: =IFERROR(VLOOKUP(MM8,MATCHSELEVES!$Y$14:$AF$600,8,FALSE),0) -> 0 | MR8: =IFERROR(VLOOKUP(MM8,MATCHSELEVES!$Y$14:$AG$600,9,FALSE),0) -> 0 | MS8: balisep_17 | MT8: =IFERROR(VLOOKUP(MS8,MATCHSELEVES!$Y$14:$AE$600,3,FALSE),0) -> 0 | MU8: =IFERROR(VLOOKUP(MS8,MATCHSELEVES!$Y$14:$AE$600,4,FALSE),0) -> 0 | MV8: =IFERROR(VLOOKUP(MS8,MATCHSELEVES!$Y$14:$AE$600,5,FALSE),0) -> 0 | MW8: =IFERROR(VLOOKUP(MS8,MATCHSELEVES!$Y$14:$AF$600,8,FALSE),0) -> 0 | MX8: =IFERROR(VLOOKUP(MS8,MATCHSELEVES!$Y$14:$AG$600,9,FALSE),0) -> 0 | MY8: balisep_18 | MZ8: =IFERROR(VLOOKUP(MY8,MATCHSELEVES!$Y$14:$AE$600,3,FALSE),0) -> 0 | NA8: =IFERROR(VLOOKUP(MY8,MATCHSELEVES!$Y$14:$AE$600,4,FALSE),0) -> 0 | NB8: =IFERROR(VLOOKUP(MY8,MATCHSELEVES!$Y$14:$AE$600,5,FALSE),0) -> 0 | NC8: =IFERROR(VLOOKUP(MY8,MATCHSELEVES!$Y$14:$AF$600,8,FALSE),0) -> 0 | ND8: =IFERROR(VLOOKUP(MY8,MATCHSELEVES!$Y$14:$AG$600,9,FALSE),0) -> 0 | NE8: balisep_19 | NF8: =IFERROR(VLOOKUP(NE8,MATCHSELEVES!$Y$14:$AE$600,3,FALSE),0) -> 0 | NG8: =IFERROR(VLOOKUP(NE8,MATCHSELEVES!$Y$14:$AE$600,4,FALSE),0) -> 0 | NH8: =IFERROR(VLOOKUP(NE8,MATCHSELEVES!$Y$14:$AE$600,5,FALSE),0) -> 0 | NI8: =IFERROR(VLOOKUP(NE8,MATCHSELEVES!$Y$14:$AF$600,8,FALSE),0) -> 0 | NJ8: =IFERROR(VLOOKUP(NE8,MATCHSELEVES!$Y$14:$AG$600,9,FALSE),0) -> 0 | NK8: balisep_20 | NL8: =IFERROR(VLOOKUP(NK8,MATCHSELEVES!$Y$14:$AE$600,3,FALSE),0) -> 0 | NM8: =IFERROR(VLOOKUP(NK8,MATCHSELEVES!$Y$14:$AE$600,4,FALSE),0) -> 0 | NN8: =IFERROR(VLOOKUP(NK8,MATCHSELEVES!$Y$14:$AE$600,5,FALSE),0) -> 0 | NO8: =IFERROR(VLOOKUP(NK8,MATCHSELEVES!$Y$14:$AF$600,8,FALSE),0) -> 0 | NP8: =IFERROR(VLOOKUP(NK8,MATCHSELEVES!$Y$14:$AG$600,9,FALSE),0) -> 0 | NQ8: balisep_21 | NR8: =IFERROR(VLOOKUP(NQ8,MATCHSELEVES!$Y$14:$AE$600,3,FALSE),0) -> 0 | NS8: =IFERROR(VLOOKUP(NQ8,MATCHSELEVES!$Y$14:$AE$600,4,FALSE),0) -> 0 | NT8: =IFERROR(VLOOKUP(NQ8,MATCHSELEVES!$Y$14:$AE$600,5,FALSE),0) -> 0 | NU8: =IFERROR(VLOOKUP(NQ8,MATCHSELEVES!$Y$14:$AF$600,8,FALSE),0) -> 0 | NV8: =IFERROR(VLOOKUP(NQ8,MATCHSELEVES!$Y$14:$AG$600,9,FALSE),0) -> 0 | NW8: balisep_22 | NX8: =IFERROR(VLOOKUP(NW8,MATCHSELEVES!$Y$14:$AE$600,3,FALSE),0) -> 0 | NY8: =IFERROR(VLOOKUP(NW8,MATCHSELEVES!$Y$14:$AE$600,4,FALSE),0) -> 0 | NZ8: =IFERROR(VLOOKUP(NW8,MATCHSELEVES!$Y$14:$AE$600,5,FALSE),0) -> 0 | OA8: =IFERROR(VLOOKUP(NW8,MATCHSELEVES!$Y$14:$AF$600,8,FALSE),0) -> 0 | OB8: =IFERROR(VLOOKUP(NW8,MATCHSELEVES!$Y$14:$AG$600,9,FALSE),0) -> 0 | OC8: balisep_23 | OD8: =IFERROR(VLOOKUP(OC8,MATCHSELEVES!$Y$14:$AE$600,3,FALSE),0) -> 0 | OE8: =IFERROR(VLOOKUP(OC8,MATCHSELEVES!$Y$14:$AE$600,4,FALSE),0) -> 0 | OF8: =IFERROR(VLOOKUP(OC8,MATCHSELEVES!$Y$14:$AE$600,5,FALSE),0) -> 0 | OG8: =IFERROR(VLOOKUP(OC8,MATCHSELEVES!$Y$14:$AF$600,8,FALSE),0) -> 0 | OH8: =IFERROR(VLOOKUP(OC8,MATCHSELEVES!$Y$14:$AG$600,9,FALSE),0) -> 0 | OI8: balisep_24 | OJ8: =IFERROR(VLOOKUP(OI8,MATCHSELEVES!$Y$14:$AE$600,3,FALSE),0) -> 0 | OK8: =IFERROR(VLOOKUP(OI8,MATCHSELEVES!$Y$14:$AE$600,4,FALSE),0) -> 0 | OL8: =IFERROR(VLOOKUP(OI8,MATCHSELEVES!$Y$14:$AE$600,5,FALSE),0) -> 0 | OM8: =IFERROR(VLOOKUP(OI8,MATCHSELEVES!$Y$14:$AF$600,8,FALSE),0) -> 0 | ON8: =IFERROR(VLOOKUP(OI8,MATCHSELEVES!$Y$14:$AG$600,9,FALSE),0) -> 0 | OO8: balisep_25 | OP8: =IFERROR(VLOOKUP(OO8,MATCHSELEVES!$Y$14:$AE$600,3,FALSE),0) -> 0 | OQ8: =IFERROR(VLOOKUP(OO8,MATCHSELEVES!$Y$14:$AE$600,4,FALSE),0) -> 0 | OR8: =IFERROR(VLOOKUP(OO8,MATCHSELEVES!$Y$14:$AE$600,5,FALSE),0) -> 0 | OS8: =IFERROR(VLOOKUP(OO8,MATCHSELEVES!$Y$14:$AF$600,8,FALSE),0) -> 0 | OT8: =IFERROR(VLOOKUP(OO8,MATCHSELEVES!$Y$14:$AG$600,9,FALSE),0) -> 0 | OU8: balisep_26 | OV8: =IFERROR(VLOOKUP(OU8,MATCHSELEVES!$Y$14:$AE$600,3,FALSE),0) -> 0 | OW8: =IFERROR(VLOOKUP(OU8,MATCHSELEVES!$Y$14:$AE$600,4,FALSE),0) -> 0 | OX8: =IFERROR(VLOOKUP(OU8,MATCHSELEVES!$Y$14:$AE$600,5,FALSE),0) -> 0 | OY8: =IFERROR(VLOOKUP(OU8,MATCHSELEVES!$Y$14:$AF$600,8,FALSE),0) -> 0 | OZ8: =IFERROR(VLOOKUP(OU8,MATCHSELEVES!$Y$14:$AG$600,9,FALSE),0) -> 0 | PA8: balisep_27 | PB8: =IFERROR(VLOOKUP(PA8,MATCHSELEVES!$Y$14:$AE$600,3,FALSE),0) -> 0 | PC8: =IFERROR(VLOOKUP(PA8,MATCHSELEVES!$Y$14:$AE$600,4,FALSE),0) -> 0 | PD8: =IFERROR(VLOOKUP(PA8,MATCHSELEVES!$Y$14:$AE$600,5,FALSE),0) -> 0 | PE8: =IFERROR(VLOOKUP(PA8,MATCHSELEVES!$Y$14:$AF$600,8,FALSE),0) -> 0 | PF8: =IFERROR(VLOOKUP(PA8,MATCHSELEVES!$Y$14:$AG$600,9,FALSE),0) -> 0 | PG8: balisep_28 | PH8: =IFERROR(VLOOKUP(PG8,MATCHSELEVES!$Y$14:$AE$600,3,FALSE),0) -> 0 | PI8: =IFERROR(VLOOKUP(PG8,MATCHSELEVES!$Y$14:$AE$600,4,FALSE),0) -> 0 | PJ8: =IFERROR(VLOOKUP(PG8,MATCHSELEVES!$Y$14:$AE$600,5,FALSE),0) -> 0 | PK8: =IFERROR(VLOOKUP(PG8,MATCHSELEVES!$Y$14:$AF$600,8,FALSE),0) -> 0 | PL8: =IFERROR(VLOOKUP(PG8,MATCHSELEVES!$Y$14:$AG$600,9,FALSE),0) -> 0 | PM8: balisep_29 | PN8: =IFERROR(VLOOKUP(PM8,MATCHSELEVES!$Y$14:$AE$600,3,FALSE),0) -> 0 | PO8: =IFERROR(VLOOKUP(PM8,MATCHSELEVES!$Y$14:$AE$600,4,FALSE),0) -> 0 | PP8: =IFERROR(VLOOKUP(PM8,MATCHSELEVES!$Y$14:$AE$600,5,FALSE),0) -> 0 | PQ8: =IFERROR(VLOOKUP(PM8,MATCHSELEVES!$Y$14:$AF$600,8,FALSE),0) -> 0 | PR8: =IFERROR(VLOOKUP(PM8,MATCHSELEVES!$Y$14:$AG$600,9,FALSE),0) -> 0 | PS8: balisep_30 | PT8: =IFERROR(VLOOKUP(PS8,MATCHSELEVES!$Y$14:$AE$600,3,FALSE),0) -> 0 | PU8: =IFERROR(VLOOKUP(PS8,MATCHSELEVES!$Y$14:$AE$600,4,FALSE),0) -> 0 | PV8: =IFERROR(VLOOKUP(PS8,MATCHSELEVES!$Y$14:$AE$600,5,FALSE),0) -> 0 | PW8: =IFERROR(VLOOKUP(PS8,MATCHSELEVES!$Y$14:$AF$600,8,FALSE),0) -> 0 | PX8: =IFERROR(VLOOKUP(PS8,MATCHSELEVES!$Y$14:$AG$600,9,FALSE),0) -> 0 | PY8: balisep_31 | PZ8: =IFERROR(VLOOKUP(PY8,MATCHSELEVES!$Y$14:$AE$600,3,FALSE),0) -> 0 | QA8: =IFERROR(VLOOKUP(PY8,MATCHSELEVES!$Y$14:$AE$600,4,FALSE),0) -> 0 | QB8: =IFERROR(VLOOKUP(PY8,MATCHSELEVES!$Y$14:$AE$600,5,FALSE),0) -> 0 | QC8: =IFERROR(VLOOKUP(PY8,MATCHSELEVES!$Y$14:$AF$600,8,FALSE),0) -> 0 | QD8: =IFERROR(VLOOKUP(PY8,MATCHSELEVES!$Y$14:$AG$600,9,FALSE),0) -> 0 | QE8: balisep_32 | QF8: =IFERROR(VLOOKUP(QE8,MATCHSELEVES!$Y$14:$AE$600,3,FALSE),0) -> 0 | QG8: =IFERROR(VLOOKUP(QE8,MATCHSELEVES!$Y$14:$AE$600,4,FALSE),0) -> 0 | QH8: =IFERROR(VLOOKUP(QE8,MATCHSELEVES!$Y$14:$AE$600,5,FALSE),0) -> 0 | QI8: =IFERROR(VLOOKUP(QE8,MATCHSELEVES!$Y$14:$AF$600,8,FALSE),0) -> 0 | QJ8: =IFERROR(VLOOKUP(QE8,MATCHSELEVES!$Y$14:$AG$600,9,FALSE),0) -> 0 | QK8: balisep_33 | QL8: =IFERROR(VLOOKUP(QK8,MATCHSELEVES!$Y$14:$AE$600,3,FALSE),0) -> 0 | QM8: =IFERROR(VLOOKUP(QK8,MATCHSELEVES!$Y$14:$AE$600,4,FALSE),0) -> 0 | QN8: =IFERROR(VLOOKUP(QK8,MATCHSELEVES!$Y$14:$AE$600,5,FALSE),0) -> 0 | QO8: =IFERROR(VLOOKUP(QK8,MATCHSELEVES!$Y$14:$AF$600,8,FALSE),0) -> 0 | QP8: =IFERROR(VLOOKUP(QK8,MATCHSELEVES!$Y$14:$AG$600,9,FALSE),0) -> 0 | QQ8: balisep_34 | QR8: =IFERROR(VLOOKUP(QQ8,MATCHSELEVES!$Y$14:$AE$600,3,FALSE),0) -> 0 | QS8: =IFERROR(VLOOKUP(QQ8,MATCHSELEVES!$Y$14:$AE$600,4,FALSE),0) -> 0 | QT8: =IFERROR(VLOOKUP(QQ8,MATCHSELEVES!$Y$14:$AE$600,5,FALSE),0) -> 0 | QU8: =IFERROR(VLOOKUP(QQ8,MATCHSELEVES!$Y$14:$AF$600,8,FALSE),0) -> 0 | QV8: =IFERROR(VLOOKUP(QQ8,MATCHSELEVES!$Y$14:$AG$600,9,FALSE),0) -> 0 | QW8: balisep_35 | QX8: =IFERROR(VLOOKUP(QW8,MATCHSELEVES!$Y$14:$AE$600,3,FALSE),0) -> 0 | QY8: =IFERROR(VLOOKUP(QW8,MATCHSELEVES!$Y$14:$AE$600,4,FALSE),0) -> 0 | QZ8: =IFERROR(VLOOKUP(QW8,MATCHSELEVES!$Y$14:$AE$600,5,FALSE),0) -> 0 | RA8: =IFERROR(VLOOKUP(QW8,MATCHSELEVES!$Y$14:$AF$600,8,FALSE),0) -> 0 | RB8: =IFERROR(VLOOKUP(QW8,MATCHSELEVES!$Y$14:$AG$600,9,FALSE),0) -> 0 | RC8: balisep_36 | RD8: =IFERROR(VLOOKUP(RC8,MATCHSELEVES!$Y$14:$AE$600,3,FALSE),0) -> 0 | RE8: =IFERROR(VLOOKUP(RC8,MATCHSELEVES!$Y$14:$AE$600,4,FALSE),0) -> 0 | RF8: =IFERROR(VLOOKUP(RC8,MATCHSELEVES!$Y$14:$AE$600,5,FALSE),0) -> 0 | RG8: =IFERROR(VLOOKUP(RC8,MATCHSELEVES!$Y$14:$AF$600,8,FALSE),0) -> 0 | RH8: =IFERROR(VLOOKUP(RC8,MATCHSELEVES!$Y$14:$AG$600,9,FALSE),0) -> 0 | RI8: balisep_37 | RJ8: =IFERROR(VLOOKUP(RI8,MATCHSELEVES!$Y$14:$AE$600,3,FALSE),0) -> 0 | RK8: =IFERROR(VLOOKUP(RI8,MATCHSELEVES!$Y$14:$AE$600,4,FALSE),0) -> 0 | RL8: =IFERROR(VLOOKUP(RI8,MATCHSELEVES!$Y$14:$AE$600,5,FALSE),0) -> 0 | RM8: =IFERROR(VLOOKUP(RI8,MATCHSELEVES!$Y$14:$AF$600,8,FALSE),0) -> 0 | RN8: =IFERROR(VLOOKUP(RI8,MATCHSELEVES!$Y$14:$AG$600,9,FALSE),0) -> 0 | RO8: balisep_38 | RP8: =IFERROR(VLOOKUP(RO8,MATCHSELEVES!$Y$14:$AE$600,3,FALSE),0) -> 0 | RQ8: =IFERROR(VLOOKUP(RO8,MATCHSELEVES!$Y$14:$AE$600,4,FALSE),0) -> 0 | RR8: =IFERROR(VLOOKUP(RO8,MATCHSELEVES!$Y$14:$AE$600,5,FALSE),0) -> 0 | RS8: =IFERROR(VLOOKUP(RO8,MATCHSELEVES!$Y$14:$AF$600,8,FALSE),0) -> 0 | RT8: =IFERROR(VLOOKUP(RO8,MATCHSELEVES!$Y$14:$AG$600,9,FALSE),0) -> 0 | RU8: balisep_39 | RV8: =IFERROR(VLOOKUP(RU8,MATCHSELEVES!$Y$14:$AE$600,3,FALSE),0) -> 0 | RW8: =IFERROR(VLOOKUP(RU8,MATCHSELEVES!$Y$14:$AE$600,4,FALSE),0) -> 0 | RX8: =IFERROR(VLOOKUP(RU8,MATCHSELEVES!$Y$14:$AE$600,5,FALSE),0) -> 0 | RY8: =IFERROR(VLOOKUP(RU8,MATCHSELEVES!$Y$14:$AF$600,8,FALSE),0) -> 0 | RZ8: =IFERROR(VLOOKUP(RU8,MATCHSELEVES!$Y$14:$AG$600,9,FALSE),0) -> 0 | SA8: balisep_40 | SB8: =IFERROR(VLOOKUP(SA8,MATCHSELEVES!$Y$14:$AE$600,3,FALSE),0) -> 0 | SC8: =IFERROR(VLOOKUP(SA8,MATCHSELEVES!$Y$14:$AE$600,4,FALSE),0) -> 0 | SD8: =IFERROR(VLOOKUP(SA8,MATCHSELEVES!$Y$14:$AE$600,5,FALSE),0) -> 0 | SE8: =IFERROR(VLOOKUP(SA8,MATCHSELEVES!$Y$14:$AF$600,8,FALSE),0) -> 0 | SF8: =IFERROR(VLOOKUP(SA8,MATCHSELEVES!$Y$14:$AG$600,9,FALSE),0) -> 0
A9: 6 | C9: Beqir | D9: 6 | G9: =COUNTIF(MATCHSELEVES!$Z$14:$Z$600,C9)+COUNTIF(MATCHSELEVES!$Z$14:$Z$600,$C9&"p") -> 0 | H9: 1 | I9: =COUNTIF(MATCHSELEVES!$F$14:$H$249,C9) -> 0 | J9: 1 | K9: 0 | L9: 1 | M9: =IFERROR(M52/Tableau10[[#This Row],[Nombre de matchs joués]],0) -> 0 | N9: =IF(Tableau10[[#This Row],[Nombre de points encaissés]]=0,$C$45,SUMPRODUCT((M$4:M$43<M9)*(M$4:M$43<>0))+1) -> 40 | O9: 0 | P9: 1 | Q9: =(Tableau10[[#This Row],[CLASSEMENT1]]+Tableau10[[#This Row],[CLASSEMENT2]]+Tableau10[[#This Row],[CLASSEMENT3]]+Tableau10[[#This Row],[CLASSEMENT4]]+Tableau10[[#This Row],[CLASSEMENT5]]+Tableau10[[#This Row],[CLASSEMENT6]])/6 -> 8.333333333 | R9: =RANK(Tableau10[[#This Row],[MOYENNE CLASSEMENTS]],Tableau10[MOYENNE CLASSEMENTS],1) -> 6 | T9: =Tableau10[[#This Row],[CLASSEMENT1]] -> 6 | U9: Beqir_1 | V9: =IFERROR(VLOOKUP(U9,MATCHSELEVES!$Y$14:$AE$600,3,FALSE),0) -> 0 | W9: =IFERROR(VLOOKUP(U9,MATCHSELEVES!$Y$14:$AE$600,4,FALSE),0) -> 0 | X9: =IFERROR(VLOOKUP(U9,MATCHSELEVES!$Y$14:$AE$600,5,FALSE),0) -> 0 | Y9: =IFERROR(VLOOKUP(U9,MATCHSELEVES!$Y$14:$AF$600,8,FALSE),0) -> 0 | Z9: =IFERROR(VLOOKUP(U9,MATCHSELEVES!$Y$14:$AG$600,9,FALSE),0) -> 0 | AA9: Beqir_2 | AB9: =IFERROR(VLOOKUP(AA9,MATCHSELEVES!$Y$14:$AE$600,3,FALSE),0) -> 0 | AC9: =IFERROR(VLOOKUP(AA9,MATCHSELEVES!$Y$14:$AE$600,4,FALSE),0) -> 0 | AD9: =IFERROR(VLOOKUP(AA9,MATCHSELEVES!$Y$14:$AE$600,5,FALSE),0) -> 0 | AE9: =IFERROR(VLOOKUP(AA9,MATCHSELEVES!$Y$14:$AF$600,8,FALSE),0) -> 0 | AF9: =IFERROR(VLOOKUP(AA9,MATCHSELEVES!$Y$14:$AG$600,9,FALSE),0) -> 0 | AG9: Beqir_3 | AH9: =IFERROR(VLOOKUP(AG9,MATCHSELEVES!$Y$14:$AE$600,3,FALSE),0) -> 0 | AI9: =IFERROR(VLOOKUP(AG9,MATCHSELEVES!$Y$14:$AE$600,4,FALSE),0) -> 0 | AJ9: =IFERROR(VLOOKUP(AG9,MATCHSELEVES!$Y$14:$AE$600,5,FALSE),0) -> 0 | AK9: =IFERROR(VLOOKUP(AG9,MATCHSELEVES!$Y$14:$AF$600,8,FALSE),0) -> 0 | AL9: =IFERROR(VLOOKUP(AG9,MATCHSELEVES!$Y$14:$AG$600,9,FALSE),0) -> 0 | AM9: Beqir_4 | AN9: =IFERROR(VLOOKUP(AM9,MATCHSELEVES!$Y$14:$AE$600,3,FALSE),0) -> 0 | AO9: =IFERROR(VLOOKUP(AM9,MATCHSELEVES!$Y$14:$AE$600,4,FALSE),0) -> 0 | AP9: =IFERROR(VLOOKUP(AM9,MATCHSELEVES!$Y$14:$AE$600,5,FALSE),0) -> 0 | AQ9: =IFERROR(VLOOKUP(AM9,MATCHSELEVES!$Y$14:$AF$600,8,FALSE),0) -> 0 | AR9: =IFERROR(VLOOKUP(AM9,MATCHSELEVES!$Y$14:$AG$600,9,FALSE),0) -> 0 | AS9: Beqir_5 | AT9: =IFERROR(VLOOKUP(AS9,MATCHSELEVES!$Y$14:$AE$600,3,FALSE),0) -> 0 | AU9: =IFERROR(VLOOKUP(AS9,MATCHSELEVES!$Y$14:$AE$600,4,FALSE),0) -> 0 | AV9: =IFERROR(VLOOKUP(AS9,MATCHSELEVES!$Y$14:$AE$600,5,FALSE),0) -> 0 | AW9: =IFERROR(VLOOKUP(AS9,MATCHSELEVES!$Y$14:$AF$600,8,FALSE),0) -> 0 | AX9: =IFERROR(VLOOKUP(AS9,MATCHSELEVES!$Y$14:$AG$600,9,FALSE),0) -> 0 | AY9: Beqir_6 | AZ9: =IFERROR(VLOOKUP(AY9,MATCHSELEVES!$Y$14:$AE$600,3,FALSE),0) -> 0 | BA9: =IFERROR(VLOOKUP(AY9,MATCHSELEVES!$Y$14:$AE$600,4,FALSE),0) -> 0 | BB9: =IFERROR(VLOOKUP(AY9,MATCHSELEVES!$Y$14:$AE$600,5,FALSE),0) -> 0 | BC9: =IFERROR(VLOOKUP(AY9,MATCHSELEVES!$Y$14:$AF$600,8,FALSE),0) -> 0 | BD9: =IFERROR(VLOOKUP(AY9,MATCHSELEVES!$Y$14:$AG$600,9,FALSE),0) -> 0 | BE9: Beqir_7 | BF9: =IFERROR(VLOOKUP(BE9,MATCHSELEVES!$Y$14:$AE$600,3,FALSE),0) -> 0 | BG9: =IFERROR(VLOOKUP(BE9,MATCHSELEVES!$Y$14:$AE$600,4,FALSE),0) -> 0 | BH9: =IFERROR(VLOOKUP(BE9,MATCHSELEVES!$Y$14:$AE$600,5,FALSE),0) -> 0 | BI9: =IFERROR(VLOOKUP(BE9,MATCHSELEVES!$Y$14:$AF$600,8,FALSE),0) -> 0 | BJ9: =IFERROR(VLOOKUP(BE9,MATCHSELEVES!$Y$14:$AG$600,9,FALSE),0) -> 0 | BK9: Beqir_8 | BL9: =IFERROR(VLOOKUP(BK9,MATCHSELEVES!$Y$14:$AE$600,3,FALSE),0) -> 0 | BM9: =IFERROR(VLOOKUP(BK9,MATCHSELEVES!$Y$14:$AE$600,4,FALSE),0) -> 0 | BN9: =IFERROR(VLOOKUP(BK9,MATCHSELEVES!$Y$14:$AE$600,5,FALSE),0) -> 0 | BO9: =IFERROR(VLOOKUP(BK9,MATCHSELEVES!$Y$14:$AF$600,8,FALSE),0) -> 0 | BP9: =IFERROR(VLOOKUP(BK9,MATCHSELEVES!$Y$14:$AG$600,9,FALSE),0) -> 0 | BQ9: Beqir_9 | BR9: =IFERROR(VLOOKUP(BQ9,MATCHSELEVES!$Y$14:$AE$600,3,FALSE),0) -> 0 | BS9: =IFERROR(VLOOKUP(BQ9,MATCHSELEVES!$Y$14:$AE$600,4,FALSE),0) -> 0 | BT9: =IFERROR(VLOOKUP(BQ9,MATCHSELEVES!$Y$14:$AE$600,5,FALSE),0) -> 0 | BU9: =IFERROR(VLOOKUP(BQ9,MATCHSELEVES!$Y$14:$AF$600,8,FALSE),0) -> 0 | BV9: =IFERROR(VLOOKUP(BQ9,MATCHSELEVES!$Y$14:$AG$600,9,FALSE),0) -> 0 | BW9: Beqir_10 | BX9: =IFERROR(VLOOKUP(BW9,MATCHSELEVES!$Y$14:$AE$600,3,FALSE),0) -> 0 | BY9: =IFERROR(VLOOKUP(BW9,MATCHSELEVES!$Y$14:$AE$600,4,FALSE),0) -> 0 | BZ9: =IFERROR(VLOOKUP(BW9,MATCHSELEVES!$Y$14:$AE$600,5,FALSE),0) -> 0 | CA9: =IFERROR(VLOOKUP(BW9,MATCHSELEVES!$Y$14:$AF$600,8,FALSE),0) -> 0 | CB9: =IFERROR(VLOOKUP(BW9,MATCHSELEVES!$Y$14:$AG$600,9,FALSE),0) -> 0 | CC9: Beqir_11 | CD9: =IFERROR(VLOOKUP(CC9,MATCHSELEVES!$Y$14:$AE$600,3,FALSE),0) -> 0 | CE9: =IFERROR(VLOOKUP(CC9,MATCHSELEVES!$Y$14:$AE$600,4,FALSE),0) -> 0 | CF9: =IFERROR(VLOOKUP(CC9,MATCHSELEVES!$Y$14:$AE$600,5,FALSE),0) -> 0 | CG9: =IFERROR(VLOOKUP(CC9,MATCHSELEVES!$Y$14:$AF$600,8,FALSE),0) -> 0 | CH9: =IFERROR(VLOOKUP(CC9,MATCHSELEVES!$Y$14:$AG$600,9,FALSE),0) -> 0 | CI9: Beqir_12 | CJ9: =IFERROR(VLOOKUP(CI9,MATCHSELEVES!$Y$14:$AE$600,3,FALSE),0) -> 0 | CK9: =IFERROR(VLOOKUP(CI9,MATCHSELEVES!$Y$14:$AE$600,4,FALSE),0) -> 0 | CL9: =IFERROR(VLOOKUP(CI9,MATCHSELEVES!$Y$14:$AE$600,5,FALSE),0) -> 0 | CM9: =IFERROR(VLOOKUP(CI9,MATCHSELEVES!$Y$14:$AF$600,8,FALSE),0) -> 0 | CN9: =IFERROR(VLOOKUP(CI9,MATCHSELEVES!$Y$14:$AG$600,9,FALSE),0) -> 0 | CO9: Beqir_13 | CP9: =IFERROR(VLOOKUP(CO9,MATCHSELEVES!$Y$14:$AE$600,3,FALSE),0) -> 0 | CQ9: =IFERROR(VLOOKUP(CO9,MATCHSELEVES!$Y$14:$AE$600,4,FALSE),0) -> 0 | CR9: =IFERROR(VLOOKUP(CO9,MATCHSELEVES!$Y$14:$AE$600,5,FALSE),0) -> 0 | CS9: =IFERROR(VLOOKUP(CO9,MATCHSELEVES!$Y$14:$AF$600,8,FALSE),0) -> 0 | CT9: =IFERROR(VLOOKUP(CO9,MATCHSELEVES!$Y$14:$AG$600,9,FALSE),0) -> 0 | CU9: Beqir_14 | CV9: =IFERROR(VLOOKUP(CU9,MATCHSELEVES!$Y$14:$AE$600,3,FALSE),0) -> 0 | CW9: =IFERROR(VLOOKUP(CU9,MATCHSELEVES!$Y$14:$AE$600,4,FALSE),0) -> 0 | CX9: =IFERROR(VLOOKUP(CU9,MATCHSELEVES!$Y$14:$AE$600,5,FALSE),0) -> 0 | CY9: =IFERROR(VLOOKUP(CU9,MATCHSELEVES!$Y$14:$AF$600,8,FALSE),0) -> 0 | CZ9: =IFERROR(VLOOKUP(CU9,MATCHSELEVES!$Y$14:$AG$600,9,FALSE),0) -> 0 | DA9: Beqir_15 | DB9: =IFERROR(VLOOKUP(DA9,MATCHSELEVES!$Y$14:$AE$600,3,FALSE),0) -> 0 | DC9: =IFERROR(VLOOKUP(DA9,MATCHSELEVES!$Y$14:$AE$600,4,FALSE),0) -> 0 | DD9: =IFERROR(VLOOKUP(DA9,MATCHSELEVES!$Y$14:$AE$600,5,FALSE),0) -> 0 | DE9: =IFERROR(VLOOKUP(DA9,MATCHSELEVES!$Y$14:$AF$600,8,FALSE),0) -> 0 | DF9: =IFERROR(VLOOKUP(DA9,MATCHSELEVES!$Y$14:$AG$600,9,FALSE),0) -> 0 | DG9: Beqir_16 | DH9: =IFERROR(VLOOKUP(DG9,MATCHSELEVES!$Y$14:$AE$600,3,FALSE),0) -> 0 | DI9: =IFERROR(VLOOKUP(DG9,MATCHSELEVES!$Y$14:$AE$600,4,FALSE),0) -> 0 | DJ9: =IFERROR(VLOOKUP(DG9,MATCHSELEVES!$Y$14:$AE$600,5,FALSE),0) -> 0 | DK9: =IFERROR(VLOOKUP(DG9,MATCHSELEVES!$Y$14:$AF$600,8,FALSE),0) -> 0 | DL9: =IFERROR(VLOOKUP(DG9,MATCHSELEVES!$Y$14:$AG$600,9,FALSE),0) -> 0 | DM9: Beqir_17 | DN9: =IFERROR(VLOOKUP(DM9,MATCHSELEVES!$Y$14:$AE$600,3,FALSE),0) -> 0 | DO9: =IFERROR(VLOOKUP(DM9,MATCHSELEVES!$Y$14:$AE$600,4,FALSE),0) -> 0 | DP9: =IFERROR(VLOOKUP(DM9,MATCHSELEVES!$Y$14:$AE$600,5,FALSE),0) -> 0 | DQ9: =IFERROR(VLOOKUP(DM9,MATCHSELEVES!$Y$14:$AF$600,8,FALSE),0) -> 0 | DR9: =IFERROR(VLOOKUP(DM9,MATCHSELEVES!$Y$14:$AG$600,9,FALSE),0) -> 0 | DS9: Beqir_18 | DT9: =IFERROR(VLOOKUP(DS9,MATCHSELEVES!$Y$14:$AE$600,3,FALSE),0) -> 0 | DU9: =IFERROR(VLOOKUP(DS9,MATCHSELEVES!$Y$14:$AE$600,4,FALSE),0) -> 0 | DV9: =IFERROR(VLOOKUP(DS9,MATCHSELEVES!$Y$14:$AE$600,5,FALSE),0) -> 0 | DW9: =IFERROR(VLOOKUP(DS9,MATCHSELEVES!$Y$14:$AF$600,8,FALSE),0) -> 0 | DX9: =IFERROR(VLOOKUP(DS9,MATCHSELEVES!$Y$14:$AG$600,9,FALSE),0) -> 0 | DY9: Beqir_19 | DZ9: =IFERROR(VLOOKUP(DY9,MATCHSELEVES!$Y$14:$AE$600,3,FALSE),0) -> 0 | EA9: =IFERROR(VLOOKUP(DY9,MATCHSELEVES!$Y$14:$AE$600,4,FALSE),0) -> 0 | EB9: =IFERROR(VLOOKUP(DY9,MATCHSELEVES!$Y$14:$AE$600,5,FALSE),0) -> 0 | EC9: =IFERROR(VLOOKUP(DY9,MATCHSELEVES!$Y$14:$AF$600,8,FALSE),0) -> 0 | ED9: =IFERROR(VLOOKUP(DY9,MATCHSELEVES!$Y$14:$AG$600,9,FALSE),0) -> 0 | EE9: Beqir_20 | EF9: =IFERROR(VLOOKUP(EE9,MATCHSELEVES!$Y$14:$AE$600,3,FALSE),0) -> 0 | EG9: =IFERROR(VLOOKUP(EE9,MATCHSELEVES!$Y$14:$AE$600,4,FALSE),0) -> 0 | EH9: =IFERROR(VLOOKUP(EE9,MATCHSELEVES!$Y$14:$AE$600,5,FALSE),0) -> 0 | EI9: =IFERROR(VLOOKUP(EE9,MATCHSELEVES!$Y$14:$AF$600,8,FALSE),0) -> 0 | EJ9: =IFERROR(VLOOKUP(EE9,MATCHSELEVES!$Y$14:$AG$600,9,FALSE),0) -> 0 | EK9: Beqir_21 | EL9: =IFERROR(VLOOKUP(EK9,MATCHSELEVES!$Y$14:$AE$600,3,FALSE),0) -> 0 | EM9: =IFERROR(VLOOKUP(EK9,MATCHSELEVES!$Y$14:$AE$600,4,FALSE),0) -> 0 | EN9: =IFERROR(VLOOKUP(EK9,MATCHSELEVES!$Y$14:$AE$600,5,FALSE),0) -> 0 | EO9: =IFERROR(VLOOKUP(EK9,MATCHSELEVES!$Y$14:$AF$600,8,FALSE),0) -> 0 | EP9: =IFERROR(VLOOKUP(EK9,MATCHSELEVES!$Y$14:$AG$600,9,FALSE),0) -> 0 | EQ9: Beqir_22 | ER9: =IFERROR(VLOOKUP(EQ9,MATCHSELEVES!$Y$14:$AE$600,3,FALSE),0) -> 0 | ES9: =IFERROR(VLOOKUP(EQ9,MATCHSELEVES!$Y$14:$AE$600,4,FALSE),0) -> 0 | ET9: =IFERROR(VLOOKUP(EQ9,MATCHSELEVES!$Y$14:$AE$600,5,FALSE),0) -> 0 | EU9: =IFERROR(VLOOKUP(EQ9,MATCHSELEVES!$Y$14:$AF$600,8,FALSE),0) -> 0 | EV9: =IFERROR(VLOOKUP(EQ9,MATCHSELEVES!$Y$14:$AG$600,9,FALSE),0) -> 0 | EW9: Beqir_23 | EX9: =IFERROR(VLOOKUP(EW9,MATCHSELEVES!$Y$14:$AE$600,3,FALSE),0) -> 0 | EY9: =IFERROR(VLOOKUP(EW9,MATCHSELEVES!$Y$14:$AE$600,4,FALSE),0) -> 0 | EZ9: =IFERROR(VLOOKUP(EW9,MATCHSELEVES!$Y$14:$AE$600,5,FALSE),0) -> 0 | FA9: =IFERROR(VLOOKUP(EW9,MATCHSELEVES!$Y$14:$AF$600,8,FALSE),0) -> 0 | FB9: =IFERROR(VLOOKUP(EW9,MATCHSELEVES!$Y$14:$AG$600,9,FALSE),0) -> 0 | FC9: Beqir_24 | FD9: =IFERROR(VLOOKUP(FC9,MATCHSELEVES!$Y$14:$AE$600,3,FALSE),0) -> 0 | FE9: =IFERROR(VLOOKUP(FC9,MATCHSELEVES!$Y$14:$AE$600,4,FALSE),0) -> 0 | FF9: =IFERROR(VLOOKUP(FC9,MATCHSELEVES!$Y$14:$AE$600,5,FALSE),0) -> 0 | FG9: =IFERROR(VLOOKUP(FC9,MATCHSELEVES!$Y$14:$AF$600,8,FALSE),0) -> 0 | FH9: =IFERROR(VLOOKUP(FC9,MATCHSELEVES!$Y$14:$AG$600,9,FALSE),0) -> 0 | FI9: Beqir_25 | FJ9: =IFERROR(VLOOKUP(FI9,MATCHSELEVES!$Y$14:$AE$600,3,FALSE),0) -> 0 | FK9: =IFERROR(VLOOKUP(FI9,MATCHSELEVES!$Y$14:$AE$600,4,FALSE),0) -> 0 | FL9: =IFERROR(VLOOKUP(FI9,MATCHSELEVES!$Y$14:$AE$600,5,FALSE),0) -> 0 | FM9: =IFERROR(VLOOKUP(FI9,MATCHSELEVES!$Y$14:$AF$600,8,FALSE),0) -> 0 | FN9: =IFERROR(VLOOKUP(FI9,MATCHSELEVES!$Y$14:$AG$600,9,FALSE),0) -> 0 | FO9: Beqir_26 | FP9: =IFERROR(VLOOKUP(FO9,MATCHSELEVES!$Y$14:$AE$600,3,FALSE),0) -> 0 | FQ9: =IFERROR(VLOOKUP(FO9,MATCHSELEVES!$Y$14:$AE$600,4,FALSE),0) -> 0 | FR9: =IFERROR(VLOOKUP(FO9,MATCHSELEVES!$Y$14:$AE$600,5,FALSE),0) -> 0 | FS9: =IFERROR(VLOOKUP(FO9,MATCHSELEVES!$Y$14:$AF$600,8,FALSE),0) -> 0 | FT9: =IFERROR(VLOOKUP(FO9,MATCHSELEVES!$Y$14:$AG$600,9,FALSE),0) -> 0 | FU9: Beqir_27 | FV9: =IFERROR(VLOOKUP(FU9,MATCHSELEVES!$Y$14:$AE$600,3,FALSE),0) -> 0 | FW9: =IFERROR(VLOOKUP(FU9,MATCHSELEVES!$Y$14:$AE$600,4,FALSE),0) -> 0 | FX9: =IFERROR(VLOOKUP(FU9,MATCHSELEVES!$Y$14:$AE$600,5,FALSE),0) -> 0 | FY9: =IFERROR(VLOOKUP(FU9,MATCHSELEVES!$Y$14:$AF$600,8,FALSE),0) -> 0 | FZ9: =IFERROR(VLOOKUP(FU9,MATCHSELEVES!$Y$14:$AG$600,9,FALSE),0) -> 0 | GA9: Beqir_28 | GB9: =IFERROR(VLOOKUP(GA9,MATCHSELEVES!$Y$14:$AE$600,3,FALSE),0) -> 0 | GC9: =IFERROR(VLOOKUP(GA9,MATCHSELEVES!$Y$14:$AE$600,4,FALSE),0) -> 0 | GD9: =IFERROR(VLOOKUP(GA9,MATCHSELEVES!$Y$14:$AE$600,5,FALSE),0) -> 0 | GE9: =IFERROR(VLOOKUP(GA9,MATCHSELEVES!$Y$14:$AF$600,8,FALSE),0) -> 0 | GF9: =IFERROR(VLOOKUP(GA9,MATCHSELEVES!$Y$14:$AG$600,9,FALSE),0) -> 0 | GG9: Beqir_29 | GH9: =IFERROR(VLOOKUP(GG9,MATCHSELEVES!$Y$14:$AE$600,3,FALSE),0) -> 0 | GI9: =IFERROR(VLOOKUP(GG9,MATCHSELEVES!$Y$14:$AE$600,4,FALSE),0) -> 0 | GJ9: =IFERROR(VLOOKUP(GG9,MATCHSELEVES!$Y$14:$AE$600,5,FALSE),0) -> 0 | GK9: =IFERROR(VLOOKUP(GG9,MATCHSELEVES!$Y$14:$AF$600,8,FALSE),0) -> 0 | GL9: =IFERROR(VLOOKUP(GG9,MATCHSELEVES!$Y$14:$AG$600,9,FALSE),0) -> 0 | GM9: Beqir_30 | GN9: =IFERROR(VLOOKUP(GM9,MATCHSELEVES!$Y$14:$AE$600,3,FALSE),0) -> 0 | GO9: =IFERROR(VLOOKUP(GM9,MATCHSELEVES!$Y$14:$AE$600,4,FALSE),0) -> 0 | GP9: =IFERROR(VLOOKUP(GM9,MATCHSELEVES!$Y$14:$AE$600,5,FALSE),0) -> 0 | GQ9: =IFERROR(VLOOKUP(GM9,MATCHSELEVES!$Y$14:$AF$600,8,FALSE),0) -> 0 | GR9: =IFERROR(VLOOKUP(GM9,MATCHSELEVES!$Y$14:$AG$600,9,FALSE),0) -> 0 | GS9: Beqir_31 | GT9: =IFERROR(VLOOKUP(GS9,MATCHSELEVES!$Y$14:$AE$600,3,FALSE),0) -> 0 | GU9: =IFERROR(VLOOKUP(GS9,MATCHSELEVES!$Y$14:$AE$600,4,FALSE),0) -> 0 | GV9: =IFERROR(VLOOKUP(GS9,MATCHSELEVES!$Y$14:$AE$600,5,FALSE),0) -> 0 | GW9: =IFERROR(VLOOKUP(GS9,MATCHSELEVES!$Y$14:$AF$600,8,FALSE),0) -> 0 | GX9: =IFERROR(VLOOKUP(GS9,MATCHSELEVES!$Y$14:$AG$600,9,FALSE),0) -> 0 | GY9: Beqir_32 | GZ9: =IFERROR(VLOOKUP(GY9,MATCHSELEVES!$Y$14:$AE$600,3,FALSE),0) -> 0 | HA9: =IFERROR(VLOOKUP(GY9,MATCHSELEVES!$Y$14:$AE$600,4,FALSE),0) -> 0 | HB9: =IFERROR(VLOOKUP(GY9,MATCHSELEVES!$Y$14:$AE$600,5,FALSE),0) -> 0 | HC9: =IFERROR(VLOOKUP(GY9,MATCHSELEVES!$Y$14:$AF$600,8,FALSE),0) -> 0 | HD9: =IFERROR(VLOOKUP(GY9,MATCHSELEVES!$Y$14:$AG$600,9,FALSE),0) -> 0 | HE9: Beqir_33 | HF9: =IFERROR(VLOOKUP(HE9,MATCHSELEVES!$Y$14:$AE$600,3,FALSE),0) -> 0 | HG9: =IFERROR(VLOOKUP(HE9,MATCHSELEVES!$Y$14:$AE$600,4,FALSE),0) -> 0 | HH9: =IFERROR(VLOOKUP(HE9,MATCHSELEVES!$Y$14:$AE$600,5,FALSE),0) -> 0 | HI9: =IFERROR(VLOOKUP(HE9,MATCHSELEVES!$Y$14:$AF$600,8,FALSE),0) -> 0 | HJ9: =IFERROR(VLOOKUP(HE9,MATCHSELEVES!$Y$14:$AG$600,9,FALSE),0) -> 0 | HK9: Beqir_34 | HL9: =IFERROR(VLOOKUP(HK9,MATCHSELEVES!$Y$14:$AE$600,3,FALSE),0) -> 0 | HM9: =IFERROR(VLOOKUP(HK9,MATCHSELEVES!$Y$14:$AE$600,4,FALSE),0) -> 0 | HN9: =IFERROR(VLOOKUP(HK9,MATCHSELEVES!$Y$14:$AE$600,5,FALSE),0) -> 0 | HO9: =IFERROR(VLOOKUP(HK9,MATCHSELEVES!$Y$14:$AF$600,8,FALSE),0) -> 0 | HP9: =IFERROR(VLOOKUP(HK9,MATCHSELEVES!$Y$14:$AG$600,9,FALSE),0) -> 0 | HQ9: Beqir_35 | HR9: =IFERROR(VLOOKUP(HQ9,MATCHSELEVES!$Y$14:$AE$600,3,FALSE),0) -> 0 | HS9: =IFERROR(VLOOKUP(HQ9,MATCHSELEVES!$Y$14:$AE$600,4,FALSE),0) -> 0 | HT9: =IFERROR(VLOOKUP(HQ9,MATCHSELEVES!$Y$14:$AE$600,5,FALSE),0) -> 0 | HU9: =IFERROR(VLOOKUP(HQ9,MATCHSELEVES!$Y$14:$AF$600,8,FALSE),0) -> 0 | HV9: =IFERROR(VLOOKUP(HQ9,MATCHSELEVES!$Y$14:$AG$600,9,FALSE),0) -> 0 | HW9: Beqir_36 | HX9: =IFERROR(VLOOKUP(HW9,MATCHSELEVES!$Y$14:$AE$600,3,FALSE),0) -> 0 | HY9: =IFERROR(VLOOKUP(HW9,MATCHSELEVES!$Y$14:$AE$600,4,FALSE),0) -> 0 | HZ9: =IFERROR(VLOOKUP(HW9,MATCHSELEVES!$Y$14:$AE$600,5,FALSE),0) -> 0 | IA9: =IFERROR(VLOOKUP(HW9,MATCHSELEVES!$Y$14:$AF$600,8,FALSE),0) -> 0 | IB9: =IFERROR(VLOOKUP(HW9,MATCHSELEVES!$Y$14:$AG$600,9,FALSE),0) -> 0 | IC9: Beqir_37 | ID9: =IFERROR(VLOOKUP(IC9,MATCHSELEVES!$Y$14:$AE$600,3,FALSE),0) -> 0 | IE9: =IFERROR(VLOOKUP(IC9,MATCHSELEVES!$Y$14:$AE$600,4,FALSE),0) -> 0 | IF9: =IFERROR(VLOOKUP(IC9,MATCHSELEVES!$Y$14:$AE$600,5,FALSE),0) -> 0 | IG9: =IFERROR(VLOOKUP(IC9,MATCHSELEVES!$Y$14:$AF$600,8,FALSE),0) -> 0 | IH9: =IFERROR(VLOOKUP(IC9,MATCHSELEVES!$Y$14:$AG$600,9,FALSE),0) -> 0 | II9: Beqir_38 | IJ9: =IFERROR(VLOOKUP(II9,MATCHSELEVES!$Y$14:$AE$600,3,FALSE),0) -> 0 | IK9: =IFERROR(VLOOKUP(II9,MATCHSELEVES!$Y$14:$AE$600,4,FALSE),0) -> 0 | IL9: =IFERROR(VLOOKUP(II9,MATCHSELEVES!$Y$14:$AE$600,5,FALSE),0) -> 0 | IM9: =IFERROR(VLOOKUP(II9,MATCHSELEVES!$Y$14:$AF$600,8,FALSE),0) -> 0 | IN9: =IFERROR(VLOOKUP(II9,MATCHSELEVES!$Y$14:$AG$600,9,FALSE),0) -> 0 | IO9: Beqir_39 | IP9: =IFERROR(VLOOKUP(IO9,MATCHSELEVES!$Y$14:$AE$600,3,FALSE),0) -> 0 | IQ9: =IFERROR(VLOOKUP(IO9,MATCHSELEVES!$Y$14:$AE$600,4,FALSE),0) -> 0 | IR9: =IFERROR(VLOOKUP(IO9,MATCHSELEVES!$Y$14:$AE$600,5,FALSE),0) -> 0 | IS9: =IFERROR(VLOOKUP(IO9,MATCHSELEVES!$Y$14:$AF$600,8,FALSE),0) -> 0 | IT9: =IFERROR(VLOOKUP(IO9,MATCHSELEVES!$Y$14:$AG$600,9,FALSE),0) -> 0 | IU9: Beqir_40 | IV9: =IFERROR(VLOOKUP(IU9,MATCHSELEVES!$Y$14:$AE$600,3,FALSE),0) -> 0 | IW9: =IFERROR(VLOOKUP(IU9,MATCHSELEVES!$Y$14:$AE$600,4,FALSE),0) -> 0 | IX9: =IFERROR(VLOOKUP(IU9,MATCHSELEVES!$Y$14:$AE$600,5,FALSE),0) -> 0 | IY9: =IFERROR(VLOOKUP(IU9,MATCHSELEVES!$Y$14:$AF$600,8,FALSE),0) -> 0 | IZ9: =IFERROR(VLOOKUP(IU9,MATCHSELEVES!$Y$14:$AG$600,9,FALSE),0) -> 0 | JA9: Beqirp_1 | JB9: =IFERROR(VLOOKUP(JA9,MATCHSELEVES!$Y$14:$AE$600,3,FALSE),0) -> 0 | JC9: =IFERROR(VLOOKUP(JA9,MATCHSELEVES!$Y$14:$AE$600,4,FALSE),0) -> 0 | JD9: =IFERROR(VLOOKUP(JA9,MATCHSELEVES!$Y$14:$AE$600,5,FALSE),0) -> 0 | JE9: =IFERROR(VLOOKUP(JA9,MATCHSELEVES!$Y$14:$AF$600,8,FALSE),0) -> 0 | JF9: =IFERROR(VLOOKUP(JA9,MATCHSELEVES!$Y$14:$AG$600,9,FALSE),0) -> 0 | JG9: Beqirp_2 | JH9: =IFERROR(VLOOKUP(JG9,MATCHSELEVES!$Y$14:$AE$600,3,FALSE),0) -> 0 | JI9: =IFERROR(VLOOKUP(JG9,MATCHSELEVES!$Y$14:$AE$600,4,FALSE),0) -> 0 | JJ9: =IFERROR(VLOOKUP(JG9,MATCHSELEVES!$Y$14:$AE$600,5,FALSE),0) -> 0 | JK9: =IFERROR(VLOOKUP(JG9,MATCHSELEVES!$Y$14:$AF$600,8,FALSE),0) -> 0 | JL9: =IFERROR(VLOOKUP(JG9,MATCHSELEVES!$Y$14:$AG$600,9,FALSE),0) -> 0 | JM9: Beqirp_3 | JN9: =IFERROR(VLOOKUP(JM9,MATCHSELEVES!$Y$14:$AE$600,3,FALSE),0) -> 0 | JO9: =IFERROR(VLOOKUP(JM9,MATCHSELEVES!$Y$14:$AE$600,4,FALSE),0) -> 0 | JP9: =IFERROR(VLOOKUP(JM9,MATCHSELEVES!$Y$14:$AE$600,5,FALSE),0) -> 0 | JQ9: =IFERROR(VLOOKUP(JM9,MATCHSELEVES!$Y$14:$AF$600,8,FALSE),0) -> 0 | JR9: =IFERROR(VLOOKUP(JM9,MATCHSELEVES!$Y$14:$AG$600,9,FALSE),0) -> 0 | JS9: Beqirp_4 | JT9: =IFERROR(VLOOKUP(JS9,MATCHSELEVES!$Y$14:$AE$600,3,FALSE),0) -> 0 | JU9: =IFERROR(VLOOKUP(JS9,MATCHSELEVES!$Y$14:$AE$600,4,FALSE),0) -> 0 | JV9: =IFERROR(VLOOKUP(JS9,MATCHSELEVES!$Y$14:$AE$600,5,FALSE),0) -> 0 | JW9: =IFERROR(VLOOKUP(JS9,MATCHSELEVES!$Y$14:$AF$600,8,FALSE),0) -> 0 | JX9: =IFERROR(VLOOKUP(JS9,MATCHSELEVES!$Y$14:$AG$600,9,FALSE),0) -> 0 | JY9: Beqirp_5 | JZ9: =IFERROR(VLOOKUP(JY9,MATCHSELEVES!$Y$14:$AE$600,3,FALSE),0) -> 0 | KA9: =IFERROR(VLOOKUP(JY9,MATCHSELEVES!$Y$14:$AE$600,4,FALSE),0) -> 0 | KB9: =IFERROR(VLOOKUP(JY9,MATCHSELEVES!$Y$14:$AE$600,5,FALSE),0) -> 0 | KC9: =IFERROR(VLOOKUP(JY9,MATCHSELEVES!$Y$14:$AF$600,8,FALSE),0) -> 0 | KD9: =IFERROR(VLOOKUP(JY9,MATCHSELEVES!$Y$14:$AG$600,9,FALSE),0) -> 0 | KE9: Beqirp_6 | KF9: =IFERROR(VLOOKUP(KE9,MATCHSELEVES!$Y$14:$AE$600,3,FALSE),0) -> 0 | KG9: =IFERROR(VLOOKUP(KE9,MATCHSELEVES!$Y$14:$AE$600,4,FALSE),0) -> 0 | KH9: =IFERROR(VLOOKUP(KE9,MATCHSELEVES!$Y$14:$AE$600,5,FALSE),0) -> 0 | KI9: =IFERROR(VLOOKUP(KE9,MATCHSELEVES!$Y$14:$AF$600,8,FALSE),0) -> 0 | KJ9: =IFERROR(VLOOKUP(KE9,MATCHSELEVES!$Y$14:$AG$600,9,FALSE),0) -> 0 | KK9: Beqirp_7 | KL9: =IFERROR(VLOOKUP(KK9,MATCHSELEVES!$Y$14:$AE$600,3,FALSE),0) -> 0 | KM9: =IFERROR(VLOOKUP(KK9,MATCHSELEVES!$Y$14:$AE$600,4,FALSE),0) -> 0 | KN9: =IFERROR(VLOOKUP(KK9,MATCHSELEVES!$Y$14:$AE$600,5,FALSE),0) -> 0 | KO9: =IFERROR(VLOOKUP(KK9,MATCHSELEVES!$Y$14:$AF$600,8,FALSE),0) -> 0 | KP9: =IFERROR(VLOOKUP(KK9,MATCHSELEVES!$Y$14:$AG$600,9,FALSE),0) -> 0 | KQ9: Beqirp_8 | KR9: =IFERROR(VLOOKUP(KQ9,MATCHSELEVES!$Y$14:$AE$600,3,FALSE),0) -> 0 | KS9: =IFERROR(VLOOKUP(KQ9,MATCHSELEVES!$Y$14:$AE$600,4,FALSE),0) -> 0 | KT9: =IFERROR(VLOOKUP(KQ9,MATCHSELEVES!$Y$14:$AE$600,5,FALSE),0) -> 0 | KU9: =IFERROR(VLOOKUP(KQ9,MATCHSELEVES!$Y$14:$AF$600,8,FALSE),0) -> 0 | KV9: =IFERROR(VLOOKUP(KQ9,MATCHSELEVES!$Y$14:$AG$600,9,FALSE),0) -> 0 | KW9: Beqirp_9 | KX9: =IFERROR(VLOOKUP(KW9,MATCHSELEVES!$Y$14:$AE$600,3,FALSE),0) -> 0 | KY9: =IFERROR(VLOOKUP(KW9,MATCHSELEVES!$Y$14:$AE$600,4,FALSE),0) -> 0 | KZ9: =IFERROR(VLOOKUP(KW9,MATCHSELEVES!$Y$14:$AE$600,5,FALSE),0) -> 0 | LA9: =IFERROR(VLOOKUP(KW9,MATCHSELEVES!$Y$14:$AF$600,8,FALSE),0) -> 0 | LB9: =IFERROR(VLOOKUP(KW9,MATCHSELEVES!$Y$14:$AG$600,9,FALSE),0) -> 0 | LC9: Beqirp_10 | LD9: =IFERROR(VLOOKUP(LC9,MATCHSELEVES!$Y$14:$AE$600,3,FALSE),0) -> 0 | LE9: =IFERROR(VLOOKUP(LC9,MATCHSELEVES!$Y$14:$AE$600,4,FALSE),0) -> 0 | LF9: =IFERROR(VLOOKUP(LC9,MATCHSELEVES!$Y$14:$AE$600,5,FALSE),0) -> 0 | LG9: =IFERROR(VLOOKUP(LC9,MATCHSELEVES!$Y$14:$AF$600,8,FALSE),0) -> 0 | LH9: =IFERROR(VLOOKUP(LC9,MATCHSELEVES!$Y$14:$AG$600,9,FALSE),0) -> 0 | LI9: Beqirp_11 | LJ9: =IFERROR(VLOOKUP(LI9,MATCHSELEVES!$Y$14:$AE$600,3,FALSE),0) -> 0 | LK9: =IFERROR(VLOOKUP(LI9,MATCHSELEVES!$Y$14:$AE$600,4,FALSE),0) -> 0 | LL9: =IFERROR(VLOOKUP(LI9,MATCHSELEVES!$Y$14:$AE$600,5,FALSE),0) -> 0 | LM9: =IFERROR(VLOOKUP(LI9,MATCHSELEVES!$Y$14:$AF$600,8,FALSE),0) -> 0 | LN9: =IFERROR(VLOOKUP(LI9,MATCHSELEVES!$Y$14:$AG$600,9,FALSE),0) -> 0 | LO9: Beqirp_12 | LP9: =IFERROR(VLOOKUP(LO9,MATCHSELEVES!$Y$14:$AE$600,3,FALSE),0) -> 0 | LQ9: =IFERROR(VLOOKUP(LO9,MATCHSELEVES!$Y$14:$AE$600,4,FALSE),0) -> 0 | LR9: =IFERROR(VLOOKUP(LO9,MATCHSELEVES!$Y$14:$AE$600,5,FALSE),0) -> 0 | LS9: =IFERROR(VLOOKUP(LO9,MATCHSELEVES!$Y$14:$AF$600,8,FALSE),0) -> 0 | LT9: =IFERROR(VLOOKUP(LO9,MATCHSELEVES!$Y$14:$AG$600,9,FALSE),0) -> 0 | LU9: Beqirp_13 | LV9: =IFERROR(VLOOKUP(LU9,MATCHSELEVES!$Y$14:$AE$600,3,FALSE),0) -> 0 | LW9: =IFERROR(VLOOKUP(LU9,MATCHSELEVES!$Y$14:$AE$600,4,FALSE),0) -> 0 | LX9: =IFERROR(VLOOKUP(LU9,MATCHSELEVES!$Y$14:$AE$600,5,FALSE),0) -> 0 | LY9: =IFERROR(VLOOKUP(LU9,MATCHSELEVES!$Y$14:$AF$600,8,FALSE),0) -> 0 | LZ9: =IFERROR(VLOOKUP(LU9,MATCHSELEVES!$Y$14:$AG$600,9,FALSE),0) -> 0 | MA9: Beqirp_14 | MB9: =IFERROR(VLOOKUP(MA9,MATCHSELEVES!$Y$14:$AE$600,3,FALSE),0) -> 0 | MC9: =IFERROR(VLOOKUP(MA9,MATCHSELEVES!$Y$14:$AE$600,4,FALSE),0) -> 0 | MD9: =IFERROR(VLOOKUP(MA9,MATCHSELEVES!$Y$14:$AE$600,5,FALSE),0) -> 0 | ME9: =IFERROR(VLOOKUP(MA9,MATCHSELEVES!$Y$14:$AF$600,8,FALSE),0) -> 0 | MF9: =IFERROR(VLOOKUP(MA9,MATCHSELEVES!$Y$14:$AG$600,9,FALSE),0) -> 0 | MG9: Beqirp_15 | MH9: =IFERROR(VLOOKUP(MG9,MATCHSELEVES!$Y$14:$AE$600,3,FALSE),0) -> 0 | MI9: =IFERROR(VLOOKUP(MG9,MATCHSELEVES!$Y$14:$AE$600,4,FALSE),0) -> 0 | MJ9: =IFERROR(VLOOKUP(MG9,MATCHSELEVES!$Y$14:$AE$600,5,FALSE),0) -> 0 | MK9: =IFERROR(VLOOKUP(MG9,MATCHSELEVES!$Y$14:$AF$600,8,FALSE),0) -> 0 | ML9: =IFERROR(VLOOKUP(MG9,MATCHSELEVES!$Y$14:$AG$600,9,FALSE),0) -> 0 | MM9: Beqirp_16 | MN9: =IFERROR(VLOOKUP(MM9,MATCHSELEVES!$Y$14:$AE$600,3,FALSE),0) -> 0 | MO9: =IFERROR(VLOOKUP(MM9,MATCHSELEVES!$Y$14:$AE$600,4,FALSE),0) -> 0 | MP9: =IFERROR(VLOOKUP(MM9,MATCHSELEVES!$Y$14:$AE$600,5,FALSE),0) -> 0 | MQ9: =IFERROR(VLOOKUP(MM9,MATCHSELEVES!$Y$14:$AF$600,8,FALSE),0) -> 0 | MR9: =IFERROR(VLOOKUP(MM9,MATCHSELEVES!$Y$14:$AG$600,9,FALSE),0) -> 0 | MS9: Beqirp_17 | MT9: =IFERROR(VLOOKUP(MS9,MATCHSELEVES!$Y$14:$AE$600,3,FALSE),0) -> 0 | MU9: =IFERROR(VLOOKUP(MS9,MATCHSELEVES!$Y$14:$AE$600,4,FALSE),0) -> 0 | MV9: =IFERROR(VLOOKUP(MS9,MATCHSELEVES!$Y$14:$AE$600,5,FALSE),0) -> 0 | MW9: =IFERROR(VLOOKUP(MS9,MATCHSELEVES!$Y$14:$AF$600,8,FALSE),0) -> 0 | MX9: =IFERROR(VLOOKUP(MS9,MATCHSELEVES!$Y$14:$AG$600,9,FALSE),0) -> 0 | MY9: Beqirp_18 | MZ9: =IFERROR(VLOOKUP(MY9,MATCHSELEVES!$Y$14:$AE$600,3,FALSE),0) -> 0 | NA9: =IFERROR(VLOOKUP(MY9,MATCHSELEVES!$Y$14:$AE$600,4,FALSE),0) -> 0 | NB9: =IFERROR(VLOOKUP(MY9,MATCHSELEVES!$Y$14:$AE$600,5,FALSE),0) -> 0 | NC9: =IFERROR(VLOOKUP(MY9,MATCHSELEVES!$Y$14:$AF$600,8,FALSE),0) -> 0 | ND9: =IFERROR(VLOOKUP(MY9,MATCHSELEVES!$Y$14:$AG$600,9,FALSE),0) -> 0 | NE9: Beqirp_19 | NF9: =IFERROR(VLOOKUP(NE9,MATCHSELEVES!$Y$14:$AE$600,3,FALSE),0) -> 0 | NG9: =IFERROR(VLOOKUP(NE9,MATCHSELEVES!$Y$14:$AE$600,4,FALSE),0) -> 0 | NH9: =IFERROR(VLOOKUP(NE9,MATCHSELEVES!$Y$14:$AE$600,5,FALSE),0) -> 0 | NI9: =IFERROR(VLOOKUP(NE9,MATCHSELEVES!$Y$14:$AF$600,8,FALSE),0) -> 0 | NJ9: =IFERROR(VLOOKUP(NE9,MATCHSELEVES!$Y$14:$AG$600,9,FALSE),0) -> 0 | NK9: Beqirp_20 | NL9: =IFERROR(VLOOKUP(NK9,MATCHSELEVES!$Y$14:$AE$600,3,FALSE),0) -> 0 | NM9: =IFERROR(VLOOKUP(NK9,MATCHSELEVES!$Y$14:$AE$600,4,FALSE),0) -> 0 | NN9: =IFERROR(VLOOKUP(NK9,MATCHSELEVES!$Y$14:$AE$600,5,FALSE),0) -> 0 | NO9: =IFERROR(VLOOKUP(NK9,MATCHSELEVES!$Y$14:$AF$600,8,FALSE),0) -> 0 | NP9: =IFERROR(VLOOKUP(NK9,MATCHSELEVES!$Y$14:$AG$600,9,FALSE),0) -> 0 | NQ9: Beqirp_21 | NR9: =IFERROR(VLOOKUP(NQ9,MATCHSELEVES!$Y$14:$AE$600,3,FALSE),0) -> 0 | NS9: =IFERROR(VLOOKUP(NQ9,MATCHSELEVES!$Y$14:$AE$600,4,FALSE),0) -> 0 | NT9: =IFERROR(VLOOKUP(NQ9,MATCHSELEVES!$Y$14:$AE$600,5,FALSE),0) -> 0 | NU9: =IFERROR(VLOOKUP(NQ9,MATCHSELEVES!$Y$14:$AF$600,8,FALSE),0) -> 0 | NV9: =IFERROR(VLOOKUP(NQ9,MATCHSELEVES!$Y$14:$AG$600,9,FALSE),0) -> 0 | NW9: Beqirp_22 | NX9: =IFERROR(VLOOKUP(NW9,MATCHSELEVES!$Y$14:$AE$600,3,FALSE),0) -> 0 | NY9: =IFERROR(VLOOKUP(NW9,MATCHSELEVES!$Y$14:$AE$600,4,FALSE),0) -> 0 | NZ9: =IFERROR(VLOOKUP(NW9,MATCHSELEVES!$Y$14:$AE$600,5,FALSE),0) -> 0 | OA9: =IFERROR(VLOOKUP(NW9,MATCHSELEVES!$Y$14:$AF$600,8,FALSE),0) -> 0 | OB9: =IFERROR(VLOOKUP(NW9,MATCHSELEVES!$Y$14:$AG$600,9,FALSE),0) -> 0 | OC9: Beqirp_23 | OD9: =IFERROR(VLOOKUP(OC9,MATCHSELEVES!$Y$14:$AE$600,3,FALSE),0) -> 0 | OE9: =IFERROR(VLOOKUP(OC9,MATCHSELEVES!$Y$14:$AE$600,4,FALSE),0) -> 0 | OF9: =IFERROR(VLOOKUP(OC9,MATCHSELEVES!$Y$14:$AE$600,5,FALSE),0) -> 0 | OG9: =IFERROR(VLOOKUP(OC9,MATCHSELEVES!$Y$14:$AF$600,8,FALSE),0) -> 0 | OH9: =IFERROR(VLOOKUP(OC9,MATCHSELEVES!$Y$14:$AG$600,9,FALSE),0) -> 0 | OI9: Beqirp_24 | OJ9: =IFERROR(VLOOKUP(OI9,MATCHSELEVES!$Y$14:$AE$600,3,FALSE),0) -> 0 | OK9: =IFERROR(VLOOKUP(OI9,MATCHSELEVES!$Y$14:$AE$600,4,FALSE),0) -> 0 | OL9: =IFERROR(VLOOKUP(OI9,MATCHSELEVES!$Y$14:$AE$600,5,FALSE),0) -> 0 | OM9: =IFERROR(VLOOKUP(OI9,MATCHSELEVES!$Y$14:$AF$600,8,FALSE),0) -> 0 | ON9: =IFERROR(VLOOKUP(OI9,MATCHSELEVES!$Y$14:$AG$600,9,FALSE),0) -> 0 | OO9: Beqirp_25 | OP9: =IFERROR(VLOOKUP(OO9,MATCHSELEVES!$Y$14:$AE$600,3,FALSE),0) -> 0 | OQ9: =IFERROR(VLOOKUP(OO9,MATCHSELEVES!$Y$14:$AE$600,4,FALSE),0) -> 0 | OR9: =IFERROR(VLOOKUP(OO9,MATCHSELEVES!$Y$14:$AE$600,5,FALSE),0) -> 0 | OS9: =IFERROR(VLOOKUP(OO9,MATCHSELEVES!$Y$14:$AF$600,8,FALSE),0) -> 0 | OT9: =IFERROR(VLOOKUP(OO9,MATCHSELEVES!$Y$14:$AG$600,9,FALSE),0) -> 0 | OU9: Beqirp_26 | OV9: =IFERROR(VLOOKUP(OU9,MATCHSELEVES!$Y$14:$AE$600,3,FALSE),0) -> 0 | OW9: =IFERROR(VLOOKUP(OU9,MATCHSELEVES!$Y$14:$AE$600,4,FALSE),0) -> 0 | OX9: =IFERROR(VLOOKUP(OU9,MATCHSELEVES!$Y$14:$AE$600,5,FALSE),0) -> 0 | OY9: =IFERROR(VLOOKUP(OU9,MATCHSELEVES!$Y$14:$AF$600,8,FALSE),0) -> 0 | OZ9: =IFERROR(VLOOKUP(OU9,MATCHSELEVES!$Y$14:$AG$600,9,FALSE),0) -> 0 | PA9: Beqirp_27 | PB9: =IFERROR(VLOOKUP(PA9,MATCHSELEVES!$Y$14:$AE$600,3,FALSE),0) -> 0 | PC9: =IFERROR(VLOOKUP(PA9,MATCHSELEVES!$Y$14:$AE$600,4,FALSE),0) -> 0 | PD9: =IFERROR(VLOOKUP(PA9,MATCHSELEVES!$Y$14:$AE$600,5,FALSE),0) -> 0 | PE9: =IFERROR(VLOOKUP(PA9,MATCHSELEVES!$Y$14:$AF$600,8,FALSE),0) -> 0 | PF9: =IFERROR(VLOOKUP(PA9,MATCHSELEVES!$Y$14:$AG$600,9,FALSE),0) -> 0 | PG9: Beqirp_28 | PH9: =IFERROR(VLOOKUP(PG9,MATCHSELEVES!$Y$14:$AE$600,3,FALSE),0) -> 0 | PI9: =IFERROR(VLOOKUP(PG9,MATCHSELEVES!$Y$14:$AE$600,4,FALSE),0) -> 0 | PJ9: =IFERROR(VLOOKUP(PG9,MATCHSELEVES!$Y$14:$AE$600,5,FALSE),0) -> 0 | PK9: =IFERROR(VLOOKUP(PG9,MATCHSELEVES!$Y$14:$AF$600,8,FALSE),0) -> 0 | PL9: =IFERROR(VLOOKUP(PG9,MATCHSELEVES!$Y$14:$AG$600,9,FALSE),0) -> 0 | PM9: Beqirp_29 | PN9: =IFERROR(VLOOKUP(PM9,MATCHSELEVES!$Y$14:$AE$600,3,FALSE),0) -> 0 | PO9: =IFERROR(VLOOKUP(PM9,MATCHSELEVES!$Y$14:$AE$600,4,FALSE),0) -> 0 | PP9: =IFERROR(VLOOKUP(PM9,MATCHSELEVES!$Y$14:$AE$600,5,FALSE),0) -> 0 | PQ9: =IFERROR(VLOOKUP(PM9,MATCHSELEVES!$Y$14:$AF$600,8,FALSE),0) -> 0 | PR9: =IFERROR(VLOOKUP(PM9,MATCHSELEVES!$Y$14:$AG$600,9,FALSE),0) -> 0 | PS9: Beqirp_30 | PT9: =IFERROR(VLOOKUP(PS9,MATCHSELEVES!$Y$14:$AE$600,3,FALSE),0) -> 0 | PU9: =IFERROR(VLOOKUP(PS9,MATCHSELEVES!$Y$14:$AE$600,4,FALSE),0) -> 0 | PV9: =IFERROR(VLOOKUP(PS9,MATCHSELEVES!$Y$14:$AE$600,5,FALSE),0) -> 0 | PW9: =IFERROR(VLOOKUP(PS9,MATCHSELEVES!$Y$14:$AF$600,8,FALSE),0) -> 0 | PX9: =IFERROR(VLOOKUP(PS9,MATCHSELEVES!$Y$14:$AG$600,9,FALSE),0) -> 0 | PY9: Beqirp_31 | PZ9: =IFERROR(VLOOKUP(PY9,MATCHSELEVES!$Y$14:$AE$600,3,FALSE),0) -> 0 | QA9: =IFERROR(VLOOKUP(PY9,MATCHSELEVES!$Y$14:$AE$600,4,FALSE),0) -> 0 | QB9: =IFERROR(VLOOKUP(PY9,MATCHSELEVES!$Y$14:$AE$600,5,FALSE),0) -> 0 | QC9: =IFERROR(VLOOKUP(PY9,MATCHSELEVES!$Y$14:$AF$600,8,FALSE),0) -> 0 | QD9: =IFERROR(VLOOKUP(PY9,MATCHSELEVES!$Y$14:$AG$600,9,FALSE),0) -> 0 | QE9: Beqirp_32 | QF9: =IFERROR(VLOOKUP(QE9,MATCHSELEVES!$Y$14:$AE$600,3,FALSE),0) -> 0 | QG9: =IFERROR(VLOOKUP(QE9,MATCHSELEVES!$Y$14:$AE$600,4,FALSE),0) -> 0 | QH9: =IFERROR(VLOOKUP(QE9,MATCHSELEVES!$Y$14:$AE$600,5,FALSE),0) -> 0 | QI9: =IFERROR(VLOOKUP(QE9,MATCHSELEVES!$Y$14:$AF$600,8,FALSE),0) -> 0 | QJ9: =IFERROR(VLOOKUP(QE9,MATCHSELEVES!$Y$14:$AG$600,9,FALSE),0) -> 0 | QK9: Beqirp_33 | QL9: =IFERROR(VLOOKUP(QK9,MATCHSELEVES!$Y$14:$AE$600,3,FALSE),0) -> 0 | QM9: =IFERROR(VLOOKUP(QK9,MATCHSELEVES!$Y$14:$AE$600,4,FALSE),0) -> 0 | QN9: =IFERROR(VLOOKUP(QK9,MATCHSELEVES!$Y$14:$AE$600,5,FALSE),0) -> 0 | QO9: =IFERROR(VLOOKUP(QK9,MATCHSELEVES!$Y$14:$AF$600,8,FALSE),0) -> 0 | QP9: =IFERROR(VLOOKUP(QK9,MATCHSELEVES!$Y$14:$AG$600,9,FALSE),0) -> 0 | QQ9: Beqirp_34 | QR9: =IFERROR(VLOOKUP(QQ9,MATCHSELEVES!$Y$14:$AE$600,3,FALSE),0) -> 0 | QS9: =IFERROR(VLOOKUP(QQ9,MATCHSELEVES!$Y$14:$AE$600,4,FALSE),0) -> 0 | QT9: =IFERROR(VLOOKUP(QQ9,MATCHSELEVES!$Y$14:$AE$600,5,FALSE),0) -> 0 | QU9: =IFERROR(VLOOKUP(QQ9,MATCHSELEVES!$Y$14:$AF$600,8,FALSE),0) -> 0 | QV9: =IFERROR(VLOOKUP(QQ9,MATCHSELEVES!$Y$14:$AG$600,9,FALSE),0) -> 0 | QW9: Beqirp_35 | QX9: =IFERROR(VLOOKUP(QW9,MATCHSELEVES!$Y$14:$AE$600,3,FALSE),0) -> 0 | QY9: =IFERROR(VLOOKUP(QW9,MATCHSELEVES!$Y$14:$AE$600,4,FALSE),0) -> 0 | QZ9: =IFERROR(VLOOKUP(QW9,MATCHSELEVES!$Y$14:$AE$600,5,FALSE),0) -> 0 | RA9: =IFERROR(VLOOKUP(QW9,MATCHSELEVES!$Y$14:$AF$600,8,FALSE),0) -> 0 | RB9: =IFERROR(VLOOKUP(QW9,MATCHSELEVES!$Y$14:$AG$600,9,FALSE),0) -> 0 | RC9: Beqirp_36 | RD9: =IFERROR(VLOOKUP(RC9,MATCHSELEVES!$Y$14:$AE$600,3,FALSE),0) -> 0 | RE9: =IFERROR(VLOOKUP(RC9,MATCHSELEVES!$Y$14:$AE$600,4,FALSE),0) -> 0 | RF9: =IFERROR(VLOOKUP(RC9,MATCHSELEVES!$Y$14:$AE$600,5,FALSE),0) -> 0 | RG9: =IFERROR(VLOOKUP(RC9,MATCHSELEVES!$Y$14:$AF$600,8,FALSE),0) -> 0 | RH9: =IFERROR(VLOOKUP(RC9,MATCHSELEVES!$Y$14:$AG$600,9,FALSE),0) -> 0 | RI9: Beqirp_37 | RJ9: =IFERROR(VLOOKUP(RI9,MATCHSELEVES!$Y$14:$AE$600,3,FALSE),0) -> 0 | RK9: =IFERROR(VLOOKUP(RI9,MATCHSELEVES!$Y$14:$AE$600,4,FALSE),0) -> 0 | RL9: =IFERROR(VLOOKUP(RI9,MATCHSELEVES!$Y$14:$AE$600,5,FALSE),0) -> 0 | RM9: =IFERROR(VLOOKUP(RI9,MATCHSELEVES!$Y$14:$AF$600,8,FALSE),0) -> 0 | RN9: =IFERROR(VLOOKUP(RI9,MATCHSELEVES!$Y$14:$AG$600,9,FALSE),0) -> 0 | RO9: Beqirp_38 | RP9: =IFERROR(VLOOKUP(RO9,MATCHSELEVES!$Y$14:$AE$600,3,FALSE),0) -> 0 | RQ9: =IFERROR(VLOOKUP(RO9,MATCHSELEVES!$Y$14:$AE$600,4,FALSE),0) -> 0 | RR9: =IFERROR(VLOOKUP(RO9,MATCHSELEVES!$Y$14:$AE$600,5,FALSE),0) -> 0 | RS9: =IFERROR(VLOOKUP(RO9,MATCHSELEVES!$Y$14:$AF$600,8,FALSE),0) -> 0 | RT9: =IFERROR(VLOOKUP(RO9,MATCHSELEVES!$Y$14:$AG$600,9,FALSE),0) -> 0 | RU9: Beqirp_39 | RV9: =IFERROR(VLOOKUP(RU9,MATCHSELEVES!$Y$14:$AE$600,3,FALSE),0) -> 0 | RW9: =IFERROR(VLOOKUP(RU9,MATCHSELEVES!$Y$14:$AE$600,4,FALSE),0) -> 0 | RX9: =IFERROR(VLOOKUP(RU9,MATCHSELEVES!$Y$14:$AE$600,5,FALSE),0) -> 0 | RY9: =IFERROR(VLOOKUP(RU9,MATCHSELEVES!$Y$14:$AF$600,8,FALSE),0) -> 0 | RZ9: =IFERROR(VLOOKUP(RU9,MATCHSELEVES!$Y$14:$AG$600,9,FALSE),0) -> 0 | SA9: Beqirp_40 | SB9: =IFERROR(VLOOKUP(SA9,MATCHSELEVES!$Y$14:$AE$600,3,FALSE),0) -> 0 | SC9: =IFERROR(VLOOKUP(SA9,MATCHSELEVES!$Y$14:$AE$600,4,FALSE),0) -> 0 | SD9: =IFERROR(VLOOKUP(SA9,MATCHSELEVES!$Y$14:$AE$600,5,FALSE),0) -> 0 | SE9: =IFERROR(VLOOKUP(SA9,MATCHSELEVES!$Y$14:$AF$600,8,FALSE),0) -> 0 | SF9: =IFERROR(VLOOKUP(SA9,MATCHSELEVES!$Y$14:$AG$600,9,FALSE),0) -> 0
A10: 7 | C10: Caméllia | D10: 7 | G10: =COUNTIF(MATCHSELEVES!$Z$14:$Z$600,C10)+COUNTIF(MATCHSELEVES!$Z$14:$Z$600,$C10&"p") -> 0 | H10: 1 | I10: =COUNTIF(MATCHSELEVES!$F$14:$H$249,C10) -> 0 | J10: 1 | K10: 0 | L10: 1 | M10: =IFERROR(M53/Tableau10[[#This Row],[Nombre de matchs joués]],0) -> 0 | N10: =IF(Tableau10[[#This Row],[Nombre de points encaissés]]=0,$C$45,SUMPRODUCT((M$4:M$43<M10)*(M$4:M$43<>0))+1) -> 40 | O10: 0 | P10: 1 | Q10: =(Tableau10[[#This Row],[CLASSEMENT1]]+Tableau10[[#This Row],[CLASSEMENT2]]+Tableau10[[#This Row],[CLASSEMENT3]]+Tableau10[[#This Row],[CLASSEMENT4]]+Tableau10[[#This Row],[CLASSEMENT5]]+Tableau10[[#This Row],[CLASSEMENT6]])/6 -> 8.5 | R10: =RANK(Tableau10[[#This Row],[MOYENNE CLASSEMENTS]],Tableau10[MOYENNE CLASSEMENTS],1) -> 7 | T10: =Tableau10[[#This Row],[CLASSEMENT1]] -> 7 | U10: Caméllia_1 | V10: =IFERROR(VLOOKUP(U10,MATCHSELEVES!$Y$14:$AE$600,3,FALSE),0) -> 0 | W10: =IFERROR(VLOOKUP(U10,MATCHSELEVES!$Y$14:$AE$600,4,FALSE),0) -> 0 | X10: =IFERROR(VLOOKUP(U10,MATCHSELEVES!$Y$14:$AE$600,5,FALSE),0) -> 0 | Y10: =IFERROR(VLOOKUP(U10,MATCHSELEVES!$Y$14:$AF$600,8,FALSE),0) -> 0 | Z10: =IFERROR(VLOOKUP(U10,MATCHSELEVES!$Y$14:$AG$600,9,FALSE),0) -> 0 | AA10: Caméllia_2 | AB10: =IFERROR(VLOOKUP(AA10,MATCHSELEVES!$Y$14:$AE$600,3,FALSE),0) -> 0 | AC10: =IFERROR(VLOOKUP(AA10,MATCHSELEVES!$Y$14:$AE$600,4,FALSE),0) -> 0 | AD10: =IFERROR(VLOOKUP(AA10,MATCHSELEVES!$Y$14:$AE$600,5,FALSE),0) -> 0 | AE10: =IFERROR(VLOOKUP(AA10,MATCHSELEVES!$Y$14:$AF$600,8,FALSE),0) -> 0 | AF10: =IFERROR(VLOOKUP(AA10,MATCHSELEVES!$Y$14:$AG$600,9,FALSE),0) -> 0 | AG10: Caméllia_3 | AH10: =IFERROR(VLOOKUP(AG10,MATCHSELEVES!$Y$14:$AE$600,3,FALSE),0) -> 0 | AI10: =IFERROR(VLOOKUP(AG10,MATCHSELEVES!$Y$14:$AE$600,4,FALSE),0) -> 0 | AJ10: =IFERROR(VLOOKUP(AG10,MATCHSELEVES!$Y$14:$AE$600,5,FALSE),0) -> 0 | AK10: =IFERROR(VLOOKUP(AG10,MATCHSELEVES!$Y$14:$AF$600,8,FALSE),0) -> 0 | AL10: =IFERROR(VLOOKUP(AG10,MATCHSELEVES!$Y$14:$AG$600,9,FALSE),0) -> 0 | AM10: Caméllia_4 | AN10: =IFERROR(VLOOKUP(AM10,MATCHSELEVES!$Y$14:$AE$600,3,FALSE),0) -> 0 | AO10: =IFERROR(VLOOKUP(AM10,MATCHSELEVES!$Y$14:$AE$600,4,FALSE),0) -> 0 | AP10: =IFERROR(VLOOKUP(AM10,MATCHSELEVES!$Y$14:$AE$600,5,FALSE),0) -> 0 | AQ10: =IFERROR(VLOOKUP(AM10,MATCHSELEVES!$Y$14:$AF$600,8,FALSE),0) -> 0 | AR10: =IFERROR(VLOOKUP(AM10,MATCHSELEVES!$Y$14:$AG$600,9,FALSE),0) -> 0 | AS10: Caméllia_5 | AT10: =IFERROR(VLOOKUP(AS10,MATCHSELEVES!$Y$14:$AE$600,3,FALSE),0) -> 0 | AU10: =IFERROR(VLOOKUP(AS10,MATCHSELEVES!$Y$14:$AE$600,4,FALSE),0) -> 0 | AV10: =IFERROR(VLOOKUP(AS10,MATCHSELEVES!$Y$14:$AE$600,5,FALSE),0) -> 0 | AW10: =IFERROR(VLOOKUP(AS10,MATCHSELEVES!$Y$14:$AF$600,8,FALSE),0) -> 0 | AX10: =IFERROR(VLOOKUP(AS10,MATCHSELEVES!$Y$14:$AG$600,9,FALSE),0) -> 0 | AY10: Caméllia_6 | AZ10: =IFERROR(VLOOKUP(AY10,MATCHSELEVES!$Y$14:$AE$600,3,FALSE),0) -> 0 | BA10: =IFERROR(VLOOKUP(AY10,MATCHSELEVES!$Y$14:$AE$600,4,FALSE),0) -> 0 | BB10: =IFERROR(VLOOKUP(AY10,MATCHSELEVES!$Y$14:$AE$600,5,FALSE),0) -> 0 | BC10: =IFERROR(VLOOKUP(AY10,MATCHSELEVES!$Y$14:$AF$600,8,FALSE),0) -> 0 | BD10: =IFERROR(VLOOKUP(AY10,MATCHSELEVES!$Y$14:$AG$600,9,FALSE),0) -> 0 | BE10: Caméllia_7 | BF10: =IFERROR(VLOOKUP(BE10,MATCHSELEVES!$Y$14:$AE$600,3,FALSE),0) -> 0 | BG10: =IFERROR(VLOOKUP(BE10,MATCHSELEVES!$Y$14:$AE$600,4,FALSE),0) -> 0 | BH10: =IFERROR(VLOOKUP(BE10,MATCHSELEVES!$Y$14:$AE$600,5,FALSE),0) -> 0 | BI10: =IFERROR(VLOOKUP(BE10,MATCHSELEVES!$Y$14:$AF$600,8,FALSE),0) -> 0 | BJ10: =IFERROR(VLOOKUP(BE10,MATCHSELEVES!$Y$14:$AG$600,9,FALSE),0) -> 0 | BK10: Caméllia_8 | BL10: =IFERROR(VLOOKUP(BK10,MATCHSELEVES!$Y$14:$AE$600,3,FALSE),0) -> 0 | BM10: =IFERROR(VLOOKUP(BK10,MATCHSELEVES!$Y$14:$AE$600,4,FALSE),0) -> 0 | BN10: =IFERROR(VLOOKUP(BK10,MATCHSELEVES!$Y$14:$AE$600,5,FALSE),0) -> 0 | BO10: =IFERROR(VLOOKUP(BK10,MATCHSELEVES!$Y$14:$AF$600,8,FALSE),0) -> 0 | BP10: =IFERROR(VLOOKUP(BK10,MATCHSELEVES!$Y$14:$AG$600,9,FALSE),0) -> 0 | BQ10: Caméllia_9 | BR10: =IFERROR(VLOOKUP(BQ10,MATCHSELEVES!$Y$14:$AE$600,3,FALSE),0) -> 0 | BS10: =IFERROR(VLOOKUP(BQ10,MATCHSELEVES!$Y$14:$AE$600,4,FALSE),0) -> 0 | BT10: =IFERROR(VLOOKUP(BQ10,MATCHSELEVES!$Y$14:$AE$600,5,FALSE),0) -> 0 | BU10: =IFERROR(VLOOKUP(BQ10,MATCHSELEVES!$Y$14:$AF$600,8,FALSE),0) -> 0 | BV10: =IFERROR(VLOOKUP(BQ10,MATCHSELEVES!$Y$14:$AG$600,9,FALSE),0) -> 0 | BW10: Caméllia_10 | BX10: =IFERROR(VLOOKUP(BW10,MATCHSELEVES!$Y$14:$AE$600,3,FALSE),0) -> 0 | BY10: =IFERROR(VLOOKUP(BW10,MATCHSELEVES!$Y$14:$AE$600,4,FALSE),0) -> 0 | BZ10: =IFERROR(VLOOKUP(BW10,MATCHSELEVES!$Y$14:$AE$600,5,FALSE),0) -> 0 | CA10: =IFERROR(VLOOKUP(BW10,MATCHSELEVES!$Y$14:$AF$600,8,FALSE),0) -> 0 | CB10: =IFERROR(VLOOKUP(BW10,MATCHSELEVES!$Y$14:$AG$600,9,FALSE),0) -> 0 | CC10: Caméllia_11 | CD10: =IFERROR(VLOOKUP(CC10,MATCHSELEVES!$Y$14:$AE$600,3,FALSE),0) -> 0 | CE10: =IFERROR(VLOOKUP(CC10,MATCHSELEVES!$Y$14:$AE$600,4,FALSE),0) -> 0 | CF10: =IFERROR(VLOOKUP(CC10,MATCHSELEVES!$Y$14:$AE$600,5,FALSE),0) -> 0 | CG10: =IFERROR(VLOOKUP(CC10,MATCHSELEVES!$Y$14:$AF$600,8,FALSE),0) -> 0 | CH10: =IFERROR(VLOOKUP(CC10,MATCHSELEVES!$Y$14:$AG$600,9,FALSE),0) -> 0 | CI10: Caméllia_12 | CJ10: =IFERROR(VLOOKUP(CI10,MATCHSELEVES!$Y$14:$AE$600,3,FALSE),0) -> 0 | CK10: =IFERROR(VLOOKUP(CI10,MATCHSELEVES!$Y$14:$AE$600,4,FALSE),0) -> 0 | CL10: =IFERROR(VLOOKUP(CI10,MATCHSELEVES!$Y$14:$AE$600,5,FALSE),0) -> 0 | CM10: =IFERROR(VLOOKUP(CI10,MATCHSELEVES!$Y$14:$AF$600,8,FALSE),0) -> 0 | CN10: =IFERROR(VLOOKUP(CI10,MATCHSELEVES!$Y$14:$AG$600,9,FALSE),0) -> 0 | CO10: Caméllia_13 | CP10: =IFERROR(VLOOKUP(CO10,MATCHSELEVES!$Y$14:$AE$600,3,FALSE),0) -> 0 | CQ10: =IFERROR(VLOOKUP(CO10,MATCHSELEVES!$Y$14:$AE$600,4,FALSE),0) -> 0 | CR10: =IFERROR(VLOOKUP(CO10,MATCHSELEVES!$Y$14:$AE$600,5,FALSE),0) -> 0 | CS10: =IFERROR(VLOOKUP(CO10,MATCHSELEVES!$Y$14:$AF$600,8,FALSE),0) -> 0 | CT10: =IFERROR(VLOOKUP(CO10,MATCHSELEVES!$Y$14:$AG$600,9,FALSE),0) -> 0 | CU10: Caméllia_14 | CV10: =IFERROR(VLOOKUP(CU10,MATCHSELEVES!$Y$14:$AE$600,3,FALSE),0) -> 0 | CW10: =IFERROR(VLOOKUP(CU10,MATCHSELEVES!$Y$14:$AE$600,4,FALSE),0) -> 0 | CX10: =IFERROR(VLOOKUP(CU10,MATCHSELEVES!$Y$14:$AE$600,5,FALSE),0) -> 0 | CY10: =IFERROR(VLOOKUP(CU10,MATCHSELEVES!$Y$14:$AF$600,8,FALSE),0) -> 0 | CZ10: =IFERROR(VLOOKUP(CU10,MATCHSELEVES!$Y$14:$AG$600,9,FALSE),0) -> 0 | DA10: Caméllia_15 | DB10: =IFERROR(VLOOKUP(DA10,MATCHSELEVES!$Y$14:$AE$600,3,FALSE),0) -> 0 | DC10: =IFERROR(VLOOKUP(DA10,MATCHSELEVES!$Y$14:$AE$600,4,FALSE),0) -> 0 | DD10: =IFERROR(VLOOKUP(DA10,MATCHSELEVES!$Y$14:$AE$600,5,FALSE),0) -> 0 | DE10: =IFERROR(VLOOKUP(DA10,MATCHSELEVES!$Y$14:$AF$600,8,FALSE),0) -> 0 | DF10: =IFERROR(VLOOKUP(DA10,MATCHSELEVES!$Y$14:$AG$600,9,FALSE),0) -> 0 | DG10: Caméllia_16 | DH10: =IFERROR(VLOOKUP(DG10,MATCHSELEVES!$Y$14:$AE$600,3,FALSE),0) -> 0 | DI10: =IFERROR(VLOOKUP(DG10,MATCHSELEVES!$Y$14:$AE$600,4,FALSE),0) -> 0 | DJ10: =IFERROR(VLOOKUP(DG10,MATCHSELEVES!$Y$14:$AE$600,5,FALSE),0) -> 0 | DK10: =IFERROR(VLOOKUP(DG10,MATCHSELEVES!$Y$14:$AF$600,8,FALSE),0) -> 0 | DL10: =IFERROR(VLOOKUP(DG10,MATCHSELEVES!$Y$14:$AG$600,9,FALSE),0) -> 0 | DM10: Caméllia_17 | DN10: =IFERROR(VLOOKUP(DM10,MATCHSELEVES!$Y$14:$AE$600,3,FALSE),0) -> 0 | DO10: =IFERROR(VLOOKUP(DM10,MATCHSELEVES!$Y$14:$AE$600,4,FALSE),0) -> 0 | DP10: =IFERROR(VLOOKUP(DM10,MATCHSELEVES!$Y$14:$AE$600,5,FALSE),0) -> 0 | DQ10: =IFERROR(VLOOKUP(DM10,MATCHSELEVES!$Y$14:$AF$600,8,FALSE),0) -> 0 | DR10: =IFERROR(VLOOKUP(DM10,MATCHSELEVES!$Y$14:$AG$600,9,FALSE),0) -> 0 | DS10: Caméllia_18 | DT10: =IFERROR(VLOOKUP(DS10,MATCHSELEVES!$Y$14:$AE$600,3,FALSE),0) -> 0 | DU10: =IFERROR(VLOOKUP(DS10,MATCHSELEVES!$Y$14:$AE$600,4,FALSE),0) -> 0 | DV10: =IFERROR(VLOOKUP(DS10,MATCHSELEVES!$Y$14:$AE$600,5,FALSE),0) -> 0 | DW10: =IFERROR(VLOOKUP(DS10,MATCHSELEVES!$Y$14:$AF$600,8,FALSE),0) -> 0 | DX10: =IFERROR(VLOOKUP(DS10,MATCHSELEVES!$Y$14:$AG$600,9,FALSE),0) -> 0 | DY10: Caméllia_19 | DZ10: =IFERROR(VLOOKUP(DY10,MATCHSELEVES!$Y$14:$AE$600,3,FALSE),0) -> 0 | EA10: =IFERROR(VLOOKUP(DY10,MATCHSELEVES!$Y$14:$AE$600,4,FALSE),0) -> 0 | EB10: =IFERROR(VLOOKUP(DY10,MATCHSELEVES!$Y$14:$AE$600,5,FALSE),0) -> 0 | EC10: =IFERROR(VLOOKUP(DY10,MATCHSELEVES!$Y$14:$AF$600,8,FALSE),0) -> 0 | ED10: =IFERROR(VLOOKUP(DY10,MATCHSELEVES!$Y$14:$AG$600,9,FALSE),0) -> 0 | EE10: Caméllia_20 | EF10: =IFERROR(VLOOKUP(EE10,MATCHSELEVES!$Y$14:$AE$600,3,FALSE),0) -> 0 | EG10: =IFERROR(VLOOKUP(EE10,MATCHSELEVES!$Y$14:$AE$600,4,FALSE),0) -> 0 | EH10: =IFERROR(VLOOKUP(EE10,MATCHSELEVES!$Y$14:$AE$600,5,FALSE),0) -> 0 | EI10: =IFERROR(VLOOKUP(EE10,MATCHSELEVES!$Y$14:$AF$600,8,FALSE),0) -> 0 | EJ10: =IFERROR(VLOOKUP(EE10,MATCHSELEVES!$Y$14:$AG$600,9,FALSE),0) -> 0 | EK10: Caméllia_21 | EL10: =IFERROR(VLOOKUP(EK10,MATCHSELEVES!$Y$14:$AE$600,3,FALSE),0) -> 0 | EM10: =IFERROR(VLOOKUP(EK10,MATCHSELEVES!$Y$14:$AE$600,4,FALSE),0) -> 0 | EN10: =IFERROR(VLOOKUP(EK10,MATCHSELEVES!$Y$14:$AE$600,5,FALSE),0) -> 0 | EO10: =IFERROR(VLOOKUP(EK10,MATCHSELEVES!$Y$14:$AF$600,8,FALSE),0) -> 0 | EP10: =IFERROR(VLOOKUP(EK10,MATCHSELEVES!$Y$14:$AG$600,9,FALSE),0) -> 0 | EQ10: Caméllia_22 | ER10: =IFERROR(VLOOKUP(EQ10,MATCHSELEVES!$Y$14:$AE$600,3,FALSE),0) -> 0 | ES10: =IFERROR(VLOOKUP(EQ10,MATCHSELEVES!$Y$14:$AE$600,4,FALSE),0) -> 0 | ET10: =IFERROR(VLOOKUP(EQ10,MATCHSELEVES!$Y$14:$AE$600,5,FALSE),0) -> 0 | EU10: =IFERROR(VLOOKUP(EQ10,MATCHSELEVES!$Y$14:$AF$600,8,FALSE),0) -> 0 | EV10: =IFERROR(VLOOKUP(EQ10,MATCHSELEVES!$Y$14:$AG$600,9,FALSE),0) -> 0 | EW10: Caméllia_23 | EX10: =IFERROR(VLOOKUP(EW10,MATCHSELEVES!$Y$14:$AE$600,3,FALSE),0) -> 0 | EY10: =IFERROR(VLOOKUP(EW10,MATCHSELEVES!$Y$14:$AE$600,4,FALSE),0) -> 0 | EZ10: =IFERROR(VLOOKUP(EW10,MATCHSELEVES!$Y$14:$AE$600,5,FALSE),0) -> 0 | FA10: =IFERROR(VLOOKUP(EW10,MATCHSELEVES!$Y$14:$AF$600,8,FALSE),0) -> 0 | FB10: =IFERROR(VLOOKUP(EW10,MATCHSELEVES!$Y$14:$AG$600,9,FALSE),0) -> 0 | FC10: Caméllia_24 | FD10: =IFERROR(VLOOKUP(FC10,MATCHSELEVES!$Y$14:$AE$600,3,FALSE),0) -> 0 | FE10: =IFERROR(VLOOKUP(FC10,MATCHSELEVES!$Y$14:$AE$600,4,FALSE),0) -> 0 | FF10: =IFERROR(VLOOKUP(FC10,MATCHSELEVES!$Y$14:$AE$600,5,FALSE),0) -> 0 | FG10: =IFERROR(VLOOKUP(FC10,MATCHSELEVES!$Y$14:$AF$600,8,FALSE),0) -> 0 | FH10: =IFERROR(VLOOKUP(FC10,MATCHSELEVES!$Y$14:$AG$600,9,FALSE),0) -> 0 | FI10: Caméllia_25 | FJ10: =IFERROR(VLOOKUP(FI10,MATCHSELEVES!$Y$14:$AE$600,3,FALSE),0) -> 0 | FK10: =IFERROR(VLOOKUP(FI10,MATCHSELEVES!$Y$14:$AE$600,4,FALSE),0) -> 0 | FL10: =IFERROR(VLOOKUP(FI10,MATCHSELEVES!$Y$14:$AE$600,5,FALSE),0) -> 0 | FM10: =IFERROR(VLOOKUP(FI10,MATCHSELEVES!$Y$14:$AF$600,8,FALSE),0) -> 0 | FN10: =IFERROR(VLOOKUP(FI10,MATCHSELEVES!$Y$14:$AG$600,9,FALSE),0) -> 0 | FO10: Caméllia_26 | FP10: =IFERROR(VLOOKUP(FO10,MATCHSELEVES!$Y$14:$AE$600,3,FALSE),0) -> 0 | FQ10: =IFERROR(VLOOKUP(FO10,MATCHSELEVES!$Y$14:$AE$600,4,FALSE),0) -> 0 | FR10: =IFERROR(VLOOKUP(FO10,MATCHSELEVES!$Y$14:$AE$600,5,FALSE),0) -> 0 | FS10: =IFERROR(VLOOKUP(FO10,MATCHSELEVES!$Y$14:$AF$600,8,FALSE),0) -> 0 | FT10: =IFERROR(VLOOKUP(FO10,MATCHSELEVES!$Y$14:$AG$600,9,FALSE),0) -> 0 | FU10: Caméllia_27 | FV10: =IFERROR(VLOOKUP(FU10,MATCHSELEVES!$Y$14:$AE$600,3,FALSE),0) -> 0 | FW10: =IFERROR(VLOOKUP(FU10,MATCHSELEVES!$Y$14:$AE$600,4,FALSE),0) -> 0 | FX10: =IFERROR(VLOOKUP(FU10,MATCHSELEVES!$Y$14:$AE$600,5,FALSE),0) -> 0 | FY10: =IFERROR(VLOOKUP(FU10,MATCHSELEVES!$Y$14:$AF$600,8,FALSE),0) -> 0 | FZ10: =IFERROR(VLOOKUP(FU10,MATCHSELEVES!$Y$14:$AG$600,9,FALSE),0) -> 0 | GA10: Caméllia_28 | GB10: =IFERROR(VLOOKUP(GA10,MATCHSELEVES!$Y$14:$AE$600,3,FALSE),0) -> 0 | GC10: =IFERROR(VLOOKUP(GA10,MATCHSELEVES!$Y$14:$AE$600,4,FALSE),0) -> 0 | GD10: =IFERROR(VLOOKUP(GA10,MATCHSELEVES!$Y$14:$AE$600,5,FALSE),0) -> 0 | GE10: =IFERROR(VLOOKUP(GA10,MATCHSELEVES!$Y$14:$AF$600,8,FALSE),0) -> 0 | GF10: =IFERROR(VLOOKUP(GA10,MATCHSELEVES!$Y$14:$AG$600,9,FALSE),0) -> 0 | GG10: Caméllia_29 | GH10: =IFERROR(VLOOKUP(GG10,MATCHSELEVES!$Y$14:$AE$600,3,FALSE),0) -> 0 | GI10: =IFERROR(VLOOKUP(GG10,MATCHSELEVES!$Y$14:$AE$600,4,FALSE),0) -> 0 | GJ10: =IFERROR(VLOOKUP(GG10,MATCHSELEVES!$Y$14:$AE$600,5,FALSE),0) -> 0 | GK10: =IFERROR(VLOOKUP(GG10,MATCHSELEVES!$Y$14:$AF$600,8,FALSE),0) -> 0 | GL10: =IFERROR(VLOOKUP(GG10,MATCHSELEVES!$Y$14:$AG$600,9,FALSE),0) -> 0 | GM10: Caméllia_30 | GN10: =IFERROR(VLOOKUP(GM10,MATCHSELEVES!$Y$14:$AE$600,3,FALSE),0) -> 0 | GO10: =IFERROR(VLOOKUP(GM10,MATCHSELEVES!$Y$14:$AE$600,4,FALSE),0) -> 0 | GP10: =IFERROR(VLOOKUP(GM10,MATCHSELEVES!$Y$14:$AE$600,5,FALSE),0) -> 0 | GQ10: =IFERROR(VLOOKUP(GM10,MATCHSELEVES!$Y$14:$AF$600,8,FALSE),0) -> 0 | GR10: =IFERROR(VLOOKUP(GM10,MATCHSELEVES!$Y$14:$AG$600,9,FALSE),0) -> 0 | GS10: Caméllia_31 | GT10: =IFERROR(VLOOKUP(GS10,MATCHSELEVES!$Y$14:$AE$600,3,FALSE),0) -> 0 | GU10: =IFERROR(VLOOKUP(GS10,MATCHSELEVES!$Y$14:$AE$600,4,FALSE),0) -> 0 | GV10: =IFERROR(VLOOKUP(GS10,MATCHSELEVES!$Y$14:$AE$600,5,FALSE),0) -> 0 | GW10: =IFERROR(VLOOKUP(GS10,MATCHSELEVES!$Y$14:$AF$600,8,FALSE),0) -> 0 | GX10: =IFERROR(VLOOKUP(GS10,MATCHSELEVES!$Y$14:$AG$600,9,FALSE),0) -> 0 | GY10: Caméllia_32 | GZ10: =IFERROR(VLOOKUP(GY10,MATCHSELEVES!$Y$14:$AE$600,3,FALSE),0) -> 0 | HA10: =IFERROR(VLOOKUP(GY10,MATCHSELEVES!$Y$14:$AE$600,4,FALSE),0) -> 0 | HB10: =IFERROR(VLOOKUP(GY10,MATCHSELEVES!$Y$14:$AE$600,5,FALSE),0) -> 0 | HC10: =IFERROR(VLOOKUP(GY10,MATCHSELEVES!$Y$14:$AF$600,8,FALSE),0) -> 0 | HD10: =IFERROR(VLOOKUP(GY10,MATCHSELEVES!$Y$14:$AG$600,9,FALSE),0) -> 0 | HE10: Caméllia_33 | HF10: =IFERROR(VLOOKUP(HE10,MATCHSELEVES!$Y$14:$AE$600,3,FALSE),0) -> 0 | HG10: =IFERROR(VLOOKUP(HE10,MATCHSELEVES!$Y$14:$AE$600,4,FALSE),0) -> 0 | HH10: =IFERROR(VLOOKUP(HE10,MATCHSELEVES!$Y$14:$AE$600,5,FALSE),0) -> 0 | HI10: =IFERROR(VLOOKUP(HE10,MATCHSELEVES!$Y$14:$AF$600,8,FALSE),0) -> 0 | HJ10: =IFERROR(VLOOKUP(HE10,MATCHSELEVES!$Y$14:$AG$600,9,FALSE),0) -> 0 | HK10: Caméllia_34 | HL10: =IFERROR(VLOOKUP(HK10,MATCHSELEVES!$Y$14:$AE$600,3,FALSE),0) -> 0 | HM10: =IFERROR(VLOOKUP(HK10,MATCHSELEVES!$Y$14:$AE$600,4,FALSE),0) -> 0 | HN10: =IFERROR(VLOOKUP(HK10,MATCHSELEVES!$Y$14:$AE$600,5,FALSE),0) -> 0 | HO10: =IFERROR(VLOOKUP(HK10,MATCHSELEVES!$Y$14:$AF$600,8,FALSE),0) -> 0 | HP10: =IFERROR(VLOOKUP(HK10,MATCHSELEVES!$Y$14:$AG$600,9,FALSE),0) -> 0 | HQ10: Caméllia_35 | HR10: =IFERROR(VLOOKUP(HQ10,MATCHSELEVES!$Y$14:$AE$600,3,FALSE),0) -> 0 | HS10: =IFERROR(VLOOKUP(HQ10,MATCHSELEVES!$Y$14:$AE$600,4,FALSE),0) -> 0 | HT10: =IFERROR(VLOOKUP(HQ10,MATCHSELEVES!$Y$14:$AE$600,5,FALSE),0) -> 0 | HU10: =IFERROR(VLOOKUP(HQ10,MATCHSELEVES!$Y$14:$AF$600,8,FALSE),0) -> 0 | HV10: =IFERROR(VLOOKUP(HQ10,MATCHSELEVES!$Y$14:$AG$600,9,FALSE),0) -> 0 | HW10: Caméllia_36 | HX10: =IFERROR(VLOOKUP(HW10,MATCHSELEVES!$Y$14:$AE$600,3,FALSE),0) -> 0 | HY10: =IFERROR(VLOOKUP(HW10,MATCHSELEVES!$Y$14:$AE$600,4,FALSE),0) -> 0 | HZ10: =IFERROR(VLOOKUP(HW10,MATCHSELEVES!$Y$14:$AE$600,5,FALSE),0) -> 0 | IA10: =IFERROR(VLOOKUP(HW10,MATCHSELEVES!$Y$14:$AF$600,8,FALSE),0) -> 0 | IB10: =IFERROR(VLOOKUP(HW10,MATCHSELEVES!$Y$14:$AG$600,9,FALSE),0) -> 0 | IC10: Caméllia_37 | ID10: =IFERROR(VLOOKUP(IC10,MATCHSELEVES!$Y$14:$AE$600,3,FALSE),0) -> 0 | IE10: =IFERROR(VLOOKUP(IC10,MATCHSELEVES!$Y$14:$AE$600,4,FALSE),0) -> 0 | IF10: =IFERROR(VLOOKUP(IC10,MATCHSELEVES!$Y$14:$AE$600,5,FALSE),0) -> 0 | IG10: =IFERROR(VLOOKUP(IC10,MATCHSELEVES!$Y$14:$AF$600,8,FALSE),0) -> 0 | IH10: =IFERROR(VLOOKUP(IC10,MATCHSELEVES!$Y$14:$AG$600,9,FALSE),0) -> 0 | II10: Caméllia_38 | IJ10: =IFERROR(VLOOKUP(II10,MATCHSELEVES!$Y$14:$AE$600,3,FALSE),0) -> 0 | IK10: =IFERROR(VLOOKUP(II10,MATCHSELEVES!$Y$14:$AE$600,4,FALSE),0) -> 0 | IL10: =IFERROR(VLOOKUP(II10,MATCHSELEVES!$Y$14:$AE$600,5,FALSE),0) -> 0 | IM10: =IFERROR(VLOOKUP(II10,MATCHSELEVES!$Y$14:$AF$600,8,FALSE),0) -> 0 | IN10: =IFERROR(VLOOKUP(II10,MATCHSELEVES!$Y$14:$AG$600,9,FALSE),0) -> 0 | IO10: Caméllia_39 | IP10: =IFERROR(VLOOKUP(IO10,MATCHSELEVES!$Y$14:$AE$600,3,FALSE),0) -> 0 | IQ10: =IFERROR(VLOOKUP(IO10,MATCHSELEVES!$Y$14:$AE$600,4,FALSE),0) -> 0 | IR10: =IFERROR(VLOOKUP(IO10,MATCHSELEVES!$Y$14:$AE$600,5,FALSE),0) -> 0 | IS10: =IFERROR(VLOOKUP(IO10,MATCHSELEVES!$Y$14:$AF$600,8,FALSE),0) -> 0 | IT10: =IFERROR(VLOOKUP(IO10,MATCHSELEVES!$Y$14:$AG$600,9,FALSE),0) -> 0 | IU10: Caméllia_40 | IV10: =IFERROR(VLOOKUP(IU10,MATCHSELEVES!$Y$14:$AE$600,3,FALSE),0) -> 0 | IW10: =IFERROR(VLOOKUP(IU10,MATCHSELEVES!$Y$14:$AE$600,4,FALSE),0) -> 0 | IX10: =IFERROR(VLOOKUP(IU10,MATCHSELEVES!$Y$14:$AE$600,5,FALSE),0) -> 0 | IY10: =IFERROR(VLOOKUP(IU10,MATCHSELEVES!$Y$14:$AF$600,8,FALSE),0) -> 0 | IZ10: =IFERROR(VLOOKUP(IU10,MATCHSELEVES!$Y$14:$AG$600,9,FALSE),0) -> 0 | JA10: Camélliap_1 | JB10: =IFERROR(VLOOKUP(JA10,MATCHSELEVES!$Y$14:$AE$600,3,FALSE),0) -> 0 | JC10: =IFERROR(VLOOKUP(JA10,MATCHSELEVES!$Y$14:$AE$600,4,FALSE),0) -> 0 | JD10: =IFERROR(VLOOKUP(JA10,MATCHSELEVES!$Y$14:$AE$600,5,FALSE),0) -> 0 | JE10: =IFERROR(VLOOKUP(JA10,MATCHSELEVES!$Y$14:$AF$600,8,FALSE),0) -> 0 | JF10: =IFERROR(VLOOKUP(JA10,MATCHSELEVES!$Y$14:$AG$600,9,FALSE),0) -> 0 | JG10: Camélliap_2 | JH10: =IFERROR(VLOOKUP(JG10,MATCHSELEVES!$Y$14:$AE$600,3,FALSE),0) -> 0 | JI10: =IFERROR(VLOOKUP(JG10,MATCHSELEVES!$Y$14:$AE$600,4,FALSE),0) -> 0 | JJ10: =IFERROR(VLOOKUP(JG10,MATCHSELEVES!$Y$14:$AE$600,5,FALSE),0) -> 0 | JK10: =IFERROR(VLOOKUP(JG10,MATCHSELEVES!$Y$14:$AF$600,8,FALSE),0) -> 0 | JL10: =IFERROR(VLOOKUP(JG10,MATCHSELEVES!$Y$14:$AG$600,9,FALSE),0) -> 0 | JM10: Camélliap_3 | JN10: =IFERROR(VLOOKUP(JM10,MATCHSELEVES!$Y$14:$AE$600,3,FALSE),0) -> 0 | JO10: =IFERROR(VLOOKUP(JM10,MATCHSELEVES!$Y$14:$AE$600,4,FALSE),0) -> 0 | JP10: =IFERROR(VLOOKUP(JM10,MATCHSELEVES!$Y$14:$AE$600,5,FALSE),0) -> 0 | JQ10: =IFERROR(VLOOKUP(JM10,MATCHSELEVES!$Y$14:$AF$600,8,FALSE),0) -> 0 | JR10: =IFERROR(VLOOKUP(JM10,MATCHSELEVES!$Y$14:$AG$600,9,FALSE),0) -> 0 | JS10: Camélliap_4 | JT10: =IFERROR(VLOOKUP(JS10,MATCHSELEVES!$Y$14:$AE$600,3,FALSE),0) -> 0 | JU10: =IFERROR(VLOOKUP(JS10,MATCHSELEVES!$Y$14:$AE$600,4,FALSE),0) -> 0 | JV10: =IFERROR(VLOOKUP(JS10,MATCHSELEVES!$Y$14:$AE$600,5,FALSE),0) -> 0 | JW10: =IFERROR(VLOOKUP(JS10,MATCHSELEVES!$Y$14:$AF$600,8,FALSE),0) -> 0 | JX10: =IFERROR(VLOOKUP(JS10,MATCHSELEVES!$Y$14:$AG$600,9,FALSE),0) -> 0 | JY10: Camélliap_5 | JZ10: =IFERROR(VLOOKUP(JY10,MATCHSELEVES!$Y$14:$AE$600,3,FALSE),0) -> 0 | KA10: =IFERROR(VLOOKUP(JY10,MATCHSELEVES!$Y$14:$AE$600,4,FALSE),0) -> 0 | KB10: =IFERROR(VLOOKUP(JY10,MATCHSELEVES!$Y$14:$AE$600,5,FALSE),0) -> 0 | KC10: =IFERROR(VLOOKUP(JY10,MATCHSELEVES!$Y$14:$AF$600,8,FALSE),0) -> 0 | KD10: =IFERROR(VLOOKUP(JY10,MATCHSELEVES!$Y$14:$AG$600,9,FALSE),0) -> 0 | KE10: Camélliap_6 | KF10: =IFERROR(VLOOKUP(KE10,MATCHSELEVES!$Y$14:$AE$600,3,FALSE),0) -> 0 | KG10: =IFERROR(VLOOKUP(KE10,MATCHSELEVES!$Y$14:$AE$600,4,FALSE),0) -> 0 | KH10: =IFERROR(VLOOKUP(KE10,MATCHSELEVES!$Y$14:$AE$600,5,FALSE),0) -> 0 | KI10: =IFERROR(VLOOKUP(KE10,MATCHSELEVES!$Y$14:$AF$600,8,FALSE),0) -> 0 | KJ10: =IFERROR(VLOOKUP(KE10,MATCHSELEVES!$Y$14:$AG$600,9,FALSE),0) -> 0 | KK10: Camélliap_7 | KL10: =IFERROR(VLOOKUP(KK10,MATCHSELEVES!$Y$14:$AE$600,3,FALSE),0) -> 0 | KM10: =IFERROR(VLOOKUP(KK10,MATCHSELEVES!$Y$14:$AE$600,4,FALSE),0) -> 0 | KN10: =IFERROR(VLOOKUP(KK10,MATCHSELEVES!$Y$14:$AE$600,5,FALSE),0) -> 0 | KO10: =IFERROR(VLOOKUP(KK10,MATCHSELEVES!$Y$14:$AF$600,8,FALSE),0) -> 0 | KP10: =IFERROR(VLOOKUP(KK10,MATCHSELEVES!$Y$14:$AG$600,9,FALSE),0) -> 0 | KQ10: Camélliap_8 | KR10: =IFERROR(VLOOKUP(KQ10,MATCHSELEVES!$Y$14:$AE$600,3,FALSE),0) -> 0 | KS10: =IFERROR(VLOOKUP(KQ10,MATCHSELEVES!$Y$14:$AE$600,4,FALSE),0) -> 0 | KT10: =IFERROR(VLOOKUP(KQ10,MATCHSELEVES!$Y$14:$AE$600,5,FALSE),0) -> 0 | KU10: =IFERROR(VLOOKUP(KQ10,MATCHSELEVES!$Y$14:$AF$600,8,FALSE),0) -> 0 | KV10: =IFERROR(VLOOKUP(KQ10,MATCHSELEVES!$Y$14:$AG$600,9,FALSE),0) -> 0 | KW10: Camélliap_9 | KX10: =IFERROR(VLOOKUP(KW10,MATCHSELEVES!$Y$14:$AE$600,3,FALSE),0) -> 0 | KY10: =IFERROR(VLOOKUP(KW10,MATCHSELEVES!$Y$14:$AE$600,4,FALSE),0) -> 0 | KZ10: =IFERROR(VLOOKUP(KW10,MATCHSELEVES!$Y$14:$AE$600,5,FALSE),0) -> 0 | LA10: =IFERROR(VLOOKUP(KW10,MATCHSELEVES!$Y$14:$AF$600,8,FALSE),0) -> 0 | LB10: =IFERROR(VLOOKUP(KW10,MATCHSELEVES!$Y$14:$AG$600,9,FALSE),0) -> 0 | LC10: Camélliap_10 | LD10: =IFERROR(VLOOKUP(LC10,MATCHSELEVES!$Y$14:$AE$600,3,FALSE),0) -> 0 | LE10: =IFERROR(VLOOKUP(LC10,MATCHSELEVES!$Y$14:$AE$600,4,FALSE),0) -> 0 | LF10: =IFERROR(VLOOKUP(LC10,MATCHSELEVES!$Y$14:$AE$600,5,FALSE),0) -> 0 | LG10: =IFERROR(VLOOKUP(LC10,MATCHSELEVES!$Y$14:$AF$600,8,FALSE),0) -> 0 | LH10: =IFERROR(VLOOKUP(LC10,MATCHSELEVES!$Y$14:$AG$600,9,FALSE),0) -> 0 | LI10: Camélliap_11 | LJ10: =IFERROR(VLOOKUP(LI10,MATCHSELEVES!$Y$14:$AE$600,3,FALSE),0) -> 0 | LK10: =IFERROR(VLOOKUP(LI10,MATCHSELEVES!$Y$14:$AE$600,4,FALSE),0) -> 0 | LL10: =IFERROR(VLOOKUP(LI10,MATCHSELEVES!$Y$14:$AE$600,5,FALSE),0) -> 0 | LM10: =IFERROR(VLOOKUP(LI10,MATCHSELEVES!$Y$14:$AF$600,8,FALSE),0) -> 0 | LN10: =IFERROR(VLOOKUP(LI10,MATCHSELEVES!$Y$14:$AG$600,9,FALSE),0) -> 0 | LO10: Camélliap_12 | LP10: =IFERROR(VLOOKUP(LO10,MATCHSELEVES!$Y$14:$AE$600,3,FALSE),0) -> 0 | LQ10: =IFERROR(VLOOKUP(LO10,MATCHSELEVES!$Y$14:$AE$600,4,FALSE),0) -> 0 | LR10: =IFERROR(VLOOKUP(LO10,MATCHSELEVES!$Y$14:$AE$600,5,FALSE),0) -> 0 | LS10: =IFERROR(VLOOKUP(LO10,MATCHSELEVES!$Y$14:$AF$600,8,FALSE),0) -> 0 | LT10: =IFERROR(VLOOKUP(LO10,MATCHSELEVES!$Y$14:$AG$600,9,FALSE),0) -> 0 | LU10: Camélliap_13 | LV10: =IFERROR(VLOOKUP(LU10,MATCHSELEVES!$Y$14:$AE$600,3,FALSE),0) -> 0 | LW10: =IFERROR(VLOOKUP(LU10,MATCHSELEVES!$Y$14:$AE$600,4,FALSE),0) -> 0 | LX10: =IFERROR(VLOOKUP(LU10,MATCHSELEVES!$Y$14:$AE$600,5,FALSE),0) -> 0 | LY10: =IFERROR(VLOOKUP(LU10,MATCHSELEVES!$Y$14:$AF$600,8,FALSE),0) -> 0 | LZ10: =IFERROR(VLOOKUP(LU10,MATCHSELEVES!$Y$14:$AG$600,9,FALSE),0) -> 0 | MA10: Camélliap_14 | MB10: =IFERROR(VLOOKUP(MA10,MATCHSELEVES!$Y$14:$AE$600,3,FALSE),0) -> 0 | MC10: =IFERROR(VLOOKUP(MA10,MATCHSELEVES!$Y$14:$AE$600,4,FALSE),0) -> 0 | MD10: =IFERROR(VLOOKUP(MA10,MATCHSELEVES!$Y$14:$AE$600,5,FALSE),0) -> 0 | ME10: =IFERROR(VLOOKUP(MA10,MATCHSELEVES!$Y$14:$AF$600,8,FALSE),0) -> 0 | MF10: =IFERROR(VLOOKUP(MA10,MATCHSELEVES!$Y$14:$AG$600,9,FALSE),0) -> 0 | MG10: Camélliap_15 | MH10: =IFERROR(VLOOKUP(MG10,MATCHSELEVES!$Y$14:$AE$600,3,FALSE),0) -> 0 | MI10: =IFERROR(VLOOKUP(MG10,MATCHSELEVES!$Y$14:$AE$600,4,FALSE),0) -> 0 | MJ10: =IFERROR(VLOOKUP(MG10,MATCHSELEVES!$Y$14:$AE$600,5,FALSE),0) -> 0 | MK10: =IFERROR(VLOOKUP(MG10,MATCHSELEVES!$Y$14:$AF$600,8,FALSE),0) -> 0 | ML10: =IFERROR(VLOOKUP(MG10,MATCHSELEVES!$Y$14:$AG$600,9,FALSE),0) -> 0 | MM10: Camélliap_16 | MN10: =IFERROR(VLOOKUP(MM10,MATCHSELEVES!$Y$14:$AE$600,3,FALSE),0) -> 0 | MO10: =IFERROR(VLOOKUP(MM10,MATCHSELEVES!$Y$14:$AE$600,4,FALSE),0) -> 0 | MP10: =IFERROR(VLOOKUP(MM10,MATCHSELEVES!$Y$14:$AE$600,5,FALSE),0) -> 0 | MQ10: =IFERROR(VLOOKUP(MM10,MATCHSELEVES!$Y$14:$AF$600,8,FALSE),0) -> 0 | MR10: =IFERROR(VLOOKUP(MM10,MATCHSELEVES!$Y$14:$AG$600,9,FALSE),0) -> 0 | MS10: Camélliap_17 | MT10: =IFERROR(VLOOKUP(MS10,MATCHSELEVES!$Y$14:$AE$600,3,FALSE),0) -> 0 | MU10: =IFERROR(VLOOKUP(MS10,MATCHSELEVES!$Y$14:$AE$600,4,FALSE),0) -> 0 | MV10: =IFERROR(VLOOKUP(MS10,MATCHSELEVES!$Y$14:$AE$600,5,FALSE),0) -> 0 | MW10: =IFERROR(VLOOKUP(MS10,MATCHSELEVES!$Y$14:$AF$600,8,FALSE),0) -> 0 | MX10: =IFERROR(VLOOKUP(MS10,MATCHSELEVES!$Y$14:$AG$600,9,FALSE),0) -> 0 | MY10: Camélliap_18 | MZ10: =IFERROR(VLOOKUP(MY10,MATCHSELEVES!$Y$14:$AE$600,3,FALSE),0) -> 0 | NA10: =IFERROR(VLOOKUP(MY10,MATCHSELEVES!$Y$14:$AE$600,4,FALSE),0) -> 0 | NB10: =IFERROR(VLOOKUP(MY10,MATCHSELEVES!$Y$14:$AE$600,5,FALSE),0) -> 0 | NC10: =IFERROR(VLOOKUP(MY10,MATCHSELEVES!$Y$14:$AF$600,8,FALSE),0) -> 0 | ND10: =IFERROR(VLOOKUP(MY10,MATCHSELEVES!$Y$14:$AG$600,9,FALSE),0) -> 0 | NE10: Camélliap_19 | NF10: =IFERROR(VLOOKUP(NE10,MATCHSELEVES!$Y$14:$AE$600,3,FALSE),0) -> 0 | NG10: =IFERROR(VLOOKUP(NE10,MATCHSELEVES!$Y$14:$AE$600,4,FALSE),0) -> 0 | NH10: =IFERROR(VLOOKUP(NE10,MATCHSELEVES!$Y$14:$AE$600,5,FALSE),0) -> 0 | NI10: =IFERROR(VLOOKUP(NE10,MATCHSELEVES!$Y$14:$AF$600,8,FALSE),0) -> 0 | NJ10: =IFERROR(VLOOKUP(NE10,MATCHSELEVES!$Y$14:$AG$600,9,FALSE),0) -> 0 | NK10: Camélliap_20 | NL10: =IFERROR(VLOOKUP(NK10,MATCHSELEVES!$Y$14:$AE$600,3,FALSE),0) -> 0 | NM10: =IFERROR(VLOOKUP(NK10,MATCHSELEVES!$Y$14:$AE$600,4,FALSE),0) -> 0 | NN10: =IFERROR(VLOOKUP(NK10,MATCHSELEVES!$Y$14:$AE$600,5,FALSE),0) -> 0 | NO10: =IFERROR(VLOOKUP(NK10,MATCHSELEVES!$Y$14:$AF$600,8,FALSE),0) -> 0 | NP10: =IFERROR(VLOOKUP(NK10,MATCHSELEVES!$Y$14:$AG$600,9,FALSE),0) -> 0 | NQ10: Camélliap_21 | NR10: =IFERROR(VLOOKUP(NQ10,MATCHSELEVES!$Y$14:$AE$600,3,FALSE),0) -> 0 | NS10: =IFERROR(VLOOKUP(NQ10,MATCHSELEVES!$Y$14:$AE$600,4,FALSE),0) -> 0 | NT10: =IFERROR(VLOOKUP(NQ10,MATCHSELEVES!$Y$14:$AE$600,5,FALSE),0) -> 0 | NU10: =IFERROR(VLOOKUP(NQ10,MATCHSELEVES!$Y$14:$AF$600,8,FALSE),0) -> 0 | NV10: =IFERROR(VLOOKUP(NQ10,MATCHSELEVES!$Y$14:$AG$600,9,FALSE),0) -> 0 | NW10: Camélliap_22 | NX10: =IFERROR(VLOOKUP(NW10,MATCHSELEVES!$Y$14:$AE$600,3,FALSE),0) -> 0 | NY10: =IFERROR(VLOOKUP(NW10,MATCHSELEVES!$Y$14:$AE$600,4,FALSE),0) -> 0 | NZ10: =IFERROR(VLOOKUP(NW10,MATCHSELEVES!$Y$14:$AE$600,5,FALSE),0) -> 0 | OA10: =IFERROR(VLOOKUP(NW10,MATCHSELEVES!$Y$14:$AF$600,8,FALSE),0) -> 0 | OB10: =IFERROR(VLOOKUP(NW10,MATCHSELEVES!$Y$14:$AG$600,9,FALSE),0) -> 0 | OC10: Camélliap_23 | OD10: =IFERROR(VLOOKUP(OC10,MATCHSELEVES!$Y$14:$AE$600,3,FALSE),0) -> 0 | OE10: =IFERROR(VLOOKUP(OC10,MATCHSELEVES!$Y$14:$AE$600,4,FALSE),0) -> 0 | OF10: =IFERROR(VLOOKUP(OC10,MATCHSELEVES!$Y$14:$AE$600,5,FALSE),0) -> 0 | OG10: =IFERROR(VLOOKUP(OC10,MATCHSELEVES!$Y$14:$AF$600,8,FALSE),0) -> 0 | OH10: =IFERROR(VLOOKUP(OC10,MATCHSELEVES!$Y$14:$AG$600,9,FALSE),0) -> 0 | OI10: Camélliap_24 | OJ10: =IFERROR(VLOOKUP(OI10,MATCHSELEVES!$Y$14:$AE$600,3,FALSE),0) -> 0 | OK10: =IFERROR(VLOOKUP(OI10,MATCHSELEVES!$Y$14:$AE$600,4,FALSE),0) -> 0 | OL10: =IFERROR(VLOOKUP(OI10,MATCHSELEVES!$Y$14:$AE$600,5,FALSE),0) -> 0 | OM10: =IFERROR(VLOOKUP(OI10,MATCHSELEVES!$Y$14:$AF$600,8,FALSE),0) -> 0 | ON10: =IFERROR(VLOOKUP(OI10,MATCHSELEVES!$Y$14:$AG$600,9,FALSE),0) -> 0 | OO10: Camélliap_25 | OP10: =IFERROR(VLOOKUP(OO10,MATCHSELEVES!$Y$14:$AE$600,3,FALSE),0) -> 0 | OQ10: =IFERROR(VLOOKUP(OO10,MATCHSELEVES!$Y$14:$AE$600,4,FALSE),0) -> 0 | OR10: =IFERROR(VLOOKUP(OO10,MATCHSELEVES!$Y$14:$AE$600,5,FALSE),0) -> 0 | OS10: =IFERROR(VLOOKUP(OO10,MATCHSELEVES!$Y$14:$AF$600,8,FALSE),0) -> 0 | OT10: =IFERROR(VLOOKUP(OO10,MATCHSELEVES!$Y$14:$AG$600,9,FALSE),0) -> 0 | OU10: Camélliap_26 | OV10: =IFERROR(VLOOKUP(OU10,MATCHSELEVES!$Y$14:$AE$600,3,FALSE),0) -> 0 | OW10: =IFERROR(VLOOKUP(OU10,MATCHSELEVES!$Y$14:$AE$600,4,FALSE),0) -> 0 | OX10: =IFERROR(VLOOKUP(OU10,MATCHSELEVES!$Y$14:$AE$600,5,FALSE),0) -> 0 | OY10: =IFERROR(VLOOKUP(OU10,MATCHSELEVES!$Y$14:$AF$600,8,FALSE),0) -> 0 | OZ10: =IFERROR(VLOOKUP(OU10,MATCHSELEVES!$Y$14:$AG$600,9,FALSE),0) -> 0 | PA10: Camélliap_27 | PB10: =IFERROR(VLOOKUP(PA10,MATCHSELEVES!$Y$14:$AE$600,3,FALSE),0) -> 0 | PC10: =IFERROR(VLOOKUP(PA10,MATCHSELEVES!$Y$14:$AE$600,4,FALSE),0) -> 0 | PD10: =IFERROR(VLOOKUP(PA10,MATCHSELEVES!$Y$14:$AE$600,5,FALSE),0) -> 0 | PE10: =IFERROR(VLOOKUP(PA10,MATCHSELEVES!$Y$14:$AF$600,8,FALSE),0) -> 0 | PF10: =IFERROR(VLOOKUP(PA10,MATCHSELEVES!$Y$14:$AG$600,9,FALSE),0) -> 0 | PG10: Camélliap_28 | PH10: =IFERROR(VLOOKUP(PG10,MATCHSELEVES!$Y$14:$AE$600,3,FALSE),0) -> 0 | PI10: =IFERROR(VLOOKUP(PG10,MATCHSELEVES!$Y$14:$AE$600,4,FALSE),0) -> 0 | PJ10: =IFERROR(VLOOKUP(PG10,MATCHSELEVES!$Y$14:$AE$600,5,FALSE),0) -> 0 | PK10: =IFERROR(VLOOKUP(PG10,MATCHSELEVES!$Y$14:$AF$600,8,FALSE),0) -> 0 | PL10: =IFERROR(VLOOKUP(PG10,MATCHSELEVES!$Y$14:$AG$600,9,FALSE),0) -> 0 | PM10: Camélliap_29 | PN10: =IFERROR(VLOOKUP(PM10,MATCHSELEVES!$Y$14:$AE$600,3,FALSE),0) -> 0 | PO10: =IFERROR(VLOOKUP(PM10,MATCHSELEVES!$Y$14:$AE$600,4,FALSE),0) -> 0 | PP10: =IFERROR(VLOOKUP(PM10,MATCHSELEVES!$Y$14:$AE$600,5,FALSE),0) -> 0 | PQ10: =IFERROR(VLOOKUP(PM10,MATCHSELEVES!$Y$14:$AF$600,8,FALSE),0) -> 0 | PR10: =IFERROR(VLOOKUP(PM10,MATCHSELEVES!$Y$14:$AG$600,9,FALSE),0) -> 0 | PS10: Camélliap_30 | PT10: =IFERROR(VLOOKUP(PS10,MATCHSELEVES!$Y$14:$AE$600,3,FALSE),0) -> 0 | PU10: =IFERROR(VLOOKUP(PS10,MATCHSELEVES!$Y$14:$AE$600,4,FALSE),0) -> 0 | PV10: =IFERROR(VLOOKUP(PS10,MATCHSELEVES!$Y$14:$AE$600,5,FALSE),0) -> 0 | PW10: =IFERROR(VLOOKUP(PS10,MATCHSELEVES!$Y$14:$AF$600,8,FALSE),0) -> 0 | PX10: =IFERROR(VLOOKUP(PS10,MATCHSELEVES!$Y$14:$AG$600,9,FALSE),0) -> 0 | PY10: Camélliap_31 | PZ10: =IFERROR(VLOOKUP(PY10,MATCHSELEVES!$Y$14:$AE$600,3,FALSE),0) -> 0 | QA10: =IFERROR(VLOOKUP(PY10,MATCHSELEVES!$Y$14:$AE$600,4,FALSE),0) -> 0 | QB10: =IFERROR(VLOOKUP(PY10,MATCHSELEVES!$Y$14:$AE$600,5,FALSE),0) -> 0 | QC10: =IFERROR(VLOOKUP(PY10,MATCHSELEVES!$Y$14:$AF$600,8,FALSE),0) -> 0 | QD10: =IFERROR(VLOOKUP(PY10,MATCHSELEVES!$Y$14:$AG$600,9,FALSE),0) -> 0 | QE10: Camélliap_32 | QF10: =IFERROR(VLOOKUP(QE10,MATCHSELEVES!$Y$14:$AE$600,3,FALSE),0) -> 0 | QG10: =IFERROR(VLOOKUP(QE10,MATCHSELEVES!$Y$14:$AE$600,4,FALSE),0) -> 0 | QH10: =IFERROR(VLOOKUP(QE10,MATCHSELEVES!$Y$14:$AE$600,5,FALSE),0) -> 0 | QI10: =IFERROR(VLOOKUP(QE10,MATCHSELEVES!$Y$14:$AF$600,8,FALSE),0) -> 0 | QJ10: =IFERROR(VLOOKUP(QE10,MATCHSELEVES!$Y$14:$AG$600,9,FALSE),0) -> 0 | QK10: Camélliap_33 | QL10: =IFERROR(VLOOKUP(QK10,MATCHSELEVES!$Y$14:$AE$600,3,FALSE),0) -> 0 | QM10: =IFERROR(VLOOKUP(QK10,MATCHSELEVES!$Y$14:$AE$600,4,FALSE),0) -> 0 | QN10: =IFERROR(VLOOKUP(QK10,MATCHSELEVES!$Y$14:$AE$600,5,FALSE),0) -> 0 | QO10: =IFERROR(VLOOKUP(QK10,MATCHSELEVES!$Y$14:$AF$600,8,FALSE),0) -> 0 | QP10: =IFERROR(VLOOKUP(QK10,MATCHSELEVES!$Y$14:$AG$600,9,FALSE),0) -> 0 | QQ10: Camélliap_34 | QR10: =IFERROR(VLOOKUP(QQ10,MATCHSELEVES!$Y$14:$AE$600,3,FALSE),0) -> 0 | QS10: =IFERROR(VLOOKUP(QQ10,MATCHSELEVES!$Y$14:$AE$600,4,FALSE),0) -> 0 | QT10: =IFERROR(VLOOKUP(QQ10,MATCHSELEVES!$Y$14:$AE$600,5,FALSE),0) -> 0 | QU10: =IFERROR(VLOOKUP(QQ10,MATCHSELEVES!$Y$14:$AF$600,8,FALSE),0) -> 0 | QV10: =IFERROR(VLOOKUP(QQ10,MATCHSELEVES!$Y$14:$AG$600,9,FALSE),0) -> 0 | QW10: Camélliap_35 | QX10: =IFERROR(VLOOKUP(QW10,MATCHSELEVES!$Y$14:$AE$600,3,FALSE),0) -> 0 | QY10: =IFERROR(VLOOKUP(QW10,MATCHSELEVES!$Y$14:$AE$600,4,FALSE),0) -> 0 | QZ10: =IFERROR(VLOOKUP(QW10,MATCHSELEVES!$Y$14:$AE$600,5,FALSE),0) -> 0 | RA10: =IFERROR(VLOOKUP(QW10,MATCHSELEVES!$Y$14:$AF$600,8,FALSE),0) -> 0 | RB10: =IFERROR(VLOOKUP(QW10,MATCHSELEVES!$Y$14:$AG$600,9,FALSE),0) -> 0 | RC10: Camélliap_36 | RD10: =IFERROR(VLOOKUP(RC10,MATCHSELEVES!$Y$14:$AE$600,3,FALSE),0) -> 0 | RE10: =IFERROR(VLOOKUP(RC10,MATCHSELEVES!$Y$14:$AE$600,4,FALSE),0) -> 0 | RF10: =IFERROR(VLOOKUP(RC10,MATCHSELEVES!$Y$14:$AE$600,5,FALSE),0) -> 0 | RG10: =IFERROR(VLOOKUP(RC10,MATCHSELEVES!$Y$14:$AF$600,8,FALSE),0) -> 0 | RH10: =IFERROR(VLOOKUP(RC10,MATCHSELEVES!$Y$14:$AG$600,9,FALSE),0) -> 0 | RI10: Camélliap_37 | RJ10: =IFERROR(VLOOKUP(RI10,MATCHSELEVES!$Y$14:$AE$600,3,FALSE),0) -> 0 | RK10: =IFERROR(VLOOKUP(RI10,MATCHSELEVES!$Y$14:$AE$600,4,FALSE),0) -> 0 | RL10: =IFERROR(VLOOKUP(RI10,MATCHSELEVES!$Y$14:$AE$600,5,FALSE),0) -> 0 | RM10: =IFERROR(VLOOKUP(RI10,MATCHSELEVES!$Y$14:$AF$600,8,FALSE),0) -> 0 | RN10: =IFERROR(VLOOKUP(RI10,MATCHSELEVES!$Y$14:$AG$600,9,FALSE),0) -> 0 | RO10: Camélliap_38 | RP10: =IFERROR(VLOOKUP(RO10,MATCHSELEVES!$Y$14:$AE$600,3,FALSE),0) -> 0 | RQ10: =IFERROR(VLOOKUP(RO10,MATCHSELEVES!$Y$14:$AE$600,4,FALSE),0) -> 0 | RR10: =IFERROR(VLOOKUP(RO10,MATCHSELEVES!$Y$14:$AE$600,5,FALSE),0) -> 0 | RS10: =IFERROR(VLOOKUP(RO10,MATCHSELEVES!$Y$14:$AF$600,8,FALSE),0) -> 0 | RT10: =IFERROR(VLOOKUP(RO10,MATCHSELEVES!$Y$14:$AG$600,9,FALSE),0) -> 0 | RU10: Camélliap_39 | RV10: =IFERROR(VLOOKUP(RU10,MATCHSELEVES!$Y$14:$AE$600,3,FALSE),0) -> 0 | RW10: =IFERROR(VLOOKUP(RU10,MATCHSELEVES!$Y$14:$AE$600,4,FALSE),0) -> 0 | RX10: =IFERROR(VLOOKUP(RU10,MATCHSELEVES!$Y$14:$AE$600,5,FALSE),0) -> 0 | RY10: =IFERROR(VLOOKUP(RU10,MATCHSELEVES!$Y$14:$AF$600,8,FALSE),0) -> 0 | RZ10: =IFERROR(VLOOKUP(RU10,MATCHSELEVES!$Y$14:$AG$600,9,FALSE),0) -> 0 | SA10: Camélliap_40 | SB10: =IFERROR(VLOOKUP(SA10,MATCHSELEVES!$Y$14:$AE$600,3,FALSE),0) -> 0 | SC10: =IFERROR(VLOOKUP(SA10,MATCHSELEVES!$Y$14:$AE$600,4,FALSE),0) -> 0 | SD10: =IFERROR(VLOOKUP(SA10,MATCHSELEVES!$Y$14:$AE$600,5,FALSE),0) -> 0 | SE10: =IFERROR(VLOOKUP(SA10,MATCHSELEVES!$Y$14:$AF$600,8,FALSE),0) -> 0 | SF10: =IFERROR(VLOOKUP(SA10,MATCHSELEVES!$Y$14:$AG$600,9,FALSE),0) -> 0
A11: 8 | C11: Carole | D11: 8 | G11: =COUNTIF(MATCHSELEVES!$Z$14:$Z$600,C11)+COUNTIF(MATCHSELEVES!$Z$14:$Z$600,$C11&"p") -> 0 | H11: 1 | I11: =COUNTIF(MATCHSELEVES!$F$14:$H$249,C11) -> 0 | J11: 1 | K11: 0 | L11: 1 | M11: =IFERROR(M54/Tableau10[[#This Row],[Nombre de matchs joués]],0) -> 0 | N11: =IF(Tableau10[[#This Row],[Nombre de points encaissés]]=0,$C$45,SUMPRODUCT((M$4:M$43<M11)*(M$4:M$43<>0))+1) -> 40 | O11: 0 | P11: 1 | Q11: =(Tableau10[[#This Row],[CLASSEMENT1]]+Tableau10[[#This Row],[CLASSEMENT2]]+Tableau10[[#This Row],[CLASSEMENT3]]+Tableau10[[#This Row],[CLASSEMENT4]]+Tableau10[[#This Row],[CLASSEMENT5]]+Tableau10[[#This Row],[CLASSEMENT6]])/6 -> 8.666666667 | R11: =RANK(Tableau10[[#This Row],[MOYENNE CLASSEMENTS]],Tableau10[MOYENNE CLASSEMENTS],1) -> 8 | T11: =Tableau10[[#This Row],[CLASSEMENT1]] -> 8 | U11: Carole_1 | V11: =IFERROR(VLOOKUP(U11,MATCHSELEVES!$Y$14:$AE$600,3,FALSE),0) -> 0 | W11: =IFERROR(VLOOKUP(U11,MATCHSELEVES!$Y$14:$AE$600,4,FALSE),0) -> 0 | X11: =IFERROR(VLOOKUP(U11,MATCHSELEVES!$Y$14:$AE$600,5,FALSE),0) -> 0 | Y11: =IFERROR(VLOOKUP(U11,MATCHSELEVES!$Y$14:$AF$600,8,FALSE),0) -> 0 | Z11: =IFERROR(VLOOKUP(U11,MATCHSELEVES!$Y$14:$AG$600,9,FALSE),0) -> 0 | AA11: Carole_2 | AB11: =IFERROR(VLOOKUP(AA11,MATCHSELEVES!$Y$14:$AE$600,3,FALSE),0) -> 0 | AC11: =IFERROR(VLOOKUP(AA11,MATCHSELEVES!$Y$14:$AE$600,4,FALSE),0) -> 0 | AD11: =IFERROR(VLOOKUP(AA11,MATCHSELEVES!$Y$14:$AE$600,5,FALSE),0) -> 0 | AE11: =IFERROR(VLOOKUP(AA11,MATCHSELEVES!$Y$14:$AF$600,8,FALSE),0) -> 0 | AF11: =IFERROR(VLOOKUP(AA11,MATCHSELEVES!$Y$14:$AG$600,9,FALSE),0) -> 0 | AG11: Carole_3 | AH11: =IFERROR(VLOOKUP(AG11,MATCHSELEVES!$Y$14:$AE$600,3,FALSE),0) -> 0 | AI11: =IFERROR(VLOOKUP(AG11,MATCHSELEVES!$Y$14:$AE$600,4,FALSE),0) -> 0 | AJ11: =IFERROR(VLOOKUP(AG11,MATCHSELEVES!$Y$14:$AE$600,5,FALSE),0) -> 0 | AK11: =IFERROR(VLOOKUP(AG11,MATCHSELEVES!$Y$14:$AF$600,8,FALSE),0) -> 0 | AL11: =IFERROR(VLOOKUP(AG11,MATCHSELEVES!$Y$14:$AG$600,9,FALSE),0) -> 0 | AM11: Carole_4 | AN11: =IFERROR(VLOOKUP(AM11,MATCHSELEVES!$Y$14:$AE$600,3,FALSE),0) -> 0 | AO11: =IFERROR(VLOOKUP(AM11,MATCHSELEVES!$Y$14:$AE$600,4,FALSE),0) -> 0 | AP11: =IFERROR(VLOOKUP(AM11,MATCHSELEVES!$Y$14:$AE$600,5,FALSE),0) -> 0 | AQ11: =IFERROR(VLOOKUP(AM11,MATCHSELEVES!$Y$14:$AF$600,8,FALSE),0) -> 0 | AR11: =IFERROR(VLOOKUP(AM11,MATCHSELEVES!$Y$14:$AG$600,9,FALSE),0) -> 0 | AS11: Carole_5 | AT11: =IFERROR(VLOOKUP(AS11,MATCHSELEVES!$Y$14:$AE$600,3,FALSE),0) -> 0 | AU11: =IFERROR(VLOOKUP(AS11,MATCHSELEVES!$Y$14:$AE$600,4,FALSE),0) -> 0 | AV11: =IFERROR(VLOOKUP(AS11,MATCHSELEVES!$Y$14:$AE$600,5,FALSE),0) -> 0 | AW11: =IFERROR(VLOOKUP(AS11,MATCHSELEVES!$Y$14:$AF$600,8,FALSE),0) -> 0 | AX11: =IFERROR(VLOOKUP(AS11,MATCHSELEVES!$Y$14:$AG$600,9,FALSE),0) -> 0 | AY11: Carole_6 | AZ11: =IFERROR(VLOOKUP(AY11,MATCHSELEVES!$Y$14:$AE$600,3,FALSE),0) -> 0 | BA11: =IFERROR(VLOOKUP(AY11,MATCHSELEVES!$Y$14:$AE$600,4,FALSE),0) -> 0 | BB11: =IFERROR(VLOOKUP(AY11,MATCHSELEVES!$Y$14:$AE$600,5,FALSE),0) -> 0 | BC11: =IFERROR(VLOOKUP(AY11,MATCHSELEVES!$Y$14:$AF$600,8,FALSE),0) -> 0 | BD11: =IFERROR(VLOOKUP(AY11,MATCHSELEVES!$Y$14:$AG$600,9,FALSE),0) -> 0 | BE11: Carole_7 | BF11: =IFERROR(VLOOKUP(BE11,MATCHSELEVES!$Y$14:$AE$600,3,FALSE),0) -> 0 | BG11: =IFERROR(VLOOKUP(BE11,MATCHSELEVES!$Y$14:$AE$600,4,FALSE),0) -> 0 | BH11: =IFERROR(VLOOKUP(BE11,MATCHSELEVES!$Y$14:$AE$600,5,FALSE),0) -> 0 | BI11: =IFERROR(VLOOKUP(BE11,MATCHSELEVES!$Y$14:$AF$600,8,FALSE),0) -> 0 | BJ11: =IFERROR(VLOOKUP(BE11,MATCHSELEVES!$Y$14:$AG$600,9,FALSE),0) -> 0 | BK11: Carole_8 | BL11: =IFERROR(VLOOKUP(BK11,MATCHSELEVES!$Y$14:$AE$600,3,FALSE),0) -> 0 | BM11: =IFERROR(VLOOKUP(BK11,MATCHSELEVES!$Y$14:$AE$600,4,FALSE),0) -> 0 | BN11: =IFERROR(VLOOKUP(BK11,MATCHSELEVES!$Y$14:$AE$600,5,FALSE),0) -> 0 | BO11: =IFERROR(VLOOKUP(BK11,MATCHSELEVES!$Y$14:$AF$600,8,FALSE),0) -> 0 | BP11: =IFERROR(VLOOKUP(BK11,MATCHSELEVES!$Y$14:$AG$600,9,FALSE),0) -> 0 | BQ11: Carole_9 | BR11: =IFERROR(VLOOKUP(BQ11,MATCHSELEVES!$Y$14:$AE$600,3,FALSE),0) -> 0 | BS11: =IFERROR(VLOOKUP(BQ11,MATCHSELEVES!$Y$14:$AE$600,4,FALSE),0) -> 0 | BT11: =IFERROR(VLOOKUP(BQ11,MATCHSELEVES!$Y$14:$AE$600,5,FALSE),0) -> 0 | BU11: =IFERROR(VLOOKUP(BQ11,MATCHSELEVES!$Y$14:$AF$600,8,FALSE),0) -> 0 | BV11: =IFERROR(VLOOKUP(BQ11,MATCHSELEVES!$Y$14:$AG$600,9,FALSE),0) -> 0 | BW11: Carole_10 | BX11: =IFERROR(VLOOKUP(BW11,MATCHSELEVES!$Y$14:$AE$600,3,FALSE),0) -> 0 | BY11: =IFERROR(VLOOKUP(BW11,MATCHSELEVES!$Y$14:$AE$600,4,FALSE),0) -> 0 | BZ11: =IFERROR(VLOOKUP(BW11,MATCHSELEVES!$Y$14:$AE$600,5,FALSE),0) -> 0 | CA11: =IFERROR(VLOOKUP(BW11,MATCHSELEVES!$Y$14:$AF$600,8,FALSE),0) -> 0 | CB11: =IFERROR(VLOOKUP(BW11,MATCHSELEVES!$Y$14:$AG$600,9,FALSE),0) -> 0 | CC11: Carole_11 | CD11: =IFERROR(VLOOKUP(CC11,MATCHSELEVES!$Y$14:$AE$600,3,FALSE),0) -> 0 | CE11: =IFERROR(VLOOKUP(CC11,MATCHSELEVES!$Y$14:$AE$600,4,FALSE),0) -> 0 | CF11: =IFERROR(VLOOKUP(CC11,MATCHSELEVES!$Y$14:$AE$600,5,FALSE),0) -> 0 | CG11: =IFERROR(VLOOKUP(CC11,MATCHSELEVES!$Y$14:$AF$600,8,FALSE),0) -> 0 | CH11: =IFERROR(VLOOKUP(CC11,MATCHSELEVES!$Y$14:$AG$600,9,FALSE),0) -> 0 | CI11: Carole_12 | CJ11: =IFERROR(VLOOKUP(CI11,MATCHSELEVES!$Y$14:$AE$600,3,FALSE),0) -> 0 | CK11: =IFERROR(VLOOKUP(CI11,MATCHSELEVES!$Y$14:$AE$600,4,FALSE),0) -> 0 | CL11: =IFERROR(VLOOKUP(CI11,MATCHSELEVES!$Y$14:$AE$600,5,FALSE),0) -> 0 | CM11: =IFERROR(VLOOKUP(CI11,MATCHSELEVES!$Y$14:$AF$600,8,FALSE),0) -> 0 | CN11: =IFERROR(VLOOKUP(CI11,MATCHSELEVES!$Y$14:$AG$600,9,FALSE),0) -> 0 | CO11: Carole_13 | CP11: =IFERROR(VLOOKUP(CO11,MATCHSELEVES!$Y$14:$AE$600,3,FALSE),0) -> 0 | CQ11: =IFERROR(VLOOKUP(CO11,MATCHSELEVES!$Y$14:$AE$600,4,FALSE),0) -> 0 | CR11: =IFERROR(VLOOKUP(CO11,MATCHSELEVES!$Y$14:$AE$600,5,FALSE),0) -> 0 | CS11: =IFERROR(VLOOKUP(CO11,MATCHSELEVES!$Y$14:$AF$600,8,FALSE),0) -> 0 | CT11: =IFERROR(VLOOKUP(CO11,MATCHSELEVES!$Y$14:$AG$600,9,FALSE),0) -> 0 | CU11: Carole_14 | CV11: =IFERROR(VLOOKUP(CU11,MATCHSELEVES!$Y$14:$AE$600,3,FALSE),0) -> 0 | CW11: =IFERROR(VLOOKUP(CU11,MATCHSELEVES!$Y$14:$AE$600,4,FALSE),0) -> 0 | CX11: =IFERROR(VLOOKUP(CU11,MATCHSELEVES!$Y$14:$AE$600,5,FALSE),0) -> 0 | CY11: =IFERROR(VLOOKUP(CU11,MATCHSELEVES!$Y$14:$AF$600,8,FALSE),0) -> 0 | CZ11: =IFERROR(VLOOKUP(CU11,MATCHSELEVES!$Y$14:$AG$600,9,FALSE),0) -> 0 | DA11: Carole_15 | DB11: =IFERROR(VLOOKUP(DA11,MATCHSELEVES!$Y$14:$AE$600,3,FALSE),0) -> 0 | DC11: =IFERROR(VLOOKUP(DA11,MATCHSELEVES!$Y$14:$AE$600,4,FALSE),0) -> 0 | DD11: =IFERROR(VLOOKUP(DA11,MATCHSELEVES!$Y$14:$AE$600,5,FALSE),0) -> 0 | DE11: =IFERROR(VLOOKUP(DA11,MATCHSELEVES!$Y$14:$AF$600,8,FALSE),0) -> 0 | DF11: =IFERROR(VLOOKUP(DA11,MATCHSELEVES!$Y$14:$AG$600,9,FALSE),0) -> 0 | DG11: Carole_16 | DH11: =IFERROR(VLOOKUP(DG11,MATCHSELEVES!$Y$14:$AE$600,3,FALSE),0) -> 0 | DI11: =IFERROR(VLOOKUP(DG11,MATCHSELEVES!$Y$14:$AE$600,4,FALSE),0) -> 0 | DJ11: =IFERROR(VLOOKUP(DG11,MATCHSELEVES!$Y$14:$AE$600,5,FALSE),0) -> 0 | DK11: =IFERROR(VLOOKUP(DG11,MATCHSELEVES!$Y$14:$AF$600,8,FALSE),0) -> 0 | DL11: =IFERROR(VLOOKUP(DG11,MATCHSELEVES!$Y$14:$AG$600,9,FALSE),0) -> 0 | DM11: Carole_17 | DN11: =IFERROR(VLOOKUP(DM11,MATCHSELEVES!$Y$14:$AE$600,3,FALSE),0) -> 0 | DO11: =IFERROR(VLOOKUP(DM11,MATCHSELEVES!$Y$14:$AE$600,4,FALSE),0) -> 0 | DP11: =IFERROR(VLOOKUP(DM11,MATCHSELEVES!$Y$14:$AE$600,5,FALSE),0) -> 0 | DQ11: =IFERROR(VLOOKUP(DM11,MATCHSELEVES!$Y$14:$AF$600,8,FALSE),0) -> 0 | DR11: =IFERROR(VLOOKUP(DM11,MATCHSELEVES!$Y$14:$AG$600,9,FALSE),0) -> 0 | DS11: Carole_18 | DT11: =IFERROR(VLOOKUP(DS11,MATCHSELEVES!$Y$14:$AE$600,3,FALSE),0) -> 0 | DU11: =IFERROR(VLOOKUP(DS11,MATCHSELEVES!$Y$14:$AE$600,4,FALSE),0) -> 0 | DV11: =IFERROR(VLOOKUP(DS11,MATCHSELEVES!$Y$14:$AE$600,5,FALSE),0) -> 0 | DW11: =IFERROR(VLOOKUP(DS11,MATCHSELEVES!$Y$14:$AF$600,8,FALSE),0) -> 0 | DX11: =IFERROR(VLOOKUP(DS11,MATCHSELEVES!$Y$14:$AG$600,9,FALSE),0) -> 0 | DY11: Carole_19 | DZ11: =IFERROR(VLOOKUP(DY11,MATCHSELEVES!$Y$14:$AE$600,3,FALSE),0) -> 0 | EA11: =IFERROR(VLOOKUP(DY11,MATCHSELEVES!$Y$14:$AE$600,4,FALSE),0) -> 0 | EB11: =IFERROR(VLOOKUP(DY11,MATCHSELEVES!$Y$14:$AE$600,5,FALSE),0) -> 0 | EC11: =IFERROR(VLOOKUP(DY11,MATCHSELEVES!$Y$14:$AF$600,8,FALSE),0) -> 0 | ED11: =IFERROR(VLOOKUP(DY11,MATCHSELEVES!$Y$14:$AG$600,9,FALSE),0) -> 0 | EE11: Carole_20 | EF11: =IFERROR(VLOOKUP(EE11,MATCHSELEVES!$Y$14:$AE$600,3,FALSE),0) -> 0 | EG11: =IFERROR(VLOOKUP(EE11,MATCHSELEVES!$Y$14:$AE$600,4,FALSE),0) -> 0 | EH11: =IFERROR(VLOOKUP(EE11,MATCHSELEVES!$Y$14:$AE$600,5,FALSE),0) -> 0 | EI11: =IFERROR(VLOOKUP(EE11,MATCHSELEVES!$Y$14:$AF$600,8,FALSE),0) -> 0 | EJ11: =IFERROR(VLOOKUP(EE11,MATCHSELEVES!$Y$14:$AG$600,9,FALSE),0) -> 0 | EK11: Carole_21 | EL11: =IFERROR(VLOOKUP(EK11,MATCHSELEVES!$Y$14:$AE$600,3,FALSE),0) -> 0 | EM11: =IFERROR(VLOOKUP(EK11,MATCHSELEVES!$Y$14:$AE$600,4,FALSE),0) -> 0 | EN11: =IFERROR(VLOOKUP(EK11,MATCHSELEVES!$Y$14:$AE$600,5,FALSE),0) -> 0 | EO11: =IFERROR(VLOOKUP(EK11,MATCHSELEVES!$Y$14:$AF$600,8,FALSE),0) -> 0 | EP11: =IFERROR(VLOOKUP(EK11,MATCHSELEVES!$Y$14:$AG$600,9,FALSE),0) -> 0 | EQ11: Carole_22 | ER11: =IFERROR(VLOOKUP(EQ11,MATCHSELEVES!$Y$14:$AE$600,3,FALSE),0) -> 0 | ES11: =IFERROR(VLOOKUP(EQ11,MATCHSELEVES!$Y$14:$AE$600,4,FALSE),0) -> 0 | ET11: =IFERROR(VLOOKUP(EQ11,MATCHSELEVES!$Y$14:$AE$600,5,FALSE),0) -> 0 | EU11: =IFERROR(VLOOKUP(EQ11,MATCHSELEVES!$Y$14:$AF$600,8,FALSE),0) -> 0 | EV11: =IFERROR(VLOOKUP(EQ11,MATCHSELEVES!$Y$14:$AG$600,9,FALSE),0) -> 0 | EW11: Carole_23 | EX11: =IFERROR(VLOOKUP(EW11,MATCHSELEVES!$Y$14:$AE$600,3,FALSE),0) -> 0 | EY11: =IFERROR(VLOOKUP(EW11,MATCHSELEVES!$Y$14:$AE$600,4,FALSE),0) -> 0 | EZ11: =IFERROR(VLOOKUP(EW11,MATCHSELEVES!$Y$14:$AE$600,5,FALSE),0) -> 0 | FA11: =IFERROR(VLOOKUP(EW11,MATCHSELEVES!$Y$14:$AF$600,8,FALSE),0) -> 0 | FB11: =IFERROR(VLOOKUP(EW11,MATCHSELEVES!$Y$14:$AG$600,9,FALSE),0) -> 0 | FC11: Carole_24 | FD11: =IFERROR(VLOOKUP(FC11,MATCHSELEVES!$Y$14:$AE$600,3,FALSE),0) -> 0 | FE11: =IFERROR(VLOOKUP(FC11,MATCHSELEVES!$Y$14:$AE$600,4,FALSE),0) -> 0 | FF11: =IFERROR(VLOOKUP(FC11,MATCHSELEVES!$Y$14:$AE$600,5,FALSE),0) -> 0 | FG11: =IFERROR(VLOOKUP(FC11,MATCHSELEVES!$Y$14:$AF$600,8,FALSE),0) -> 0 | FH11: =IFERROR(VLOOKUP(FC11,MATCHSELEVES!$Y$14:$AG$600,9,FALSE),0) -> 0 | FI11: Carole_25 | FJ11: =IFERROR(VLOOKUP(FI11,MATCHSELEVES!$Y$14:$AE$600,3,FALSE),0) -> 0 | FK11: =IFERROR(VLOOKUP(FI11,MATCHSELEVES!$Y$14:$AE$600,4,FALSE),0) -> 0 | FL11: =IFERROR(VLOOKUP(FI11,MATCHSELEVES!$Y$14:$AE$600,5,FALSE),0) -> 0 | FM11: =IFERROR(VLOOKUP(FI11,MATCHSELEVES!$Y$14:$AF$600,8,FALSE),0) -> 0 | FN11: =IFERROR(VLOOKUP(FI11,MATCHSELEVES!$Y$14:$AG$600,9,FALSE),0) -> 0 | FO11: Carole_26 | FP11: =IFERROR(VLOOKUP(FO11,MATCHSELEVES!$Y$14:$AE$600,3,FALSE),0) -> 0 | FQ11: =IFERROR(VLOOKUP(FO11,MATCHSELEVES!$Y$14:$AE$600,4,FALSE),0) -> 0 | FR11: =IFERROR(VLOOKUP(FO11,MATCHSELEVES!$Y$14:$AE$600,5,FALSE),0) -> 0 | FS11: =IFERROR(VLOOKUP(FO11,MATCHSELEVES!$Y$14:$AF$600,8,FALSE),0) -> 0 | FT11: =IFERROR(VLOOKUP(FO11,MATCHSELEVES!$Y$14:$AG$600,9,FALSE),0) -> 0 | FU11: Carole_27 | FV11: =IFERROR(VLOOKUP(FU11,MATCHSELEVES!$Y$14:$AE$600,3,FALSE),0) -> 0 | FW11: =IFERROR(VLOOKUP(FU11,MATCHSELEVES!$Y$14:$AE$600,4,FALSE),0) -> 0 | FX11: =IFERROR(VLOOKUP(FU11,MATCHSELEVES!$Y$14:$AE$600,5,FALSE),0) -> 0 | FY11: =IFERROR(VLOOKUP(FU11,MATCHSELEVES!$Y$14:$AF$600,8,FALSE),0) -> 0 | FZ11: =IFERROR(VLOOKUP(FU11,MATCHSELEVES!$Y$14:$AG$600,9,FALSE),0) -> 0 | GA11: Carole_28 | GB11: =IFERROR(VLOOKUP(GA11,MATCHSELEVES!$Y$14:$AE$600,3,FALSE),0) -> 0 | GC11: =IFERROR(VLOOKUP(GA11,MATCHSELEVES!$Y$14:$AE$600,4,FALSE),0) -> 0 | GD11: =IFERROR(VLOOKUP(GA11,MATCHSELEVES!$Y$14:$AE$600,5,FALSE),0) -> 0 | GE11: =IFERROR(VLOOKUP(GA11,MATCHSELEVES!$Y$14:$AF$600,8,FALSE),0) -> 0 | GF11: =IFERROR(VLOOKUP(GA11,MATCHSELEVES!$Y$14:$AG$600,9,FALSE),0) -> 0 | GG11: Carole_29 | GH11: =IFERROR(VLOOKUP(GG11,MATCHSELEVES!$Y$14:$AE$600,3,FALSE),0) -> 0 | GI11: =IFERROR(VLOOKUP(GG11,MATCHSELEVES!$Y$14:$AE$600,4,FALSE),0) -> 0 | GJ11: =IFERROR(VLOOKUP(GG11,MATCHSELEVES!$Y$14:$AE$600,5,FALSE),0) -> 0 | GK11: =IFERROR(VLOOKUP(GG11,MATCHSELEVES!$Y$14:$AF$600,8,FALSE),0) -> 0 | GL11: =IFERROR(VLOOKUP(GG11,MATCHSELEVES!$Y$14:$AG$600,9,FALSE),0) -> 0 | GM11: Carole_30 | GN11: =IFERROR(VLOOKUP(GM11,MATCHSELEVES!$Y$14:$AE$600,3,FALSE),0) -> 0 | GO11: =IFERROR(VLOOKUP(GM11,MATCHSELEVES!$Y$14:$AE$600,4,FALSE),0) -> 0 | GP11: =IFERROR(VLOOKUP(GM11,MATCHSELEVES!$Y$14:$AE$600,5,FALSE),0) -> 0 | GQ11: =IFERROR(VLOOKUP(GM11,MATCHSELEVES!$Y$14:$AF$600,8,FALSE),0) -> 0 | GR11: =IFERROR(VLOOKUP(GM11,MATCHSELEVES!$Y$14:$AG$600,9,FALSE),0) -> 0 | GS11: Carole_31 | GT11: =IFERROR(VLOOKUP(GS11,MATCHSELEVES!$Y$14:$AE$600,3,FALSE),0) -> 0 | GU11: =IFERROR(VLOOKUP(GS11,MATCHSELEVES!$Y$14:$AE$600,4,FALSE),0) -> 0 | GV11: =IFERROR(VLOOKUP(GS11,MATCHSELEVES!$Y$14:$AE$600,5,FALSE),0) -> 0 | GW11: =IFERROR(VLOOKUP(GS11,MATCHSELEVES!$Y$14:$AF$600,8,FALSE),0) -> 0 | GX11: =IFERROR(VLOOKUP(GS11,MATCHSELEVES!$Y$14:$AG$600,9,FALSE),0) -> 0 | GY11: Carole_32 | GZ11: =IFERROR(VLOOKUP(GY11,MATCHSELEVES!$Y$14:$AE$600,3,FALSE),0) -> 0 | HA11: =IFERROR(VLOOKUP(GY11,MATCHSELEVES!$Y$14:$AE$600,4,FALSE),0) -> 0 | HB11: =IFERROR(VLOOKUP(GY11,MATCHSELEVES!$Y$14:$AE$600,5,FALSE),0) -> 0 | HC11: =IFERROR(VLOOKUP(GY11,MATCHSELEVES!$Y$14:$AF$600,8,FALSE),0) -> 0 | HD11: =IFERROR(VLOOKUP(GY11,MATCHSELEVES!$Y$14:$AG$600,9,FALSE),0) -> 0 | HE11: Carole_33 | HF11: =IFERROR(VLOOKUP(HE11,MATCHSELEVES!$Y$14:$AE$600,3,FALSE),0) -> 0 | HG11: =IFERROR(VLOOKUP(HE11,MATCHSELEVES!$Y$14:$AE$600,4,FALSE),0) -> 0 | HH11: =IFERROR(VLOOKUP(HE11,MATCHSELEVES!$Y$14:$AE$600,5,FALSE),0) -> 0 | HI11: =IFERROR(VLOOKUP(HE11,MATCHSELEVES!$Y$14:$AF$600,8,FALSE),0) -> 0 | HJ11: =IFERROR(VLOOKUP(HE11,MATCHSELEVES!$Y$14:$AG$600,9,FALSE),0) -> 0 | HK11: Carole_34 | HL11: =IFERROR(VLOOKUP(HK11,MATCHSELEVES!$Y$14:$AE$600,3,FALSE),0) -> 0 | HM11: =IFERROR(VLOOKUP(HK11,MATCHSELEVES!$Y$14:$AE$600,4,FALSE),0) -> 0 | HN11: =IFERROR(VLOOKUP(HK11,MATCHSELEVES!$Y$14:$AE$600,5,FALSE),0) -> 0 | HO11: =IFERROR(VLOOKUP(HK11,MATCHSELEVES!$Y$14:$AF$600,8,FALSE),0) -> 0 | HP11: =IFERROR(VLOOKUP(HK11,MATCHSELEVES!$Y$14:$AG$600,9,FALSE),0) -> 0 | HQ11: Carole_35 | HR11: =IFERROR(VLOOKUP(HQ11,MATCHSELEVES!$Y$14:$AE$600,3,FALSE),0) -> 0 | HS11: =IFERROR(VLOOKUP(HQ11,MATCHSELEVES!$Y$14:$AE$600,4,FALSE),0) -> 0 | HT11: =IFERROR(VLOOKUP(HQ11,MATCHSELEVES!$Y$14:$AE$600,5,FALSE),0) -> 0 | HU11: =IFERROR(VLOOKUP(HQ11,MATCHSELEVES!$Y$14:$AF$600,8,FALSE),0) -> 0 | HV11: =IFERROR(VLOOKUP(HQ11,MATCHSELEVES!$Y$14:$AG$600,9,FALSE),0) -> 0 | HW11: Carole_36 | HX11: =IFERROR(VLOOKUP(HW11,MATCHSELEVES!$Y$14:$AE$600,3,FALSE),0) -> 0 | HY11: =IFERROR(VLOOKUP(HW11,MATCHSELEVES!$Y$14:$AE$600,4,FALSE),0) -> 0 | HZ11: =IFERROR(VLOOKUP(HW11,MATCHSELEVES!$Y$14:$AE$600,5,FALSE),0) -> 0 | IA11: =IFERROR(VLOOKUP(HW11,MATCHSELEVES!$Y$14:$AF$600,8,FALSE),0) -> 0 | IB11: =IFERROR(VLOOKUP(HW11,MATCHSELEVES!$Y$14:$AG$600,9,FALSE),0) -> 0 | IC11: Carole_37 | ID11: =IFERROR(VLOOKUP(IC11,MATCHSELEVES!$Y$14:$AE$600,3,FALSE),0) -> 0 | IE11: =IFERROR(VLOOKUP(IC11,MATCHSELEVES!$Y$14:$AE$600,4,FALSE),0) -> 0 | IF11: =IFERROR(VLOOKUP(IC11,MATCHSELEVES!$Y$14:$AE$600,5,FALSE),0) -> 0 | IG11: =IFERROR(VLOOKUP(IC11,MATCHSELEVES!$Y$14:$AF$600,8,FALSE),0) -> 0 | IH11: =IFERROR(VLOOKUP(IC11,MATCHSELEVES!$Y$14:$AG$600,9,FALSE),0) -> 0 | II11: Carole_38 | IJ11: =IFERROR(VLOOKUP(II11,MATCHSELEVES!$Y$14:$AE$600,3,FALSE),0) -> 0 | IK11: =IFERROR(VLOOKUP(II11,MATCHSELEVES!$Y$14:$AE$600,4,FALSE),0) -> 0 | IL11: =IFERROR(VLOOKUP(II11,MATCHSELEVES!$Y$14:$AE$600,5,FALSE),0) -> 0 | IM11: =IFERROR(VLOOKUP(II11,MATCHSELEVES!$Y$14:$AF$600,8,FALSE),0) -> 0 | IN11: =IFERROR(VLOOKUP(II11,MATCHSELEVES!$Y$14:$AG$600,9,FALSE),0) -> 0 | IO11: Carole_39 | IP11: =IFERROR(VLOOKUP(IO11,MATCHSELEVES!$Y$14:$AE$600,3,FALSE),0) -> 0 | IQ11: =IFERROR(VLOOKUP(IO11,MATCHSELEVES!$Y$14:$AE$600,4,FALSE),0) -> 0 | IR11: =IFERROR(VLOOKUP(IO11,MATCHSELEVES!$Y$14:$AE$600,5,FALSE),0) -> 0 | IS11: =IFERROR(VLOOKUP(IO11,MATCHSELEVES!$Y$14:$AF$600,8,FALSE),0) -> 0 | IT11: =IFERROR(VLOOKUP(IO11,MATCHSELEVES!$Y$14:$AG$600,9,FALSE),0) -> 0 | IU11: Carole_40 | IV11: =IFERROR(VLOOKUP(IU11,MATCHSELEVES!$Y$14:$AE$600,3,FALSE),0) -> 0 | IW11: =IFERROR(VLOOKUP(IU11,MATCHSELEVES!$Y$14:$AE$600,4,FALSE),0) -> 0 | IX11: =IFERROR(VLOOKUP(IU11,MATCHSELEVES!$Y$14:$AE$600,5,FALSE),0) -> 0 | IY11: =IFERROR(VLOOKUP(IU11,MATCHSELEVES!$Y$14:$AF$600,8,FALSE),0) -> 0 | IZ11: =IFERROR(VLOOKUP(IU11,MATCHSELEVES!$Y$14:$AG$600,9,FALSE),0) -> 0 | JA11: Carolep_1 | JB11: =IFERROR(VLOOKUP(JA11,MATCHSELEVES!$Y$14:$AE$600,3,FALSE),0) -> 0 | JC11: =IFERROR(VLOOKUP(JA11,MATCHSELEVES!$Y$14:$AE$600,4,FALSE),0) -> 0 | JD11: =IFERROR(VLOOKUP(JA11,MATCHSELEVES!$Y$14:$AE$600,5,FALSE),0) -> 0 | JE11: =IFERROR(VLOOKUP(JA11,MATCHSELEVES!$Y$14:$AF$600,8,FALSE),0) -> 0 | JF11: =IFERROR(VLOOKUP(JA11,MATCHSELEVES!$Y$14:$AG$600,9,FALSE),0) -> 0 | JG11: Carolep_2 | JH11: =IFERROR(VLOOKUP(JG11,MATCHSELEVES!$Y$14:$AE$600,3,FALSE),0) -> 0 | JI11: =IFERROR(VLOOKUP(JG11,MATCHSELEVES!$Y$14:$AE$600,4,FALSE),0) -> 0 | JJ11: =IFERROR(VLOOKUP(JG11,MATCHSELEVES!$Y$14:$AE$600,5,FALSE),0) -> 0 | JK11: =IFERROR(VLOOKUP(JG11,MATCHSELEVES!$Y$14:$AF$600,8,FALSE),0) -> 0 | JL11: =IFERROR(VLOOKUP(JG11,MATCHSELEVES!$Y$14:$AG$600,9,FALSE),0) -> 0 | JM11: Carolep_3 | JN11: =IFERROR(VLOOKUP(JM11,MATCHSELEVES!$Y$14:$AE$600,3,FALSE),0) -> 0 | JO11: =IFERROR(VLOOKUP(JM11,MATCHSELEVES!$Y$14:$AE$600,4,FALSE),0) -> 0 | JP11: =IFERROR(VLOOKUP(JM11,MATCHSELEVES!$Y$14:$AE$600,5,FALSE),0) -> 0 | JQ11: =IFERROR(VLOOKUP(JM11,MATCHSELEVES!$Y$14:$AF$600,8,FALSE),0) -> 0 | JR11: =IFERROR(VLOOKUP(JM11,MATCHSELEVES!$Y$14:$AG$600,9,FALSE),0) -> 0 | JS11: Carolep_4 | JT11: =IFERROR(VLOOKUP(JS11,MATCHSELEVES!$Y$14:$AE$600,3,FALSE),0) -> 0 | JU11: =IFERROR(VLOOKUP(JS11,MATCHSELEVES!$Y$14:$AE$600,4,FALSE),0) -> 0 | JV11: =IFERROR(VLOOKUP(JS11,MATCHSELEVES!$Y$14:$AE$600,5,FALSE),0) -> 0 | JW11: =IFERROR(VLOOKUP(JS11,MATCHSELEVES!$Y$14:$AF$600,8,FALSE),0) -> 0 | JX11: =IFERROR(VLOOKUP(JS11,MATCHSELEVES!$Y$14:$AG$600,9,FALSE),0) -> 0 | JY11: Carolep_5 | JZ11: =IFERROR(VLOOKUP(JY11,MATCHSELEVES!$Y$14:$AE$600,3,FALSE),0) -> 0 | KA11: =IFERROR(VLOOKUP(JY11,MATCHSELEVES!$Y$14:$AE$600,4,FALSE),0) -> 0 | KB11: =IFERROR(VLOOKUP(JY11,MATCHSELEVES!$Y$14:$AE$600,5,FALSE),0) -> 0 | KC11: =IFERROR(VLOOKUP(JY11,MATCHSELEVES!$Y$14:$AF$600,8,FALSE),0) -> 0 | KD11: =IFERROR(VLOOKUP(JY11,MATCHSELEVES!$Y$14:$AG$600,9,FALSE),0) -> 0 | KE11: Carolep_6 | KF11: =IFERROR(VLOOKUP(KE11,MATCHSELEVES!$Y$14:$AE$600,3,FALSE),0) -> 0 | KG11: =IFERROR(VLOOKUP(KE11,MATCHSELEVES!$Y$14:$AE$600,4,FALSE),0) -> 0 | KH11: =IFERROR(VLOOKUP(KE11,MATCHSELEVES!$Y$14:$AE$600,5,FALSE),0) -> 0 | KI11: =IFERROR(VLOOKUP(KE11,MATCHSELEVES!$Y$14:$AF$600,8,FALSE),0) -> 0 | KJ11: =IFERROR(VLOOKUP(KE11,MATCHSELEVES!$Y$14:$AG$600,9,FALSE),0) -> 0 | KK11: Carolep_7 | KL11: =IFERROR(VLOOKUP(KK11,MATCHSELEVES!$Y$14:$AE$600,3,FALSE),0) -> 0 | KM11: =IFERROR(VLOOKUP(KK11,MATCHSELEVES!$Y$14:$AE$600,4,FALSE),0) -> 0 | KN11: =IFERROR(VLOOKUP(KK11,MATCHSELEVES!$Y$14:$AE$600,5,FALSE),0) -> 0 | KO11: =IFERROR(VLOOKUP(KK11,MATCHSELEVES!$Y$14:$AF$600,8,FALSE),0) -> 0 | KP11: =IFERROR(VLOOKUP(KK11,MATCHSELEVES!$Y$14:$AG$600,9,FALSE),0) -> 0 | KQ11: Carolep_8 | KR11: =IFERROR(VLOOKUP(KQ11,MATCHSELEVES!$Y$14:$AE$600,3,FALSE),0) -> 0 | KS11: =IFERROR(VLOOKUP(KQ11,MATCHSELEVES!$Y$14:$AE$600,4,FALSE),0) -> 0 | KT11: =IFERROR(VLOOKUP(KQ11,MATCHSELEVES!$Y$14:$AE$600,5,FALSE),0) -> 0 | KU11: =IFERROR(VLOOKUP(KQ11,MATCHSELEVES!$Y$14:$AF$600,8,FALSE),0) -> 0 | KV11: =IFERROR(VLOOKUP(KQ11,MATCHSELEVES!$Y$14:$AG$600,9,FALSE),0) -> 0 | KW11: Carolep_9 | KX11: =IFERROR(VLOOKUP(KW11,MATCHSELEVES!$Y$14:$AE$600,3,FALSE),0) -> 0 | KY11: =IFERROR(VLOOKUP(KW11,MATCHSELEVES!$Y$14:$AE$600,4,FALSE),0) -> 0 | KZ11: =IFERROR(VLOOKUP(KW11,MATCHSELEVES!$Y$14:$AE$600,5,FALSE),0) -> 0 | LA11: =IFERROR(VLOOKUP(KW11,MATCHSELEVES!$Y$14:$AF$600,8,FALSE),0) -> 0 | LB11: =IFERROR(VLOOKUP(KW11,MATCHSELEVES!$Y$14:$AG$600,9,FALSE),0) -> 0 | LC11: Carolep_10 | LD11: =IFERROR(VLOOKUP(LC11,MATCHSELEVES!$Y$14:$AE$600,3,FALSE),0) -> 0 | LE11: =IFERROR(VLOOKUP(LC11,MATCHSELEVES!$Y$14:$AE$600,4,FALSE),0) -> 0 | LF11: =IFERROR(VLOOKUP(LC11,MATCHSELEVES!$Y$14:$AE$600,5,FALSE),0) -> 0 | LG11: =IFERROR(VLOOKUP(LC11,MATCHSELEVES!$Y$14:$AF$600,8,FALSE),0) -> 0 | LH11: =IFERROR(VLOOKUP(LC11,MATCHSELEVES!$Y$14:$AG$600,9,FALSE),0) -> 0 | LI11: Carolep_11 | LJ11: =IFERROR(VLOOKUP(LI11,MATCHSELEVES!$Y$14:$AE$600,3,FALSE),0) -> 0 | LK11: =IFERROR(VLOOKUP(LI11,MATCHSELEVES!$Y$14:$AE$600,4,FALSE),0) -> 0 | LL11: =IFERROR(VLOOKUP(LI11,MATCHSELEVES!$Y$14:$AE$600,5,FALSE),0) -> 0 | LM11: =IFERROR(VLOOKUP(LI11,MATCHSELEVES!$Y$14:$AF$600,8,FALSE),0) -> 0 | LN11: =IFERROR(VLOOKUP(LI11,MATCHSELEVES!$Y$14:$AG$600,9,FALSE),0) -> 0 | LO11: Carolep_12 | LP11: =IFERROR(VLOOKUP(LO11,MATCHSELEVES!$Y$14:$AE$600,3,FALSE),0) -> 0 | LQ11: =IFERROR(VLOOKUP(LO11,MATCHSELEVES!$Y$14:$AE$600,4,FALSE),0) -> 0 | LR11: =IFERROR(VLOOKUP(LO11,MATCHSELEVES!$Y$14:$AE$600,5,FALSE),0) -> 0 | LS11: =IFERROR(VLOOKUP(LO11,MATCHSELEVES!$Y$14:$AF$600,8,FALSE),0) -> 0 | LT11: =IFERROR(VLOOKUP(LO11,MATCHSELEVES!$Y$14:$AG$600,9,FALSE),0) -> 0 | LU11: Carolep_13 | LV11: =IFERROR(VLOOKUP(LU11,MATCHSELEVES!$Y$14:$AE$600,3,FALSE),0) -> 0 | LW11: =IFERROR(VLOOKUP(LU11,MATCHSELEVES!$Y$14:$AE$600,4,FALSE),0) -> 0 | LX11: =IFERROR(VLOOKUP(LU11,MATCHSELEVES!$Y$14:$AE$600,5,FALSE),0) -> 0 | LY11: =IFERROR(VLOOKUP(LU11,MATCHSELEVES!$Y$14:$AF$600,8,FALSE),0) -> 0 | LZ11: =IFERROR(VLOOKUP(LU11,MATCHSELEVES!$Y$14:$AG$600,9,FALSE),0) -> 0 | MA11: Carolep_14 | MB11: =IFERROR(VLOOKUP(MA11,MATCHSELEVES!$Y$14:$AE$600,3,FALSE),0) -> 0 | MC11: =IFERROR(VLOOKUP(MA11,MATCHSELEVES!$Y$14:$AE$600,4,FALSE),0) -> 0 | MD11: =IFERROR(VLOOKUP(MA11,MATCHSELEVES!$Y$14:$AE$600,5,FALSE),0) -> 0 | ME11: =IFERROR(VLOOKUP(MA11,MATCHSELEVES!$Y$14:$AF$600,8,FALSE),0) -> 0 | MF11: =IFERROR(VLOOKUP(MA11,MATCHSELEVES!$Y$14:$AG$600,9,FALSE),0) -> 0 | MG11: Carolep_15 | MH11: =IFERROR(VLOOKUP(MG11,MATCHSELEVES!$Y$14:$AE$600,3,FALSE),0) -> 0 | MI11: =IFERROR(VLOOKUP(MG11,MATCHSELEVES!$Y$14:$AE$600,4,FALSE),0) -> 0 | MJ11: =IFERROR(VLOOKUP(MG11,MATCHSELEVES!$Y$14:$AE$600,5,FALSE),0) -> 0 | MK11: =IFERROR(VLOOKUP(MG11,MATCHSELEVES!$Y$14:$AF$600,8,FALSE),0) -> 0 | ML11: =IFERROR(VLOOKUP(MG11,MATCHSELEVES!$Y$14:$AG$600,9,FALSE),0) -> 0 | MM11: Carolep_16 | MN11: =IFERROR(VLOOKUP(MM11,MATCHSELEVES!$Y$14:$AE$600,3,FALSE),0) -> 0 | MO11: =IFERROR(VLOOKUP(MM11,MATCHSELEVES!$Y$14:$AE$600,4,FALSE),0) -> 0 | MP11: =IFERROR(VLOOKUP(MM11,MATCHSELEVES!$Y$14:$AE$600,5,FALSE),0) -> 0 | MQ11: =IFERROR(VLOOKUP(MM11,MATCHSELEVES!$Y$14:$AF$600,8,FALSE),0) -> 0 | MR11: =IFERROR(VLOOKUP(MM11,MATCHSELEVES!$Y$14:$AG$600,9,FALSE),0) -> 0 | MS11: Carolep_17 | MT11: =IFERROR(VLOOKUP(MS11,MATCHSELEVES!$Y$14:$AE$600,3,FALSE),0) -> 0 | MU11: =IFERROR(VLOOKUP(MS11,MATCHSELEVES!$Y$14:$AE$600,4,FALSE),0) -> 0 | MV11: =IFERROR(VLOOKUP(MS11,MATCHSELEVES!$Y$14:$AE$600,5,FALSE),0) -> 0 | MW11: =IFERROR(VLOOKUP(MS11,MATCHSELEVES!$Y$14:$AF$600,8,FALSE),0) -> 0 | MX11: =IFERROR(VLOOKUP(MS11,MATCHSELEVES!$Y$14:$AG$600,9,FALSE),0) -> 0 | MY11: Carolep_18 | MZ11: =IFERROR(VLOOKUP(MY11,MATCHSELEVES!$Y$14:$AE$600,3,FALSE),0) -> 0 | NA11: =IFERROR(VLOOKUP(MY11,MATCHSELEVES!$Y$14:$AE$600,4,FALSE),0) -> 0 | NB11: =IFERROR(VLOOKUP(MY11,MATCHSELEVES!$Y$14:$AE$600,5,FALSE),0) -> 0 | NC11: =IFERROR(VLOOKUP(MY11,MATCHSELEVES!$Y$14:$AF$600,8,FALSE),0) -> 0 | ND11: =IFERROR(VLOOKUP(MY11,MATCHSELEVES!$Y$14:$AG$600,9,FALSE),0) -> 0 | NE11: Carolep_19 | NF11: =IFERROR(VLOOKUP(NE11,MATCHSELEVES!$Y$14:$AE$600,3,FALSE),0) -> 0 | NG11: =IFERROR(VLOOKUP(NE11,MATCHSELEVES!$Y$14:$AE$600,4,FALSE),0) -> 0 | NH11: =IFERROR(VLOOKUP(NE11,MATCHSELEVES!$Y$14:$AE$600,5,FALSE),0) -> 0 | NI11: =IFERROR(VLOOKUP(NE11,MATCHSELEVES!$Y$14:$AF$600,8,FALSE),0) -> 0 | NJ11: =IFERROR(VLOOKUP(NE11,MATCHSELEVES!$Y$14:$AG$600,9,FALSE),0) -> 0 | NK11: Carolep_20 | NL11: =IFERROR(VLOOKUP(NK11,MATCHSELEVES!$Y$14:$AE$600,3,FALSE),0) -> 0 | NM11: =IFERROR(VLOOKUP(NK11,MATCHSELEVES!$Y$14:$AE$600,4,FALSE),0) -> 0 | NN11: =IFERROR(VLOOKUP(NK11,MATCHSELEVES!$Y$14:$AE$600,5,FALSE),0) -> 0 | NO11: =IFERROR(VLOOKUP(NK11,MATCHSELEVES!$Y$14:$AF$600,8,FALSE),0) -> 0 | NP11: =IFERROR(VLOOKUP(NK11,MATCHSELEVES!$Y$14:$AG$600,9,FALSE),0) -> 0 | NQ11: Carolep_21 | NR11: =IFERROR(VLOOKUP(NQ11,MATCHSELEVES!$Y$14:$AE$600,3,FALSE),0) -> 0 | NS11: =IFERROR(VLOOKUP(NQ11,MATCHSELEVES!$Y$14:$AE$600,4,FALSE),0) -> 0 | NT11: =IFERROR(VLOOKUP(NQ11,MATCHSELEVES!$Y$14:$AE$600,5,FALSE),0) -> 0 | NU11: =IFERROR(VLOOKUP(NQ11,MATCHSELEVES!$Y$14:$AF$600,8,FALSE),0) -> 0 | NV11: =IFERROR(VLOOKUP(NQ11,MATCHSELEVES!$Y$14:$AG$600,9,FALSE),0) -> 0 | NW11: Carolep_22 | NX11: =IFERROR(VLOOKUP(NW11,MATCHSELEVES!$Y$14:$AE$600,3,FALSE),0) -> 0 | NY11: =IFERROR(VLOOKUP(NW11,MATCHSELEVES!$Y$14:$AE$600,4,FALSE),0) -> 0 | NZ11: =IFERROR(VLOOKUP(NW11,MATCHSELEVES!$Y$14:$AE$600,5,FALSE),0) -> 0 | OA11: =IFERROR(VLOOKUP(NW11,MATCHSELEVES!$Y$14:$AF$600,8,FALSE),0) -> 0 | OB11: =IFERROR(VLOOKUP(NW11,MATCHSELEVES!$Y$14:$AG$600,9,FALSE),0) -> 0 | OC11: Carolep_23 | OD11: =IFERROR(VLOOKUP(OC11,MATCHSELEVES!$Y$14:$AE$600,3,FALSE),0) -> 0 | OE11: =IFERROR(VLOOKUP(OC11,MATCHSELEVES!$Y$14:$AE$600,4,FALSE),0) -> 0 | OF11: =IFERROR(VLOOKUP(OC11,MATCHSELEVES!$Y$14:$AE$600,5,FALSE),0) -> 0 | OG11: =IFERROR(VLOOKUP(OC11,MATCHSELEVES!$Y$14:$AF$600,8,FALSE),0) -> 0 | OH11: =IFERROR(VLOOKUP(OC11,MATCHSELEVES!$Y$14:$AG$600,9,FALSE),0) -> 0 | OI11: Carolep_24 | OJ11: =IFERROR(VLOOKUP(OI11,MATCHSELEVES!$Y$14:$AE$600,3,FALSE),0) -> 0 | OK11: =IFERROR(VLOOKUP(OI11,MATCHSELEVES!$Y$14:$AE$600,4,FALSE),0) -> 0 | OL11: =IFERROR(VLOOKUP(OI11,MATCHSELEVES!$Y$14:$AE$600,5,FALSE),0) -> 0 | OM11: =IFERROR(VLOOKUP(OI11,MATCHSELEVES!$Y$14:$AF$600,8,FALSE),0) -> 0 | ON11: =IFERROR(VLOOKUP(OI11,MATCHSELEVES!$Y$14:$AG$600,9,FALSE),0) -> 0 | OO11: Carolep_25 | OP11: =IFERROR(VLOOKUP(OO11,MATCHSELEVES!$Y$14:$AE$600,3,FALSE),0) -> 0 | OQ11: =IFERROR(VLOOKUP(OO11,MATCHSELEVES!$Y$14:$AE$600,4,FALSE),0) -> 0 | OR11: =IFERROR(VLOOKUP(OO11,MATCHSELEVES!$Y$14:$AE$600,5,FALSE),0) -> 0 | OS11: =IFERROR(VLOOKUP(OO11,MATCHSELEVES!$Y$14:$AF$600,8,FALSE),0) -> 0 | OT11: =IFERROR(VLOOKUP(OO11,MATCHSELEVES!$Y$14:$AG$600,9,FALSE),0) -> 0 | OU11: Carolep_26 | OV11: =IFERROR(VLOOKUP(OU11,MATCHSELEVES!$Y$14:$AE$600,3,FALSE),0) -> 0 | OW11: =IFERROR(VLOOKUP(OU11,MATCHSELEVES!$Y$14:$AE$600,4,FALSE),0) -> 0 | OX11: =IFERROR(VLOOKUP(OU11,MATCHSELEVES!$Y$14:$AE$600,5,FALSE),0) -> 0 | OY11: =IFERROR(VLOOKUP(OU11,MATCHSELEVES!$Y$14:$AF$600,8,FALSE),0) -> 0 | OZ11: =IFERROR(VLOOKUP(OU11,MATCHSELEVES!$Y$14:$AG$600,9,FALSE),0) -> 0 | PA11: Carolep_27 | PB11: =IFERROR(VLOOKUP(PA11,MATCHSELEVES!$Y$14:$AE$600,3,FALSE),0) -> 0 | PC11: =IFERROR(VLOOKUP(PA11,MATCHSELEVES!$Y$14:$AE$600,4,FALSE),0) -> 0 | PD11: =IFERROR(VLOOKUP(PA11,MATCHSELEVES!$Y$14:$AE$600,5,FALSE),0) -> 0 | PE11: =IFERROR(VLOOKUP(PA11,MATCHSELEVES!$Y$14:$AF$600,8,FALSE),0) -> 0 | PF11: =IFERROR(VLOOKUP(PA11,MATCHSELEVES!$Y$14:$AG$600,9,FALSE),0) -> 0 | PG11: Carolep_28 | PH11: =IFERROR(VLOOKUP(PG11,MATCHSELEVES!$Y$14:$AE$600,3,FALSE),0) -> 0 | PI11: =IFERROR(VLOOKUP(PG11,MATCHSELEVES!$Y$14:$AE$600,4,FALSE),0) -> 0 | PJ11: =IFERROR(VLOOKUP(PG11,MATCHSELEVES!$Y$14:$AE$600,5,FALSE),0) -> 0 | PK11: =IFERROR(VLOOKUP(PG11,MATCHSELEVES!$Y$14:$AF$600,8,FALSE),0) -> 0 | PL11: =IFERROR(VLOOKUP(PG11,MATCHSELEVES!$Y$14:$AG$600,9,FALSE),0) -> 0 | PM11: Carolep_29 | PN11: =IFERROR(VLOOKUP(PM11,MATCHSELEVES!$Y$14:$AE$600,3,FALSE),0) -> 0 | PO11: =IFERROR(VLOOKUP(PM11,MATCHSELEVES!$Y$14:$AE$600,4,FALSE),0) -> 0 | PP11: =IFERROR(VLOOKUP(PM11,MATCHSELEVES!$Y$14:$AE$600,5,FALSE),0) -> 0 | PQ11: =IFERROR(VLOOKUP(PM11,MATCHSELEVES!$Y$14:$AF$600,8,FALSE),0) -> 0 | PR11: =IFERROR(VLOOKUP(PM11,MATCHSELEVES!$Y$14:$AG$600,9,FALSE),0) -> 0 | PS11: Carolep_30 | PT11: =IFERROR(VLOOKUP(PS11,MATCHSELEVES!$Y$14:$AE$600,3,FALSE),0) -> 0 | PU11: =IFERROR(VLOOKUP(PS11,MATCHSELEVES!$Y$14:$AE$600,4,FALSE),0) -> 0 | PV11: =IFERROR(VLOOKUP(PS11,MATCHSELEVES!$Y$14:$AE$600,5,FALSE),0) -> 0 | PW11: =IFERROR(VLOOKUP(PS11,MATCHSELEVES!$Y$14:$AF$600,8,FALSE),0) -> 0 | PX11: =IFERROR(VLOOKUP(PS11,MATCHSELEVES!$Y$14:$AG$600,9,FALSE),0) -> 0 | PY11: Carolep_31 | PZ11: =IFERROR(VLOOKUP(PY11,MATCHSELEVES!$Y$14:$AE$600,3,FALSE),0) -> 0 | QA11: =IFERROR(VLOOKUP(PY11,MATCHSELEVES!$Y$14:$AE$600,4,FALSE),0) -> 0 | QB11: =IFERROR(VLOOKUP(PY11,MATCHSELEVES!$Y$14:$AE$600,5,FALSE),0) -> 0 | QC11: =IFERROR(VLOOKUP(PY11,MATCHSELEVES!$Y$14:$AF$600,8,FALSE),0) -> 0 | QD11: =IFERROR(VLOOKUP(PY11,MATCHSELEVES!$Y$14:$AG$600,9,FALSE),0) -> 0 | QE11: Carolep_32 | QF11: =IFERROR(VLOOKUP(QE11,MATCHSELEVES!$Y$14:$AE$600,3,FALSE),0) -> 0 | QG11: =IFERROR(VLOOKUP(QE11,MATCHSELEVES!$Y$14:$AE$600,4,FALSE),0) -> 0 | QH11: =IFERROR(VLOOKUP(QE11,MATCHSELEVES!$Y$14:$AE$600,5,FALSE),0) -> 0 | QI11: =IFERROR(VLOOKUP(QE11,MATCHSELEVES!$Y$14:$AF$600,8,FALSE),0) -> 0 | QJ11: =IFERROR(VLOOKUP(QE11,MATCHSELEVES!$Y$14:$AG$600,9,FALSE),0) -> 0 | QK11: Carolep_33 | QL11: =IFERROR(VLOOKUP(QK11,MATCHSELEVES!$Y$14:$AE$600,3,FALSE),0) -> 0 | QM11: =IFERROR(VLOOKUP(QK11,MATCHSELEVES!$Y$14:$AE$600,4,FALSE),0) -> 0 | QN11: =IFERROR(VLOOKUP(QK11,MATCHSELEVES!$Y$14:$AE$600,5,FALSE),0) -> 0 | QO11: =IFERROR(VLOOKUP(QK11,MATCHSELEVES!$Y$14:$AF$600,8,FALSE),0) -> 0 | QP11: =IFERROR(VLOOKUP(QK11,MATCHSELEVES!$Y$14:$AG$600,9,FALSE),0) -> 0 | QQ11: Carolep_34 | QR11: =IFERROR(VLOOKUP(QQ11,MATCHSELEVES!$Y$14:$AE$600,3,FALSE),0) -> 0 | QS11: =IFERROR(VLOOKUP(QQ11,MATCHSELEVES!$Y$14:$AE$600,4,FALSE),0) -> 0 | QT11: =IFERROR(VLOOKUP(QQ11,MATCHSELEVES!$Y$14:$AE$600,5,FALSE),0) -> 0 | QU11: =IFERROR(VLOOKUP(QQ11,MATCHSELEVES!$Y$14:$AF$600,8,FALSE),0) -> 0 | QV11: =IFERROR(VLOOKUP(QQ11,MATCHSELEVES!$Y$14:$AG$600,9,FALSE),0) -> 0 | QW11: Carolep_35 | QX11: =IFERROR(VLOOKUP(QW11,MATCHSELEVES!$Y$14:$AE$600,3,FALSE),0) -> 0 | QY11: =IFERROR(VLOOKUP(QW11,MATCHSELEVES!$Y$14:$AE$600,4,FALSE),0) -> 0 | QZ11: =IFERROR(VLOOKUP(QW11,MATCHSELEVES!$Y$14:$AE$600,5,FALSE),0) -> 0 | RA11: =IFERROR(VLOOKUP(QW11,MATCHSELEVES!$Y$14:$AF$600,8,FALSE),0) -> 0 | RB11: =IFERROR(VLOOKUP(QW11,MATCHSELEVES!$Y$14:$AG$600,9,FALSE),0) -> 0 | RC11: Carolep_36 | RD11: =IFERROR(VLOOKUP(RC11,MATCHSELEVES!$Y$14:$AE$600,3,FALSE),0) -> 0 | RE11: =IFERROR(VLOOKUP(RC11,MATCHSELEVES!$Y$14:$AE$600,4,FALSE),0) -> 0 | RF11: =IFERROR(VLOOKUP(RC11,MATCHSELEVES!$Y$14:$AE$600,5,FALSE),0) -> 0 | RG11: =IFERROR(VLOOKUP(RC11,MATCHSELEVES!$Y$14:$AF$600,8,FALSE),0) -> 0 | RH11: =IFERROR(VLOOKUP(RC11,MATCHSELEVES!$Y$14:$AG$600,9,FALSE),0) -> 0 | RI11: Carolep_37 | RJ11: =IFERROR(VLOOKUP(RI11,MATCHSELEVES!$Y$14:$AE$600,3,FALSE),0) -> 0 | RK11: =IFERROR(VLOOKUP(RI11,MATCHSELEVES!$Y$14:$AE$600,4,FALSE),0) -> 0 | RL11: =IFERROR(VLOOKUP(RI11,MATCHSELEVES!$Y$14:$AE$600,5,FALSE),0) -> 0 | RM11: =IFERROR(VLOOKUP(RI11,MATCHSELEVES!$Y$14:$AF$600,8,FALSE),0) -> 0 | RN11: =IFERROR(VLOOKUP(RI11,MATCHSELEVES!$Y$14:$AG$600,9,FALSE),0) -> 0 | RO11: Carolep_38 | RP11: =IFERROR(VLOOKUP(RO11,MATCHSELEVES!$Y$14:$AE$600,3,FALSE),0) -> 0 | RQ11: =IFERROR(VLOOKUP(RO11,MATCHSELEVES!$Y$14:$AE$600,4,FALSE),0) -> 0 | RR11: =IFERROR(VLOOKUP(RO11,MATCHSELEVES!$Y$14:$AE$600,5,FALSE),0) -> 0 | RS11: =IFERROR(VLOOKUP(RO11,MATCHSELEVES!$Y$14:$AF$600,8,FALSE),0) -> 0 | RT11: =IFERROR(VLOOKUP(RO11,MATCHSELEVES!$Y$14:$AG$600,9,FALSE),0) -> 0 | RU11: Carolep_39 | RV11: =IFERROR(VLOOKUP(RU11,MATCHSELEVES!$Y$14:$AE$600,3,FALSE),0) -> 0 | RW11: =IFERROR(VLOOKUP(RU11,MATCHSELEVES!$Y$14:$AE$600,4,FALSE),0) -> 0 | RX11: =IFERROR(VLOOKUP(RU11,MATCHSELEVES!$Y$14:$AE$600,5,FALSE),0) -> 0 | RY11: =IFERROR(VLOOKUP(RU11,MATCHSELEVES!$Y$14:$AF$600,8,FALSE),0) -> 0 | RZ11: =IFERROR(VLOOKUP(RU11,MATCHSELEVES!$Y$14:$AG$600,9,FALSE),0) -> 0 | SA11: Carolep_40 | SB11: =IFERROR(VLOOKUP(SA11,MATCHSELEVES!$Y$14:$AE$600,3,FALSE),0) -> 0 | SC11: =IFERROR(VLOOKUP(SA11,MATCHSELEVES!$Y$14:$AE$600,4,FALSE),0) -> 0 | SD11: =IFERROR(VLOOKUP(SA11,MATCHSELEVES!$Y$14:$AE$600,5,FALSE),0) -> 0 | SE11: =IFERROR(VLOOKUP(SA11,MATCHSELEVES!$Y$14:$AF$600,8,FALSE),0) -> 0 | SF11: =IFERROR(VLOOKUP(SA11,MATCHSELEVES!$Y$14:$AG$600,9,FALSE),0) -> 0
A12: 9 | C12: Caroline | D12: 9 | G12: =COUNTIF(MATCHSELEVES!$Z$14:$Z$600,C12)+COUNTIF(MATCHSELEVES!$Z$14:$Z$600,$C12&"p") -> 0 | H12: 1 | I12: =COUNTIF(MATCHSELEVES!$F$14:$H$249,C12) -> 0 | J12: 1 | K12: 0 | L12: 1 | M12: =IFERROR(M55/Tableau10[[#This Row],[Nombre de matchs joués]],0) -> 0 | N12: =IF(Tableau10[[#This Row],[Nombre de points encaissés]]=0,$C$45,SUMPRODUCT((M$4:M$43<M12)*(M$4:M$43<>0))+1) -> 40 | O12: 0 | P12: 1 | Q12: =(Tableau10[[#This Row],[CLASSEMENT1]]+Tableau10[[#This Row],[CLASSEMENT2]]+Tableau10[[#This Row],[CLASSEMENT3]]+Tableau10[[#This Row],[CLASSEMENT4]]+Tableau10[[#This Row],[CLASSEMENT5]]+Tableau10[[#This Row],[CLASSEMENT6]])/6 -> 8.833333333 | R12: =RANK(Tableau10[[#This Row],[MOYENNE CLASSEMENTS]],Tableau10[MOYENNE CLASSEMENTS],1) -> 9 | T12: =Tableau10[[#This Row],[CLASSEMENT1]] -> 9 | U12: Caroline_1 | V12: =IFERROR(VLOOKUP(U12,MATCHSELEVES!$Y$14:$AE$600,3,FALSE),0) -> 0 | W12: =IFERROR(VLOOKUP(U12,MATCHSELEVES!$Y$14:$AE$600,4,FALSE),0) -> 0 | X12: =IFERROR(VLOOKUP(U12,MATCHSELEVES!$Y$14:$AE$600,5,FALSE),0) -> 0 | Y12: =IFERROR(VLOOKUP(U12,MATCHSELEVES!$Y$14:$AF$600,8,FALSE),0) -> 0 | Z12: =IFERROR(VLOOKUP(U12,MATCHSELEVES!$Y$14:$AG$600,9,FALSE),0) -> 0 | AA12: Caroline_2 | AB12: =IFERROR(VLOOKUP(AA12,MATCHSELEVES!$Y$14:$AE$600,3,FALSE),0) -> 0 | AC12: =IFERROR(VLOOKUP(AA12,MATCHSELEVES!$Y$14:$AE$600,4,FALSE),0) -> 0 | AD12: =IFERROR(VLOOKUP(AA12,MATCHSELEVES!$Y$14:$AE$600,5,FALSE),0) -> 0 | AE12: =IFERROR(VLOOKUP(AA12,MATCHSELEVES!$Y$14:$AF$600,8,FALSE),0) -> 0 | AF12: =IFERROR(VLOOKUP(AA12,MATCHSELEVES!$Y$14:$AG$600,9,FALSE),0) -> 0 | AG12: Caroline_3 | AH12: =IFERROR(VLOOKUP(AG12,MATCHSELEVES!$Y$14:$AE$600,3,FALSE),0) -> 0 | AI12: =IFERROR(VLOOKUP(AG12,MATCHSELEVES!$Y$14:$AE$600,4,FALSE),0) -> 0 | AJ12: =IFERROR(VLOOKUP(AG12,MATCHSELEVES!$Y$14:$AE$600,5,FALSE),0) -> 0 | AK12: =IFERROR(VLOOKUP(AG12,MATCHSELEVES!$Y$14:$AF$600,8,FALSE),0) -> 0 | AL12: =IFERROR(VLOOKUP(AG12,MATCHSELEVES!$Y$14:$AG$600,9,FALSE),0) -> 0 | AM12: Caroline_4 | AN12: =IFERROR(VLOOKUP(AM12,MATCHSELEVES!$Y$14:$AE$600,3,FALSE),0) -> 0 | AO12: =IFERROR(VLOOKUP(AM12,MATCHSELEVES!$Y$14:$AE$600,4,FALSE),0) -> 0 | AP12: =IFERROR(VLOOKUP(AM12,MATCHSELEVES!$Y$14:$AE$600,5,FALSE),0) -> 0 | AQ12: =IFERROR(VLOOKUP(AM12,MATCHSELEVES!$Y$14:$AF$600,8,FALSE),0) -> 0 | AR12: =IFERROR(VLOOKUP(AM12,MATCHSELEVES!$Y$14:$AG$600,9,FALSE),0) -> 0 | AS12: Caroline_5 | AT12: =IFERROR(VLOOKUP(AS12,MATCHSELEVES!$Y$14:$AE$600,3,FALSE),0) -> 0 | AU12: =IFERROR(VLOOKUP(AS12,MATCHSELEVES!$Y$14:$AE$600,4,FALSE),0) -> 0 | AV12: =IFERROR(VLOOKUP(AS12,MATCHSELEVES!$Y$14:$AE$600,5,FALSE),0) -> 0 | AW12: =IFERROR(VLOOKUP(AS12,MATCHSELEVES!$Y$14:$AF$600,8,FALSE),0) -> 0 | AX12: =IFERROR(VLOOKUP(AS12,MATCHSELEVES!$Y$14:$AG$600,9,FALSE),0) -> 0 | AY12: Caroline_6 | AZ12: =IFERROR(VLOOKUP(AY12,MATCHSELEVES!$Y$14:$AE$600,3,FALSE),0) -> 0 | BA12: =IFERROR(VLOOKUP(AY12,MATCHSELEVES!$Y$14:$AE$600,4,FALSE),0) -> 0 | BB12: =IFERROR(VLOOKUP(AY12,MATCHSELEVES!$Y$14:$AE$600,5,FALSE),0) -> 0 | BC12: =IFERROR(VLOOKUP(AY12,MATCHSELEVES!$Y$14:$AF$600,8,FALSE),0) -> 0 | BD12: =IFERROR(VLOOKUP(AY12,MATCHSELEVES!$Y$14:$AG$600,9,FALSE),0) -> 0 | BE12: Caroline_7 | BF12: =IFERROR(VLOOKUP(BE12,MATCHSELEVES!$Y$14:$AE$600,3,FALSE),0) -> 0 | BG12: =IFERROR(VLOOKUP(BE12,MATCHSELEVES!$Y$14:$AE$600,4,FALSE),0) -> 0 | BH12: =IFERROR(VLOOKUP(BE12,MATCHSELEVES!$Y$14:$AE$600,5,FALSE),0) -> 0 | BI12: =IFERROR(VLOOKUP(BE12,MATCHSELEVES!$Y$14:$AF$600,8,FALSE),0) -> 0 | BJ12: =IFERROR(VLOOKUP(BE12,MATCHSELEVES!$Y$14:$AG$600,9,FALSE),0) -> 0 | BK12: Caroline_8 | BL12: =IFERROR(VLOOKUP(BK12,MATCHSELEVES!$Y$14:$AE$600,3,FALSE),0) -> 0 | BM12: =IFERROR(VLOOKUP(BK12,MATCHSELEVES!$Y$14:$AE$600,4,FALSE),0) -> 0 | BN12: =IFERROR(VLOOKUP(BK12,MATCHSELEVES!$Y$14:$AE$600,5,FALSE),0) -> 0 | BO12: =IFERROR(VLOOKUP(BK12,MATCHSELEVES!$Y$14:$AF$600,8,FALSE),0) -> 0 | BP12: =IFERROR(VLOOKUP(BK12,MATCHSELEVES!$Y$14:$AG$600,9,FALSE),0) -> 0 | BQ12: Caroline_9 | BR12: =IFERROR(VLOOKUP(BQ12,MATCHSELEVES!$Y$14:$AE$600,3,FALSE),0) -> 0 | BS12: =IFERROR(VLOOKUP(BQ12,MATCHSELEVES!$Y$14:$AE$600,4,FALSE),0) -> 0 | BT12: =IFERROR(VLOOKUP(BQ12,MATCHSELEVES!$Y$14:$AE$600,5,FALSE),0) -> 0 | BU12: =IFERROR(VLOOKUP(BQ12,MATCHSELEVES!$Y$14:$AF$600,8,FALSE),0) -> 0 | BV12: =IFERROR(VLOOKUP(BQ12,MATCHSELEVES!$Y$14:$AG$600,9,FALSE),0) -> 0 | BW12: Caroline_10 | BX12: =IFERROR(VLOOKUP(BW12,MATCHSELEVES!$Y$14:$AE$600,3,FALSE),0) -> 0 | BY12: =IFERROR(VLOOKUP(BW12,MATCHSELEVES!$Y$14:$AE$600,4,FALSE),0) -> 0 | BZ12: =IFERROR(VLOOKUP(BW12,MATCHSELEVES!$Y$14:$AE$600,5,FALSE),0) -> 0 | CA12: =IFERROR(VLOOKUP(BW12,MATCHSELEVES!$Y$14:$AF$600,8,FALSE),0) -> 0 | CB12: =IFERROR(VLOOKUP(BW12,MATCHSELEVES!$Y$14:$AG$600,9,FALSE),0) -> 0 | CC12: Caroline_11 | CD12: =IFERROR(VLOOKUP(CC12,MATCHSELEVES!$Y$14:$AE$600,3,FALSE),0) -> 0 | CE12: =IFERROR(VLOOKUP(CC12,MATCHSELEVES!$Y$14:$AE$600,4,FALSE),0) -> 0 | CF12: =IFERROR(VLOOKUP(CC12,MATCHSELEVES!$Y$14:$AE$600,5,FALSE),0) -> 0 | CG12: =IFERROR(VLOOKUP(CC12,MATCHSELEVES!$Y$14:$AF$600,8,FALSE),0) -> 0 | CH12: =IFERROR(VLOOKUP(CC12,MATCHSELEVES!$Y$14:$AG$600,9,FALSE),0) -> 0 | CI12: Caroline_12 | CJ12: =IFERROR(VLOOKUP(CI12,MATCHSELEVES!$Y$14:$AE$600,3,FALSE),0) -> 0 | CK12: =IFERROR(VLOOKUP(CI12,MATCHSELEVES!$Y$14:$AE$600,4,FALSE),0) -> 0 | CL12: =IFERROR(VLOOKUP(CI12,MATCHSELEVES!$Y$14:$AE$600,5,FALSE),0) -> 0 | CM12: =IFERROR(VLOOKUP(CI12,MATCHSELEVES!$Y$14:$AF$600,8,FALSE),0) -> 0 | CN12: =IFERROR(VLOOKUP(CI12,MATCHSELEVES!$Y$14:$AG$600,9,FALSE),0) -> 0 | CO12: Caroline_13 | CP12: =IFERROR(VLOOKUP(CO12,MATCHSELEVES!$Y$14:$AE$600,3,FALSE),0) -> 0 | CQ12: =IFERROR(VLOOKUP(CO12,MATCHSELEVES!$Y$14:$AE$600,4,FALSE),0) -> 0 | CR12: =IFERROR(VLOOKUP(CO12,MATCHSELEVES!$Y$14:$AE$600,5,FALSE),0) -> 0 | CS12: =IFERROR(VLOOKUP(CO12,MATCHSELEVES!$Y$14:$AF$600,8,FALSE),0) -> 0 | CT12: =IFERROR(VLOOKUP(CO12,MATCHSELEVES!$Y$14:$AG$600,9,FALSE),0) -> 0 | CU12: Caroline_14 | CV12: =IFERROR(VLOOKUP(CU12,MATCHSELEVES!$Y$14:$AE$600,3,FALSE),0) -> 0 | CW12: =IFERROR(VLOOKUP(CU12,MATCHSELEVES!$Y$14:$AE$600,4,FALSE),0) -> 0 | CX12: =IFERROR(VLOOKUP(CU12,MATCHSELEVES!$Y$14:$AE$600,5,FALSE),0) -> 0 | CY12: =IFERROR(VLOOKUP(CU12,MATCHSELEVES!$Y$14:$AF$600,8,FALSE),0) -> 0 | CZ12: =IFERROR(VLOOKUP(CU12,MATCHSELEVES!$Y$14:$AG$600,9,FALSE),0) -> 0 | DA12: Caroline_15 | DB12: =IFERROR(VLOOKUP(DA12,MATCHSELEVES!$Y$14:$AE$600,3,FALSE),0) -> 0 | DC12: =IFERROR(VLOOKUP(DA12,MATCHSELEVES!$Y$14:$AE$600,4,FALSE),0) -> 0 | DD12: =IFERROR(VLOOKUP(DA12,MATCHSELEVES!$Y$14:$AE$600,5,FALSE),0) -> 0 | DE12: =IFERROR(VLOOKUP(DA12,MATCHSELEVES!$Y$14:$AF$600,8,FALSE),0) -> 0 | DF12: =IFERROR(VLOOKUP(DA12,MATCHSELEVES!$Y$14:$AG$600,9,FALSE),0) -> 0 | DG12: Caroline_16 | DH12: =IFERROR(VLOOKUP(DG12,MATCHSELEVES!$Y$14:$AE$600,3,FALSE),0) -> 0 | DI12: =IFERROR(VLOOKUP(DG12,MATCHSELEVES!$Y$14:$AE$600,4,FALSE),0) -> 0 | DJ12: =IFERROR(VLOOKUP(DG12,MATCHSELEVES!$Y$14:$AE$600,5,FALSE),0) -> 0 | DK12: =IFERROR(VLOOKUP(DG12,MATCHSELEVES!$Y$14:$AF$600,8,FALSE),0) -> 0 | DL12: =IFERROR(VLOOKUP(DG12,MATCHSELEVES!$Y$14:$AG$600,9,FALSE),0) -> 0 | DM12: Caroline_17 | DN12: =IFERROR(VLOOKUP(DM12,MATCHSELEVES!$Y$14:$AE$600,3,FALSE),0) -> 0 | DO12: =IFERROR(VLOOKUP(DM12,MATCHSELEVES!$Y$14:$AE$600,4,FALSE),0) -> 0 | DP12: =IFERROR(VLOOKUP(DM12,MATCHSELEVES!$Y$14:$AE$600,5,FALSE),0) -> 0 | DQ12: =IFERROR(VLOOKUP(DM12,MATCHSELEVES!$Y$14:$AF$600,8,FALSE),0) -> 0 | DR12: =IFERROR(VLOOKUP(DM12,MATCHSELEVES!$Y$14:$AG$600,9,FALSE),0) -> 0 | DS12: Caroline_18 | DT12: =IFERROR(VLOOKUP(DS12,MATCHSELEVES!$Y$14:$AE$600,3,FALSE),0) -> 0 | DU12: =IFERROR(VLOOKUP(DS12,MATCHSELEVES!$Y$14:$AE$600,4,FALSE),0) -> 0 | DV12: =IFERROR(VLOOKUP(DS12,MATCHSELEVES!$Y$14:$AE$600,5,FALSE),0) -> 0 | DW12: =IFERROR(VLOOKUP(DS12,MATCHSELEVES!$Y$14:$AF$600,8,FALSE),0) -> 0 | DX12: =IFERROR(VLOOKUP(DS12,MATCHSELEVES!$Y$14:$AG$600,9,FALSE),0) -> 0 | DY12: Caroline_19 | DZ12: =IFERROR(VLOOKUP(DY12,MATCHSELEVES!$Y$14:$AE$600,3,FALSE),0) -> 0 | EA12: =IFERROR(VLOOKUP(DY12,MATCHSELEVES!$Y$14:$AE$600,4,FALSE),0) -> 0 | EB12: =IFERROR(VLOOKUP(DY12,MATCHSELEVES!$Y$14:$AE$600,5,FALSE),0) -> 0 | EC12: =IFERROR(VLOOKUP(DY12,MATCHSELEVES!$Y$14:$AF$600,8,FALSE),0) -> 0 | ED12: =IFERROR(VLOOKUP(DY12,MATCHSELEVES!$Y$14:$AG$600,9,FALSE),0) -> 0 | EE12: Caroline_20 | EF12: =IFERROR(VLOOKUP(EE12,MATCHSELEVES!$Y$14:$AE$600,3,FALSE),0) -> 0 | EG12: =IFERROR(VLOOKUP(EE12,MATCHSELEVES!$Y$14:$AE$600,4,FALSE),0) -> 0 | EH12: =IFERROR(VLOOKUP(EE12,MATCHSELEVES!$Y$14:$AE$600,5,FALSE),0) -> 0 | EI12: =IFERROR(VLOOKUP(EE12,MATCHSELEVES!$Y$14:$AF$600,8,FALSE),0) -> 0 | EJ12: =IFERROR(VLOOKUP(EE12,MATCHSELEVES!$Y$14:$AG$600,9,FALSE),0) -> 0 | EK12: Caroline_21 | EL12: =IFERROR(VLOOKUP(EK12,MATCHSELEVES!$Y$14:$AE$600,3,FALSE),0) -> 0 | EM12: =IFERROR(VLOOKUP(EK12,MATCHSELEVES!$Y$14:$AE$600,4,FALSE),0) -> 0 | EN12: =IFERROR(VLOOKUP(EK12,MATCHSELEVES!$Y$14:$AE$600,5,FALSE),0) -> 0 | EO12: =IFERROR(VLOOKUP(EK12,MATCHSELEVES!$Y$14:$AF$600,8,FALSE),0) -> 0 | EP12: =IFERROR(VLOOKUP(EK12,MATCHSELEVES!$Y$14:$AG$600,9,FALSE),0) -> 0 | EQ12: Caroline_22 | ER12: =IFERROR(VLOOKUP(EQ12,MATCHSELEVES!$Y$14:$AE$600,3,FALSE),0) -> 0 | ES12: =IFERROR(VLOOKUP(EQ12,MATCHSELEVES!$Y$14:$AE$600,4,FALSE),0) -> 0 | ET12: =IFERROR(VLOOKUP(EQ12,MATCHSELEVES!$Y$14:$AE$600,5,FALSE),0) -> 0 | EU12: =IFERROR(VLOOKUP(EQ12,MATCHSELEVES!$Y$14:$AF$600,8,FALSE),0) -> 0 | EV12: =IFERROR(VLOOKUP(EQ12,MATCHSELEVES!$Y$14:$AG$600,9,FALSE),0) -> 0 | EW12: Caroline_23 | EX12: =IFERROR(VLOOKUP(EW12,MATCHSELEVES!$Y$14:$AE$600,3,FALSE),0) -> 0 | EY12: =IFERROR(VLOOKUP(EW12,MATCHSELEVES!$Y$14:$AE$600,4,FALSE),0) -> 0 | EZ12: =IFERROR(VLOOKUP(EW12,MATCHSELEVES!$Y$14:$AE$600,5,FALSE),0) -> 0 | FA12: =IFERROR(VLOOKUP(EW12,MATCHSELEVES!$Y$14:$AF$600,8,FALSE),0) -> 0 | FB12: =IFERROR(VLOOKUP(EW12,MATCHSELEVES!$Y$14:$AG$600,9,FALSE),0) -> 0 | FC12: Caroline_24 | FD12: =IFERROR(VLOOKUP(FC12,MATCHSELEVES!$Y$14:$AE$600,3,FALSE),0) -> 0 | FE12: =IFERROR(VLOOKUP(FC12,MATCHSELEVES!$Y$14:$AE$600,4,FALSE),0) -> 0 | FF12: =IFERROR(VLOOKUP(FC12,MATCHSELEVES!$Y$14:$AE$600,5,FALSE),0) -> 0 | FG12: =IFERROR(VLOOKUP(FC12,MATCHSELEVES!$Y$14:$AF$600,8,FALSE),0) -> 0 | FH12: =IFERROR(VLOOKUP(FC12,MATCHSELEVES!$Y$14:$AG$600,9,FALSE),0) -> 0 | FI12: Caroline_25 | FJ12: =IFERROR(VLOOKUP(FI12,MATCHSELEVES!$Y$14:$AE$600,3,FALSE),0) -> 0 | FK12: =IFERROR(VLOOKUP(FI12,MATCHSELEVES!$Y$14:$AE$600,4,FALSE),0) -> 0 | FL12: =IFERROR(VLOOKUP(FI12,MATCHSELEVES!$Y$14:$AE$600,5,FALSE),0) -> 0 | FM12: =IFERROR(VLOOKUP(FI12,MATCHSELEVES!$Y$14:$AF$600,8,FALSE),0) -> 0 | FN12: =IFERROR(VLOOKUP(FI12,MATCHSELEVES!$Y$14:$AG$600,9,FALSE),0) -> 0 | FO12: Caroline_26 | FP12: =IFERROR(VLOOKUP(FO12,MATCHSELEVES!$Y$14:$AE$600,3,FALSE),0) -> 0 | FQ12: =IFERROR(VLOOKUP(FO12,MATCHSELEVES!$Y$14:$AE$600,4,FALSE),0) -> 0 | FR12: =IFERROR(VLOOKUP(FO12,MATCHSELEVES!$Y$14:$AE$600,5,FALSE),0) -> 0 | FS12: =IFERROR(VLOOKUP(FO12,MATCHSELEVES!$Y$14:$AF$600,8,FALSE),0) -> 0 | FT12: =IFERROR(VLOOKUP(FO12,MATCHSELEVES!$Y$14:$AG$600,9,FALSE),0) -> 0 | FU12: Caroline_27 | FV12: =IFERROR(VLOOKUP(FU12,MATCHSELEVES!$Y$14:$AE$600,3,FALSE),0) -> 0 | FW12: =IFERROR(VLOOKUP(FU12,MATCHSELEVES!$Y$14:$AE$600,4,FALSE),0) -> 0 | FX12: =IFERROR(VLOOKUP(FU12,MATCHSELEVES!$Y$14:$AE$600,5,FALSE),0) -> 0 | FY12: =IFERROR(VLOOKUP(FU12,MATCHSELEVES!$Y$14:$AF$600,8,FALSE),0) -> 0 | FZ12: =IFERROR(VLOOKUP(FU12,MATCHSELEVES!$Y$14:$AG$600,9,FALSE),0) -> 0 | GA12: Caroline_28 | GB12: =IFERROR(VLOOKUP(GA12,MATCHSELEVES!$Y$14:$AE$600,3,FALSE),0) -> 0 | GC12: =IFERROR(VLOOKUP(GA12,MATCHSELEVES!$Y$14:$AE$600,4,FALSE),0) -> 0 | GD12: =IFERROR(VLOOKUP(GA12,MATCHSELEVES!$Y$14:$AE$600,5,FALSE),0) -> 0 | GE12: =IFERROR(VLOOKUP(GA12,MATCHSELEVES!$Y$14:$AF$600,8,FALSE),0) -> 0 | GF12: =IFERROR(VLOOKUP(GA12,MATCHSELEVES!$Y$14:$AG$600,9,FALSE),0) -> 0 | GG12: Caroline_29 | GH12: =IFERROR(VLOOKUP(GG12,MATCHSELEVES!$Y$14:$AE$600,3,FALSE),0) -> 0 | GI12: =IFERROR(VLOOKUP(GG12,MATCHSELEVES!$Y$14:$AE$600,4,FALSE),0) -> 0 | GJ12: =IFERROR(VLOOKUP(GG12,MATCHSELEVES!$Y$14:$AE$600,5,FALSE),0) -> 0 | GK12: =IFERROR(VLOOKUP(GG12,MATCHSELEVES!$Y$14:$AF$600,8,FALSE),0) -> 0 | GL12: =IFERROR(VLOOKUP(GG12,MATCHSELEVES!$Y$14:$AG$600,9,FALSE),0) -> 0 | GM12: Caroline_30 | GN12: =IFERROR(VLOOKUP(GM12,MATCHSELEVES!$Y$14:$AE$600,3,FALSE),0) -> 0 | GO12: =IFERROR(VLOOKUP(GM12,MATCHSELEVES!$Y$14:$AE$600,4,FALSE),0) -> 0 | GP12: =IFERROR(VLOOKUP(GM12,MATCHSELEVES!$Y$14:$AE$600,5,FALSE),0) -> 0 | GQ12: =IFERROR(VLOOKUP(GM12,MATCHSELEVES!$Y$14:$AF$600,8,FALSE),0) -> 0 | GR12: =IFERROR(VLOOKUP(GM12,MATCHSELEVES!$Y$14:$AG$600,9,FALSE),0) -> 0 | GS12: Caroline_31 | GT12: =IFERROR(VLOOKUP(GS12,MATCHSELEVES!$Y$14:$AE$600,3,FALSE),0) -> 0 | GU12: =IFERROR(VLOOKUP(GS12,MATCHSELEVES!$Y$14:$AE$600,4,FALSE),0) -> 0 | GV12: =IFERROR(VLOOKUP(GS12,MATCHSELEVES!$Y$14:$AE$600,5,FALSE),0) -> 0 | GW12: =IFERROR(VLOOKUP(GS12,MATCHSELEVES!$Y$14:$AF$600,8,FALSE),0) -> 0 | GX12: =IFERROR(VLOOKUP(GS12,MATCHSELEVES!$Y$14:$AG$600,9,FALSE),0) -> 0 | GY12: Caroline_32 | GZ12: =IFERROR(VLOOKUP(GY12,MATCHSELEVES!$Y$14:$AE$600,3,FALSE),0) -> 0 | HA12: =IFERROR(VLOOKUP(GY12,MATCHSELEVES!$Y$14:$AE$600,4,FALSE),0) -> 0 | HB12: =IFERROR(VLOOKUP(GY12,MATCHSELEVES!$Y$14:$AE$600,5,FALSE),0) -> 0 | HC12: =IFERROR(VLOOKUP(GY12,MATCHSELEVES!$Y$14:$AF$600,8,FALSE),0) -> 0 | HD12: =IFERROR(VLOOKUP(GY12,MATCHSELEVES!$Y$14:$AG$600,9,FALSE),0) -> 0 | HE12: Caroline_33 | HF12: =IFERROR(VLOOKUP(HE12,MATCHSELEVES!$Y$14:$AE$600,3,FALSE),0) -> 0 | HG12: =IFERROR(VLOOKUP(HE12,MATCHSELEVES!$Y$14:$AE$600,4,FALSE),0) -> 0 | HH12: =IFERROR(VLOOKUP(HE12,MATCHSELEVES!$Y$14:$AE$600,5,FALSE),0) -> 0 | HI12: =IFERROR(VLOOKUP(HE12,MATCHSELEVES!$Y$14:$AF$600,8,FALSE),0) -> 0 | HJ12: =IFERROR(VLOOKUP(HE12,MATCHSELEVES!$Y$14:$AG$600,9,FALSE),0) -> 0 | HK12: Caroline_34 | HL12: =IFERROR(VLOOKUP(HK12,MATCHSELEVES!$Y$14:$AE$600,3,FALSE),0) -> 0 | HM12: =IFERROR(VLOOKUP(HK12,MATCHSELEVES!$Y$14:$AE$600,4,FALSE),0) -> 0 | HN12: =IFERROR(VLOOKUP(HK12,MATCHSELEVES!$Y$14:$AE$600,5,FALSE),0) -> 0 | HO12: =IFERROR(VLOOKUP(HK12,MATCHSELEVES!$Y$14:$AF$600,8,FALSE),0) -> 0 | HP12: =IFERROR(VLOOKUP(HK12,MATCHSELEVES!$Y$14:$AG$600,9,FALSE),0) -> 0 | HQ12: Caroline_35 | HR12: =IFERROR(VLOOKUP(HQ12,MATCHSELEVES!$Y$14:$AE$600,3,FALSE),0) -> 0 | HS12: =IFERROR(VLOOKUP(HQ12,MATCHSELEVES!$Y$14:$AE$600,4,FALSE),0) -> 0 | HT12: =IFERROR(VLOOKUP(HQ12,MATCHSELEVES!$Y$14:$AE$600,5,FALSE),0) -> 0 | HU12: =IFERROR(VLOOKUP(HQ12,MATCHSELEVES!$Y$14:$AF$600,8,FALSE),0) -> 0 | HV12: =IFERROR(VLOOKUP(HQ12,MATCHSELEVES!$Y$14:$AG$600,9,FALSE),0) -> 0 | HW12: Caroline_36 | HX12: =IFERROR(VLOOKUP(HW12,MATCHSELEVES!$Y$14:$AE$600,3,FALSE),0) -> 0 | HY12: =IFERROR(VLOOKUP(HW12,MATCHSELEVES!$Y$14:$AE$600,4,FALSE),0) -> 0 | HZ12: =IFERROR(VLOOKUP(HW12,MATCHSELEVES!$Y$14:$AE$600,5,FALSE),0) -> 0 | IA12: =IFERROR(VLOOKUP(HW12,MATCHSELEVES!$Y$14:$AF$600,8,FALSE),0) -> 0 | IB12: =IFERROR(VLOOKUP(HW12,MATCHSELEVES!$Y$14:$AG$600,9,FALSE),0) -> 0 | IC12: Caroline_37 | ID12: =IFERROR(VLOOKUP(IC12,MATCHSELEVES!$Y$14:$AE$600,3,FALSE),0) -> 0 | IE12: =IFERROR(VLOOKUP(IC12,MATCHSELEVES!$Y$14:$AE$600,4,FALSE),0) -> 0 | IF12: =IFERROR(VLOOKUP(IC12,MATCHSELEVES!$Y$14:$AE$600,5,FALSE),0) -> 0 | IG12: =IFERROR(VLOOKUP(IC12,MATCHSELEVES!$Y$14:$AF$600,8,FALSE),0) -> 0 | IH12: =IFERROR(VLOOKUP(IC12,MATCHSELEVES!$Y$14:$AG$600,9,FALSE),0) -> 0 | II12: Caroline_38 | IJ12: =IFERROR(VLOOKUP(II12,MATCHSELEVES!$Y$14:$AE$600,3,FALSE),0) -> 0 | IK12: =IFERROR(VLOOKUP(II12,MATCHSELEVES!$Y$14:$AE$600,4,FALSE),0) -> 0 | IL12: =IFERROR(VLOOKUP(II12,MATCHSELEVES!$Y$14:$AE$600,5,FALSE),0) -> 0 | IM12: =IFERROR(VLOOKUP(II12,MATCHSELEVES!$Y$14:$AF$600,8,FALSE),0) -> 0 | IN12: =IFERROR(VLOOKUP(II12,MATCHSELEVES!$Y$14:$AG$600,9,FALSE),0) -> 0 | IO12: Caroline_39 | IP12: =IFERROR(VLOOKUP(IO12,MATCHSELEVES!$Y$14:$AE$600,3,FALSE),0) -> 0 | IQ12: =IFERROR(VLOOKUP(IO12,MATCHSELEVES!$Y$14:$AE$600,4,FALSE),0) -> 0 | IR12: =IFERROR(VLOOKUP(IO12,MATCHSELEVES!$Y$14:$AE$600,5,FALSE),0) -> 0 | IS12: =IFERROR(VLOOKUP(IO12,MATCHSELEVES!$Y$14:$AF$600,8,FALSE),0) -> 0 | IT12: =IFERROR(VLOOKUP(IO12,MATCHSELEVES!$Y$14:$AG$600,9,FALSE),0) -> 0 | IU12: Caroline_40 | IV12: =IFERROR(VLOOKUP(IU12,MATCHSELEVES!$Y$14:$AE$600,3,FALSE),0) -> 0 | IW12: =IFERROR(VLOOKUP(IU12,MATCHSELEVES!$Y$14:$AE$600,4,FALSE),0) -> 0 | IX12: =IFERROR(VLOOKUP(IU12,MATCHSELEVES!$Y$14:$AE$600,5,FALSE),0) -> 0 | IY12: =IFERROR(VLOOKUP(IU12,MATCHSELEVES!$Y$14:$AF$600,8,FALSE),0) -> 0 | IZ12: =IFERROR(VLOOKUP(IU12,MATCHSELEVES!$Y$14:$AG$600,9,FALSE),0) -> 0 | JA12: Carolinep_1 | JB12: =IFERROR(VLOOKUP(JA12,MATCHSELEVES!$Y$14:$AE$600,3,FALSE),0) -> 0 | JC12: =IFERROR(VLOOKUP(JA12,MATCHSELEVES!$Y$14:$AE$600,4,FALSE),0) -> 0 | JD12: =IFERROR(VLOOKUP(JA12,MATCHSELEVES!$Y$14:$AE$600,5,FALSE),0) -> 0 | JE12: =IFERROR(VLOOKUP(JA12,MATCHSELEVES!$Y$14:$AF$600,8,FALSE),0) -> 0 | JF12: =IFERROR(VLOOKUP(JA12,MATCHSELEVES!$Y$14:$AG$600,9,FALSE),0) -> 0 | JG12: Carolinep_2 | JH12: =IFERROR(VLOOKUP(JG12,MATCHSELEVES!$Y$14:$AE$600,3,FALSE),0) -> 0 | JI12: =IFERROR(VLOOKUP(JG12,MATCHSELEVES!$Y$14:$AE$600,4,FALSE),0) -> 0 | JJ12: =IFERROR(VLOOKUP(JG12,MATCHSELEVES!$Y$14:$AE$600,5,FALSE),0) -> 0 | JK12: =IFERROR(VLOOKUP(JG12,MATCHSELEVES!$Y$14:$AF$600,8,FALSE),0) -> 0 | JL12: =IFERROR(VLOOKUP(JG12,MATCHSELEVES!$Y$14:$AG$600,9,FALSE),0) -> 0 | JM12: Carolinep_3 | JN12: =IFERROR(VLOOKUP(JM12,MATCHSELEVES!$Y$14:$AE$600,3,FALSE),0) -> 0 | JO12: =IFERROR(VLOOKUP(JM12,MATCHSELEVES!$Y$14:$AE$600,4,FALSE),0) -> 0 | JP12: =IFERROR(VLOOKUP(JM12,MATCHSELEVES!$Y$14:$AE$600,5,FALSE),0) -> 0 | JQ12: =IFERROR(VLOOKUP(JM12,MATCHSELEVES!$Y$14:$AF$600,8,FALSE),0) -> 0 | JR12: =IFERROR(VLOOKUP(JM12,MATCHSELEVES!$Y$14:$AG$600,9,FALSE),0) -> 0 | JS12: Carolinep_4 | JT12: =IFERROR(VLOOKUP(JS12,MATCHSELEVES!$Y$14:$AE$600,3,FALSE),0) -> 0 | JU12: =IFERROR(VLOOKUP(JS12,MATCHSELEVES!$Y$14:$AE$600,4,FALSE),0) -> 0 | JV12: =IFERROR(VLOOKUP(JS12,MATCHSELEVES!$Y$14:$AE$600,5,FALSE),0) -> 0 | JW12: =IFERROR(VLOOKUP(JS12,MATCHSELEVES!$Y$14:$AF$600,8,FALSE),0) -> 0 | JX12: =IFERROR(VLOOKUP(JS12,MATCHSELEVES!$Y$14:$AG$600,9,FALSE),0) -> 0 | JY12: Carolinep_5 | JZ12: =IFERROR(VLOOKUP(JY12,MATCHSELEVES!$Y$14:$AE$600,3,FALSE),0) -> 0 | KA12: =IFERROR(VLOOKUP(JY12,MATCHSELEVES!$Y$14:$AE$600,4,FALSE),0) -> 0 | KB12: =IFERROR(VLOOKUP(JY12,MATCHSELEVES!$Y$14:$AE$600,5,FALSE),0) -> 0 | KC12: =IFERROR(VLOOKUP(JY12,MATCHSELEVES!$Y$14:$AF$600,8,FALSE),0) -> 0 | KD12: =IFERROR(VLOOKUP(JY12,MATCHSELEVES!$Y$14:$AG$600,9,FALSE),0) -> 0 | KE12: Carolinep_6 | KF12: =IFERROR(VLOOKUP(KE12,MATCHSELEVES!$Y$14:$AE$600,3,FALSE),0) -> 0 | KG12: =IFERROR(VLOOKUP(KE12,MATCHSELEVES!$Y$14:$AE$600,4,FALSE),0) -> 0 | KH12: =IFERROR(VLOOKUP(KE12,MATCHSELEVES!$Y$14:$AE$600,5,FALSE),0) -> 0 | KI12: =IFERROR(VLOOKUP(KE12,MATCHSELEVES!$Y$14:$AF$600,8,FALSE),0) -> 0 | KJ12: =IFERROR(VLOOKUP(KE12,MATCHSELEVES!$Y$14:$AG$600,9,FALSE),0) -> 0 | KK12: Carolinep_7 | KL12: =IFERROR(VLOOKUP(KK12,MATCHSELEVES!$Y$14:$AE$600,3,FALSE),0) -> 0 | KM12: =IFERROR(VLOOKUP(KK12,MATCHSELEVES!$Y$14:$AE$600,4,FALSE),0) -> 0 | KN12: =IFERROR(VLOOKUP(KK12,MATCHSELEVES!$Y$14:$AE$600,5,FALSE),0) -> 0 | KO12: =IFERROR(VLOOKUP(KK12,MATCHSELEVES!$Y$14:$AF$600,8,FALSE),0) -> 0 | KP12: =IFERROR(VLOOKUP(KK12,MATCHSELEVES!$Y$14:$AG$600,9,FALSE),0) -> 0 | KQ12: Carolinep_8 | KR12: =IFERROR(VLOOKUP(KQ12,MATCHSELEVES!$Y$14:$AE$600,3,FALSE),0) -> 0 | KS12: =IFERROR(VLOOKUP(KQ12,MATCHSELEVES!$Y$14:$AE$600,4,FALSE),0) -> 0 | KT12: =IFERROR(VLOOKUP(KQ12,MATCHSELEVES!$Y$14:$AE$600,5,FALSE),0) -> 0 | KU12: =IFERROR(VLOOKUP(KQ12,MATCHSELEVES!$Y$14:$AF$600,8,FALSE),0) -> 0 | KV12: =IFERROR(VLOOKUP(KQ12,MATCHSELEVES!$Y$14:$AG$600,9,FALSE),0) -> 0 | KW12: Carolinep_9 | KX12: =IFERROR(VLOOKUP(KW12,MATCHSELEVES!$Y$14:$AE$600,3,FALSE),0) -> 0 | KY12: =IFERROR(VLOOKUP(KW12,MATCHSELEVES!$Y$14:$AE$600,4,FALSE),0) -> 0 | KZ12: =IFERROR(VLOOKUP(KW12,MATCHSELEVES!$Y$14:$AE$600,5,FALSE),0) -> 0 | LA12: =IFERROR(VLOOKUP(KW12,MATCHSELEVES!$Y$14:$AF$600,8,FALSE),0) -> 0 | LB12: =IFERROR(VLOOKUP(KW12,MATCHSELEVES!$Y$14:$AG$600,9,FALSE),0) -> 0 | LC12: Carolinep_10 | LD12: =IFERROR(VLOOKUP(LC12,MATCHSELEVES!$Y$14:$AE$600,3,FALSE),0) -> 0 | LE12: =IFERROR(VLOOKUP(LC12,MATCHSELEVES!$Y$14:$AE$600,4,FALSE),0) -> 0 | LF12: =IFERROR(VLOOKUP(LC12,MATCHSELEVES!$Y$14:$AE$600,5,FALSE),0) -> 0 | LG12: =IFERROR(VLOOKUP(LC12,MATCHSELEVES!$Y$14:$AF$600,8,FALSE),0) -> 0 | LH12: =IFERROR(VLOOKUP(LC12,MATCHSELEVES!$Y$14:$AG$600,9,FALSE),0) -> 0 | LI12: Carolinep_11 | LJ12: =IFERROR(VLOOKUP(LI12,MATCHSELEVES!$Y$14:$AE$600,3,FALSE),0) -> 0 | LK12: =IFERROR(VLOOKUP(LI12,MATCHSELEVES!$Y$14:$AE$600,4,FALSE),0) -> 0 | LL12: =IFERROR(VLOOKUP(LI12,MATCHSELEVES!$Y$14:$AE$600,5,FALSE),0) -> 0 | LM12: =IFERROR(VLOOKUP(LI12,MATCHSELEVES!$Y$14:$AF$600,8,FALSE),0) -> 0 | LN12: =IFERROR(VLOOKUP(LI12,MATCHSELEVES!$Y$14:$AG$600,9,FALSE),0) -> 0 | LO12: Carolinep_12 | LP12: =IFERROR(VLOOKUP(LO12,MATCHSELEVES!$Y$14:$AE$600,3,FALSE),0) -> 0 | LQ12: =IFERROR(VLOOKUP(LO12,MATCHSELEVES!$Y$14:$AE$600,4,FALSE),0) -> 0 | LR12: =IFERROR(VLOOKUP(LO12,MATCHSELEVES!$Y$14:$AE$600,5,FALSE),0) -> 0 | LS12: =IFERROR(VLOOKUP(LO12,MATCHSELEVES!$Y$14:$AF$600,8,FALSE),0) -> 0 | LT12: =IFERROR(VLOOKUP(LO12,MATCHSELEVES!$Y$14:$AG$600,9,FALSE),0) -> 0 | LU12: Carolinep_13 | LV12: =IFERROR(VLOOKUP(LU12,MATCHSELEVES!$Y$14:$AE$600,3,FALSE),0) -> 0 | LW12: =IFERROR(VLOOKUP(LU12,MATCHSELEVES!$Y$14:$AE$600,4,FALSE),0) -> 0 | LX12: =IFERROR(VLOOKUP(LU12,MATCHSELEVES!$Y$14:$AE$600,5,FALSE),0) -> 0 | LY12: =IFERROR(VLOOKUP(LU12,MATCHSELEVES!$Y$14:$AF$600,8,FALSE),0) -> 0 | LZ12: =IFERROR(VLOOKUP(LU12,MATCHSELEVES!$Y$14:$AG$600,9,FALSE),0) -> 0 | MA12: Carolinep_14 | MB12: =IFERROR(VLOOKUP(MA12,MATCHSELEVES!$Y$14:$AE$600,3,FALSE),0) -> 0 | MC12: =IFERROR(VLOOKUP(MA12,MATCHSELEVES!$Y$14:$AE$600,4,FALSE),0) -> 0 | MD12: =IFERROR(VLOOKUP(MA12,MATCHSELEVES!$Y$14:$AE$600,5,FALSE),0) -> 0 | ME12: =IFERROR(VLOOKUP(MA12,MATCHSELEVES!$Y$14:$AF$600,8,FALSE),0) -> 0 | MF12: =IFERROR(VLOOKUP(MA12,MATCHSELEVES!$Y$14:$AG$600,9,FALSE),0) -> 0 | MG12: Carolinep_15 | MH12: =IFERROR(VLOOKUP(MG12,MATCHSELEVES!$Y$14:$AE$600,3,FALSE),0) -> 0 | MI12: =IFERROR(VLOOKUP(MG12,MATCHSELEVES!$Y$14:$AE$600,4,FALSE),0) -> 0 | MJ12: =IFERROR(VLOOKUP(MG12,MATCHSELEVES!$Y$14:$AE$600,5,FALSE),0) -> 0 | MK12: =IFERROR(VLOOKUP(MG12,MATCHSELEVES!$Y$14:$AF$600,8,FALSE),0) -> 0 | ML12: =IFERROR(VLOOKUP(MG12,MATCHSELEVES!$Y$14:$AG$600,9,FALSE),0) -> 0 | MM12: Carolinep_16 | MN12: =IFERROR(VLOOKUP(MM12,MATCHSELEVES!$Y$14:$AE$600,3,FALSE),0) -> 0 | MO12: =IFERROR(VLOOKUP(MM12,MATCHSELEVES!$Y$14:$AE$600,4,FALSE),0) -> 0 | MP12: =IFERROR(VLOOKUP(MM12,MATCHSELEVES!$Y$14:$AE$600,5,FALSE),0) -> 0 | MQ12: =IFERROR(VLOOKUP(MM12,MATCHSELEVES!$Y$14:$AF$600,8,FALSE),0) -> 0 | MR12: =IFERROR(VLOOKUP(MM12,MATCHSELEVES!$Y$14:$AG$600,9,FALSE),0) -> 0 | MS12: Carolinep_17 | MT12: =IFERROR(VLOOKUP(MS12,MATCHSELEVES!$Y$14:$AE$600,3,FALSE),0) -> 0 | MU12: =IFERROR(VLOOKUP(MS12,MATCHSELEVES!$Y$14:$AE$600,4,FALSE),0) -> 0 | MV12: =IFERROR(VLOOKUP(MS12,MATCHSELEVES!$Y$14:$AE$600,5,FALSE),0) -> 0 | MW12: =IFERROR(VLOOKUP(MS12,MATCHSELEVES!$Y$14:$AF$600,8,FALSE),0) -> 0 | MX12: =IFERROR(VLOOKUP(MS12,MATCHSELEVES!$Y$14:$AG$600,9,FALSE),0) -> 0 | MY12: Carolinep_18 | MZ12: =IFERROR(VLOOKUP(MY12,MATCHSELEVES!$Y$14:$AE$600,3,FALSE),0) -> 0 | NA12: =IFERROR(VLOOKUP(MY12,MATCHSELEVES!$Y$14:$AE$600,4,FALSE),0) -> 0 | NB12: =IFERROR(VLOOKUP(MY12,MATCHSELEVES!$Y$14:$AE$600,5,FALSE),0) -> 0 | NC12: =IFERROR(VLOOKUP(MY12,MATCHSELEVES!$Y$14:$AF$600,8,FALSE),0) -> 0 | ND12: =IFERROR(VLOOKUP(MY12,MATCHSELEVES!$Y$14:$AG$600,9,FALSE),0) -> 0 | NE12: Carolinep_19 | NF12: =IFERROR(VLOOKUP(NE12,MATCHSELEVES!$Y$14:$AE$600,3,FALSE),0) -> 0 | NG12: =IFERROR(VLOOKUP(NE12,MATCHSELEVES!$Y$14:$AE$600,4,FALSE),0) -> 0 | NH12: =IFERROR(VLOOKUP(NE12,MATCHSELEVES!$Y$14:$AE$600,5,FALSE),0) -> 0 | NI12: =IFERROR(VLOOKUP(NE12,MATCHSELEVES!$Y$14:$AF$600,8,FALSE),0) -> 0 | NJ12: =IFERROR(VLOOKUP(NE12,MATCHSELEVES!$Y$14:$AG$600,9,FALSE),0) -> 0 | NK12: Carolinep_20 | NL12: =IFERROR(VLOOKUP(NK12,MATCHSELEVES!$Y$14:$AE$600,3,FALSE),0) -> 0 | NM12: =IFERROR(VLOOKUP(NK12,MATCHSELEVES!$Y$14:$AE$600,4,FALSE),0) -> 0 | NN12: =IFERROR(VLOOKUP(NK12,MATCHSELEVES!$Y$14:$AE$600,5,FALSE),0) -> 0 | NO12: =IFERROR(VLOOKUP(NK12,MATCHSELEVES!$Y$14:$AF$600,8,FALSE),0) -> 0 | NP12: =IFERROR(VLOOKUP(NK12,MATCHSELEVES!$Y$14:$AG$600,9,FALSE),0) -> 0 | NQ12: Carolinep_21 | NR12: =IFERROR(VLOOKUP(NQ12,MATCHSELEVES!$Y$14:$AE$600,3,FALSE),0) -> 0 | NS12: =IFERROR(VLOOKUP(NQ12,MATCHSELEVES!$Y$14:$AE$600,4,FALSE),0) -> 0 | NT12: =IFERROR(VLOOKUP(NQ12,MATCHSELEVES!$Y$14:$AE$600,5,FALSE),0) -> 0 | NU12: =IFERROR(VLOOKUP(NQ12,MATCHSELEVES!$Y$14:$AF$600,8,FALSE),0) -> 0 | NV12: =IFERROR(VLOOKUP(NQ12,MATCHSELEVES!$Y$14:$AG$600,9,FALSE),0) -> 0 | NW12: Carolinep_22 | NX12: =IFERROR(VLOOKUP(NW12,MATCHSELEVES!$Y$14:$AE$600,3,FALSE),0) -> 0 | NY12: =IFERROR(VLOOKUP(NW12,MATCHSELEVES!$Y$14:$AE$600,4,FALSE),0) -> 0 | NZ12: =IFERROR(VLOOKUP(NW12,MATCHSELEVES!$Y$14:$AE$600,5,FALSE),0) -> 0 | OA12: =IFERROR(VLOOKUP(NW12,MATCHSELEVES!$Y$14:$AF$600,8,FALSE),0) -> 0 | OB12: =IFERROR(VLOOKUP(NW12,MATCHSELEVES!$Y$14:$AG$600,9,FALSE),0) -> 0 | OC12: Carolinep_23 | OD12: =IFERROR(VLOOKUP(OC12,MATCHSELEVES!$Y$14:$AE$600,3,FALSE),0) -> 0 | OE12: =IFERROR(VLOOKUP(OC12,MATCHSELEVES!$Y$14:$AE$600,4,FALSE),0) -> 0 | OF12: =IFERROR(VLOOKUP(OC12,MATCHSELEVES!$Y$14:$AE$600,5,FALSE),0) -> 0 | OG12: =IFERROR(VLOOKUP(OC12,MATCHSELEVES!$Y$14:$AF$600,8,FALSE),0) -> 0 | OH12: =IFERROR(VLOOKUP(OC12,MATCHSELEVES!$Y$14:$AG$600,9,FALSE),0) -> 0 | OI12: Carolinep_24 | OJ12: =IFERROR(VLOOKUP(OI12,MATCHSELEVES!$Y$14:$AE$600,3,FALSE),0) -> 0 | OK12: =IFERROR(VLOOKUP(OI12,MATCHSELEVES!$Y$14:$AE$600,4,FALSE),0) -> 0 | OL12: =IFERROR(VLOOKUP(OI12,MATCHSELEVES!$Y$14:$AE$600,5,FALSE),0) -> 0 | OM12: =IFERROR(VLOOKUP(OI12,MATCHSELEVES!$Y$14:$AF$600,8,FALSE),0) -> 0 | ON12: =IFERROR(VLOOKUP(OI12,MATCHSELEVES!$Y$14:$AG$600,9,FALSE),0) -> 0 | OO12: Carolinep_25 | OP12: =IFERROR(VLOOKUP(OO12,MATCHSELEVES!$Y$14:$AE$600,3,FALSE),0) -> 0 | OQ12: =IFERROR(VLOOKUP(OO12,MATCHSELEVES!$Y$14:$AE$600,4,FALSE),0) -> 0 | OR12: =IFERROR(VLOOKUP(OO12,MATCHSELEVES!$Y$14:$AE$600,5,FALSE),0) -> 0 | OS12: =IFERROR(VLOOKUP(OO12,MATCHSELEVES!$Y$14:$AF$600,8,FALSE),0) -> 0 | OT12: =IFERROR(VLOOKUP(OO12,MATCHSELEVES!$Y$14:$AG$600,9,FALSE),0) -> 0 | OU12: Carolinep_26 | OV12: =IFERROR(VLOOKUP(OU12,MATCHSELEVES!$Y$14:$AE$600,3,FALSE),0) -> 0 | OW12: =IFERROR(VLOOKUP(OU12,MATCHSELEVES!$Y$14:$AE$600,4,FALSE),0) -> 0 | OX12: =IFERROR(VLOOKUP(OU12,MATCHSELEVES!$Y$14:$AE$600,5,FALSE),0) -> 0 | OY12: =IFERROR(VLOOKUP(OU12,MATCHSELEVES!$Y$14:$AF$600,8,FALSE),0) -> 0 | OZ12: =IFERROR(VLOOKUP(OU12,MATCHSELEVES!$Y$14:$AG$600,9,FALSE),0) -> 0 | PA12: Carolinep_27 | PB12: =IFERROR(VLOOKUP(PA12,MATCHSELEVES!$Y$14:$AE$600,3,FALSE),0) -> 0 | PC12: =IFERROR(VLOOKUP(PA12,MATCHSELEVES!$Y$14:$AE$600,4,FALSE),0) -> 0 | PD12: =IFERROR(VLOOKUP(PA12,MATCHSELEVES!$Y$14:$AE$600,5,FALSE),0) -> 0 | PE12: =IFERROR(VLOOKUP(PA12,MATCHSELEVES!$Y$14:$AF$600,8,FALSE),0) -> 0 | PF12: =IFERROR(VLOOKUP(PA12,MATCHSELEVES!$Y$14:$AG$600,9,FALSE),0) -> 0 | PG12: Carolinep_28 | PH12: =IFERROR(VLOOKUP(PG12,MATCHSELEVES!$Y$14:$AE$600,3,FALSE),0) -> 0 | PI12: =IFERROR(VLOOKUP(PG12,MATCHSELEVES!$Y$14:$AE$600,4,FALSE),0) -> 0 | PJ12: =IFERROR(VLOOKUP(PG12,MATCHSELEVES!$Y$14:$AE$600,5,FALSE),0) -> 0 | PK12: =IFERROR(VLOOKUP(PG12,MATCHSELEVES!$Y$14:$AF$600,8,FALSE),0) -> 0 | PL12: =IFERROR(VLOOKUP(PG12,MATCHSELEVES!$Y$14:$AG$600,9,FALSE),0) -> 0 | PM12: Carolinep_29 | PN12: =IFERROR(VLOOKUP(PM12,MATCHSELEVES!$Y$14:$AE$600,3,FALSE),0) -> 0 | PO12: =IFERROR(VLOOKUP(PM12,MATCHSELEVES!$Y$14:$AE$600,4,FALSE),0) -> 0 | PP12: =IFERROR(VLOOKUP(PM12,MATCHSELEVES!$Y$14:$AE$600,5,FALSE),0) -> 0 | PQ12: =IFERROR(VLOOKUP(PM12,MATCHSELEVES!$Y$14:$AF$600,8,FALSE),0) -> 0 | PR12: =IFERROR(VLOOKUP(PM12,MATCHSELEVES!$Y$14:$AG$600,9,FALSE),0) -> 0 | PS12: Carolinep_30 | PT12: =IFERROR(VLOOKUP(PS12,MATCHSELEVES!$Y$14:$AE$600,3,FALSE),0) -> 0 | PU12: =IFERROR(VLOOKUP(PS12,MATCHSELEVES!$Y$14:$AE$600,4,FALSE),0) -> 0 | PV12: =IFERROR(VLOOKUP(PS12,MATCHSELEVES!$Y$14:$AE$600,5,FALSE),0) -> 0 | PW12: =IFERROR(VLOOKUP(PS12,MATCHSELEVES!$Y$14:$AF$600,8,FALSE),0) -> 0 | PX12: =IFERROR(VLOOKUP(PS12,MATCHSELEVES!$Y$14:$AG$600,9,FALSE),0) -> 0 | PY12: Carolinep_31 | PZ12: =IFERROR(VLOOKUP(PY12,MATCHSELEVES!$Y$14:$AE$600,3,FALSE),0) -> 0 | QA12: =IFERROR(VLOOKUP(PY12,MATCHSELEVES!$Y$14:$AE$600,4,FALSE),0) -> 0 | QB12: =IFERROR(VLOOKUP(PY12,MATCHSELEVES!$Y$14:$AE$600,5,FALSE),0) -> 0 | QC12: =IFERROR(VLOOKUP(PY12,MATCHSELEVES!$Y$14:$AF$600,8,FALSE),0) -> 0 | QD12: =IFERROR(VLOOKUP(PY12,MATCHSELEVES!$Y$14:$AG$600,9,FALSE),0) -> 0 | QE12: Carolinep_32 | QF12: =IFERROR(VLOOKUP(QE12,MATCHSELEVES!$Y$14:$AE$600,3,FALSE),0) -> 0 | QG12: =IFERROR(VLOOKUP(QE12,MATCHSELEVES!$Y$14:$AE$600,4,FALSE),0) -> 0 | QH12: =IFERROR(VLOOKUP(QE12,MATCHSELEVES!$Y$14:$AE$600,5,FALSE),0) -> 0 | QI12: =IFERROR(VLOOKUP(QE12,MATCHSELEVES!$Y$14:$AF$600,8,FALSE),0) -> 0 | QJ12: =IFERROR(VLOOKUP(QE12,MATCHSELEVES!$Y$14:$AG$600,9,FALSE),0) -> 0 | QK12: Carolinep_33 | QL12: =IFERROR(VLOOKUP(QK12,MATCHSELEVES!$Y$14:$AE$600,3,FALSE),0) -> 0 | QM12: =IFERROR(VLOOKUP(QK12,MATCHSELEVES!$Y$14:$AE$600,4,FALSE),0) -> 0 | QN12: =IFERROR(VLOOKUP(QK12,MATCHSELEVES!$Y$14:$AE$600,5,FALSE),0) -> 0 | QO12: =IFERROR(VLOOKUP(QK12,MATCHSELEVES!$Y$14:$AF$600,8,FALSE),0) -> 0 | QP12: =IFERROR(VLOOKUP(QK12,MATCHSELEVES!$Y$14:$AG$600,9,FALSE),0) -> 0 | QQ12: Carolinep_34 | QR12: =IFERROR(VLOOKUP(QQ12,MATCHSELEVES!$Y$14:$AE$600,3,FALSE),0) -> 0 | QS12: =IFERROR(VLOOKUP(QQ12,MATCHSELEVES!$Y$14:$AE$600,4,FALSE),0) -> 0 | QT12: =IFERROR(VLOOKUP(QQ12,MATCHSELEVES!$Y$14:$AE$600,5,FALSE),0) -> 0 | QU12: =IFERROR(VLOOKUP(QQ12,MATCHSELEVES!$Y$14:$AF$600,8,FALSE),0) -> 0 | QV12: =IFERROR(VLOOKUP(QQ12,MATCHSELEVES!$Y$14:$AG$600,9,FALSE),0) -> 0 | QW12: Carolinep_35 | QX12: =IFERROR(VLOOKUP(QW12,MATCHSELEVES!$Y$14:$AE$600,3,FALSE),0) -> 0 | QY12: =IFERROR(VLOOKUP(QW12,MATCHSELEVES!$Y$14:$AE$600,4,FALSE),0) -> 0 | QZ12: =IFERROR(VLOOKUP(QW12,MATCHSELEVES!$Y$14:$AE$600,5,FALSE),0) -> 0 | RA12: =IFERROR(VLOOKUP(QW12,MATCHSELEVES!$Y$14:$AF$600,8,FALSE),0) -> 0 | RB12: =IFERROR(VLOOKUP(QW12,MATCHSELEVES!$Y$14:$AG$600,9,FALSE),0) -> 0 | RC12: Carolinep_36 | RD12: =IFERROR(VLOOKUP(RC12,MATCHSELEVES!$Y$14:$AE$600,3,FALSE),0) -> 0 | RE12: =IFERROR(VLOOKUP(RC12,MATCHSELEVES!$Y$14:$AE$600,4,FALSE),0) -> 0 | RF12: =IFERROR(VLOOKUP(RC12,MATCHSELEVES!$Y$14:$AE$600,5,FALSE),0) -> 0 | RG12: =IFERROR(VLOOKUP(RC12,MATCHSELEVES!$Y$14:$AF$600,8,FALSE),0) -> 0 | RH12: =IFERROR(VLOOKUP(RC12,MATCHSELEVES!$Y$14:$AG$600,9,FALSE),0) -> 0 | RI12: Carolinep_37 | RJ12: =IFERROR(VLOOKUP(RI12,MATCHSELEVES!$Y$14:$AE$600,3,FALSE),0) -> 0 | RK12: =IFERROR(VLOOKUP(RI12,MATCHSELEVES!$Y$14:$AE$600,4,FALSE),0) -> 0 | RL12: =IFERROR(VLOOKUP(RI12,MATCHSELEVES!$Y$14:$AE$600,5,FALSE),0) -> 0 | RM12: =IFERROR(VLOOKUP(RI12,MATCHSELEVES!$Y$14:$AF$600,8,FALSE),0) -> 0 | RN12: =IFERROR(VLOOKUP(RI12,MATCHSELEVES!$Y$14:$AG$600,9,FALSE),0) -> 0 | RO12: Carolinep_38 | RP12: =IFERROR(VLOOKUP(RO12,MATCHSELEVES!$Y$14:$AE$600,3,FALSE),0) -> 0 | RQ12: =IFERROR(VLOOKUP(RO12,MATCHSELEVES!$Y$14:$AE$600,4,FALSE),0) -> 0 | RR12: =IFERROR(VLOOKUP(RO12,MATCHSELEVES!$Y$14:$AE$600,5,FALSE),0) -> 0 | RS12: =IFERROR(VLOOKUP(RO12,MATCHSELEVES!$Y$14:$AF$600,8,FALSE),0) -> 0 | RT12: =IFERROR(VLOOKUP(RO12,MATCHSELEVES!$Y$14:$AG$600,9,FALSE),0) -> 0 | RU12: Carolinep_39 | RV12: =IFERROR(VLOOKUP(RU12,MATCHSELEVES!$Y$14:$AE$600,3,FALSE),0) -> 0 | RW12: =IFERROR(VLOOKUP(RU12,MATCHSELEVES!$Y$14:$AE$600,4,FALSE),0) -> 0 | RX12: =IFERROR(VLOOKUP(RU12,MATCHSELEVES!$Y$14:$AE$600,5,FALSE),0) -> 0 | RY12: =IFERROR(VLOOKUP(RU12,MATCHSELEVES!$Y$14:$AF$600,8,FALSE),0) -> 0 | RZ12: =IFERROR(VLOOKUP(RU12,MATCHSELEVES!$Y$14:$AG$600,9,FALSE),0) -> 0 | SA12: Carolinep_40 | SB12: =IFERROR(VLOOKUP(SA12,MATCHSELEVES!$Y$14:$AE$600,3,FALSE),0) -> 0 | SC12: =IFERROR(VLOOKUP(SA12,MATCHSELEVES!$Y$14:$AE$600,4,FALSE),0) -> 0 | SD12: =IFERROR(VLOOKUP(SA12,MATCHSELEVES!$Y$14:$AE$600,5,FALSE),0) -> 0 | SE12: =IFERROR(VLOOKUP(SA12,MATCHSELEVES!$Y$14:$AF$600,8,FALSE),0) -> 0 | SF12: =IFERROR(VLOOKUP(SA12,MATCHSELEVES!$Y$14:$AG$600,9,FALSE),0) -> 0
